Workbook

Sheet Toelichting
A4: Welkom:
A5: Dit rekenpgramma is gemaakt om meer inzicht te verkrijgen in de mineralen efficientie op uw bedrijf en u te helpen deze te verbeteren.
A6: Het programma helpt u in beeld te brengen wat u de afgelopen periode aan uw melkvee heeft gevoerd en tot welke excretie dit leidt.
A7: Ook maakt het inzichtelijk hoeveel stikstof en fosfor u per kg krachtvoer kunt aankopen bij het rantsoen dat u voert en het gewenste krachtvoer niveau.
A9: Kies nu eerst of u deze tool het hele jaar of alleen gedurende het weideseizoen wilt gebruiken (u kunt u keuze altijd nog aanpassen).
A11: Stap 1
A12: Voer in het tablad voedermiddelen het voer in dat u heeft gevoerd en van plan bent de komende periode te gaan voeren.
A14: Stap 2
A15: In het tablad weidegras staan per maand standaard gemiddelde voederwaardes voor het weidegras. Deze waarde zijn gebasseerd op metingen uit het verleden.
A16: Wanneer u wilt kunt u zelf de waarden van uw weidegras invoeren onder het kopje eigen invoer.
A18: Stap 3
A19: In het tabblad Veestapel+Melkproductie voert u het gemiddelde aantal melkgevende koeien in van de gewenste maand en de bijbehorende geleverde melk.
A20: Ook voert u het aantal droge koeien in die tussen de melkveestapel lopen en zodoende ook mee eten van het melkveerantsoen.
A21: Voor de prognose voert u de hoeveelheid in die u komende maand verwacht te leveren alsmede het aantal koeien.
A23: Stap 4
A24: In het tablad rantsoen geeft u aan of wel of geen weidegang toepast en welk weidegras te koeien te vreten hebben. Dit kunt u zowel voor de realisatie doen als voor de prognose.
A25: Daarnaast vult u in hoeveel kg product u van iedere voersoort dagelijks aan het melkvee heeft gevoerd en hoeveel % restvoer er was van het ruwvoer.
A26: U kunt hierbij kiezen uit de voedermiddelen die u zelf in het tabblad voedermiddelen hebt ingevoerd.
A27: Kies bij prognose voor een gewenst krachtvoer niveau en de gewenste gehaltes aan ruw eiwit en fosfor in het rantsoen.
A29: Uitkomst: | B29: Het programma geeft nu aan hoeveel eiwit en fosfor er per kg maximaal in de brok mag zitten om het gewenste rantsoen samen te stellen
B30: en hoeveel weidegras de koeien nog op moeten nemen om in de VEM behoefte te kunnen voorzien.
A43: Jan vee+melk | B43: J
A44: Jan voer | B44: J
A45: Feb vee+melk | B45: J
A46: Feb voer | B46: J
A47: Maart vee+melk | B47: J
A48: Maart voer | B48: J
A49: Nov vee+melk | B49: J
A50: Nov voer | B50: J
A51: Dec vee+melk | B51: J
A52: Dec voer | B52: J

Sheet voorbeeld (hidden)
A1: Voergroep 1
D3: pinken | F3: kalveren | H3: kg melk | I3: Voersoorten met restvoer en voer voor andere diergroepen | S3: kg voer | T3: kg voer | U3: kg rest- | W3: Voersoorten zonder restvoer
A4: dgn | B4: aantal | C4: aantal | D4: lft | E4: lft | F4: lft | G4: lft | H4: niet in de | S4: diergroep | T4: diergroep | U4: voer
A5: periode | B5: melkg. | C5: droog | H5: tank | I5: wg | J5: =D35 -> graskuil 2016 | K5: =D36 -> graskuil plaat 2 2015 | L5: =D37 -> hooi 2e snede | M5: =D38 -> maiskuil oost 2016 | N5: =D39 -> 0 | O5: =D40 -> bierbostel | P5: =D41 -> sodagrain | Q5: =D42 -> 0 | S5: I | T5: II | U5: mestvaalt | W5: =D43 -> snijmaiskernbrok | X5: =D44 -> eiwit | Y5: =D45 -> opti-brok | Z5: voer 13 | AA5: voer 14 | AB5: voer 15
A6: 7 | B6: 67 | C6: 2 | H6: 0 | I6: 0 | J6: 10500 | K6: 0 | L6: 70 | M6: 5600 | O6: 2400 | P6: =140*7 -> 980 | W6: 420 | X6: =240*7 -> 1680 | Y6: 0
I13: =IF($AA$30>0,($L$50*$AA$30/100-SUM($W$35:$W$48))/$L$34*1000/$K$34*SUM($B$19:$G$19)*$A$6,0) -> 556.342521
A16: Kg verstrekt | I16: =SUM(I6:I15) -> 556.342521 | J16: 10500 | K16: 0 | L16: 70 | M16: 5600 | N16: 0 | O16: 2400 | P16: 980 | Q16: 0 | W16: =SUM(W6:W15) -> 420 | X16: 1680 | Y16: 0 | Z16: 0 | AA16: 0 | AB16: 0
A17: Kg rest en voer andere diergroepen | I17: =IF($AA$30>0,0,IF(I16>0,I16/(SUM($I16:$Q16))*($S17+$T17+$U17),0)) -> 0 | J17: =IF($AA$30>0,IF(J$16>0,(J$16/SUM($J$16:$Q$16))*($S$17+$T$17+$U$17),0),IF(J$16>0,(J$16/SUM($I$16:$Q$16))*($S$17+$T$17+$U$17),0)) -> 0 | K17: 0 | L17: 0 | M17: 0 | N17: 0 | O17: 0 | P17: 0 | Q17: 0 | S17: =SUM(S6:S15) -> 0 | T17: =SUM(T6:T15) -> 0 | U17: =SUM(U6:U15) -> 0
A18: Kg opname in 7 dagen | I18: =IF(I16>0,(I16-I17)/A6*7,0) -> 556.342521 | J18: =IF(J16>0,(J16-J17)/A6*7,0) -> 10500 | K18: =IF(K16>0,(K16-K17)/A6*7,0) -> 0 | L18: =IF(L16>0,(L16-L17)/A6*7,0) -> 70 | M18: =IF(M16>0,(M16-M17)/A6*7,0) -> 5600 | N18: =IF(N16>0,(N16-N17)/A6*7,0) -> 0 | O18: =IF(O16>0,(O16-O17)/A6*7,0) -> 2400 | P18: =IF(P16>0,(P16-P17)/A6*7,0) -> 980 | Q18: =IF(Q16>0,(Q16-Q17)/A6*7,0) -> 0 | W18: =IF(W16>0,W16/A6*7,0) -> 420 | X18: =IF(X16>0,X16/A6*7,0) -> 1680 | Y18: =IF(Y16>0,Y16/A6*7,0) -> 0 | Z18: =IF(Z16>0,Z16/A6*7,0) -> 0 | AA18: =IF(AA16>0,AA16/A6*7,0) -> 0 | AB18: =IF(AB16>0,AB16/A6*7,0) -> 0
A19: Gem. | B19: =IF(B6>0,AVERAGE(B6:B15),0) -> 67 | C19: 2 | D19: 0 | E19: 0 | F19: 0 | G19: 0 | H19: =SUM(H6:H18) -> 0
A20: Voer voor diergroep I | I20: =IF($AA$30>0,0,IF(I$16>0,(I$16/SUM($I$16:$Q$16))*$S$17,0)) -> 0 | J20: =IF($AA$30>0,IF(J$16>0,(J$16/SUM($J$16:$Q$16))*$S$17,0),IF(J$16>0,(J$16/SUM($I$16:$Q$16))*$S$17,0)) -> 0 | K20: 0 | L20: 0 | M20: 0 | N20: 0 | O20: 0 | P20: 0 | Q20: 0 | T20: =SUM(I20:Q20) -> 0
A21: Voer voor diergroep II | I21: =IF($AA$30>0,0,IF(I$16>0,(I$16/SUM($I$16:$Q$16))*$T$17,0)) -> 0 | J21: =IF($AA$30>0,IF(J$16>0,(J$16/SUM($J$16:$Q$16))*$T$17,0),IF(J$16>0,(J$16/SUM($I$16:$Q$16))*$T$17,0)) -> 0 | K21: 0 | L21: 0 | M21: 0 | N21: 0 | O21: 0 | P21: 0 | Q21: 0 | T21: =SUM(I21:Q21) -> 0
A22: Verdeling voer over de diercategorien
A23: Melkg. | B23: =B19 -> 67 | I23: =IF(I$18>0,I$18/SUM(B$19:G$19)*B23,0) -> 540.2166508 | J23: =IF(J$18>0,J$18/SUM(B$19:G$19)*B23,0) -> 10195.65217 | K23: =IF(K$18>0,K$18/SUM(B$19:G$19)*B23,0) -> 0 | L23: =IF(L$18>0,L$18/SUM(B$19:G$19)*B23,0) -> 67.97101449 | M23: =IF(M$18>0,M$18/SUM(B$19:G$19)*B23,0) -> 5437.681159 | N23: =IF(N$18>0,N$18/SUM(B$19:G$19)*B23,0) -> 0 | O23: =IF(O$18>0,O$18/SUM(B$19:G$19)*B23,0) -> 2330.434783 | P23: =IF(P$18>0,P$18/SUM(B$19:G$19)*B23,0) -> 951.5942029 | Q23: =IF(Q$18>0,Q$18/SUM(B$19:G$19)*B23,0) -> 0 | W23: =IF(W$18>0,W$18/SUM(B$19:G$19)*B23,0) -> 407.826087 | X23: =IF(X$18>0,X$18/SUM(B$19:G$19)*B23,0) -> 1631.304348 | Y23: =IF(Y$18>0,Y$18/SUM(B$19:G$19)*B23,0) -> 0 | Z23: =IF(Z$18>0,Z$18/SUM(B$19:G$19)*B23,0) -> 0 | AA23: =IF(AA$18>0,AA$18/SUM(B$19:G$19)*B23,0) -> 0 | AB23: =IF(AB$18>0,AB$18/SUM(B$19:G$19)*B23,0) -> 0
A24: Droog | B24: =C19 -> 2 | I24: 16.12587017 | J24: 304.3478261 | K24: 0 | L24: 2.028985507 | M24: 162.3188406 | N24: 0 | O24: 69.56521739 | P24: 28.4057971 | Q24: 0 | W24: 12.17391304 | X24: 48.69565217 | Y24: 0 | Z24: 0 | AA24: 0 | AB24: 0
A25: Jongvee | B25: =D19 -> 0 | D25: Leeft. | E25: =D5 -> 0 | F25: mnd | I25: 0 | J25: 0 | K25: 0 | L25: 0 | M25: 0 | N25: 0 | O25: 0 | P25: 0 | Q25: 0 | W25: 0 | X25: 0 | Y25: 0 | Z25: 0 | AA25: 0 | AB25: 0
A26: Jongvee | B26: =E19 -> 0 | D26: Leeft. | E26: =E5 -> 0 | F26: mnd | I26: 0 | J26: 0 | K26: 0 | L26: 0 | M26: 0 | N26: 0 | O26: 0 | P26: 0 | Q26: 0 | W26: 0 | X26: 0 | Y26: 0 | Z26: 0 | AA26: 0 | AB26: 0
A27: Jongvee | B27: =F19 -> 0 | D27: Leeft. | E27: =F5 -> 0 | F27: mnd | I27: 0 | J27: 0 | K27: 0 | L27: 0 | M27: 0 | N27: 0 | O27: 0 | P27: 0 | Q27: 0 | W27: 0 | X27: 0 | Y27: 0 | Z27: 0 | AA27: 0 | AB27: 0
A28: Jongvee | B28: =G19 -> 0 | D28: Leeft. | E28: =G5 -> 0 | F28: mnd | I28: 0 | J28: 0 | K28: 0 | L28: 0 | M28: 0 | N28: 0 | O28: 0 | P28: 0 | Q28: 0 | W28: 0 | X28: 0 | Y28: 0 | Z28: 0 | AA28: 0 | AB28: 0
A30: Bedrijf: | C30: Voorbeeld | I30: Week: | J30: 2016_01 | M30: Diergroep: | N30: Melkgevende koeien | S30: Aantal dieren in de groep: | T30: =B23 -> 67 | X30: VEM-dekking weideperiode | AA30: 110
I31: Datum: | J31: =C67 -> 2016-01-11 | K31: t/m | L31: =C68 -> 2016-01-17 | S31: Dierdagen: | T31: =T30*7 -> 469 | Z31: (0 = stalperiode) | AA31: 110 = gem 2011/2012
A32: Voeropname | I32: kg | J32: kg ds/ | K32: analyse bij R en B in gr/kg ds; bij K in gr/kg product | W32: opname per dier/dag
A33: Voercode | D33: Omschrijving | H33: R, B of K | I33: gevoerd | J33: dier/dag | K33: ds | L33: VEM | M33: DVE | N33: OEB | O33: RE | P33: RC | Q33: RAS | R33: P | S33: N-tot | U33: Opmerkingen | W33: VEM | X33: DVE | Y33: OEB | Z33: % RE | AA33: gr P | AB33: gr N
A34: Versg gras | D34: weidegars | H34: R | I34: =I$23 -> 540.2166508 | J34: =IF(T$30>0,(I34*K34)/7/T$30/1000,0) -> 0.2303695739 | K34: 200 | L34: 940 | M34: 50 | N34: 30 | O34: 200 | P34: 220 | Q34: 90 | R34: 4.5 | S34: 32 | V34: wg | W34: =IF(H34="k",(1000/K34*J34*L34),((J34*L34))) -> 216.5473995 | X34: =IF(H34="k",(1000/K34*J34*M34),((J34*M34))) -> 11.5184787 | Y34: =IF(H34="k",(1000/K34*J34*N34),((J34*N34))) -> 6.911087218 | Z34: =IF(H34="k",(1000/K34*J34*O34),((J34*O34))) -> 46.07391478 | AA34: =IF(H34="k",(1000/K34*J34*R34),((J34*R34))) -> 1.036663083 | AB34: =IF(H34="k",(1000/K34*J34*S34),((J34*S34))) -> 7.371826365
A35: GK_2016_01_A | D35: graskuil 2016 | H35: R | I35: =J$23 -> 10195.65217 | J35: =IF(T$30>0,(I35*K35)/7/T$30/1000,0) -> 10.80434783 | K35: 497 | L35: 969 | M35: 71 | N35: 36 | O35: 160 | P35: 245 | Q35: 92 | R35: 3.6 | S35: =O35/6.25 -> 25.6 | V35: gk | W35: 10469.41304 | X35: 767.1086957 | Y35: 388.9565217 | Z35: 1728.695652 | AA35: 38.89565217 | AB35: 276.5913043
A36: GK_2016_01_B | D36: graskuil plaat 2 2015 | H36: R | I36: =K$23 -> 0 | J36: 0 | K36: 478 | L36: 852 | M36: 49 | N36: 18 | O36: 114 | P36: 243 | Q36: 131 | R36: 4.2 | S36: =O36/6.25 -> 18.24 | V36: gk | W36: 0 | X36: 0 | Y36: 0 | Z36: 0 | AA36: 0 | AB36: 0
A37: GH_2016 | D37: hooi 2e snede | H37: R | I37: =L$23 -> 67.97101449 | J37: 0.1257971014 | K37: 868 | L37: 797 | M37: 68 | N37: -28 | O37: 106 | P37: 261 | Q37: 91 | R37: 3.3 | S37: 16.96 | V37: gk | W37: 100.2602899 | X37: 8.554202899 | Y37: -3.522318841 | Z37: 13.33449275 | AA37: 0.4151304348 | AB37: 2.133518841
A38: MK_2016_01 | D38: maiskuil oost 2016 | H38: R | I38: =M$23 -> 5437.681159 | J38: 4 | K38: 345 | L38: 1016 | M38: 55 | N38: -48 | O38: 66 | P38: 166 | Q38: 35 | R38: 2.3 | S38: 10.56 | V38: mk | W38: 4064 | X38: 220 | Y38: -192 | Z38: 264 | AA38: 9.2 | AB38: 42.24
I39: =N$23 -> 0 | J39: 0 | W39: 0 | X39: 0 | Y39: 0 | Z39: 0 | AA39: 0 | AB39: =IF(H39="k",(1000/K39*J39*S39),((J39*S39))) -> 0
A40: Bierbostel | D40: bierbostel | H40: B | I40: =O$23 -> 2330.434783 | J40: 1.088198758 | K40: 219 | L40: 947 | M40: 137 | N40: 55 | O40: 247 | P40: 178 | Q40: 42 | R40: 6.2 | S40: 39.5 | V40: b | W40: 1030.524224 | X40: 149.0832298 | Y40: 59.85093168 | Z40: =IF(H40="k",(1000/K40*J40*O40),((J40*O40))) -> 268.7850932 | AA40: 6.746832298 | AB40: 42.98385093
A41: Sodagrain | D41: sodagrain | H41: B | I41: =P$23 -> 951.5942029 | J41: 1.52173913 | K41: 750 | L41: 1160 | M41: 100 | N41: -43 | O41: 109 | P41: 24 | Q41: 15 | R41: 3 | S41: =O41/6.25 -> 17.44 | V41: b | W41: 1765.217391 | X41: 152.173913 | Y41: -65.43478261 | Z41: 165.8695652 | AA41: 4.565217391 | AB41: 26.53913043
I42: =Q$23 -> 0 | J42: 0 | W42: 0 | X42: 0 | Y42: 0 | Z42: 0 | AA42: 0 | AB42: 0
A43: KV_2016_01_A | D43: snijmaiskernbrok | H43: K | I43: =W$23 -> 407.826087 | J43: 0.7713043478 | K43: 887 | L43: 950 | M43: 180 | N43: 75 | O43: 315 | P43: 88 | Q43: 101 | R43: 6.6 | S43: =O43/6.25 -> 50.4 | V43: kv | W43: 826.0869565 | X43: 156.5217391 | Y43: 65.2173913 | Z43: 273.9130435 | AA43: 5.739130435 | AB43: 43.82608696
A44: KV_2016_01_B | D44: eiwit | H44: K | I44: =X$23 -> 1631.304348 | J44: 3.085217391 | K44: 887 | L44: 950 | M44: 115 | N44: 5 | O44: 175 | P44: 99 | Q44: 73 | R44: 3.9 | S44: 28 | V44: kv | W44: 3304.347826 | X44: 400 | Y44: 17.39130435 | Z44: 608.6956522 | AA44: 13.56521739 | AB44: 97.39130435
A45: KV_2016_01_C | D45: opti-brok | I45: 0 | J45: 0 | K45: 892 | L45: 890 | M45: 139 | N45: 105 | O45: 276 | P45: 86 | Q45: 148 | R45: 4.7 | S45: 44.16 | W45: 0 | X45: 0 | Y45: 0 | Z45: 0 | AA45: 0 | AB45: 0
I46: =Z$23 -> 0 | J46: 0 | W46: 0 | X46: 0 | Y46: 0 | Z46: 0 | AA46: 0 | AB46: 0
I47: =AA$23 -> 0 | J47: 0 | W47: 0 | X47: 0 | Y47: 0 | Z47: 0 | AA47: 0 | AB47: 0
I48: =AB$23 -> 0 | J48: 0 | W48: 0 | X48: 0 | Y48: 0 | Z48: 0 | AA48: 0 | AB48: 0
A49: Opname totaal (dier/dag) | J49: =SUM(J34:J48) -> 21.62697413 | L49: =W49 -> 21776.39713 | M49: =X49 -> 1864.960259 | N49: =Y49 -> 277.3701348 | O49: =Z49 -> 3369.367414 | R49: =AA49 -> 80.16384321 | S49: =AB49 -> 539.0770222 | W49: =SUM(W34:W48) -> 21776.39713 | X49: 1864.960259 | Y49: 277.3701348 | Z49: 3369.367414 | AA49: 80.16384321 | AB49: 539.0770222
A50: Behoefte | L50: =IF(AA30>0,6013+440*M54+0.73*M54*M54,5013+440*M54+0.73*M54*M54) -> 19796.72466 | M50: =114+(1.396*E57*E60*10)+0.000195*((E57*E60*10)*(E57*E60*10))+20 -> 1763.74357 | O50: =M49/N49*10 -> 67.23724096 | R50: =19+1.43*M54 -> 61.68336567
A51: Dekking (%) | L51: =L49/L50*100 -> 110 | M51: =M49/M50*100 -> 105.7387418 | R51: =R49/R50*100 -> 129.9602289
L52: Let op: In zomer VEM-beh+1000
A53: Melkproductie | K53: Kengetallen | P53: Excretie (kg/dier/dag) | W53: kg ds/koe/dag | AD53: Melkproductie | AG53: Ureumgehalte (mg/100 g) | AP53: Ureumgehalte (mg/100 g) | BJ53: Fosfaat- | BK53: mestproductie in stal
A54: kg melk per week | E54: =(L74/C74*7)+H19 -> 12950 | F54: (inclusief niet in de tank : | I54: =H19 -> 0 | J54: kg) | K54: FPCM | M54: =(0.337+0.116*E59+0.06*E60)*E57 -> 29.84850746 | N54: kg | R54: N | S54: P | T54: P2O5 | V54: wg | W54: =SUMIF(V$34:V$48,"wg",J$34:J$48) -> 0.2303695739 | AD54: per koe (kg) | AE54: max | AF54: waar melk? | AG54: <14 | AH54: 14 | AI54: 15 | AJ54: 16 | AK54: 17 | AL54: 18 | AM54: 19 | AN54: 20 | AO54: 21 | AP54: 22 | AQ54: 23 | AR54: 24 | AS54: 25 | AT54: 26 | AU54: 27 | AV54: 28 | AW54: 29 | AX54: 30 | AY54: 31 | AZ54: 32 | BA54: 33 | BB54: 34 | BC54: 35 | BD54: 36 | BE54: 37 | BF54: 38 | BG54: 39 | BH54: 40 | BI54: >40 | BJ54: excretie | BK54: per 7 maanden
A55: aantal melkgevende koeien | E55: =B23 -> 67 | K55: N-efficiëntie | M55: =(E57*E60*10/6.38)/S49*100 -> 29.70483541 | N55: % | P55: Opname | R55: =(AB49*T30)*0.365/(E55+E56) -> 173.4622181 | S55: =(AA49*T30)*0.365/(E55+E56) -> 25.79482613 | T55: =S55*2.291 -> 59.09594666 | V55: gk | W55: =SUMIF(V$34:V$48,"gk",J$34:J$48) -> 10.93014493 | AD55: < 5625 | AE55: 5625 | AF55: =IF($AE$84>0,+IF($AE$84<AE55,1,0)) -> 0 | AG55: 76 | AH55: 77.5 | AI55: 79 | AJ55: 81 | AK55: 82.5 | AL55: 84 | AM55: 86 | AN55: 87.5 | AO55: 89 | AP55: 90.5 | AQ55: 92.5 | AR55: 94 | AS55: 95.5 | AT55: 97.5 | AU55: 99 | AV55: 100.5 | AW55: 102.5 | AX55: 104 | AY55: 105.5 | AZ55: 107 | BA55: 109 | BB55: 110.5 | BC55: 112 | BD55: 114 | BE55: 115.5 | BF55: 117 | BG55: 118.5 | BH55: 120.5 | BI55: 122 | BJ55: 32.4 | BK55: 12.1
A56: aantal droogstaande koeien | E56: 9 | K56: P-efficiëntie | M56: =(E57*0.9)/R49*100 -> 30.99994371 | N56: % | P56: Productie | R56: =(E58*E60*10)/6.38*0.365 -> 51.52666639 | S56: =E58*0.9*0.365 -> 7.996381579 | T56: =S56*2.291 -> 18.3197102 | V56: mk | W56: =SUMIF(V$34:V$48,"mk",J$34:J$48) -> 4 | AD56: 5625 - 5874 | AE56: 5874 | AF56: =IF($AE$84>AE55,+IF($AE$84<AE56,1,0)) -> 0 | AG56: 80.5 | AH56: 82.5 | AI56: 84 | AJ56: 85.5 | AK56: 87 | AL56: 89 | AM56: 90.5 | AN56: 92 | AO56: 94 | AP56: 95.5 | AQ56: 97 | AR56: 99 | AS56: 100.5 | AT56: 102 | AU56: 103.5 | AV56: 105.5 | AW56: 107 | AX56: 108.5 | AY56: 110.5 | AZ56: 112 | BA56: 113.5 | BB56: 115 | BC56: 117 | BD56: 118.5 | BE56: 120 | BF56: 122 | BG56: 123.5 | BH56: 125 | BI56: 127 | BJ56: 34 | BK56: 12.6
A57: kg melk/koe/dag | E57: =E54/E55/7 -> 27.6119403 | F57: (gem. melkgevende koeien) | K57: KV / 100 kg FPCM | M57: =(SUMIF(H34:H48,"K",I34:I48)/(M54*E55*7))*100 -> 14.56630986 | N57: kg | P57: Vastlegging | R57: 1.4 | S57: 0.5 | T57: =S57*2.291 -> 1.1455 | V57: ov | W57: =SUMIF(V$34:V$48,"ov",J$34:J$48) -> 0 | Y57: vastlegging standaardwaarde? | AD57: 5875 - 6124 | AE57: =AE56+250 -> 6124 | AF57: 0 | AG57: 83 | AH57: 84.5 | AI57: 86 | AJ57: 87.5 | AK57: 89.5 | AL57: 91 | AM57: 92.5 | AN57: 94.5 | AO57: 96 | AP57: 97.5 | AQ57: 99.5 | AR57: 101 | AS57: 102.5 | AT57: 104 | AU57: 106 | AV57: 107.5 | AW57: 109 | AX57: 111 | AY57: 112.5 | AZ57: 114 | BA57: 115.5 | BB57: 117.5 | BC57: 119 | BD57: 120.5 | BE57: 122.5 | BF57: 124 | BG57: 125.5 | BH57: 127.5 | BI57: 129 | BJ57: 34.8 | BK57: 12.9
A58: kg melk/koe/dag | E58: =E54/(E55+E56)/7 -> 24.34210526 | F58: (gem. incl droge koeien) | K58: RE | M58: =O49/J49 -> 155.7946754 | N58: gr/kg ds | P58: Onder de staart | R58: =R55-R56-R57 -> 120.5355517 | S58: =S55-S56-S57 -> 17.29844455 | T58: =S58*2.291 -> 39.63073646 | V58: kv | W58: =SUMIF(V$34:V$48,"kv",J$34:J$48) -> 3.856521739 | AD58: 6125 - 6374 | AE58: 6374 | AF58: 0 | AG58: 85 | AH58: 86.5 | AI58: 88 | AJ58: 90 | AK58: 91.5 | AL58: 93 | AM58: 95 | AN58: 96.5 | AO58: 98 | AP58: 100 | AQ58: 101.5 | AR58: 103 | AS58: 104.5 | AT58: 106.5 | AU58: 108 | AV58: 109.5 | AW58: 111.5 | AX58: 113 | AY58: 114.5 | AZ58: 116 | BA58: 118 | BB58: 119.5 | BC58: 121 | BD58: 123 | BE58: 124.5 | BF58: 126 | BG58: 128 | BH58: 129.5 | BI58: 131 | BJ58: 35.5 | BK58: 13.1
A59: % vet | E59: =I75 -> 4.5 | K59: P | M59: =R49/J49 -> 3.706660152 | N59: gr/kg ds | P59: Vervluchtiging | R59: =R58*0.1175 -> 14.16292733 | AD59: 6375 - 6624 | AE59: 6624 | AF59: 0 | AG59: 87 | AH59: 89 | AI59: 90.5 | AJ59: 92 | AK59: 93.5 | AL59: 95.5 | AM59: 97 | AN59: 98.5 | AO59: 100.5 | AP59: 102 | AQ59: 103.5 | AR59: 105 | AS59: 107 | AT59: 108.5 | AU59: 110 | AV59: 112 | AW59: 113.5 | AX59: 115 | AY59: 116.5 | AZ59: 118.5 | BA59: 120 | BB59: 121.5 | BC59: 123.5 | BD59: 125 | BE59: 126.5 | BF59: 128.5 | BG59: 130 | BH59: 131.5 | BI59: 133 | BJ59: 36.2 | BK59: 13.4
A60: % eiwit | E60: =J75 -> 3.7 | K60: kg FPCM/kg ds | M60: =M54/J49 -> 1.380151809 | Q60: Gemeten netto excretie | R60: =(R58-R59) -> 106.3726244 | S60: =S58 -> 17.29844455 | T60: =T58 -> 39.63073646 | V60: som | W60: =SUM(W54:W58) -> 19.01703624 | AD60: 6625 – 6874 | AE60: 6874 | AF60: 0 | AG60: 89.5 | AH60: 91 | AI60: 92.5 | AJ60: 94 | AK60: 96 | AL60: 97.5 | AM60: 99 | AN60: 101 | AO60: 102.5 | AP60: 104 | AQ60: 105.5 | AR60: 107.5 | AS60: 109 | AT60: 110.5 | AU60: 112.5 | AV60: 114 | AW60: 115.5 | AX60: 117 | AY60: 119 | AZ60: 120.5 | BA60: 122 | BB60: 124 | BC60: 125.5 | BD60: 127 | BE60: 129 | BF60: 130.5 | BG60: 132 | BH60: 133.5 | BI60: 135.5 | BJ60: 36.9 | BK60: 13.6
A61: melkureum | E61: =K75 -> 18 | G61: ureum in mg/100 gram melk | K61: methaanemissie | M61: =(SUM(W96:AB96)*25/1000)/M54*100 ->  | Q61: Berekende excretie (melk en ureum) | R61: =AE82 -> 117 | S61: =T61*0.436 -> 18.966 | T61: =AG82 -> 43.5 | AD61: 6875 – 7124 | AE61: 7124 | AF61: 0 | AG61: 91.5 | AH61: 93 | AI61: 94.5 | AJ61: 96.5 | AK61: 98 | AL61: 99.5 | AM61: 101.5 | AN61: 103 | AO61: 104.5 | AP61: 106 | AQ61: 108 | AR61: 109.5 | AS61: 111 | AT61: 113 | AU61: 114.5 | AV61: 116 | AW61: 117.5 | AX61: 119.5 | AY61: 121 | AZ61: 122.5 | BA61: 124.5 | BB61: 126 | BC61: 127.5 | BD61: 129.5 | BE61: 131 | BF61: 132.5 | BG61: 134 | BH61: 136 | BI61: 137.5 | BJ61: 37.7 | BK61: 13.9
A62: kg melk/koe/jaar | E62: =E58*365 -> 8884.868421 | K62: (kg CO2/100 kg FPCM) | Q62: Afwijking gemeten van berekend (%) | R62: =((R60-R61)/R61)*100 -> -9.083226995 | T62: =((T60-T61)/T61)*100 -> -8.894858716 | Y62: ureum? | AD62: 7125 – 7374 | AE62: 7374 | AF62: 0 | AG62: 93.5 | AH62: 95 | AI62: 97 | AJ62: 98.5 | AK62: 100 | AL62: 102 | AM62: 103.5 | AN62: 105 | AO62: 106.5 | AP62: 108.5 | AQ62: 110 | AR62: 111.5 | AS62: 113.5 | AT62: 115 | AU62: 116.5 | AV62: 118.5 | AW62: 120 | AX62: 121.5 | AY62: 123 | AZ62: 125 | BA62: 126.5 | BB62: 128 | BC62: 130 | BD62: 131.5 | BE62: 133 | BF62: 134.5 | BG62: 136.5 | BH62: 138 | BI62: 139.5 | BJ62: 38.4 | BK62: 14.1
G63: N in ureum/ton melk | I63: =E61/1000*10*(28/60) -> 0.084 | AD63: 7375 – 7624 | AE63: 7624 | AF63: 0 | AG63: 95.5 | AH63: 97.5 | AI63: 99 | AJ63: 100.5 | AK63: 102.5 | AL63: 104 | AM63: 105.5 | AN63: 107 | AO63: 109 | AP63: 110.5 | AQ63: 112 | AR63: 114 | AS63: 115.5 | AT63: 117 | AU63: 119 | AV63: 120.5 | AW63: 122 | AX63: 123.5 | AY63: 125.5 | AZ63: 127 | BA63: 128.5 | BB63: 130.5 | BC63: 132 | BD63: 133.5 | BE63: 135 | BF63: 137 | BG63: 138.5 | BH63: 140 | BI63: 142 | BJ63: 39.1 | BK63: 14.4
A64: Berekening melkproductie | P64: Excretie per ton melk | R64: =R60/E62*1000 -> 11.97233537 | S64: =S60/E62*1000 -> 1.946955625 | T64: =T60/E62*1000 -> 4.460475336 | AD64: 7625 – 7874 | AE64: 7874 | AF64: 0 | AG64: 98 | AH64: 99.5 | AI64: 101 | AJ64: 103 | AK64: 104.5 | AL64: 106 | AM64: 107.5 | AN64: 109.5 | AO64: 111 | AP64: 112.5 | AQ64: 114.5 | AR64: 116 | AS64: 117.5 | AT64: 119.5 | AU64: 121 | AV64: 122.5 | AW64: 124 | AX64: 126 | AY64: 127.5 | AZ64: 129 | BA64: 131 | BB64: 132.5 | BC64: 134 | BD64: 135.5 | BE64: 137.5 | BF64: 139 | BG64: 140.5 | BH64: 142.5 | BI64: 144 | BJ64: 39.8 | BK64: 14.6
F65: aantal melkmalen | AD65: 7875 – 8124 | AE65: 8124 | AF65: 0 | AG65: 100 | AH65: 101.5 | AI65: 103.5 | AJ65: 105 | AK65: 106.5 | AL65: 108 | AM65: 110 | AN65: 111.5 | AO65: 113 | AP65: 115 | AQ65: 116.5 | AR65: 118 | AS65: 120 | AT65: 121.5 | AU65: 123 | AV65: 124.5 | AW65: 126.5 | AX65: 128 | AY65: 129.5 | AZ65: 131.5 | BA65: 133 | BB65: 134.5 | BC65: 136 | BD65: 138 | BE65: 139.5 | BF65: 141 | BG65: 143 | BH65: 144.5 | BI65: 146 | BJ65: 40.6 | BK65: 14.9
A66: meetperiode | E66: datum | F66: tank | G66: in ber. | H66: kg melk | I66: vet | J66: eiwit | K66: ureum | L66: kg melk | M66: kg vet | N66: kg eiwit | O66: ureum | AD66: 8125 – 8374 | AE66: 8374 | AF66: 0 | AG66: 102 | AH66: 104 | AI66: 105.5 | AJ66: 107 | AK66: 108.5 | AL66: 110.5 | AM66: 112 | AN66: 113.5 | AO66: 115.5 | AP66: 117 | AQ66: 118.5 | AR66: 120.5 | AS66: 122 | AT66: 123.5 | AU66: 125 | AV66: 127 | AW66: 128.5 | AX66: 130 | AY66: 132 | AZ66: 133.5 | BA66: 135 | BB66: 136.5 | BC66: 138.5 | BD66: 140 | BE66: 141.5 | BF66: 143.5 | BG66: 145 | BH66: 146.5 | BI66: 148.5 | BJ66: 41.3 | BK66: 15.1
A67: begindatum | C67: 2016-01-11 | E67: 2013-01-12 | F67: 6 | G67: 6 | H67: =1850*7 -> 12950 | I67: 450 | J67: 370 | K67: 18 | L67: =IF(F67>0,(H67/F67)*G67,0) -> 12950 | M67: =IF($F67>0,($L67/10000*I67),0) -> 582.75 | N67: 479.15 | O67: =IF($F67>0,($L67*K67),0) -> 233100 | R67: 13.22 | S67: 1.96 | T67: 4.48 | AD67: 8375 – 8624 | AE67: 8624 | AF67: 0 | AG67: 104.5 | AH67: 106 | AI67: 107.5 | AJ67: 109 | AK67: 111 | AL67: 112.5 | AM67: 114 | AN67: 116 | AO67: 117.5 | AP67: 119 | AQ67: 121 | AR67: 122.5 | AS67: 124 | AT67: 125.5 | AU67: 127.5 | AV67: 129 | AW67: 130.5 | AX67: 132.5 | AY67: 134 | AZ67: 135.5 | BA67: 137 | BB67: 139 | BC67: 140.5 | BD67: 142 | BE67: 144 | BF67: 145.5 | BG67: 147 | BH67: 149 | BI67: 150.5 | BJ67: 42 | BK67: 15.4
A68: einddatum | C68: 2016-01-17 | E68: =E67+3 -> 2013-01-15 | F68: 6 | G68: 6 | H68: 0 | I68: 447 | J68: 360 | K68: 20 | L68: 0 | M68: 0 | N68: 0 | O68: 0 | W68: b | AD68: 8625 – 8874 | AE68: 8874 | AF68: 0 | AG68: 106.5 | AH68: 108 | AI68: 109.5 | AJ68: 111.5 | AK68: 113 | AL68: 114.5 | AM68: 116.5 | AN68: 118 | AO68: 119.5 | AP68: 121.5 | AQ68: 123 | AR68: 124.5 | AS68: 126 | AT68: 128 | AU68: 129.5 | AV68: 131 | AW68: 133 | AX68: 134.5 | AY68: 136 | AZ68: 137.5 | BA68: 139.5 | BB68: 141 | BC68: 142.5 | BD68: 144.5 | BE68: 146 | BF68: 147.5 | BG68: 149.5 | BH68: 151 | BI68: 152.5 | BJ68: 42.7 | BK68: 15.6
E69: =E68+3 -> 2013-01-18 | F69: 6 | G69: 4 | H69: 0 | I69: 453 | J69: 360 | K69: 17 | L69: 0 | M69: 0 | N69: 0 | O69: 0 | AD69: 8875 – 9124 | AE69: 9124 | AF69: 1 | AG69: 108.5 | AH69: 110 | AI69: 112 | AJ69: 113.5 | AK69: 115 | AL69: 117 | AM69: 118.5 | AN69: 120 | AO69: 122 | AP69: 123.5 | AQ69: 125 | AR69: 126.5 | AS69: 128.5 | AT69: 130 | AU69: 131.5 | AV69: 133.5 | AW69: 135 | AX69: 136.5 | AY69: 138 | AZ69: 140 | BA69: 141.5 | BB69: 143 | BC69: 145 | BD69: 146.5 | BE69: 148 | BF69: 150 | BG69: 151.5 | BH69: 153 | BI69: 154.5 | BJ69: 43.5 | BK69: 15.9
E70: =E69+3 -> 2013-01-21 | L70: 0 | M70: 0 | N70: 0 | O70: 0 | AD70: 9125 – 9374 | AE70: 9374 | AF70: FALSE | AG70: 111 | AH70: 112.5 | AI70: 114 | AJ70: 115.5 | AK70: 117.5 | AL70: 119 | AM70: 120.5 | AN70: 122.5 | AO70: 124 | AP70: 125.5 | AQ70: 127 | AR70: 129 | AS70: 130.5 | AT70: 132 | AU70: 134 | AV70: 135.5 | AW70: 137 | AX70: 138.5 | AY70: 140.5 | AZ70: 142 | BA70: 143.5 | BB70: 145.5 | BC70: 147 | BD70: 148.5 | BE70: 150.5 | BF70: 152 | BG70: 153.5 | BH70: 155 | BI70: 157 | BJ70: 44.2 | BK70: 16.1
E71: =E70+3 -> 2013-01-24 | L71: 0 | M71: 0 | N71: 0 | O71: 0 | AD71: 9375 – 9624 | AE71: 9624 | AF71: FALSE | AG71: 113 | AH71: 114.5 | AI71: 116 | AJ71: 118 | AK71: 119.5 | AL71: 121 | AM71: 123 | AN71: 124.5 | AO71: 126 | AP71: 127.5 | AQ71: 129.5 | AR71: 131 | AS71: 132.5 | AT71: 134.5 | AU71: 136 | AV71: 137.5 | AW71: 139 | AX71: 141 | AY71: 142.5 | AZ71: 144 | BA71: 146 | BB71: 147.5 | BC71: 149 | BD71: 151 | BE71: 152.5 | BF71: 154 | BG71: 155.5 | BH71: 157.5 | BI71: 159 | BJ71: 44.9 | BK71: 16.4
E72: =E71+3 -> 2013-01-27 | L72: 0 | M72: 0 | N72: 0 | O72: 0 | AD72: 9625 – 9874 | AE72: 9874 | AF72: FALSE | AG72: 115 | AH72: 116.5 | AI72: 118.5 | AJ72: 120 | AK72: 121.5 | AL72: 123.5 | AM72: 125 | AN72: 126.5 | AO72: 128 | AP72: 130 | AQ72: 131.5 | AR72: 133 | AS72: 135 | AT72: 136.5 | AU72: 138 | AV72: 139.5 | AW72: 141.5 | AX72: 143 | AY72: 144.5 | AZ72: 146.5 | BA72: 148 | BB72: 149.5 | BC72: 151.5 | BD72: 153 | BE72: 154.5 | BF72: 156 | BG72: 158 | BH72: 159.5 | BI72: 161 | BJ72: 45.6 | BK72: 16.6
AD73: 9875 – 10124 | AE73: 10124 | AF73: FALSE | AG73: 117 | AH73: 119 | AI73: 120.5 | AJ73: 122 | AK73: 124 | AL73: 125.5 | AM73: 127 | AN73: 128.5 | AO73: 130.5 | AP73: 132 | AQ73: 133.5 | AR73: 135.5 | AS73: 137 | AT73: 138.5 | AU73: 140 | AV73: 142 | AW73: 143.5 | AX73: 145 | AY73: 147 | AZ73: 148.5 | BA73: 150 | BB73: 152 | BC73: 153.5 | BD73: 155 | BE73: 156.5 | BF73: 158.5 | BG73: 160 | BH73: 161.5 | BI73: 163.5 | BJ73: 46.4 | BK73: 16.9
A74: lengte (dgn) | C74: =C68-C67+1 -> 7 | G74: =SUM(G67:G73) -> 16 | L74: =SUM(L67:L73) -> 12950 | M74: =SUM(M67:M73) -> 582.75 | N74: =SUM(N67:N73) -> 479.15 | O74: =SUM(O67:O73) -> 233100 | AD74: 10125 – 10374 | AE74: 10374 | AF74: FALSE | AG74: 119.5 | AH74: 121 | AI74: 122.5 | AJ74: 124.5 | AK74: 126 | AL74: 127.5 | AM74: 129 | AN74: 131 | AO74: 132.5 | AP74: 134 | AQ74: 136 | AR74: 137.5 | AS74: 139 | AT74: 141 | AU74: 142.5 | AV74: 144 | AW74: 145.5 | AX74: 147.5 | AY74: 149 | AZ74: 150.5 | BA74: 152.5 | BB74: 154 | BC74: 155.5 | BD74: 157 | BE74: 159 | BF74: 160.5 | BG74: 162 | BH74: 164 | BI74: 165.5 | BJ74: 47.1 | BK74: 17.1
H75: =(L74+H19)/(E55+E56)/C74 -> 24.34210526 | I75: =IF(L74>0,(M74/$L74*100),0) -> 4.5 | J75: =IF(L74>0,(N74/$L74*100),0) -> 3.7 | K75: =IF(L74>0,(O74/$L74),0) -> 18 | AD75: 10375 – 10624 | AE75: 10624 | AF75: FALSE | AG75: 121.5 | AH75: 123 | AI75: 125 | AJ75: 126.5 | AK75: 128 | AL75: 129.5 | AM75: 131.5 | AN75: 133 | AO75: 134.5 | AP75: 136.5 | AQ75: 138 | AR75: 139.5 | AS75: 141.5 | AT75: 143 | AU75: 144.5 | AV75: 146 | AW75: 148 | AX75: 149.5 | AY75: 151 | AZ75: 153 | BA75: 154.5 | BB75: 156 | BC75: 157.5 | BD75: 159.5 | BE75: 161 | BF75: 162.5 | BG75: 164.5 | BH75: 166 | BI75: 167.5 | BJ75: 47.8 | BK75: 17.4
AD76: > 10624 | AF76: FALSE | AG76: 126 | AH76: 127.5 | AI76: 129 | AJ76: 130.5 | AK76: 132.5 | AL76: 134 | AM76: 135.5 | AN76: 137.5 | AO76: 139 | AP76: 140.5 | AQ76: 142.5 | AR76: 144 | AS76: 145.5 | AT76: 147 | AU76: 149 | AV76: 150.5 | AW76: 152 | AX76: 154 | AY76: 155.5 | AZ76: 157 | BA76: 158.5 | BB76: 160.5 | BC76: 162 | BD76: 163.5 | BE76: 165.5 | BF76: 167 | BG76: 168.5 | BH76: 170.5 | BI76: 172 | BJ76: 49.3 | BK76: 17.9
A77: =IF(A30>0,A30," ") -> Bedrijf: | C77: =IF(C30>0,C30," ") -> Voorbeeld | I77: =IF(I30>0,I30," ") -> Week: | J77: 2016_01 | M77: =IF(M30>0,M30," ") -> Diergroep: | N77: =IF(N30>0,N30," ") -> Melkgevende koeien | S77: =IF(S30>0,S30," ") -> Aantal dieren in de groep: | T77: =IF(T30>0,T30," ") -> 67 | U77: =IF(U30>0,U30," ") -> 
I78: Datum: | J78: 2016-01-11 | K78: =IF(K31>0,K31," ") -> t/m | L78: =IF(L31>0,L31," ") -> 2016-01-17 | AE78: N | AG78: P2O5 | AH78: m³ per 7 maanden | BJ78: pink | BK78: 9.5
A79: =IF(A32>0,A32," ") -> Voeropname | I79: kg | J79: kg ds/ | K79: analyse bij R en B in gr/kg ds; bij K in gr/kg product | W79: Methaanemissie | AD79: pink | AE79: =66.9 -> 66.9 | AG79: =21.9 -> 21.9 | AH79: 9.5 | BJ79: kalf | BK79: 4.4
A80: Voercode | D80: =IF(D33>0,D33," ") -> Omschrijving | H80: =IF(H33>0,H33," ") -> R, B of K | I80: gevoerd | J80: dier/dag | K80: ds | L80: VEM | M80: DVE | N80: OEB | O80: RE | P80: RC | Q80: RAS | R80: P | S80: N-tot | U80: =IF(U33>0,U33," ") -> Opmerkingen | W80: wg | X80: gk | Y80: mk | Z80: ov | AA80: ov | AB80: kv | AD80: kalf | AE80: =32.3 -> 32.3 | AG80: =9.6 -> 9.6 | AH80: 4.4
A81: Versg gras | D81: weidegars | H81: R | I81: 540.2166508 | J81: 0.2303695739 | K81: 200 | L81: 940 | M81: 50 | N81: =IF(N34>0,N34,IF(N34<0,N34,IF(N34=0," "," "))) -> 30 | O81: 200 | P81: 220 | Q81: 90 | R81: 4.5 | S81: 32 | V81: wg | W81: =IF($V81=W$80,J81*(L81*-0.026+45.6),0) -> 4.874620184 | X81: =IF(V81=X$80,IF(O81<175,(J81*((0.01-(0.01+0.0025)/75*(O81-100))*L81+(21.883-13.2)/75*(O81-100)+13.2)),(J81*((-0.0025-(0.007-0.0025)/75*(O81-175))*L81+(25.1-21.883)/75*(O81-175)+21.883))),0) -> 0 | Y81: =IF($V81=Y$80,J81*16.4,0) -> 0 | Z81: 0 | AA81: =IF(Z81>0,(J81*Z81),0) -> 0 | AB81: =IF($V81=AB$80,J81*(-0.0494*M81+27.876),0) -> 0
A82: GK_2016_01_A | D82: graskuil 2016 | H82: R | I82: 10195.65217 | J82: 10.80434783 | K82: 497 | L82: 969 | M82: 71 | N82: 36 | O82: 160 | P82: 245 | Q82: 92 | R82: 3.6 | S82: 25.6 | V82: gk | W82: =IF($V82=W$80,J82*(L82*-0.026+45.6),0) -> 0 | X82: =IF(V82=X$80,IF(O82<175,(J82*((0.01-(0.01+0.0025)/75*(O82-100))*L82+(21.883-13.2)/75*(O82-100)+13.2)),(J82*((-0.0025-(0.007-0.0025)/75*(O82-175))*L82+(25.1-21.883)/75*(O82-175)+21.883))),0) -> 217.668713 | Y82: =IF($V82=Y$80,J82*16.4,0) -> 0 | Z82: 0 | AA82: =IF(Z82>0,(J82*Z82),0) -> 0 | AB82: =IF($V82=AB$80,J82*(-0.0494*M82+27.876),0) -> 0 | AD82: koe | AE82: =(VLOOKUP(1,AF55:BJ76,AE83-11,TRUE)) -> 117 | AG82: =VLOOKUP(1,AF55:BJ76,31,TRUE) -> 43.5 | AH82: =VLOOKUP(1,AF55:BM76,32,TRUE) -> 15.9
A83: GK_2016_01_B | D83: graskuil plaat 2 2015 | H83: R | K83: 478 | L83: 852 | M83: 49 | N83: 18 | O83: 114 | P83: 243 | Q83: 131 | R83: 4.2 | S83: 18.24 | V83: gk | W83: 0 | X83: =IF(V83=X$80,IF(O83<175,(J83*((0.01-(0.01+0.0025)/75*(O83-100))*L83+(21.883-13.2)/75*(O83-100)+13.2)),(J83*((-0.0025-(0.007-0.0025)/75*(O83-175))*L83+(25.1-21.883)/75*(O83-175)+21.883))),0) ->  | Y83: 0 | Z83: 0 | AA83: 0 | AB83: 0 | AD83: ureum in berekening | AE83: =IF(AE85<14,13,IF(AE85>40,41,MROUND(AE85,1))) -> 18
A84: GH_2016 | D84: hooi 2e snede | H84: R | I84: 67.97101449 | J84: 0.1257971014 | K84: 868 | L84: 797 | M84: 68 | N84: -28 | O84: 106 | P84: 261 | Q84: 91 | R84: 3.3 | S84: 16.96 | V84: gk | W84: 0 | X84: 2.650248046 | Y84: 0 | Z84: 0 | AA84: 0 | AB84: 0 | AD84: melk | AE84: =E62 -> 8884.868421
A85: MK_2016_01 | D85: maiskuil oost 2016 | H85: R | I85: 5437.681159 | J85: 4 | K85: 345 | L85: 1016 | M85: 55 | N85: -48 | O85: 66 | P85: 166 | Q85: 35 | R85: 2.3 | S85: 10.56 | V85: mk | W85: 0 | X85: 0 | Y85: 65.6 | Z85: 0 | AA85: 0 | AB85: 0 | AD85: ureum | AE85: =E61 -> 18
W86: 0 | X86: 0 | Y86: 0 | Z86: 0 | AA86: 0 | AB86: 0
A87: Bierbostel | D87: bierbostel | H87: B | I87: 2330.434783 | J87: 1.088198758 | K87: 219 | L87: 947 | M87: 137 | N87: 55 | O87: 247 | P87: 178 | Q87: 42 | R87: 6.2 | S87: 39.5 | V87: b | W87: 0 | X87: 0 | Y87: 0 | Z87: 0 | AA87: 0 | AB87: 0
A88: Sodagrain | D88: sodagrain | H88: B | I88: 951.5942029 | J88: 1.52173913 | K88: 750 | L88: 1160 | M88: 100 | N88: -43 | O88: 109 | P88: 24 | Q88: 15 | R88: 3 | S88: 17.44 | V88: b | W88: 0 | X88: 0 | Y88: 0 | Z88: 0 | AA88: 0 | AB88: 0
W89: 0 | X89: 0 | Y89: 0 | Z89: 0 | AA89: 0 | AB89: 0
A90: KV_2016_01_A | D90: snijmaiskernbrok | H90: K | I90: 407.826087 | J90: 0.7713043478 | K90: 887 | L90: 950 | M90: 180 | N90: =IF(N43>0,N43,IF(N43<0,N43,0)) -> 75 | O90: 315 | P90: 88 | Q90: 101 | R90: 6.6 | S90: 50.4 | V90: kv | W90: 0 | X90: 0 | Y90: 0 | Z90: 0 | AA90: 0 | AB90: 14.64244174
A91: KV_2016_01_B | D91: eiwit | H91: K | I91: 1631.304348 | J91: 3.085217391 | K91: 887 | L91: 950 | M91: 115 | N91: =IF(N44>0,N44,IF(N44<0,N44,0)) -> 5 | O91: 175 | P91: 99 | Q91: 73 | R91: 3.9 | S91: 28 | V91: kv | W91: 0 | X91: 0 | Y91: 0 | Z91: 0 | AA91: 0 | AB91: 68.4764
A92: KV_2016_01_C | D92: opti-brok | K92: 892 | L92: 890 | M92: 139 | N92: =IF(N45>0,N45,IF(N45<0,N45,IF(N45=0," "," "))) -> 105 | O92: 276 | P92: 86 | Q92: 148 | R92: 4.7 | S92: 44.16 | W92: 0 | X92: 0 | Y92: 0 | Z92: 0 | AA92: 0 | AB92: 0
I93: =IF(I46>0,I46," ") ->  | N93: =IF(N46>0,N46,IF(N46<0,N46,IF(N46=0," "," "))) ->  | O93: =IF(O46>0,O46," ") ->  | W93: 0 | X93: 0 | Y93: 0 | Z93: 0 | AA93: 0 | AB93: 0
N94: =IF(N47>0,N47,IF(N47<0,N47,IF(N47=0," "," "))) ->  | W94: 0 | X94: 0 | Y94: 0 | Z94: 0 | AA94: 0 | AB94: 0
N95: =IF(N48>0,N48,IF(N48<0,N48,IF(N48=0," "," "))) ->  | W95: 0 | X95: 0 | Y95: 0 | Z95: 0 | AA95: 0 | AB95: 0
A96: Opname totaal (dier/dag) | J96: =IF(J49>0,J49," ") -> 21.62697413 | K96: =IF(K49>0,K49," ") ->  | L96: 21776.39713 | M96: 1864.960259 | N96: =IF(N49>0,N49," ") -> 277.3701348 | O96: 3369.367414 | R96: 80.16384321 | S96: 539.0770222 | W96: =SUM(W81:W95) -> 4.874620184 | X96: =SUM(X81:X95) ->  | Y96: =SUM(Y81:Y95) -> 65.6 | AA96: =SUM(AA81:AA95) -> 0 | AB96: =SUM(AB81:AB95) -> 83.11884174
A97: Behoefte | J97: =IF(J50>0,J50," ") ->  | L97: 19796.72466 | M97: 1763.74357 | N97: =IF(N50>0,N50," ") ->  | O97: 67.23724096 | R97: 61.68336567
A98: Dekking (%) | J98: =IF(J51>0,J51," ") ->  | L98: 110 | M98: 105.7387418 | N98: =IF(N51>0,N51," ") ->  | R98: 129.9602289 | U98: =IF(U51>0,U51," ") ->  | V98: =IF(V53>0,V53," ") -> 
V99: wg
A100: =IF(A53>0,A53," ") -> Melkproductie | K100: =IF(K53>0,K53," ") -> Kengetallen | O100: =IF(O53>0,O53," ") ->  | P100: Excretie (kg/dier/dag) | V100: gk
A101: kg melk per week | E101: =IF(E54>0,E54," ") -> 12950 | F101: (inclusief niet in de tank : | I101: =IF(I54>0,I54,0) -> 0 | J101: =IF(J54>0,J54," ") -> kg) | K101: FPCM | M101: =IF(M54>0,M54," ") -> 29.84850746 | N101: kg | R101: =IF(R54>0,R54," ") -> N | S101: P | T101: P2O5 | V101: mk
A102: aantal melkgevende koeien | E102: 67 | K102: N-efficiëntie | M102: 29.70483541 | N102: % | P102: Opname | R102: 173.4622181 | S102: 25.79482613 | T102: 59.09594666 | V102: ov
A103: aantal droogstaande koeien | E103: 9 | K103: P-efficiëntie | M103: 30.99994371 | N103: % | P103: Productie | R103: 51.52666639 | S103: 7.996381579 | T103: 18.3197102 | V103: kv
A104: kg melk/koe/dag | E104: 27.6119403 | F104: (gem. melkgevende koeien) | K104: KV / 100 kg FPCM | M104: 14.56630986 | N104: kg | P104: Vastlegging | R104: 1.4 | S104: 0.5 | T104: 1.1455
A105: kg melk/koe/dag | E105: 24.34210526 | F105: (gem. incl droge koeien) | K105: RE | L105: =IF(L58>0,L58," ") ->  | M105: 155.7946754 | N105: gr/kg ds | P105: Onder de staart | R105: 120.5355517 | S105: 17.29844455 | T105: 39.63073646 | V105: som
A106: % vet | E106: 4.5 | K106: P | L106: =IF(L59>0,L59," ") ->  | M106: 3.706660152 | N106: gr/kg ds | P106: Vervluchtiging | R106: 14.16292733
A107: % eiwit | E107: 3.7 | K107: kg FPCM/kg ds | M107: 1.380151809 | Q107: Gemeten netto excretie | R107: 106.3726244 | S107: 17.29844455 | T107: 39.63073646
A108: melkureum | E108: 18 | K108: methaanemissie | Q108: Berekende excretie (melk en ureum) | R108: 117 | S108: 18.966 | T108: 43.5
A109: kg melk/koe/jaar | D109: =IF(D62>0,D62," ") ->  | E109: 8884.868421 | K109: (kg CO2/100 kg FPCM) | Q109: Afwijking gemeten van berekend (%) | R109: =R62 -> -9.083226995 | S109: =IF(S62>0,S62," ") ->  | T109: =T62 -> -8.894858716 | U109: =IF(U62>0,U62," ") -> 

Sheet Dashboard
A5: Maand | B5: Excretie N/ton melk | C5: Streefwaarde | D5: Exretie fosfaat/ton melk | E5: Streefwaarde | F5: Re gehalte rantsoen | G5: Streefwaarde | H5: P gehalte rantsoen | I5: Streefwaarde
A6: Januari | B6: ='Jan voer'!M18 ->  | C6: =$M$6 -> 0 | D6: ='Jan voer'!M19 ->  | E6: =$M$7 -> 0 | F6: ='Jan voer'!M16 ->  | G6: =$Q$8 -> 155 | H6: ='Jan voer'!M17 ->  | I6: =$Q$9 -> 3.5 | L6: =B5 -> Excretie N/ton melk
A7: Februari | B7: ='Feb voer'!M18 ->  | C7: =$M$6 -> 0 | D7: ='Feb voer'!M19 ->  | E7: =$M$7 -> 0 | F7: ='Feb voer'!M16 ->  | G7: 155 | H7: ='Feb voer'!M17 ->  | I7: 3.5 | L7: =D5 -> Exretie fosfaat/ton melk | P7: Streefwaardes | Q7: waarde
A8: Maart | B8: ='Maart voer'!M18 ->  | C8: 0 | D8: ='Maart voer'!M19 ->  | E8: 0 | F8: ='Maart voer'!M16 ->  | G8: 155 | H8: ='Maart voer'!M17 ->  | I8: 3.5 | P8: =F5 -> Re gehalte rantsoen | Q8: 155
A9: April | B9: ='April voer'!M18 ->  | C9: 0 | D9: ='April voer'!M19 ->  | E9: 0 | F9: ='April voer'!M16 ->  | G9: 155 | H9: ='April voer'!M17 ->  | I9: 3.5 | P9: =H5 -> P gehalte rantsoen | Q9: 3.5
A10: Mei | B10: ='Mei voer'!M18 ->  | C10: 0 | D10: ='Mei voer'!M19 ->  | E10: 0 | F10: ='Mei voer'!M16 ->  | G10: 155 | H10: ='Mei voer'!M17 ->  | I10: 3.5
A11: Juni | B11: ='Juni voer'!M18 ->  | C11: 0 | D11: ='Juni voer'!M19 ->  | E11: 0 | F11: ='Juni voer'!M16 ->  | G11: 155 | H11: ='Juni voer'!M17 ->  | I11: 3.5
A12: Juli | B12: ='Juli voer'!M18 ->  | C12: 0 | D12: ='Juli voer'!M19 ->  | E12: 0 | F12: ='Juli voer'!M16 ->  | G12: 155 | H12: ='Juli voer'!M17 ->  | I12: 3.5
A13: Augustus | B13: ='Aug voer'!M18 ->  | C13: 0 | D13: ='Aug voer'!M19 ->  | E13: 0 | F13: ='Aug voer'!M16 ->  | G13: 155 | H13: ='Aug voer'!M17 ->  | I13: 3.5
A14: September | B14: ='Sep voer'!M18 ->  | C14: 0 | D14: ='Sep voer'!M19 ->  | E14: 0 | F14: ='Sep voer'!M16 ->  | G14: 155 | H14: ='Sep voer'!M17 ->  | I14: 3.5
A15: Oktober | B15: ='Okt voer'!M18 ->  | C15: 0 | D15: ='Okt voer'!M19 ->  | E15: 0 | F15: ='Okt voer'!M16 ->  | G15: 155 | H15: ='Okt voer'!M17 ->  | I15: 3.5
A16: November | B16: ='Nov voer'!M18 ->  | C16: 0 | D16: ='Nov voer'!M19 ->  | E16: 0 | F16: ='Nov voer'!M16 ->  | G16: 155 | H16: ='Nov voer'!M17 ->  | I16: 3.5
A17: December | B17: ='Dec voer'!M18 ->  | C17: 0 | D17: ='Dec voer'!M19 ->  | E17: 0 | F17: ='Dec voer'!M16 ->  | G17: 155 | H17: ='Dec voer'!M17 ->  | I17: 3.5

Sheet Voedermiddelen
A1: Vul de voedermiddelen in met de bijbehorende voederwaardes die u aan het melkvee voert
A2: Kuilgras | D2: Gehaltes per kg droge stof
A3: Naam | B3: naam | C3: ds | D3: VEM | E3: DVE | F3: OEB | G3: RE | H3: RC | I3: RAS | J3: P | K3: N-tot
A4: Gkuil 1 | B4: Graskuil 1e snede 2016 | K4: =G4/6.25 -> 0
A5: Gkuil 2 | B5: graskuil plaat 2 2015 | K5: =G5/6.25 -> 0
A6: Gkuil 3 | K6: 0
A7: Gkuil 4 | K7: 0
A8: Gkuil 5 | K8: 0
A9: Gkuil 6 | K9: 0
A10: Gkuil 7 | K10: 0
A11: Gkuil 8 | K11: 0
A12: Gkuil 9 | K12: 0
A13: Gkuil 10 | K13: 0
A15: Snijmais | D15: Gehaltes per kg droge stof
A16: Naam | B16: naam | C16: ds | D16: VEM | E16: DVE | F16: OEB | G16: RE | H16: RC | I16: RAS | J16: P | K16: N-tot
A17: Mkuil 1 | K17: =G17/6.25 -> 0
A18: Mkuil 2 | K18: 0
A19: Mkuil 3 | K19: 0
A20: Mkuil 4 | K20: 0
A21: Mkuil 5 | K21: 0
A22: Mkuil 6 | K22: 0
A23: Mkuil 7 | K23: 0
A24: Mkuil 8 | K24: 0
A25: Mkuil 9 | K25: 0
A26: Mkuil 10 | K26: 0
A28: Overig ruwvoer | D28: Gehaltes per kg droge stof
A29: Naam | B29: naam | C29: ds | D29: VEM | E29: DVE | F29: OEB | G29: RE | H29: RC | I29: RAS | J29: P | K29: N-tot
A30: Overig 1 | K30: =G30/6.25 -> 0
A31: Overig 2 | K31: 0
A32: Overig 3 | K32: 0
A33: Overig 4 | K33: 0
A34: Overig 5 | K34: 0
A35: Overig 6 | K35: 0
A36: Overig 7 | K36: 0
A37: Overig 8 | K37: 0
A38: Overig 9 | K38: 0
A39: Overig 10 | K39: 0
A41: Bijproducten | D41: Gehaltes per kg droge stof
A42: Naam | B42: naam | C42: ds | D42: VEM | E42: DVE | F42: OEB | G42: RE | H42: RC | I42: RAS | J42: P | K42: N-tot
A43: BP 1 | K43: =G43/6.25 -> 0
A44: BP 2 | K44: 0
A45: BP 3 | K45: 0
A46: BP 4 | K46: 0
A47: BP 5 | K47: 0
A48: BP 6 | K48: 0
A49: BP 7 | K49: 0
A50: BP 8 | K50: 0
A51: BP 9 | K51: 0
A52: BP 10 | K52: 0
A54: Krachtvoer | C54: Let op voer de gehaltes per kilogram product in!!!!
A55: Naam | B55: naam | C55: ds | D55: VEM | E55: DVE | F55: OEB | G55: RE | H55: RC | I55: RAS | J55: P | K55: N-tot | Q55: VEM | R55: DVE | S55: OEB | T55: RE | U55: RC | V55: RAS | W55: P
A56: KV 1 | K56: =T56/6.25 ->  | P56: 0.9 | Q56: =D56/$C56 ->  | R56: =E56/$C56 ->  | W56: =J56/$C56 -> 
A57: KV 2 | P57: 0.9 | Q57: =D57/$C57 ->  | R57: =E57/$C57 ->  | S57: =F57/$C57 ->  | T57: =G57/$C57 ->  | U57: =H57/$C57 ->  | V57: =I57/$C57 ->  | W57: =J57/$C57 -> 
A58: KV 3
A59: KV 4
A60: KV 5
A61: KV 6
A62: KV 7
A63: KV 8
A64: KV 9
A65: KV 10
A66: KV 11
A67: KV 12
A68: KV 13
A69: KV 14
A70: KV 15
A71: KV 16
A72: KV 17
A73: KV 18
A74: KV 19
A75: KV 20

Sheet Weidegras
A1: Vul indien gewenst uw eigen gehaltes per kg ds in voor het weidegras onder "eigen invoer" | K1: N-tot
A5: Weidegras | D5: VEM | E5: DVE | F5: OEB | G5: RE | H5: RC | I5: RAS | J5: P
A6: Maart standaard | D6: 1050 | E6: 80 | F6: 35 | G6: 225 | I6: 4 | J6: 4
A7: April standaard | D7: 1075 | E7: 80 | F7: 35 | G7: 250 | I7: 4 | J7: 4.2
A8: Mei standaard | D8: 1050 | E8: 80 | F8: 35 | G8: 220 | I8: 4 | J8: 4.2
A9: Juni standaard | D9: 950 | E9: 77 | F9: 27 | G9: 180 | I9: 4 | J9: 4
A10: Juli standaard | D10: 950 | E10: 77 | F10: 27 | G10: 180 | I10: 4 | J10: 4
A11: Augustus standaard | D11: 920 | E11: 81 | F11: 40 | G11: 200 | I11: 4 | J11: 4.4
A12: September standaard | D12: 920 | E12: 81 | F12: 43 | G12: 225 | I12: 4 | J12: 4.4
A13: Oktober standaard | D13: 920 | E13: 60 | F13: 46 | G13: 250 | I13: 4 | J13: 4.4
A14: Eigen invoer
A15: April eigen invoer | I15: Eigen invoer overig
A16: Mei eigen invoer
A17: Juni eigen invoer | I17: Eigen invoer overig
A18: Juli eigen invoer
A19: Augustus eigen invoer | I19: Eigen invoer overig
A20: September eigen invoer
A21: Oktober eigen invoer | I21: Eigen invoer overig
A22: Eigen invoer KLW vorig jaar
A23: Eigen invoer overig | B23: Eigen invoer overig | C23: Eigen invoer overig | I23: Eigen invoer overig

Sheet Jan vee+melk
A2: Melkgevende koeien
A3: Droge koeien*
A4: *Het aantal droge koeien dat bij de melkveestapel loopt en dus ook van het ruwvoer mee vreet.
C6: ='Jan voer'!B3 -> januari gerealiseerd | E6: ='Jan voer'!G3 -> januari prognose
A7: Tankmelk geleverd
A8: Aantal dagen
A9: Vet%
A10: Eiwit%
A11: Ureum
A13: Separatie melk kg/dag
A15: Melk per dag | C15: =IF(SUM(C7)>0,SUM(C7)/(SUM(C8)),"")+C13 ->  | E15: =IF(SUM(E7)>0,SUM(E7)/(SUM(E8)),"")+E13 -> 
A16: Eiwit | C16: =C15*MAX(C10) ->  | E16: =E15*MAX(E10) -> 
A17: Vet | C17: =(C9*C15) ->  | E17: =(E9*E15) -> 
A18: N | C18: =C16/6.38 ->  | E18: =E16/6.38 -> 
A20: kg melk/koe/dag | C20: =IF(C7>0,C15/C2,"") ->  | E20: =IF(E7>0,E15/E2,"") -> 
A21: FCPM/koe/dag | C21: =(0.337+0.116*MAX(C9)*100+0.06*MAX(C10)*100)*C15/C2 ->  | E21: =(0.337+0.116*MAX(E9)*100+0.06*MAX(E10)*100)*E15/E2 -> 
A22: Melkproductie incl droge | C22: =C15/(C2+C3) ->  | E22: =E15/(E2+E3) -> 
A23: Meetmelk 305 dgn | C23: =C21*305 ->  | E23: =E21*305 -> 
A24: gemiddeld Meetmelk 305 dgn | C24: =C23 ->  | E24: =E23 -> 
A26: Behoefte
A27: VEM | C27: =IF('Jan voer'!B4=1,6013+440*C21+0.73*C21*C21,5013+440*C21+0.73*C21*C21) ->  | E27: =IF('Jan voer'!G4=1,6013+440*E21+0.73*E21*E21,5013+440*E21+0.73*E21*E21) -> 
A28: DVE | C28: =114+(1.396*(C15/C2)*C10*100*10)+0.000195*(((C15/C2)*C10*100*10)*((C15/C2)*C10*100*10))+20 ->  | E28: =114+(1.396*(E15/E2)*E10*100*10)+0.000195*(((E15/E2)*E10*100*10)*((E15/E2)*E10*100*10))+20 -> 
A29: P | C29: =19+1.43*C21 ->  | E29: =19+1.43*E21 -> 

Sheet Jan voer
A1: Vul alle | B1: licht en | C1: donkerblauwe | F1: cellen in
B3: januari gerealiseerd | G3: januari prognose | J3: Prognose
A4: Weidegang (ja/nee) | B4: 2 | F4: Weidegang (ja/nee) | G4: 2 | J4: Drogestof opname uit weidegras kg/koe/dag | M4: =Voeropname!E31 -> 0 | N4: =IF(M4>10,codes!F9,"") -> 
A5: Weidegras | B5: Eigen invoer | F5: Weidegras | G5: Eigen invoer | J5: Uren weidegang per koe/dag | M5: =IF(M4>0.1,IF(M4>2.5,(M4-3)+2,M4/1.5),"") -> 
A6: % restvoer | B6: 0.05 | F6: % restvoer | G6: 0.05 | J6: Gewenst ruw eiwit gehalte krachtvoer (g/kg) | M6: =(H20*Voeropname!E2-Voeropname!E6*Voeropname!E2)/(Voeropname!E76/('Jan vee+melk'!E2+'Jan vee+melk'!E3))*0.9 -> 
J7: Gewenst P gehalte krachtvoer (g/kg) | M7: =(H21*Voeropname!E2-Voeropname!E8*Voeropname!E2)/(Voeropname!E76/('Jan vee+melk'!E3+'Jan vee+melk'!E2))*0.9 -> 
A8: Wat is er afgelopen maand op stal gevoerd? | B8: Naam | C8: kg product gevoerd/dag | F8: Wat wilt u komende maand op stal voeren? | G8: Naam | H8: kg product te voeren/dag | J8: *Dit zijn de gewenste gehaltes in het krachtvoer om bij het ingevoerde stalrantsoen en gehaltes in het weidegras het gewenste ruw eiwit en P gehalte in het totale rantsoen te realiseren.
J9: Totale droge stof opname/koe/dag | M9: =Voeropname!E2 -> 
J10: VEM dekking | M10: =IF(G4=1,codes!C4,Voeropname!E23/Voeropname!E27) ->  | N10: =IF(M10<1,codes!F10,"") -> 
J11: Verwachte N excretie per ton meetmelk (kg) | M11: =Excretie!E24 -> 
J12: Verwachte fosfaat excretie per ton meetmelk (kg) | M12: =Excretie!E25*2.29 -> 
F14: =IF(A14>0,A14,"") ->  | J14: Kengetallen afgelopen maand
J15: Totale droge stof opname/koe/dag | M15: =kengetallen!C4 -> 
J16: Ruw eiwit gehalte rantsoen (g/kg ds) | M16: =kengetallen!C8 -> 
J17: P gehalte rantsoen (g/kg ds) | M17: =kengetallen!C10 -> 
J18: =kengetallen!A16 -> N excretie per ton meetmelk (kg) | M18: =kengetallen!C16 -> 
J19: Fosfaat excretie per ton meetmelk (kg) | M19: =kengetallen!C17*2.29 -> 
A20: Krachtvoer | F20: Gewenst ruw eiwit gehalte rantsoen (g/kg ds) | H20: 160
A21: Krachtvoer | F21: Gewenst P gehalte rantsoen (g/kg ds) | H21: 3.6 | J21: =kengetallen!A24 -> Voerefficientie kg meetmelk/kg voer (ds) | M21: =kengetallen!C24 -> 
A22: Krachtvoer | F22: Gewenste hoeveelheid krachtvoer (kg/100 kg melk) | J22: =kengetallen!A25 -> kg krachtvoer per 100 kg (excl bijprod) | M22: =kengetallen!C25 -> 
A23: kg krachtvoer gevoerd/100 kg melk | C23: =IF(SUM(C20:C22)>0,kengetallen!C25,"") ->  | J23: =kengetallen!A20 -> VEM dekking | M23: =kengetallen!C20 -> 

Sheet Feb vee+melk
A2: Melkgevende koeien
A3: Droge koeien*
A4: *Het aantal droge koeien dat bij de melkveestapel loopt en dus ook van het ruwvoer mee vreet.
C6: ='Feb voer'!B3 -> Februari gerealiseerd | E6: ='Feb voer'!G3 -> Februari prognose
A7: Tankmelk geleverd
A8: Aantal dagen
A9: Vet%
A10: Eiwit%
A11: Ureum
A13: Separatie melk kg/dag
A15: Melk per dag | C15: =IF(SUM(C7)>0,SUM(C7)/(SUM(C8)),"")+C13 ->  | E15: =IF(SUM(E7)>0,SUM(E7)/(SUM(E8)),"")+E13 -> 
A16: Eiwit | C16: =C15*MAX(C10) ->  | E16: =E15*MAX(E10) -> 
A17: Vet | C17: =(C9*C15) ->  | E17: =(E9*E15) -> 
A18: N | C18: =C16/6.38 ->  | E18: =E16/6.38 -> 
A20: kg melk/koe/dag | C20: =IF(C7>0,C15/C2,"") ->  | E20: =IF(E7>0,E15/E2,"") -> 
A21: FCPM/koe/dag | C21: =(0.337+0.116*MAX(C9)*100+0.06*MAX(C10)*100)*C15/C2 ->  | E21: =(0.337+0.116*MAX(E9)*100+0.06*MAX(E10)*100)*E15/E2 -> 
A22: Melkproductie incl droge | C22: =C15/(C2+C3) ->  | E22: =E15/(E2+E3) -> 
A23: Meetmelk 305 dgn | C23: =C21*305 ->  | E23: =E21*305 -> 
A24: gemiddeld Meetmelk 305 dgn | C24: =C23 ->  | E24: =E23 -> 
A26: Behoefte
A27: VEM | C27: =IF('Feb voer'!B4=1,6013+440*C21+0.73*C21*C21,5013+440*C21+0.73*C21*C21) ->  | E27: =IF('Feb voer'!G4=1,6013+440*E21+0.73*E21*E21,5013+440*E21+0.73*E21*E21) -> 
A28: DVE | C28: =114+(1.396*(C15/C2)*C10*100*10)+0.000195*(((C15/C2)*C10*100*10)*((C15/C2)*C10*100*10))+20 ->  | E28: =114+(1.396*(E15/E2)*E10*100*10)+0.000195*(((E15/E2)*E10*100*10)*((E15/E2)*E10*100*10))+20 -> 
A29: P | C29: =19+1.43*C21 ->  | E29: =19+1.43*E21 -> 

Sheet Feb voer
A1: Vul alle | B1: licht en | C1: donkerblauwe | F1: cellen in
B3: Februari gerealiseerd | G3: Februari prognose | J3: Prognose
A4: Weidegang (ja/nee) | B4: 2 | F4: Weidegang (ja/nee) | G4: 2 | J4: Drogestof opname uit weidegras kg/koe/dag | M4: ='Feb Voeropname'!E31 -> 0 | N4: =IF(M4>10,'Feb Voeropname'!R12,"") -> 
A5: Weidegras | B5: Eigen invoer | F5: Weidegras | G5: Eigen invoer | J5: Uren weidegang per koe/dag | M5: =IF(M4>0.1,IF(M4>2.5,(M4-3)+2,M4/1.5),"") -> 
A6: % restvoer | B6: 0.05 | F6: % restvoer | G6: 0.05 | J6: Gewenst ruw eiwit gehalte krachtvoer (g/kg) | M6: =(H20*'Feb Voeropname'!E2-'Feb Voeropname'!E6*'Feb Voeropname'!E2)/('Feb Voeropname'!E76/('Feb vee+melk'!E2+'Feb vee+melk'!E3))*0.9 -> 
J7: Gewenst P gehalte krachtvoer (g/kg) | M7: =(H21*'Feb Voeropname'!E2-'Feb Voeropname'!E8*'Feb Voeropname'!E2)/('Feb Voeropname'!E76/('Feb vee+melk'!E3+'Feb vee+melk'!E2))*0.9 -> 
A8: Wat is er afgelopen maand op stal gevoerd? | B8: Naam | C8: kg product gevoerd/dag | F8: Wat wilt u komende maand op stal voeren? | G8: Naam | H8: kg product te voeren/dag | J8: *Dit zijn de gewenste gehaltes in het krachtvoer om bij het ingevoerde stalrantsoen en gehaltes in het weidegras het gewenste ruw eiwit en P gehalte in het totale rantsoen te realiseren.
F9: =IF(A9>0,A9,"") ->  | J9: Totale droge stof opname/koe/dag | M9: ='Feb Voeropname'!E2 -> 
J10: VEM dekking | M10: =IF(G4=1,'Feb Voeropname'!O7,'Feb Voeropname'!E23/'Feb Voeropname'!E27) ->  | N10: =IF(M10<1,'Feb Voeropname'!R13,"") -> 
J11: Verwachte N excretie per ton meetmelk (kg) | M11: ='Feb Excretie'!E24 -> 
J12: Verwachte fosfaat excretie per ton meetmelk (kg) | M12: ='Feb Excretie'!E25*2.29 -> 
J14: Kengetallen afgelopen maand
J15: Totale droge stof opname/koe/dag | M15: ='Feb kengetallen'!C4 -> 
J16: Ruw eiwit gehalte rantsoen (g/kg ds) | M16: ='Feb kengetallen'!C8 -> 
J17: P gehalte rantsoen (g/kg ds) | M17: ='Feb kengetallen'!C10 -> 
J18: ='Feb kengetallen'!A16 -> N excretie per ton meetmelk (kg) | M18: ='Feb kengetallen'!C16 -> 
J19: Fosfaat excretie per ton meetmelk (kg) | M19: ='Feb kengetallen'!C17*2.29 -> 
A20: Krachtvoer | F20: Gewenst ruw eiwit gehalte rantsoen (g/kg ds) | H20: 155
A21: Krachtvoer | F21: Gewenst P gehalte rantsoen (g/kg ds) | H21: 3.9 | J21: ='Feb kengetallen'!A24 -> Voerefficientie kg meetmelk/kg voer (ds) | M21: ='Feb kengetallen'!C24 -> 
A22: Krachtvoer | F22: Gewenste hoeveelheid krachtvoer (kg/100 kg melk) | J22: ='Feb kengetallen'!A25 -> kg krachtvoer per 100 kg (excl bijprod) | M22: ='Feb kengetallen'!C25 -> 
A23: kg krachtvoer gevoerd/100 kg melk | C23: ='Feb kengetallen'!C25 ->  | J23: ='Feb kengetallen'!A20 -> VEM dekking | M23: ='Feb kengetallen'!C20 -> 

Sheet Maart vee+melk
A2: Melkgevende koeien
A3: Droge koeien*
A4: *Het aantal droge koeien dat bij de melkveestapel loopt en dus ook van het ruwvoer mee vreet.
C6: ='Maart voer'!B3 -> Maart gerealiseerd | E6: ='Maart voer'!G3 -> Maart prognose
A7: Tankmelk geleverd
A8: Aantal dagen
A9: Vet%
A10: Eiwit%
A11: Ureum
A13: Separatie melk kg/dag
A15: Melk per dag | C15: =IF(SUM(C7)>0,SUM(C7)/(SUM(C8)),"")+C13 ->  | E15: =IF(SUM(E7)>0,SUM(E7)/(SUM(E8)),"")+E13 -> 
A16: Eiwit | C16: =C15*MAX(C10) ->  | E16: =E15*MAX(E10) -> 
A17: Vet | C17: =(C9*C15) ->  | E17: =(E9*E15) -> 
A18: N | C18: =C16/6.38 ->  | E18: =E16/6.38 -> 
A20: kg melk/koe/dag | C20: =IF(C7>0,C15/C2,"") ->  | E20: =IF(E7>0,E15/E2,"") -> 
A21: FCPM/koe/dag | C21: =(0.337+0.116*MAX(C9)*100+0.06*MAX(C10)*100)*C15/C2 ->  | E21: =(0.337+0.116*MAX(E9)*100+0.06*MAX(E10)*100)*E15/E2 -> 
A22: Melkproductie incl droge | C22: =C15/(C2+C3) ->  | E22: =E15/(E2+E3) -> 
A23: Meetmelk 305 dgn | C23: =C21*305 ->  | E23: =E21*305 -> 
A24: gemiddeld Meetmelk 305 dgn | C24: =C23 ->  | E24: =E23 -> 
A26: Behoefte
A27: VEM | C27: =IF('Maart voer'!B4=1,6013+440*C21+0.73*C21*C21,5013+440*C21+0.73*C21*C21) ->  | E27: =IF('Maart voer'!G4=1,6013+440*E21+0.73*E21*E21,5013+440*E21+0.73*E21*E21) -> 
A28: DVE | C28: =114+(1.396*(C15/C2)*C10*100*10)+0.000195*(((C15/C2)*C10*100*10)*((C15/C2)*C10*100*10))+20 ->  | E28: =114+(1.396*(E15/E2)*E10*100*10)+0.000195*(((E15/E2)*E10*100*10)*((E15/E2)*E10*100*10))+20 -> 
A29: P | C29: =19+1.43*C21 ->  | E29: =19+1.43*E21 -> 

Sheet Maart voer
A1: Vul alle | B1: licht en | C1: donkerblauwe | F1: cellen in
B3: Maart gerealiseerd | G3: Maart prognose | J3: Prognose
A4: Weidegang (ja/nee) | B4: 2 | F4: Weidegang (ja/nee) | G4: 2 | J4: Drogestof opname uit weidegras kg/koe/dag | M4: ='Maart Voeropname'!E31 -> 0 | N4: =IF(M4>10,'Maart Voeropname'!R12,"") -> 
A5: Weidegras | B5: Eigen invoer | F5: Weidegras | G5: Eigen invoer | J5: Uren weidegang per koe/dag | M5: =IF(M4>0.1,IF(M4>2.5,(M4-3)+2,M4/1.5),"") -> 
A6: % restvoer | B6: 0.05 | F6: % restvoer | G6: 0.05 | J6: Gewenst ruw eiwit gehalte krachtvoer (g/kg) | M6: =(H20*'Maart Voeropname'!E2-'Maart Voeropname'!E6*'Maart Voeropname'!E2)/('Maart Voeropname'!E76/('Maart vee+melk'!E2+'Maart vee+melk'!E3))*0.9 -> 
J7: Gewenst P gehalte krachtvoer (g/kg) | M7: =(H21*'Maart Voeropname'!E2-'Maart Voeropname'!E8*'Maart Voeropname'!E2)/('Maart Voeropname'!E76/('Maart vee+melk'!E3+'Maart vee+melk'!E2))*0.9 -> 
A8: Wat is er afgelopen maand op stal gevoerd? | B8: Naam | C8: kg product gevoerd/dag | F8: Wat wilt u komende maand op stal voeren? | G8: Naam | H8: kg product te voeren/dag | J8: *Dit zijn de gewenste gehaltes in het krachtvoer om bij het ingevoerde stalrantsoen en gehaltes in het weidegras het gewenste ruw eiwit en P gehalte in het totale rantsoen te realiseren.
F9: =IF(A9>0,A9,"") ->  | J9: Totale droge stof opname/koe/dag | M9: ='Maart Voeropname'!E2 -> 
J10: VEM dekking | M10: =IF(G4=1,'Maart Voeropname'!O7,'Maart Voeropname'!E23/'Maart Voeropname'!E27) ->  | N10: =IF(M10<1,'Maart Voeropname'!R13,"") -> 
J11: Verwachte N excretie per ton meetmelk (kg) | M11: ='Maart Excretie'!E24 -> 
J12: Verwachte fosfaat excretie per ton meetmelk (kg) | M12: ='Maart Excretie'!E25*2.29 -> 
J14: Kengetallen afgelopen maand
J15: Totale droge stof opname/koe/dag | M15: ='Maart kengetallen'!C4 -> 
J16: Ruw eiwit gehalte rantsoen (g/kg ds) | M16: ='Maart kengetallen'!C8 -> 
J17: P gehalte rantsoen (g/kg ds) | M17: ='Maart kengetallen'!C10 -> 
J18: ='Maart kengetallen'!A16 -> N excretie per ton meetmelk (kg) | M18: ='Maart kengetallen'!C16 -> 
J19: Fosfaat excretie per ton meetmelk (kg) | M19: ='Maart kengetallen'!C17*2.29 -> 
A20: Krachtvoer | F20: Gewenst ruw eiwit gehalte rantsoen (g/kg ds) | H20: 160
A21: Krachtvoer | F21: Gewenst P gehalte rantsoen (g/kg ds) | H21: 3.6 | J21: ='Maart kengetallen'!A24 -> Voerefficientie kg meetmelk/kg voer (ds) | M21: ='Maart kengetallen'!C24 -> 
A22: Krachtvoer | F22: Gewenste hoeveelheid krachtvoer (kg/100 kg melk) | J22: ='Maart kengetallen'!A25 -> kg krachtvoer per 100 kg (excl bijprod) | M22: ='Maart kengetallen'!C25 -> 
A23: kg krachtvoer gevoerd/100 kg melk | C23: ='Maart kengetallen'!C25 ->  | J23: ='Maart kengetallen'!A20 -> VEM dekking | M23: ='Maart kengetallen'!C20 -> 

Sheet April vee+melk
A2: Melkgevende koeien
A3: Droge koeien*
A4: *Het aantal droge koeien dat bij de melkveestapel loopt en dus ook van het ruwvoer mee vreet.
C6: ='April voer'!B3 -> April gerealiseerd | E6: ='April voer'!G3 -> April prognose
A7: Tankmelk geleverd
A8: Aantal dagen
A9: Vet%
A10: Eiwit%
A11: Ureum
A13: Separatie melk kg/dag
A15: Melk per dag | C15: =IF(SUM(C7)>0,SUM(C7)/(SUM(C8)),"")+C13 ->  | E15: =IF(SUM(E7)>0,SUM(E7)/(SUM(E8)),"")+E13 -> 
A16: Eiwit | C16: =C15*MAX(C10) ->  | E16: =E15*MAX(E10) -> 
A17: Vet | C17: =(C9*C15) ->  | E17: =(E9*E15) -> 
A18: N | C18: =C16/6.38 ->  | E18: =E16/6.38 -> 
A20: kg melk/koe/dag | C20: =IF(C7>0,C15/C2,"") ->  | E20: =IF(E7>0,E15/E2,"") -> 
A21: FCPM/koe/dag | C21: =(0.337+0.116*MAX(C9)*100+0.06*MAX(C10)*100)*C15/C2 ->  | E21: =(0.337+0.116*MAX(E9)*100+0.06*MAX(E10)*100)*E15/E2 -> 
A22: Melkproductie incl droge | C22: =C15/(C2+C3) ->  | E22: =E15/(E2+E3) -> 
A23: Meetmelk 305 dgn | C23: =C21*305 ->  | E23: =E21*305 -> 
A24: gemiddeld Meetmelk 305 dgn | C24: =C23 ->  | E24: =E23 -> 
A26: Behoefte
A27: VEM | C27: =IF('April voer'!B4=1,6013+440*C21+0.73*C21*C21,5013+440*C21+0.73*C21*C21) ->  | E27: =IF('April voer'!G4=1,6013+440*E21+0.73*E21*E21,5013+440*E21+0.73*E21*E21) -> 
A28: DVE | C28: =114+(1.396*(C15/C2)*C10*100*10)+0.000195*(((C15/C2)*C10*100*10)*((C15/C2)*C10*100*10))+20 ->  | E28: =114+(1.396*(E15/E2)*E10*100*10)+0.000195*(((E15/E2)*E10*100*10)*((E15/E2)*E10*100*10))+20 -> 
A29: P | C29: =19+1.43*C21 ->  | E29: =19+1.43*E21 -> 

Sheet April voer
A1: Vul alle | B1: licht en | C1: donkerblauwe | F1: cellen in
B3: April gerealiseerd | G3: April prognose | J3: Prognose
A4: Weidegang (ja/nee) | B4: 2 | F4: Weidegang (ja/nee) | G4: 2 | J4: Drogestof opname uit weidegras kg/koe/dag | M4: ='April Voeropname'!E31 -> 0 | N4: =IF(M4>10,'April Voeropname'!R12,"") -> 
A5: Weidegras | B5: Eigen invoer | F5: Weidegras | G5: Eigen invoer | J5: Uren weidegang per koe/dag | M5: =IF(M4>0.1,IF(M4>2.5,(M4-3)+2,M4/1.5),"") -> 
A6: % restvoer | B6: 0.05 | F6: % restvoer | G6: 0.05 | J6: Gewenst ruw eiwit gehalte krachtvoer (g/kg) | M6: =(H20*'April Voeropname'!E2-'April Voeropname'!E6*'April Voeropname'!E2)/('April Voeropname'!E76/('April vee+melk'!E2+'April vee+melk'!E3))*0.9 -> 
J7: Gewenst P gehalte krachtvoer (g/kg) | M7: =(H21*'April Voeropname'!E2-'April Voeropname'!E8*'April Voeropname'!E2)/('April Voeropname'!E76/('April vee+melk'!E3+'April vee+melk'!E2))*0.9 -> 
A8: Wat is er afgelopen maand op stal gevoerd? | B8: Naam | C8: kg product gevoerd/dag | F8: Wat wilt u komende maand op stal voeren? | G8: Naam | H8: kg product te voeren/dag | J8: *Dit zijn de gewenste gehaltes in het krachtvoer om bij het ingevoerde stalrantsoen en gehaltes in het weidegras het gewenste ruw eiwit en P gehalte in het totale rantsoen te realiseren.
F9: =IF(A9>0,A9,"") ->  | J9: Totale droge stof opname/koe/dag | M9: ='April Voeropname'!E2 -> 
J10: VEM dekking | M10: =IF(G4=1,'April Voeropname'!O7,'April Voeropname'!E23/'April Voeropname'!E27) ->  | N10: =IF(M10<1,'April Voeropname'!R13,"") -> 
J11: Verwachte N excretie per ton meetmelk (kg) | M11: ='April Excretie'!E24 -> 
J12: Verwachte fosfaat excretie per ton meetmelk (kg) | M12: ='April Excretie'!E25*2.29 -> 
J14: Kengetallen afgelopen maand
J15: Totale droge stof opname/koe/dag | M15: ='April kengetallen'!C4 -> 
J16: Ruw eiwit gehalte rantsoen (g/kg ds) | M16: ='April kengetallen'!C8 -> 
J17: P gehalte rantsoen (g/kg ds) | M17: ='April kengetallen'!C10 -> 
J18: ='April kengetallen'!A16 -> N excretie per ton meetmelk (kg) | M18: ='April kengetallen'!C16 -> 
J19: Fosfaat excretie per ton meetmelk (kg) | M19: ='April kengetallen'!C17*2.29 -> 
A20: Krachtvoer | F20: Gewenst ruw eiwit gehalte rantsoen (g/kg ds) | H20: 160
A21: Krachtvoer | F21: Gewenst P gehalte rantsoen (g/kg ds) | H21: 3.6 | J21: ='April kengetallen'!A24 -> Voerefficientie kg meetmelk/kg voer (ds) | M21: ='April kengetallen'!C24 -> 
A22: Krachtvoer | F22: Gewenste hoeveelheid krachtvoer (kg/100 kg melk) | J22: ='April kengetallen'!A25 -> kg krachtvoer per 100 kg (excl bijprod) | M22: ='April kengetallen'!C25 -> 
A23: kg krachtvoer gevoerd/100 kg melk | C23: ='April kengetallen'!C25 ->  | J23: ='April kengetallen'!A20 -> VEM dekking | M23: ='April kengetallen'!C20 -> 

Sheet Mei vee+melk
A2: Melkgevende koeien
A3: Droge koeien*
A4: *Het aantal droge koeien dat bij de melkveestapel loopt en dus ook van het ruwvoer mee vreet.
C6: ='Mei voer'!B3 -> Mei gerealiseerd | E6: ='Mei voer'!G3 -> Mei prognose
A7: Tankmelk geleverd
A8: Aantal dagen
A9: Vet%
A10: Eiwit%
A11: Ureum
A13: Separatie melk kg/dag
A15: Melk per dag | C15: =IF(SUM(C7)>0,SUM(C7)/(SUM(C8)),"")+C13 ->  | E15: =IF(SUM(E7)>0,SUM(E7)/(SUM(E8)),"")+E13 -> 
A16: Eiwit | C16: =C15*MAX(C10) ->  | E16: =E15*MAX(E10) -> 
A17: Vet | C17: =(C9*C15) ->  | E17: =(E9*E15) -> 
A18: N | C18: =C16/6.38 ->  | E18: =E16/6.38 -> 
A20: kg melk/koe/dag | C20: =IF(C7>0,C15/C2,"") ->  | E20: =IF(E7>0,E15/E2,"") -> 
A21: FCPM/koe/dag | C21: =(0.337+0.116*MAX(C9)*100+0.06*MAX(C10)*100)*C15/C2 ->  | E21: =(0.337+0.116*MAX(E9)*100+0.06*MAX(E10)*100)*E15/E2 -> 
A22: Melkproductie incl droge | C22: =C15/(C2+C3) ->  | E22: =E15/(E2+E3) -> 
A23: Meetmelk 305 dgn | C23: =C21*305 ->  | E23: =E21*305 -> 
A24: gemiddeld Meetmelk 305 dgn | C24: =C23 ->  | E24: =E23 -> 
A26: Behoefte
A27: VEM | C27: =IF('Mei voer'!B4=1,6013+440*C21+0.73*C21*C21,5013+440*C21+0.73*C21*C21) ->  | E27: =IF('Mei voer'!G4=1,6013+440*E21+0.73*E21*E21,5013+440*E21+0.73*E21*E21) -> 
A28: DVE | C28: =114+(1.396*(C15/C2)*C10*100*10)+0.000195*(((C15/C2)*C10*100*10)*((C15/C2)*C10*100*10))+20 ->  | E28: =114+(1.396*(E15/E2)*E10*100*10)+0.000195*(((E15/E2)*E10*100*10)*((E15/E2)*E10*100*10))+20 -> 
A29: P | C29: =19+1.43*C21 ->  | E29: =19+1.43*E21 -> 

Sheet Mei voer
A1: Vul alle | B1: licht en | C1: donkerblauwe | F1: cellen in
B3: Mei gerealiseerd | G3: Mei prognose | J3: Prognose
A4: Weidegang (ja/nee) | B4: 2 | F4: Weidegang (ja/nee) | G4: 2 | J4: Drogestof opname uit weidegras kg/koe/dag | M4: ='Mei Voeropname'!E31 -> 0 | N4: =IF(M4>10,'Mei Voeropname'!R12,"") -> 
A5: Weidegras | B5: Eigen invoer | F5: Weidegras | G5: Eigen invoer | J5: Uren weidegang per koe/dag | M5: =IF(M4>0.1,IF(M4>2.5,(M4-3)+2,M4/1.5),"") -> 
A6: % restvoer | B6: 0.05 | F6: % restvoer | G6: 0.05 | J6: Gewenst ruw eiwit gehalte krachtvoer (g/kg) | M6: =(H20*'Mei Voeropname'!E2-'Mei Voeropname'!E6*'Mei Voeropname'!E2)/('Mei Voeropname'!E76/('Mei vee+melk'!E2+'Mei vee+melk'!E3))*0.9 -> 
J7: Gewenst P gehalte krachtvoer (g/kg) | M7: =(H21*'Mei Voeropname'!E2-'Mei Voeropname'!E8*'Mei Voeropname'!E2)/('Mei Voeropname'!E76/('Mei vee+melk'!E3+'Mei vee+melk'!E2))*0.9 -> 
A8: Wat is er afgelopen maand op stal gevoerd? | B8: Naam | C8: kg product gevoerd/dag | F8: Wat wilt u komende maand op stal voeren? | G8: Naam | H8: kg product te voeren/dag | J8: *Dit zijn de gewenste gehaltes in het krachtvoer om bij het ingevoerde stalrantsoen en gehaltes in het weidegras het gewenste ruw eiwit en P gehalte in het totale rantsoen te realiseren.
F9: =IF(A9>0,A9,"") ->  | J9: Totale droge stof opname/koe/dag | M9: ='Mei Voeropname'!E2 -> 
J10: VEM dekking | M10: =IF(G4=1,'Mei Voeropname'!O7,'Mei Voeropname'!E23/'Mei Voeropname'!E27) ->  | N10: =IF(M10<1,'Mei Voeropname'!R13,"") -> 
J11: Verwachte N excretie per ton meetmelk (kg) | M11: ='Mei Excretie'!E24 -> 
J12: Verwachte fosfaat excretie per ton meetmelk (kg) | M12: ='Mei Excretie'!E25*2.29 -> 
J14: Kengetallen afgelopen maand
J15: Totale droge stof opname/koe/dag | M15: ='Mei kengetallen'!C4 -> 
J16: Ruw eiwit gehalte rantsoen (g/kg ds) | M16: ='Mei kengetallen'!C8 -> 
J17: P gehalte rantsoen (g/kg ds) | M17: ='Mei kengetallen'!C10 -> 
J18: ='Mei kengetallen'!A16 -> N excretie per ton meetmelk (kg) | M18: ='Mei kengetallen'!C16 -> 
J19: Fosfaat excretie per ton meetmelk (kg) | M19: ='Mei kengetallen'!C17*2.29 -> 
A20: Krachtvoer | F20: Gewenst ruw eiwit gehalte rantsoen (g/kg ds) | H20: 160
A21: Krachtvoer | F21: Gewenst P gehalte rantsoen (g/kg ds) | H21: 3.6 | J21: ='Mei kengetallen'!A24 -> Voerefficientie kg meetmelk/kg voer (ds) | M21: ='Mei kengetallen'!C24 -> 
A22: Krachtvoer | F22: Gewenste hoeveelheid krachtvoer (kg/100 kg melk) | J22: ='Mei kengetallen'!A25 -> kg krachtvoer per 100 kg (excl bijprod) | M22: ='Mei kengetallen'!C25 -> 
A23: kg krachtvoer gevoerd/100 kg melk | C23: ='Mei kengetallen'!C25 ->  | J23: ='Mei kengetallen'!A20 -> VEM dekking | M23: ='Mei kengetallen'!C20 -> 

Sheet Juni vee+melk
A2: Melkgevende koeien
A3: Droge koeien*
A4: *Het aantal droge koeien dat bij de melkveestapel loopt en dus ook van het ruwvoer mee vreet.
C6: ='Juni voer'!B3 -> Juni gerealiseerd | E6: ='Juni voer'!G3 -> Juni prognose
A7: Tankmelk geleverd
A8: Aantal dagen
A9: Vet%
A10: Eiwit%
A11: Ureum
A13: Separatie melk kg/dag
A15: Melk per dag | C15: =IF(SUM(C7)>0,SUM(C7)/(SUM(C8)),"")+C13 ->  | E15: =IF(SUM(E7)>0,SUM(E7)/(SUM(E8)),"")+E13 -> 
A16: Eiwit | C16: =C15*MAX(C10) ->  | E16: =E15*MAX(E10) -> 
A17: Vet | C17: =(C9*C15) ->  | E17: =(E9*E15) -> 
A18: N | C18: =C16/6.38 ->  | E18: =E16/6.38 -> 
A20: kg melk/koe/dag | C20: =IF(C7>0,C15/C2,"") ->  | E20: =IF(E7>0,E15/E2,"") -> 
A21: FCPM/koe/dag | C21: =(0.337+0.116*MAX(C9)*100+0.06*MAX(C10)*100)*C15/C2 ->  | E21: =(0.337+0.116*MAX(E9)*100+0.06*MAX(E10)*100)*E15/E2 -> 
A22: Melkproductie incl droge | C22: =C15/(C2+C3) ->  | E22: =E15/(E2+E3) -> 
A23: Meetmelk 305 dgn | C23: =C21*305 ->  | E23: =E21*305 -> 
A24: gemiddeld Meetmelk 305 dgn | C24: =C23 ->  | E24: =E23 -> 
A26: Behoefte
A27: VEM | C27: =IF('Juni voer'!B4=1,6013+440*C21+0.73*C21*C21,5013+440*C21+0.73*C21*C21) ->  | E27: =IF('Juni voer'!G4=1,6013+440*E21+0.73*E21*E21,5013+440*E21+0.73*E21*E21) -> 
A28: DVE | C28: =114+(1.396*(C15/C2)*C10*100*10)+0.000195*(((C15/C2)*C10*100*10)*((C15/C2)*C10*100*10))+20 ->  | E28: =114+(1.396*(E15/E2)*E10*100*10)+0.000195*(((E15/E2)*E10*100*10)*((E15/E2)*E10*100*10))+20 -> 
A29: P | C29: =19+1.43*C21 ->  | E29: =19+1.43*E21 -> 

Sheet Juni voer
A1: Vul alle | B1: licht en | C1: donkerblauwe | F1: cellen in
B3: Juni gerealiseerd | G3: Juni prognose | J3: Prognose
A4: Weidegang (ja/nee) | B4: 2 | F4: Weidegang (ja/nee) | G4: 2 | J4: Drogestof opname uit weidegras kg/koe/dag | M4: ='Juni Voeropname'!E31 -> 0 | N4: =IF(M4>10,'Juni Voeropname'!R12,"") -> 
A5: Weidegras | B5: Eigen invoer | F5: Weidegras | G5: Eigen invoer | J5: Uren weidegang per koe/dag | M5: =IF(M4>0.1,IF(M4>2.5,(M4-3)+2,M4/1.5),"") -> 
A6: % restvoer | B6: 0.03 | F6: % restvoer | G6: 0.05 | J6: Gewenst ruw eiwit gehalte krachtvoer (g/kg) | M6: =(H20*'Juni Voeropname'!E2-'Juni Voeropname'!E6*'Juni Voeropname'!E2)/('Juni Voeropname'!E76/('Juni vee+melk'!E2+'Juni vee+melk'!E3))*0.9 -> 
J7: Gewenst P gehalte krachtvoer (g/kg) | M7: =(H21*'Juni Voeropname'!E2-'Juni Voeropname'!E8*'Juni Voeropname'!E2)/('Juni Voeropname'!E76/('Juni vee+melk'!E3+'Juni vee+melk'!E2))*0.9 -> 
A8: Wat is er afgelopen maand op stal gevoerd? | B8: Naam | C8: kg product gevoerd/dag | F8: Wat wilt u komende maand op stal voeren? | G8: Naam | H8: kg product te voeren/dag | J8: *Dit zijn de gewenste gehaltes in het krachtvoer om bij het ingevoerde stalrantsoen en gehaltes in het weidegras het gewenste ruw eiwit en P gehalte in het totale rantsoen te realiseren.
F9: =IF(A9>0,A9,"") ->  | J9: Totale droge stof opname/koe/dag | M9: ='Juni Voeropname'!E2 -> 
J10: VEM dekking | M10: =IF(G4=1,'Juni Voeropname'!O7,'Juni Voeropname'!E23/'Juni Voeropname'!E27) ->  | N10: =IF(M10<1,'Juni Voeropname'!R13,"") -> 
J11: Verwachte N excretie per ton meetmelk (kg) | M11: ='Juni Excretie'!E24 -> 
J12: Verwachte fosfaat excretie per ton meetmelk (kg) | M12: ='Juni Excretie'!E25*2.29 -> 
J14: Kengetallen afgelopen maand
J15: Totale droge stof opname/koe/dag | M15: ='Juni kengetallen'!C4 -> 
J16: Ruw eiwit gehalte rantsoen (g/kg ds) | M16: ='Juni kengetallen'!C8 -> 
J17: P gehalte rantsoen (g/kg ds) | M17: ='Juni kengetallen'!C10 -> 
J18: ='Juni kengetallen'!A16 -> N excretie per ton meetmelk (kg) | M18: ='Juni kengetallen'!C16 -> 
J19: Fosfaat excretie per ton meetmelk (kg) | M19: ='Juni kengetallen'!C17*2.29 -> 
A20: Krachtvoer | F20: Gewenst ruw eiwit gehalte rantsoen (g/kg ds) | H20: 160
A21: Krachtvoer | F21: Gewenst P gehalte rantsoen (g/kg ds) | H21: 3.6 | J21: ='Juni kengetallen'!A24 -> Voerefficientie kg meetmelk/kg voer (ds) | M21: ='Juni kengetallen'!C24 -> 
A22: Krachtvoer | F22: Gewenste hoeveelheid krachtvoer (kg/100 kg melk) | J22: ='Juni kengetallen'!A25 -> kg krachtvoer per 100 kg (excl bijprod) | M22: ='Juni kengetallen'!C25 -> 
A23: kg krachtvoer gevoerd/100 kg melk | C23: ='Juni kengetallen'!C25 ->  | J23: ='Juni kengetallen'!A20 -> VEM dekking | M23: ='Juni kengetallen'!C20 -> 

Sheet Juli vee+melk
A2: Melkgevende koeien
A3: Droge koeien*
A4: *Het aantal droge koeien dat bij de melkveestapel loopt en dus ook van het ruwvoer mee vreet.
C6: ='Juli voer'!B3 -> Juli gerealiseerd | E6: ='Juli voer'!G3 -> Juli prognose
A7: Tankmelk geleverd
A8: Aantal dagen
A9: Vet%
A10: Eiwit%
A11: Ureum
A13: Separatie melk kg/dag
A15: Melk per dag | C15: =IF(SUM(C7)>0,SUM(C7)/(SUM(C8)),"")+C13 ->  | E15: =IF(SUM(E7)>0,SUM(E7)/(SUM(E8)),"")+E13 -> 
A16: Eiwit | C16: =C15*MAX(C10) ->  | E16: =E15*MAX(E10) -> 
A17: Vet | C17: =(C9*C15) ->  | E17: =(E9*E15) -> 
A18: N | C18: =C16/6.38 ->  | E18: =E16/6.38 -> 
A20: kg melk/koe/dag | C20: =IF(C7>0,C15/C2,"") ->  | E20: =IF(E7>0,E15/E2,"") -> 
A21: FCPM/koe/dag | C21: =(0.337+0.116*MAX(C9)*100+0.06*MAX(C10)*100)*C15/C2 ->  | E21: =(0.337+0.116*MAX(E9)*100+0.06*MAX(E10)*100)*E15/E2 -> 
A22: Melkproductie incl droge | C22: =C15/(C2+C3) ->  | E22: =E15/(E2+E3) -> 
A23: Meetmelk 305 dgn | C23: =C21*305 ->  | E23: =E21*305 -> 
A24: gemiddeld Meetmelk 305 dgn | C24: =C23 ->  | E24: =E23 -> 
A26: Behoefte
A27: VEM | C27: =IF('Juli voer'!B4=1,6013+440*C21+0.73*C21*C21,5013+440*C21+0.73*C21*C21) ->  | E27: =IF('Juli voer'!G4=1,6013+440*E21+0.73*E21*E21,5013+440*E21+0.73*E21*E21) -> 
A28: DVE | C28: =114+(1.396*(C15/C2)*C10*100*10)+0.000195*(((C15/C2)*C10*100*10)*((C15/C2)*C10*100*10))+20 ->  | E28: =114+(1.396*(E15/E2)*E10*100*10)+0.000195*(((E15/E2)*E10*100*10)*((E15/E2)*E10*100*10))+20 -> 
A29: P | C29: =19+1.43*C21 ->  | E29: =19+1.43*E21 -> 

Sheet Juli voer
A1: Vul alle | B1: licht en | C1: donkerblauwe | F1: cellen in
B3: Juli gerealiseerd | G3: Juli prognose | J3: Prognose
A4: Weidegang (ja/nee) | B4: 2 | F4: Weidegang (ja/nee) | G4: 2 | J4: Drogestof opname uit weidegras kg/koe/dag | M4: ='Juli Voeropname'!E31 -> 0 | N4: =IF(M4>10,'Juli Voeropname'!R12,"") -> 
A5: Weidegras | B5: Eigen invoer | F5: Weidegras | G5: Eigen invoer | J5: Uren weidegang per koe/dag | M5: =IF(M4>0.1,IF(M4>2.5,(M4-3)+2,M4/1.5),"") -> 
A6: % restvoer | B6: 0.03 | F6: % restvoer | G6: 0.05 | J6: Gewenst ruw eiwit gehalte krachtvoer (g/kg) | M6: =(H20*'Juli Voeropname'!E2-'Juli Voeropname'!E6*'Juli Voeropname'!E2)/('Juli Voeropname'!E76/('Juli vee+melk'!E2+'Juli vee+melk'!E3))*0.9 -> 
J7: Gewenst P gehalte krachtvoer (g/kg) | M7: =(H21*'Juli Voeropname'!E2-'Juli Voeropname'!E8*'Juli Voeropname'!E2)/('Juli Voeropname'!E76/('Juli vee+melk'!E3+'Juli vee+melk'!E2))*0.9 -> 
A8: Wat is er afgelopen maand op stal gevoerd? | B8: Naam | C8: kg product gevoerd/dag | F8: Wat wilt u komende maand op stal voeren? | G8: Naam | H8: kg product te voeren/dag | J8: *Dit zijn de gewenste gehaltes in het krachtvoer om bij het ingevoerde stalrantsoen en gehaltes in het weidegras het gewenste ruw eiwit en P gehalte in het totale rantsoen te realiseren.
F9: =IF(A9>0,A9,"") ->  | J9: Totale droge stof opname/koe/dag | M9: ='Juli Voeropname'!E2 -> 
J10: VEM dekking | M10: =IF(G4=1,'Juli Voeropname'!O7,'Juli Voeropname'!E23/'Juli Voeropname'!E27) ->  | N10: =IF(M10<1,'Juli Voeropname'!R13,"") -> 
J11: Verwachte N excretie per ton meetmelk (kg) | M11: ='Juli Excretie'!E24 -> 
J12: Verwachte fosfaat excretie per ton meetmelk (kg) | M12: ='Juli Excretie'!E25*2.29 -> 
J14: Kengetallen afgelopen maand
J15: Totale droge stof opname/koe/dag | M15: ='Juli kengetallen'!C4 -> 
J16: Ruw eiwit gehalte rantsoen (g/kg ds) | M16: ='Juli kengetallen'!C8 -> 
J17: P gehalte rantsoen (g/kg ds) | M17: ='Juli kengetallen'!C10 -> 
J18: ='Juli kengetallen'!A16 -> N excretie per ton meetmelk (kg) | M18: ='Juli kengetallen'!C16 -> 
J19: Fosfaat excretie per ton meetmelk (kg) | M19: ='Juli kengetallen'!C17*2.29 -> 
A20: Krachtvoer | F20: Gewenst ruw eiwit gehalte rantsoen (g/kg ds) | H20: 160
A21: Krachtvoer | F21: Gewenst P gehalte rantsoen (g/kg ds) | H21: 3.6 | J21: ='Juli kengetallen'!A24 -> Voerefficientie kg meetmelk/kg voer (ds) | M21: ='Juli kengetallen'!C24 -> 
A22: Krachtvoer | F22: Gewenste hoeveelheid krachtvoer (kg/100 kg melk) | J22: ='Juli kengetallen'!A25 -> kg krachtvoer per 100 kg (excl bijprod) | M22: ='Juli kengetallen'!C25 -> 
A23: kg krachtvoer gevoerd/100 kg melk | C23: ='Juli kengetallen'!C25 ->  | J23: ='Juli kengetallen'!A20 -> VEM dekking | M23: ='Juli kengetallen'!C20 -> 

Sheet Aug vee+melk
A2: Melkgevende koeien
A3: Droge koeien*
A4: *Het aantal droge koeien dat bij de melkveestapel loopt en dus ook van het ruwvoer mee vreet.
C6: ='Aug voer'!B3 -> Augustus gerealiseerd | E6: ='Aug voer'!G3 -> Augustus prognose
A7: Tankmelk geleverd
A8: Aantal dagen
A9: Vet%
A10: Eiwit%
A11: Ureum
A13: Separatie melk kg/dag
A15: Melk per dag | C15: =IF(SUM(C7)>0,SUM(C7)/(SUM(C8)),"")+C13 ->  | E15: =IF(SUM(E7)>0,SUM(E7)/(SUM(E8)),"")+E13 -> 
A16: Eiwit | C16: =C15*MAX(C10) ->  | E16: =E15*MAX(E10) -> 
A17: Vet | C17: =(C9*C15) ->  | E17: =(E9*E15) -> 
A18: N | C18: =C16/6.38 ->  | E18: =E16/6.38 -> 
A20: kg melk/koe/dag | C20: =IF(C7>0,C15/C2,"") ->  | E20: =IF(E7>0,E15/E2,"") -> 
A21: FCPM/koe/dag | C21: =(0.337+0.116*MAX(C9)*100+0.06*MAX(C10)*100)*C15/C2 ->  | E21: =(0.337+0.116*MAX(E9)*100+0.06*MAX(E10)*100)*E15/E2 -> 
A22: Melkproductie incl droge | C22: =C15/(C2+C3) ->  | E22: =E15/(E2+E3) -> 
A23: Meetmelk 305 dgn | C23: =C21*305 ->  | E23: =E21*305 -> 
A24: gemiddeld Meetmelk 305 dgn | C24: =C23 ->  | E24: =E23 -> 
A26: Behoefte
A27: VEM | C27: =IF('Aug voer'!B4=1,6013+440*C21+0.73*C21*C21,5013+440*C21+0.73*C21*C21) ->  | E27: =IF('Aug voer'!G4=1,6013+440*E21+0.73*E21*E21,5013+440*E21+0.73*E21*E21) -> 
A28: DVE | C28: =114+(1.396*(C15/C2)*C10*100*10)+0.000195*(((C15/C2)*C10*100*10)*((C15/C2)*C10*100*10))+20 ->  | E28: =114+(1.396*(E15/E2)*E10*100*10)+0.000195*(((E15/E2)*E10*100*10)*((E15/E2)*E10*100*10))+20 -> 
A29: P | C29: =19+1.43*C21 ->  | E29: =19+1.43*E21 -> 

Sheet Aug voer
A1: Vul alle | B1: licht en | C1: donkerblauwe | F1: cellen in
B3: Augustus gerealiseerd | G3: Augustus prognose | J3: Prognose
A4: Weidegang (ja/nee) | B4: 2 | F4: Weidegang (ja/nee) | G4: 2 | J4: Drogestof opname uit weidegras kg/koe/dag | M4: ='Aug Voeropname'!E31 -> 0 | N4: =IF(M4>10,'Aug Voeropname'!R12,"") -> 
A5: Weidegras | B5: Eigen invoer | F5: Weidegras | G5: Eigen invoer | J5: Uren weidegang per koe/dag | M5: =IF(M4>0.1,IF(M4>2.5,(M4-3)+2,M4/1.5),"") -> 
A6: % restvoer | B6: 0.04 | F6: % restvoer | G6: 0.05 | J6: Gewenst ruw eiwit gehalte krachtvoer (g/kg) | M6: =(H20*'Aug Voeropname'!E2-'Aug Voeropname'!E6*'Aug Voeropname'!E2)/('Aug Voeropname'!E76/('Aug vee+melk'!E2+'Aug vee+melk'!E3))*0.9 -> 
J7: Gewenst P gehalte krachtvoer (g/kg) | M7: =(H21*'Aug Voeropname'!E2-'Aug Voeropname'!E8*'Aug Voeropname'!E2)/('Aug Voeropname'!E76/('Aug vee+melk'!E3+'Aug vee+melk'!E2))*0.9 -> 
A8: Wat is er afgelopen maand op stal gevoerd? | B8: Naam | C8: kg product gevoerd/dag | F8: Wat wilt u komende maand op stal voeren? | G8: Naam | H8: kg product te voeren/dag | J8: *Dit zijn de gewenste gehaltes in het krachtvoer om bij het ingevoerde stalrantsoen en gehaltes in het weidegras het gewenste ruw eiwit en P gehalte in het totale rantsoen te realiseren.
F9: =IF(A9>0,A9,"") ->  | J9: Totale droge stof opname/koe/dag | M9: ='Aug Voeropname'!E2 -> 
J10: VEM dekking | M10: =IF(G4=1,'Aug Voeropname'!O7,'Aug Voeropname'!E23/'Aug Voeropname'!E27) ->  | N10: =IF(M10<1,'Aug Voeropname'!R13,"") -> 
J11: Verwachte N excretie per ton meetmelk (kg) | M11: ='Aug Excretie'!E24 -> 
J12: Verwachte fosfaat excretie per ton meetmelk (kg) | M12: ='Aug Excretie'!E25*2.29 -> 
J14: Kengetallen afgelopen maand
J15: Totale droge stof opname/koe/dag | M15: ='Aug kengetallen'!C4 -> 
J16: Ruw eiwit gehalte rantsoen (g/kg ds) | M16: ='Aug kengetallen'!C8 -> 
J17: P gehalte rantsoen (g/kg ds) | M17: ='Aug kengetallen'!C10 -> 
J18: ='Aug kengetallen'!A16 -> N excretie per ton meetmelk (kg) | M18: ='Aug kengetallen'!C16 -> 
J19: Fosfaat excretie per ton meetmelk (kg) | M19: ='Aug kengetallen'!C17*2.29 -> 
A20: Krachtvoer | F20: Gewenst ruw eiwit gehalte rantsoen (g/kg ds) | H20: 160
A21: Krachtvoer | F21: Gewenst P gehalte rantsoen (g/kg ds) | H21: 3.6 | J21: ='Aug kengetallen'!A24 -> Voerefficientie kg meetmelk/kg voer (ds) | M21: ='Aug kengetallen'!C24 -> 
A22: Krachtvoer | F22: Gewenste hoeveelheid krachtvoer (kg/100 kg melk) | J22: ='Aug kengetallen'!A25 -> kg krachtvoer per 100 kg (excl bijprod) | M22: ='Aug kengetallen'!C25 -> 
A23: kg krachtvoer gevoerd/100 kg melk | C23: ='Aug kengetallen'!C25 ->  | J23: ='Aug kengetallen'!A20 -> VEM dekking | M23: ='Aug kengetallen'!C20 -> 

Sheet Sep vee+melk
A2: Melkgevende koeien
A3: Droge koeien*
A4: *Het aantal droge koeien dat bij de melkveestapel loopt en dus ook van het ruwvoer mee vreet.
C6: ='Sep voer'!B3 -> September gerealiseerd | E6: ='Sep voer'!G3 -> September prognose
A7: Tankmelk geleverd
A8: Aantal dagen
A9: Vet%
A10: Eiwit%
A11: Ureum
A13: Separatie melk kg/dag
A15: Melk per dag | C15: =IF(SUM(C7)>0,SUM(C7)/(SUM(C8)),"")+C13 ->  | E15: =IF(SUM(E7)>0,SUM(E7)/(SUM(E8)),"")+E13 -> 
A16: Eiwit | C16: =C15*MAX(C10) ->  | E16: =E15*MAX(E10) -> 
A17: Vet | C17: =(C9*C15) ->  | E17: =(E9*E15) -> 
A18: N | C18: =C16/6.38 ->  | E18: =E16/6.38 -> 
A20: kg melk/koe/dag | C20: =IF(C7>0,C15/C2,"") ->  | E20: =IF(E7>0,E15/E2,"") -> 
A21: FCPM/koe/dag | C21: =(0.337+0.116*MAX(C9)*100+0.06*MAX(C10)*100)*C15/C2 ->  | E21: =(0.337+0.116*MAX(E9)*100+0.06*MAX(E10)*100)*E15/E2 -> 
A22: Melkproductie incl droge | C22: =C15/(C2+C3) ->  | E22: =E15/(E2+E3) -> 
A23: Meetmelk 305 dgn | C23: =C21*305 ->  | E23: =E21*305 -> 
A24: gemiddeld Meetmelk 305 dgn | C24: =C23 ->  | E24: =E23 -> 
A26: Behoefte
A27: VEM | C27: =IF('Sep voer'!B4=1,6013+440*C21+0.73*C21*C21,5013+440*C21+0.73*C21*C21) ->  | E27: =IF('Sep voer'!G4=1,6013+440*E21+0.73*E21*E21,5013+440*E21+0.73*E21*E21) -> 
A28: DVE | C28: =114+(1.396*(C15/C2)*C10*100*10)+0.000195*(((C15/C2)*C10*100*10)*((C15/C2)*C10*100*10))+20 ->  | E28: =114+(1.396*(E15/E2)*E10*100*10)+0.000195*(((E15/E2)*E10*100*10)*((E15/E2)*E10*100*10))+20 -> 
A29: P | C29: =19+1.43*C21 ->  | E29: =19+1.43*E21 -> 

Sheet Sep voer
A1: Vul alle | B1: licht en | C1: donkerblauwe | F1: cellen in
B3: September gerealiseerd | G3: September prognose | J3: Prognose
A4: Weidegang (ja/nee) | B4: 2 | F4: Weidegang (ja/nee) | G4: 2 | J4: Drogestof opname uit weidegras kg/koe/dag | M4: ='Sep Voeropname'!E31 -> 0 | N4: =IF(M4>10,'Sep Voeropname'!R12,"") -> 
A5: Weidegras | B5: Eigen invoer | F5: Weidegras | G5: Eigen invoer | J5: Uren weidegang per koe/dag | M5: =IF(M4>0.1,IF(M4>2.5,(M4-3)+2,M4/1.5),"") -> 
A6: % restvoer | B6: 0.05 | F6: % restvoer | G6: 0.05 | J6: Gewenst ruw eiwit gehalte krachtvoer (g/kg) | M6: =(H20*'Sep Voeropname'!E2-'Sep Voeropname'!E6*'Sep Voeropname'!E2)/('Sep Voeropname'!E76/('Sep vee+melk'!E2+'Sep vee+melk'!E3))*0.9 -> 
J7: Gewenst P gehalte krachtvoer (g/kg) | M7: =(H21*'Sep Voeropname'!E2-'Sep Voeropname'!E8*'Sep Voeropname'!E2)/('Sep Voeropname'!E76/('Sep vee+melk'!E3+'Sep vee+melk'!E2))*0.9 -> 
A8: Wat is er afgelopen maand op stal gevoerd? | B8: Naam | C8: kg product gevoerd/dag | F8: Wat wilt u komende maand op stal voeren? | G8: Naam | H8: kg product te voeren/dag | J8: *Dit zijn de gewenste gehaltes in het krachtvoer om bij het ingevoerde stalrantsoen en gehaltes in het weidegras het gewenste ruw eiwit en P gehalte in het totale rantsoen te realiseren.
F9: =IF(A9>0,A9,"") ->  | J9: Totale droge stof opname/koe/dag | M9: ='Sep Voeropname'!E2 -> 
J10: VEM dekking | M10: =IF(G4=1,'Sep Voeropname'!O7,'Sep Voeropname'!E23/'Sep Voeropname'!E27) ->  | N10: =IF(M10<1,'Sep Voeropname'!R13,"") -> 
J11: Verwachte N excretie per ton meetmelk (kg) | M11: ='Sep Excretie'!E24 -> 
J12: Verwachte fosfaat excretie per ton meetmelk (kg) | M12: ='Sep Excretie'!E25*2.29 -> 
J14: Kengetallen afgelopen maand
J15: Totale droge stof opname/koe/dag | M15: ='Sep kengetallen'!C4 -> 
J16: Ruw eiwit gehalte rantsoen (g/kg ds) | M16: ='Sep kengetallen'!C8 -> 
J17: P gehalte rantsoen (g/kg ds) | M17: ='Sep kengetallen'!C10 -> 
J18: ='Sep kengetallen'!A16 -> N excretie per ton meetmelk (kg) | M18: ='Sep kengetallen'!C16 -> 
J19: Fosfaat excretie per ton meetmelk (kg) | M19: ='Sep kengetallen'!C17*2.29 -> 
A20: Krachtvoer | F20: Gewenst ruw eiwit gehalte rantsoen (g/kg ds) | H20: 160
A21: Krachtvoer | F21: Gewenst P gehalte rantsoen (g/kg ds) | H21: 3.6 | J21: ='Sep kengetallen'!A24 -> Voerefficientie kg meetmelk/kg voer (ds) | M21: ='Sep kengetallen'!C24 -> 
A22: Krachtvoer | F22: Gewenste hoeveelheid krachtvoer (kg/100 kg melk) | J22: ='Sep kengetallen'!A25 -> kg krachtvoer per 100 kg (excl bijprod) | M22: ='Sep kengetallen'!C25 -> 
A23: kg krachtvoer gevoerd/100 kg melk | C23: ='Sep kengetallen'!C25 ->  | J23: ='Sep kengetallen'!A20 -> VEM dekking | M23: ='Sep kengetallen'!C20 -> 

Sheet Okt vee+melk
A2: Melkgevende koeien
A3: Droge koeien*
A4: *Het aantal droge koeien dat bij de melkveestapel loopt en dus ook van het ruwvoer mee vreet.
C6: ='Okt voer'!B3 -> Oktober gerealiseerd | E6: ='Okt voer'!G3 -> Oktober prognose
A7: Tankmelk geleverd
A8: Aantal dagen
A9: Vet%
A10: Eiwit%
A11: Ureum
A13: Separatie melk kg/dag
A15: Melk per dag | C15: =IF(SUM(C7)>0,SUM(C7)/(SUM(C8)),"")+C13 ->  | E15: =IF(SUM(E7)>0,SUM(E7)/(SUM(E8)),"")+E13 -> 
A16: Eiwit | C16: =C15*MAX(C10) ->  | E16: =E15*MAX(E10) -> 
A17: Vet | C17: =(C9*C15) ->  | E17: =(E9*E15) -> 
A18: N | C18: =C16/6.38 ->  | E18: =E16/6.38 -> 
A20: kg melk/koe/dag | C20: =IF(C7>0,C15/C2,"") ->  | E20: =IF(E7>0,E15/E2,"") -> 
A21: FCPM/koe/dag | C21: =(0.337+0.116*MAX(C9)*100+0.06*MAX(C10)*100)*C15/C2 ->  | E21: =(0.337+0.116*MAX(E9)*100+0.06*MAX(E10)*100)*E15/E2 -> 
A22: Melkproductie incl droge | C22: =C15/(C2+C3) ->  | E22: =E15/(E2+E3) -> 
A23: Meetmelk 305 dgn | C23: =C21*305 ->  | E23: =E21*305 -> 
A24: gemiddeld Meetmelk 305 dgn | C24: =C23 ->  | E24: =E23 -> 
A26: Behoefte
A27: VEM | C27: =IF('Okt voer'!B4=1,6013+440*C21+0.73*C21*C21,5013+440*C21+0.73*C21*C21) ->  | E27: =IF('Okt voer'!G4=1,6013+440*E21+0.73*E21*E21,5013+440*E21+0.73*E21*E21) -> 
A28: DVE | C28: =114+(1.396*(C15/C2)*C10*100*10)+0.000195*(((C15/C2)*C10*100*10)*((C15/C2)*C10*100*10))+20 ->  | E28: =114+(1.396*(E15/E2)*E10*100*10)+0.000195*(((E15/E2)*E10*100*10)*((E15/E2)*E10*100*10))+20 -> 
A29: P | C29: =19+1.43*C21 ->  | E29: =19+1.43*E21 -> 

Sheet Okt voer
A1: Vul alle | B1: licht en | C1: donkerblauwe | F1: cellen in
B3: Oktober gerealiseerd | G3: Oktober prognose | J3: Prognose
A4: Weidegang (ja/nee) | B4: 2 | F4: Weidegang (ja/nee) | G4: 2 | J4: Drogestof opname uit weidegras kg/koe/dag | M4: ='Okt Voeropname'!E31 -> 0 | N4: =IF(M4>10,'Okt Voeropname'!R12,"") -> 
A5: Weidegras | B5: Eigen invoer | F5: Weidegras | G5: Eigen invoer | J5: Uren weidegang per koe/dag | M5: =IF(M4>0.1,IF(M4>2.5,(M4-3)+2,M4/1.5),"") -> 
A6: % restvoer | B6: 0.05 | F6: % restvoer | G6: 0.05 | J6: Gewenst ruw eiwit gehalte krachtvoer (g/kg) | M6: =(H20*'Okt Voeropname'!E2-'Okt Voeropname'!E6*'Okt Voeropname'!E2)/('Okt Voeropname'!E76/('Okt vee+melk'!E2+'Okt vee+melk'!E3))*0.9 -> 
J7: Gewenst P gehalte krachtvoer (g/kg) | M7: =(H21*'Okt Voeropname'!E2-'Okt Voeropname'!E8*'Okt Voeropname'!E2)/('Okt Voeropname'!E76/('Okt vee+melk'!E3+'Okt vee+melk'!E2))*0.9 -> 
A8: Wat is er afgelopen maand op stal gevoerd? | B8: Naam | C8: kg product gevoerd/dag | F8: Wat wilt u komende maand op stal voeren? | G8: Naam | H8: kg product te voeren/dag | J8: *Dit zijn de gewenste gehaltes in het krachtvoer om bij het ingevoerde stalrantsoen en gehaltes in het weidegras het gewenste ruw eiwit en P gehalte in het totale rantsoen te realiseren.
F9: =IF(A9>0,A9,"") ->  | J9: Totale droge stof opname/koe/dag | M9: ='Okt Voeropname'!E2 -> 
J10: VEM dekking | M10: =IF(G4=1,'Okt Voeropname'!O7,'Okt Voeropname'!E23/'Okt Voeropname'!E27) ->  | N10: =IF(M10<1,'Okt Voeropname'!R13,"") -> 
J11: Verwachte N excretie per ton meetmelk (kg) | M11: ='Okt Excretie'!E24 -> 
J12: Verwachte fosfaat excretie per ton meetmelk (kg) | M12: ='Okt Excretie'!E25*2.29 -> 
J14: Kengetallen afgelopen maand
J15: Totale droge stof opname/koe/dag | M15: ='Okt kengetallen'!C4 -> 
J16: Ruw eiwit gehalte rantsoen (g/kg ds) | M16: ='Okt kengetallen'!C8 -> 
J17: P gehalte rantsoen (g/kg ds) | M17: ='Okt kengetallen'!C10 -> 
J18: ='Okt kengetallen'!A16 -> N excretie per ton meetmelk (kg) | M18: ='Okt kengetallen'!C16 -> 
J19: Fosfaat excretie per ton meetmelk (kg) | M19: ='Okt kengetallen'!C17*2.29 -> 
A20: Krachtvoer | F20: Gewenst ruw eiwit gehalte rantsoen (g/kg ds) | H20: 160
A21: Krachtvoer | F21: Gewenst P gehalte rantsoen (g/kg ds) | H21: 3.6 | J21: ='Okt kengetallen'!A24 -> Voerefficientie kg meetmelk/kg voer (ds) | M21: ='Okt kengetallen'!C24 -> 
A22: Krachtvoer | F22: Gewenste hoeveelheid krachtvoer (kg/100 kg melk) | J22: ='Okt kengetallen'!A25 -> kg krachtvoer per 100 kg (excl bijprod) | M22: ='Okt kengetallen'!C25 -> 
A23: kg krachtvoer gevoerd/100 kg melk | C23: ='Okt kengetallen'!C25 ->  | J23: ='Okt kengetallen'!A20 -> VEM dekking | M23: ='Okt kengetallen'!C20 -> 

Sheet Nov vee+melk
A2: Melkgevende koeien
A3: Droge koeien*
A4: *Het aantal droge koeien dat bij de melkveestapel loopt en dus ook van het ruwvoer mee vreet.
C6: ='Nov voer'!B3 -> November gerealiseerd | E6: ='Nov voer'!G3 -> November prognose
A7: Tankmelk geleverd
A8: Aantal dagen
A9: Vet%
A10: Eiwit%
A11: Ureum
A13: Separatie melk kg/dag
A15: Melk per dag | C15: =IF(SUM(C7)>0,SUM(C7)/(SUM(C8)),"")+C13 ->  | E15: =IF(SUM(E7)>0,SUM(E7)/(SUM(E8)),"")+E13 -> 
A16: Eiwit | C16: =C15*MAX(C10) ->  | E16: =E15*MAX(E10) -> 
A17: Vet | C17: =(C9*C15) ->  | E17: =(E9*E15) -> 
A18: N | C18: =C16/6.38 ->  | E18: =E16/6.38 -> 
A20: kg melk/koe/dag | C20: =IF(C7>0,C15/C2,"") ->  | E20: =IF(E7>0,E15/E2,"") -> 
A21: FCPM/koe/dag | C21: =(0.337+0.116*MAX(C9)*100+0.06*MAX(C10)*100)*C15/C2 ->  | E21: =(0.337+0.116*MAX(E9)*100+0.06*MAX(E10)*100)*E15/E2 -> 
A22: Melkproductie incl droge | C22: =C15/(C2+C3) ->  | E22: =E15/(E2+E3) -> 
A23: Meetmelk 305 dgn | C23: =C21*305 ->  | E23: =E21*305 -> 
A24: gemiddeld Meetmelk 305 dgn | C24: =C23 ->  | E24: =E23 -> 
A26: Behoefte
A27: VEM | C27: =IF('Nov voer'!B4=1,6013+440*C21+0.73*C21*C21,5013+440*C21+0.73*C21*C21) ->  | E27: =IF('Nov voer'!G4=1,6013+440*E21+0.73*E21*E21,5013+440*E21+0.73*E21*E21) -> 
A28: DVE | C28: =114+(1.396*(C15/C2)*C10*100*10)+0.000195*(((C15/C2)*C10*100*10)*((C15/C2)*C10*100*10))+20 ->  | E28: =114+(1.396*(E15/E2)*E10*100*10)+0.000195*(((E15/E2)*E10*100*10)*((E15/E2)*E10*100*10))+20 -> 
A29: P | C29: =19+1.43*C21 ->  | E29: =19+1.43*E21 -> 

Sheet Nov voer
A1: Vul alle | B1: licht en | C1: donkerblauwe | F1: cellen in
B3: November gerealiseerd | G3: November prognose | J3: Prognose
A4: Weidegang (ja/nee) | B4: 2 | F4: Weidegang (ja/nee) | G4: 2 | J4: Drogestof opname uit weidegras kg/koe/dag | M4: ='Nov Voeropname'!E31 -> 0 | N4: =IF(M4>10,'Nov Voeropname'!R12,"") -> 
A5: Weidegras | B5: Eigen invoer | F5: Weidegras | G5: Eigen invoer | J5: Uren weidegang per koe/dag | M5: =IF(M4>0.1,IF(M4>2.5,(M4-3)+2,M4/1.5),"") -> 
A6: % restvoer | B6: 0.05 | F6: % restvoer | G6: 0.05 | J6: Gewenst ruw eiwit gehalte krachtvoer (g/kg) | M6: =(H20*'Nov Voeropname'!E2-'Nov Voeropname'!E6*'Nov Voeropname'!E2)/('Nov Voeropname'!E76/('Nov vee+melk'!E2+'Nov vee+melk'!E3))*0.9 -> 
J7: Gewenst P gehalte krachtvoer (g/kg) | M7: =(H21*'Nov Voeropname'!E2-'Nov Voeropname'!E8*'Nov Voeropname'!E2)/('Nov Voeropname'!E76/('Nov vee+melk'!E3+'Nov vee+melk'!E2))*0.9 -> 
A8: Wat is er afgelopen maand op stal gevoerd? | B8: Naam | C8: kg product gevoerd/dag | F8: Wat wilt u komende maand op stal voeren? | G8: Naam | H8: kg product te voeren/dag | J8: *Dit zijn de gewenste gehaltes in het krachtvoer om bij het ingevoerde stalrantsoen en gehaltes in het weidegras het gewenste ruw eiwit en P gehalte in het totale rantsoen te realiseren.
F9: =IF(A9>0,A9,"") ->  | J9: Totale droge stof opname/koe/dag | M9: ='Nov Voeropname'!E2 -> 
J10: VEM dekking | M10: =IF(G4=1,'Nov Voeropname'!O7,'Nov Voeropname'!E23/'Nov Voeropname'!E27) ->  | N10: =IF(M10<1,'Nov Voeropname'!R13,"") -> 
J11: Verwachte N excretie per ton meetmelk (kg) | M11: ='Nov Excretie'!E24 -> 
J12: Verwachte fosfaat excretie per ton meetmelk (kg) | M12: ='Nov Excretie'!E25*2.29 -> 
J14: Kengetallen afgelopen maand
J15: Totale droge stof opname/koe/dag | M15: ='Nov kengetallen'!C4 -> 
J16: Ruw eiwit gehalte rantsoen (g/kg ds) | M16: ='Nov kengetallen'!C8 -> 
J17: P gehalte rantsoen (g/kg ds) | M17: ='Nov kengetallen'!C10 -> 
J18: ='Nov kengetallen'!A16 -> N excretie per ton meetmelk (kg) | M18: ='Nov kengetallen'!C16 -> 
J19: Fosfaat excretie per ton meetmelk (kg) | M19: ='Nov kengetallen'!C17*2.29 -> 
A20: Krachtvoer | F20: Gewenst ruw eiwit gehalte rantsoen (g/kg ds) | H20: 160
A21: Krachtvoer | F21: Gewenst P gehalte rantsoen (g/kg ds) | H21: 3.6 | J21: ='Nov kengetallen'!A24 -> Voerefficientie kg meetmelk/kg voer (ds) | M21: ='Nov kengetallen'!C24 -> 
A22: Krachtvoer | F22: Gewenste hoeveelheid krachtvoer (kg/100 kg melk) | J22: ='Nov kengetallen'!A25 -> kg krachtvoer per 100 kg (excl bijprod) | M22: ='Nov kengetallen'!C25 -> 
A23: kg krachtvoer gevoerd/100 kg melk | C23: ='Nov kengetallen'!C25 ->  | J23: ='Nov kengetallen'!A20 -> VEM dekking | M23: ='Nov kengetallen'!C20 -> 

Sheet Dec vee+melk
A2: Melkgevende koeien
A3: Droge koeien*
A4: *Het aantal droge koeien dat bij de melkveestapel loopt en dus ook van het ruwvoer mee vreet.
C6: ='Dec voer'!B3 -> December gerealiseerd | E6: ='Dec voer'!G3 -> December prognose
A7: Tankmelk geleverd
A8: Aantal dagen
A9: Vet%
A10: Eiwit%
A11: Ureum
A13: Separatie melk kg/dag
A15: Melk per dag | C15: =IF(SUM(C7)>0,SUM(C7)/(SUM(C8)),"")+C13 ->  | E15: =IF(SUM(E7)>0,SUM(E7)/(SUM(E8)),"")+E13 -> 
A16: Eiwit | C16: =C15*MAX(C10) ->  | E16: =E15*MAX(E10) -> 
A17: Vet | C17: =(C9*C15) ->  | E17: =(E9*E15) -> 
A18: N | C18: =C16/6.38 ->  | E18: =E16/6.38 -> 
A20: kg melk/koe/dag | C20: =IF(C7>0,C15/C2,"") ->  | E20: =IF(E7>0,E15/E2,"") -> 
A21: FCPM/koe/dag | C21: =(0.337+0.116*MAX(C9)*100+0.06*MAX(C10)*100)*C15/C2 ->  | E21: =(0.337+0.116*MAX(E9)*100+0.06*MAX(E10)*100)*E15/E2 -> 
A22: Melkproductie incl droge | C22: =C15/(C2+C3) ->  | E22: =E15/(E2+E3) -> 
A23: Meetmelk 305 dgn | C23: =C21*305 ->  | E23: =E21*305 -> 
A24: gemiddeld Meetmelk 305 dgn | C24: =C23 ->  | E24: =E23 -> 
A26: Behoefte
A27: VEM | C27: =IF('Dec voer'!B4=1,6013+440*C21+0.73*C21*C21,5013+440*C21+0.73*C21*C21) ->  | E27: =IF('Dec voer'!G4=1,6013+440*E21+0.73*E21*E21,5013+440*E21+0.73*E21*E21) -> 
A28: DVE | C28: =114+(1.396*(C15/C2)*C10*100*10)+0.000195*(((C15/C2)*C10*100*10)*((C15/C2)*C10*100*10))+20 ->  | E28: =114+(1.396*(E15/E2)*E10*100*10)+0.000195*(((E15/E2)*E10*100*10)*((E15/E2)*E10*100*10))+20 -> 
A29: P | C29: =19+1.43*C21 ->  | E29: =19+1.43*E21 -> 

Sheet Dec voer
A1: Vul alle | B1: licht en | C1: donkerblauwe | F1: cellen in
B3: December gerealiseerd | G3: December prognose | J3: Prognose
A4: Weidegang (ja/nee) | B4: 2 | F4: Weidegang (ja/nee) | G4: 2 | J4: Drogestof opname uit weidegras kg/koe/dag | M4: ='Dec Voeropname'!E31 -> 0 | N4: =IF(M4>10,'Dec Voeropname'!R12,"") -> 
A5: Weidegras | B5: Eigen invoer | F5: Weidegras | G5: Eigen invoer | J5: Uren weidegang per koe/dag | M5: =IF(M4>0.1,IF(M4>2.5,(M4-3)+2,M4/1.5),"") -> 
A6: % restvoer | B6: 0.06 | F6: % restvoer | G6: 0.05 | J6: Gewenst ruw eiwit gehalte krachtvoer (g/kg) | M6: =(H20*'Dec Voeropname'!E2-'Dec Voeropname'!E6*'Dec Voeropname'!E2)/('Dec Voeropname'!E76/('Dec vee+melk'!E2+'Dec vee+melk'!E3))*0.9 -> 
J7: Gewenst P gehalte krachtvoer (g/kg) | M7: =(H21*'Dec Voeropname'!E2-'Dec Voeropname'!E8*'Dec Voeropname'!E2)/('Dec Voeropname'!E76/('Dec vee+melk'!E3+'Dec vee+melk'!E2))*0.9 -> 
A8: Wat is er afgelopen maand op stal gevoerd? | B8: Naam | C8: kg product gevoerd/dag | F8: Wat wilt u komende maand op stal voeren? | G8: Naam | H8: kg product te voeren/dag | J8: *Dit zijn de gewenste gehaltes in het krachtvoer om bij het ingevoerde stalrantsoen en gehaltes in het weidegras het gewenste ruw eiwit en P gehalte in het totale rantsoen te realiseren.
F9: =IF(A9>0,A9,"") ->  | J9: Totale droge stof opname/koe/dag | M9: ='Dec Voeropname'!E2 -> 
J10: VEM dekking | M10: =IF(G4=1,'Dec Voeropname'!O7,'Dec Voeropname'!E23/'Dec Voeropname'!E27) ->  | N10: =IF(M10<1,'Dec Voeropname'!R13,"") -> 
J11: Verwachte N excretie per ton meetmelk (kg) | M11: ='Dec Excretie'!E24 -> 
J12: Verwachte fosfaat excretie per ton meetmelk (kg) | M12: ='Dec Excretie'!E25*2.29 -> 
J14: Kengetallen afgelopen maand
J15: Totale droge stof opname/koe/dag | M15: ='Dec kengetallen'!C4 -> 
J16: Ruw eiwit gehalte rantsoen (g/kg ds) | M16: ='Dec kengetallen'!C8 -> 
J17: P gehalte rantsoen (g/kg ds) | M17: ='Dec kengetallen'!C10 -> 
J18: ='Dec kengetallen'!A16 -> N excretie per ton meetmelk (kg) | M18: ='Dec kengetallen'!C16 -> 
J19: Fosfaat excretie per ton meetmelk (kg) | M19: ='Dec kengetallen'!C17*2.29 -> 
A20: Krachtvoer | F20: Gewenst ruw eiwit gehalte rantsoen (g/kg ds) | H20: 160
A21: Krachtvoer | F21: Gewenst P gehalte rantsoen (g/kg ds) | H21: 3.6 | J21: ='Dec kengetallen'!A24 -> Voerefficientie kg meetmelk/kg voer (ds) | M21: ='Dec kengetallen'!C24 -> 
A22: Krachtvoer | F22: Gewenste hoeveelheid krachtvoer (kg/100 kg melk) | J22: ='Dec kengetallen'!A25 -> kg krachtvoer per 100 kg (excl bijprod) | M22: ='Dec kengetallen'!C25 -> 
A23: kg krachtvoer gevoerd/100 kg melk | C23: ='Dec kengetallen'!C25 ->  | J23: ='Dec kengetallen'!A20 -> VEM dekking | M23: ='Dec kengetallen'!C20 -> 

Sheet Dec Voeropname (hidden)
A1: Gem rantsoen gehaltes (d dgn) | C1: ='Dec voer'!B3 -> December gerealiseerd | E1: ='Dec voer'!G3 -> December prognose
A2: DS opname/koe | C2: =C34 ->  | E2: =E34 -> 
A3: VEM | C3: =C12 ->  | E3: =AVERAGE(E12:E12) -> 
A4: DVE | C4: =AVERAGE(C13) ->  | M4: 1 | R4: Voedermiddelen
A5: OEB | C5: =AVERAGE(C14) ->  | M5: 2 | R5: Kuilgras
A6: RE | C6: =AVERAGE(C15) ->  | R6: Snijmais
A7: N | C7: =AVERAGE(C16) ->  | M7: Vem toeslag weidegang | O7: 1.03 | R7: OverigRuwvoer
A8: P | R8: Bijproducten
R9: Krachtvoer
A11: Rantsoen gehaltes (incl. weidegras)
A12: VEM | C12: =C35/C34 ->  | E12: =E35/E34 ->  | R12: Let op bij beperkt weiden is deze opname niet realistisch!
A13: DVE | C13: =C36/C34 ->  | E13: =E36/E34 ->  | R13: Let op VEM dekking te laag!
A14: OEB | C14: =C37 ->  | E14: =E37 -> 
A15: RE | C15: =C38/C34 ->  | E15: =E38/E34 -> 
A16: N | C16: =C39/C34 ->  | E16: =E39/E34 -> 
A17: P | C17: =C40/C34 ->  | E17: =E40/E34 -> 
A22: kg ds | C22: =C55/SUM('Dec vee+melk'!C2:C3) ->  | E22: =E55/SUM('Dec vee+melk'!E2:E3) -> 
A23: Vemopname ex weidegras | C23: =C22*C45 ->  | E23: =E22*E45 -> 
A27: VEM behoefte | C27: =IF('Dec voer'!B4=1,'Dec vee+melk'!C27*'Dec Voeropname'!O7,'Dec vee+melk'!C27) ->  | E27: =IF('Dec voer'!G4=1,'Dec vee+melk'!E27*'Dec Voeropname'!O7,'Dec vee+melk'!E27) -> 
A28: Behoefte-opname | C28: =C27-'Dec Voeropname'!C23 ->  | E28: =E27-'Dec Voeropname'!E23 -> 
C29: =C28/VLOOKUP('Dec voer'!B5,Weidegras!$A$5:$J$119,4,FALSE) ->  | E29: =E28/VLOOKUP('Dec voer'!G5,Weidegras!$A$5:$J$119,4,FALSE) -> 
C30: =IF(C29>0,C29,0) ->  | E30: =IF(E29>0,E29,0) -> 
A31: Weidegrasopname/koe | C31: =IF('Dec voer'!B4=1,C30,0) -> 0 | E31: =IF('Dec voer'!G4=1,E30,0) -> 0
A33: Rantsoenopname incl weidegras
A34: droge stof | C34: =C22+C31 ->  | E34: =E22+E31 -> 
A35: VEM | C35: =C45*C22+C31*VLOOKUP('Dec voer'!B5,Weidegras!$A$6:$J$180,4,FALSE) ->  | E35: =E45*$E$22+$E$31*VLOOKUP('Dec voer'!$G$5,Weidegras!$A$6:$J$180,4,FALSE) -> 
A36: DVE | C36: =C46*C22+$C$31*VLOOKUP('Dec voer'!B5,Weidegras!$A$5:$J$150,5,FALSE) ->  | E36: =E46*$E$22+$E$31*VLOOKUP('Dec voer'!$G$5,Weidegras!$A$6:$J$180,5,FALSE) -> 
A37: OEB | C37: =C22*C47+$C$31*VLOOKUP('Dec voer'!B5,Weidegras!$A$6:$J$151,6,FALSE) ->  | E37: =E47*$E$22+$E$31*VLOOKUP('Dec voer'!$G$5,Weidegras!$A$6:$J$180,6,FALSE) -> 
A38: RE | C38: =C48*C22+C31*VLOOKUP('Dec voer'!$B$5,Weidegras!$A$6:$J$181,7,FALSE) ->  | E38: =E48*$E$22+$E$31*VLOOKUP('Dec voer'!$G$5,Weidegras!$A$6:$J$180,7,FALSE) -> 
A39: N | C39: =C38/6.25 ->  | E39: =E38/6.25 -> 
A40: P | C40: =C50*C22+C31*VLOOKUP('Dec voer'!$B$5,Weidegras!$A$6:$J$183,10,FALSE) ->  | E40: =E50*E22+$E$31*VLOOKUP('Dec voer'!$G$5,Weidegras!$A$6:$J$180,10,FALSE) -> 
A43: Stalrantsoen gehaltes
A44: droge stof
A45: VEM | C45: =C56/C$55 ->  | E45: =E56/E$55 -> 
A46: DVE | C46: =C57/C$55*1000 ->  | E46: =E57/E$55*1000 -> 
A47: OEB | C47: =C58/C$55 ->  | E47: =E58/E$55 -> 
A48: RE | C48: =C59/C$55 -> 
A49: N | C49: =C60/C$55 -> 
A50: P | C50: =C61/C$55 -> 
A54: Stalrantsoen opname
A55: droge stof (kg) | C55: =C80 -> 0
A56: VEM | C56: =C96 -> 0
A57: DVE | C57: =C112 -> 0 | E57: =E112 -> 0
A58: OEB | C58: =C128 -> 0 | E58: =E128 -> 0
A59: RE | C59: =C144 -> 0 | E59: =E144 -> 0
A60: N | C60: =C146 -> 0 | E60: =E146 -> 0
A61: P | C61: =C162 -> 0 | E61: =E162 -> 0
A65: Drogestof opname
A66: ='Dec voer'!A9 -> 0 | B66: ='Dec voer'!B9 -> 0 | C66: =IF('Dec voer'!C9>0,VLOOKUP('Dec voer'!B9,Voedermiddelen!$A$4:$K$75,3,FALSE)*'Dec voer'!C9*(1-'Dec voer'!$B$6),"") ->  | D66: ='Dec voer'!G9 -> 0 | E66: =IF('Dec voer'!H9>0,VLOOKUP('Dec voer'!G9,Voedermiddelen!$A$4:$K$75,3,FALSE)*'Dec voer'!H9*(1-'Dec voer'!$G$6),"") -> 
A67: ='Dec voer'!A10 -> 0 | B67: ='Dec voer'!B10 -> 0 | C67: =IF('Dec voer'!C10>0,VLOOKUP('Dec voer'!B10,Voedermiddelen!$A$4:$K$75,3,FALSE)*'Dec voer'!C10*(1-'Dec voer'!$B$6),"") ->  | D67: ='Dec voer'!G10 -> 0 | E67: =IF('Dec voer'!H10>0,VLOOKUP('Dec voer'!G10,Voedermiddelen!$A$4:$K$75,3,FALSE)*'Dec voer'!H10*(1-'Dec voer'!$G$6),"") -> 
A68: ='Dec voer'!A11 -> 0 | B68: ='Dec voer'!B11 -> 0 | C68: =IF('Dec voer'!C11>0,VLOOKUP('Dec voer'!B11,Voedermiddelen!$A$4:$K$75,3,FALSE)*'Dec voer'!C11*(1-'Dec voer'!$B$6),"") ->  | D68: ='Dec voer'!G11 -> 0 | E68: =IF('Dec voer'!H11>0,VLOOKUP('Dec voer'!G11,Voedermiddelen!$A$4:$K$75,3,FALSE)*'Dec voer'!H11*(1-'Dec voer'!$G$6),"") -> 
A69: ='Dec voer'!A12 -> 0 | B69: ='Dec voer'!B12 -> 0 | C69: =IF('Dec voer'!C12>0,VLOOKUP('Dec voer'!B12,Voedermiddelen!$A$4:$K$75,3,FALSE)*'Dec voer'!C12*(1-'Dec voer'!$B$6),"") ->  | D69: ='Dec voer'!G12 -> 0 | E69: =IF('Dec voer'!H12>0,VLOOKUP('Dec voer'!G12,Voedermiddelen!$A$4:$K$75,3,FALSE)*'Dec voer'!H12*(1-'Dec voer'!$G$6),"") -> 
A70: ='Dec voer'!A13 -> 0 | B70: ='Dec voer'!B13 -> 0 | C70: =IF('Dec voer'!C13>0,VLOOKUP('Dec voer'!B13,Voedermiddelen!$A$4:$K$75,3,FALSE)*'Dec voer'!C13*(1-'Dec voer'!$B$6),"") ->  | D70: ='Dec voer'!G13 -> 0 | E70: =IF('Dec voer'!H13>0,VLOOKUP('Dec voer'!G13,Voedermiddelen!$A$4:$K$75,3,FALSE)*'Dec voer'!H13*(1-'Dec voer'!$G$6),"") -> 
A71: ='Dec voer'!A14 -> 0 | B71: ='Dec voer'!B14 -> 0 | C71: =IF('Dec voer'!C14>0,VLOOKUP('Dec voer'!B14,Voedermiddelen!$A$4:$K$75,3,FALSE)*'Dec voer'!C14*(1-'Dec voer'!$B$6),"") ->  | D71: ='Dec voer'!G14 -> 0 | E71: =IF('Dec voer'!H14>0,VLOOKUP('Dec voer'!G14,Voedermiddelen!$A$4:$K$75,3,FALSE)*'Dec voer'!H14*(1-'Dec voer'!$G$6),"") -> 
A72: ='Dec voer'!A15 -> 0 | B72: ='Dec voer'!B15 -> 0 | C72: =IF('Dec voer'!C15>0,VLOOKUP('Dec voer'!B15,Voedermiddelen!$A$4:$K$75,3,FALSE)*'Dec voer'!C15*(1-'Dec voer'!$B$6),"") ->  | D72: ='Dec voer'!G15 -> 0 | E72: =IF('Dec voer'!H15>0,VLOOKUP('Dec voer'!G15,Voedermiddelen!$A$4:$K$75,3,FALSE)*'Dec voer'!H15*(1-'Dec voer'!$G$6),"") -> 
A73: ='Dec voer'!A16 -> 0 | B73: ='Dec voer'!B16 -> 0 | C73: =IF('Dec voer'!C16>0,VLOOKUP('Dec voer'!B16,Voedermiddelen!$A$4:$K$75,3,FALSE)*'Dec voer'!C16*(1-'Dec voer'!$B$6),"") ->  | D73: ='Dec voer'!G16 -> 0 | E73: =IF('Dec voer'!H16>0,VLOOKUP('Dec voer'!G16,Voedermiddelen!$A$4:$K$75,3,FALSE)*'Dec voer'!H16*(1-'Dec voer'!$G$6),"") -> 
A74: ='Dec voer'!A17 -> 0 | B74: ='Dec voer'!B17 -> 0 | C74: =IF('Dec voer'!C17>0,VLOOKUP('Dec voer'!B17,Voedermiddelen!$A$4:$K$75,3,FALSE)*'Dec voer'!C17*(1-'Dec voer'!$B$6),"") ->  | D74: ='Dec voer'!G17 -> 0 | E74: =IF('Dec voer'!H17>0,VLOOKUP('Dec voer'!G17,Voedermiddelen!$A$4:$K$75,3,FALSE)*'Dec voer'!H17*(1-'Dec voer'!$G$6),"") -> 
B75: ='Dec voer'!B18 -> 0 | C75: =IF('Dec voer'!C18>0,VLOOKUP('Dec voer'!B18,Voedermiddelen!$A$4:$K$75,3,FALSE)*'Dec voer'!C18*(1-'Dec voer'!$B$6),"") ->  | D75: ='Dec voer'!G18 -> 0 | E75: =IF('Dec voer'!H18>0,VLOOKUP('Dec voer'!G18,Voedermiddelen!$A$4:$K$75,3,FALSE)*'Dec voer'!H18*(1-'Dec voer'!$G$6),"") -> 
B76: ='Dec voer'!B20 -> 0 | C76: =IF('Dec voer'!C20>0,VLOOKUP('Dec voer'!B20,Voedermiddelen!$A$4:$K$75,3,FALSE)*'Dec voer'!C20*(1-'Dec voer'!$B$6),"") ->  | E76: ='Dec voer'!H22*'Dec vee+melk'!E15/100*0.9 -> 
B77: ='Dec voer'!B21 -> 0 | C77: =IF('Dec voer'!C21>0,VLOOKUP('Dec voer'!B21,Voedermiddelen!$A$4:$K$75,3,FALSE)*'Dec voer'!C21*(1-'Dec voer'!$B$6),"") -> 
B78: ='Dec voer'!B22 -> 0 | C78: =IF('Dec voer'!C22>0,VLOOKUP('Dec voer'!B22,Voedermiddelen!$A$4:$K$75,3,FALSE)*'Dec voer'!C22*(1-'Dec voer'!$B$6),"") -> 
A80: Totaal | C80: =SUM(C66:C77) -> 0 | E80: =SUM(E66:E78) -> 
A82: VEM | B82: =B66 -> 0 | C82: =IF('Dec voer'!C9>0,VLOOKUP('Dec voer'!B9,Voedermiddelen!$A$4:$K$75,4,FALSE)*C66,"") ->  | D82: =D66 -> 0 | E82: =IF('Dec voer'!H9>0,VLOOKUP(Voedermiddelen!$A$4:$K$75,4,FALSE)*E66,"") -> 
B83: =B67 -> 0 | C83: =IF('Dec voer'!C10>0,VLOOKUP('Dec voer'!B10,Voedermiddelen!$A$4:$K$75,4,FALSE)*C67,"") ->  | D83: 0 | E83: =IF('Dec voer'!H10>0,VLOOKUP(Voedermiddelen!$A$4:$K$75,4,FALSE)*E67,"") -> 
B84: 0 | C84: =IF('Dec voer'!C11>0,VLOOKUP('Dec voer'!B11,Voedermiddelen!$A$4:$K$75,4,FALSE)*C68,"") ->  | D84: 0 | E84: =IF('Dec voer'!H11>0,VLOOKUP(Voedermiddelen!$A$4:$K$75,4,FALSE)*E68,"") -> 
B85: 0 | C85: =IF('Dec voer'!C12>0,VLOOKUP('Dec voer'!B12,Voedermiddelen!$A$4:$K$75,4,FALSE)*C69,"") ->  | D85: 0 | E85: =IF('Dec voer'!H12>0,VLOOKUP(Voedermiddelen!$A$4:$K$75,4,FALSE)*E69,"") -> 
B86: 0 | C86: =IF('Dec voer'!C13>0,VLOOKUP('Dec voer'!B13,Voedermiddelen!$A$4:$K$75,4,FALSE)*C70,"") ->  | D86: 0 | E86: =IF('Dec voer'!H13>0,VLOOKUP(Voedermiddelen!$A$4:$K$75,4,FALSE)*E70,"") -> 
B87: 0 | C87: =IF('Dec voer'!C14>0,VLOOKUP('Dec voer'!B14,Voedermiddelen!$A$4:$K$75,4,FALSE)*C71,"") ->  | D87: 0 | E87: =IF('Dec voer'!H14>0,VLOOKUP(Voedermiddelen!$A$4:$K$75,4,FALSE)*E71,"") -> 
B88: 0 | C88: =IF('Dec voer'!C15>0,VLOOKUP('Dec voer'!B15,Voedermiddelen!$A$4:$K$75,4,FALSE)*C72,"") ->  | D88: 0 | E88: =IF('Dec voer'!H15>0,VLOOKUP(Voedermiddelen!$A$4:$K$75,4,FALSE)*E72,"") -> 
B89: 0 | C89: =IF('Dec voer'!C16>0,VLOOKUP('Dec voer'!B16,Voedermiddelen!$A$4:$K$75,4,FALSE)*C73,"") ->  | D89: 0 | E89: =IF('Dec voer'!H16>0,VLOOKUP(Voedermiddelen!$A$4:$K$75,4,FALSE)*E73,"") -> 
B90: 0 | C90: =IF('Dec voer'!C17>0,VLOOKUP('Dec voer'!B17,Voedermiddelen!$A$4:$K$75,4,FALSE)*C74,"") ->  | D90: 0 | E90: =IF('Dec voer'!H17>0,VLOOKUP(Voedermiddelen!$A$4:$K$75,4,FALSE)*E74,"") -> 
B91: 0 | C91: =IF('Dec voer'!C18>0,VLOOKUP('Dec voer'!B18,Voedermiddelen!$A$4:$K$75,4,FALSE)*C75,"") ->  | D91: 0 | E91: =IF('Dec voer'!H18>0,VLOOKUP(Voedermiddelen!$A$4:$K$75,4,FALSE)*E75,"") -> 
B92: 0 | C92: =IF('Dec voer'!C20>0,VLOOKUP('Dec voer'!B20,Voedermiddelen!$A$4:$K$75,4,FALSE)*C76,"") ->  | D92: 0 | E92: =E76*1000 -> 
B93: 0 | C93: =IF('Dec voer'!C21>0,VLOOKUP('Dec voer'!B21,Voedermiddelen!$A$4:$K$75,4,FALSE)*C77,"") ->  | D93: 0
B94: 0 | C94: =IF('Dec voer'!C22>0,VLOOKUP('Dec voer'!B22,Voedermiddelen!$A$4:$K$75,4,FALSE)*C78,"") ->  | D94: 0
A96: Totaal | C96: =SUM(C82:C93) -> 0 | E96: =SUM(E82:E94) -> 
A98: DVE | B98: =B82 -> 0 | C98: =IF('Dec voer'!C9>0,VLOOKUP('Dec voer'!B9,Voedermiddelen!$A$4:$K$75,5,FALSE)*C66,"") ->  | D98: =D82 -> 0 | E98: =IF('Dec voer'!H9>0,VLOOKUP('Dec voer'!G9,Voedermiddelen!$A$4:$K$75,5,FALSE)*E66,"") -> 
B99: =B83 -> 0 | C99: =IF('Dec voer'!C10>0,VLOOKUP('Dec voer'!B10,Voedermiddelen!$A$4:$K$75,5,FALSE)*C67,"") ->  | D99: 0 | E99: =IF('Dec voer'!H10>0,VLOOKUP('Dec voer'!G10,[1]Voedermiddelen!$A$4:$K$75,5,FALSE)*E67,"") -> 
B100: 0 | C100: =IF('Dec voer'!C11>0,VLOOKUP('Dec voer'!B11,Voedermiddelen!$A$4:$K$75,5,FALSE)*C68,"") ->  | D100: 0 | E100: =IF('Dec voer'!H11>0,VLOOKUP('Dec voer'!G11,[1]Voedermiddelen!$A$4:$K$75,5,FALSE)*E68,"") -> 
B101: 0 | C101: =IF('Dec voer'!C12>0,VLOOKUP('Dec voer'!B12,Voedermiddelen!$A$4:$K$75,5,FALSE)*C69,"") ->  | D101: 0 | E101: =IF('Dec voer'!H12>0,VLOOKUP('Dec voer'!G12,[1]Voedermiddelen!$A$4:$K$75,5,FALSE)*E69,"") -> 
B102: 0 | C102: =IF('Dec voer'!C13>0,VLOOKUP('Dec voer'!B13,Voedermiddelen!$A$4:$K$75,5,FALSE)*C70,"") ->  | D102: 0 | E102: =IF('Dec voer'!H13>0,VLOOKUP('Dec voer'!G13,[1]Voedermiddelen!$A$4:$K$75,5,FALSE)*E70,"") -> 
B103: 0 | C103: =IF('Dec voer'!C14>0,VLOOKUP('Dec voer'!B14,Voedermiddelen!$A$4:$K$75,5,FALSE)*C71,"") ->  | D103: 0 | E103: =IF('Dec voer'!H14>0,VLOOKUP('Dec voer'!G14,[1]Voedermiddelen!$A$4:$K$75,5,FALSE)*E71,"") -> 
B104: 0 | C104: =IF('Dec voer'!C15>0,VLOOKUP('Dec voer'!B15,Voedermiddelen!$A$4:$K$75,5,FALSE)*C72,"") ->  | D104: 0 | E104: =IF('Dec voer'!H15>0,VLOOKUP('Dec voer'!G15,[1]Voedermiddelen!$A$4:$K$75,5,FALSE)*E72,"") -> 
B105: 0 | C105: =IF('Dec voer'!C16>0,VLOOKUP('Dec voer'!B16,Voedermiddelen!$A$4:$K$75,5,FALSE)*C73,"") ->  | D105: 0 | E105: =IF('Dec voer'!H16>0,VLOOKUP('Dec voer'!G16,[1]Voedermiddelen!$A$4:$K$75,5,FALSE)*E73,"") -> 
B106: 0 | C106: =IF('Dec voer'!C17>0,VLOOKUP('Dec voer'!B17,Voedermiddelen!$A$4:$K$75,5,FALSE)*C74,"") ->  | D106: 0 | E106: =IF('Dec voer'!H17>0,VLOOKUP('Dec voer'!G17,[1]Voedermiddelen!$A$4:$K$75,5,FALSE)*E74,"") -> 
B107: 0 | C107: =IF('Dec voer'!C18>0,VLOOKUP('Dec voer'!B18,Voedermiddelen!$A$4:$K$75,5,FALSE)*C75,"") ->  | D107: 0 | E107: =IF('Dec voer'!H18>0,VLOOKUP('Dec voer'!G18,[1]Voedermiddelen!$A$4:$K$75,5,FALSE)*E75,"") -> 
B108: 0 | C108: =IF('Dec voer'!C20>0,VLOOKUP('Dec voer'!B20,Voedermiddelen!$A$4:$K$75,5,FALSE)*C76,"") ->  | D108: 0
B109: 0 | C109: =IF('Dec voer'!C21>0,VLOOKUP('Dec voer'!B21,Voedermiddelen!$A$4:$K$75,5,FALSE)*C77,"") ->  | D109: 0
B110: 0 | C110: =IF('Dec voer'!C22>0,VLOOKUP('Dec voer'!B22,Voedermiddelen!$A$4:$K$75,5,FALSE)*C78,"") ->  | D110: 0
A112: Totaal | C112: =SUM(C98:C109)/1000 -> 0 | E112: =SUM(E98:E110)/1000 -> 0
A114: OEB | B114: =B98 -> 0 | C114: =IF('Dec voer'!C9>0,VLOOKUP('Dec voer'!B9,Voedermiddelen!$A$4:$K$75,6,FALSE)*C66,"") ->  | D114: =D98 -> 0 | E114: =IF('Dec voer'!H9>0,VLOOKUP('Dec voer'!G9,[1]Voedermiddelen!$A$4:$K$75,6,FALSE)*E66,"") -> 
B115: =B99 -> 0 | C115: =IF('Dec voer'!C10>0,VLOOKUP('Dec voer'!B10,Voedermiddelen!$A$4:$K$75,6,FALSE)*C67,"") ->  | D115: 0 | E115: =IF('Dec voer'!H10>0,VLOOKUP('Dec voer'!G10,[1]Voedermiddelen!$A$4:$K$75,6,FALSE)*E67,"") -> 
B116: 0 | C116: =IF('Dec voer'!C11>0,VLOOKUP('Dec voer'!B11,Voedermiddelen!$A$4:$K$75,6,FALSE)*C68,"") ->  | D116: 0 | E116: =IF('Dec voer'!H11>0,VLOOKUP('Dec voer'!G11,[1]Voedermiddelen!$A$4:$K$75,6,FALSE)*E68,"") -> 
B117: 0 | C117: =IF('Dec voer'!C12>0,VLOOKUP('Dec voer'!B12,Voedermiddelen!$A$4:$K$75,6,FALSE)*C69,"") ->  | D117: 0 | E117: =IF('Dec voer'!H12>0,VLOOKUP('Dec voer'!G12,[1]Voedermiddelen!$A$4:$K$75,6,FALSE)*E69,"") -> 
B118: 0 | C118: =IF('Dec voer'!C13>0,VLOOKUP('Dec voer'!B13,Voedermiddelen!$A$4:$K$75,6,FALSE)*C70,"") ->  | D118: 0 | E118: =IF('Dec voer'!H13>0,VLOOKUP('Dec voer'!G13,[1]Voedermiddelen!$A$4:$K$75,6,FALSE)*E70,"") -> 
B119: 0 | C119: =IF('Dec voer'!C14>0,VLOOKUP('Dec voer'!B14,Voedermiddelen!$A$4:$K$75,6,FALSE)*C71,"") ->  | D119: 0 | E119: =IF('Dec voer'!H14>0,VLOOKUP('Dec voer'!G14,[1]Voedermiddelen!$A$4:$K$75,6,FALSE)*E71,"") -> 
B120: 0 | C120: =IF('Dec voer'!C15>0,VLOOKUP('Dec voer'!B15,Voedermiddelen!$A$4:$K$75,6,FALSE)*C72,"") ->  | D120: 0 | E120: =IF('Dec voer'!H15>0,VLOOKUP('Dec voer'!G15,[1]Voedermiddelen!$A$4:$K$75,6,FALSE)*E72,"") -> 
B121: 0 | C121: =IF('Dec voer'!C16>0,VLOOKUP('Dec voer'!B16,Voedermiddelen!$A$4:$K$75,6,FALSE)*C73,"") ->  | D121: 0 | E121: =IF('Dec voer'!H16>0,VLOOKUP('Dec voer'!G16,[1]Voedermiddelen!$A$4:$K$75,6,FALSE)*E73,"") -> 
B122: 0 | C122: =IF('Dec voer'!C17>0,VLOOKUP('Dec voer'!B17,Voedermiddelen!$A$4:$K$75,6,FALSE)*C74,"") ->  | D122: 0 | E122: =IF('Dec voer'!H17>0,VLOOKUP('Dec voer'!G17,[1]Voedermiddelen!$A$4:$K$75,6,FALSE)*E74,"") -> 
B123: 0 | C123: =IF('Dec voer'!C18>0,VLOOKUP('Dec voer'!B18,Voedermiddelen!$A$4:$K$75,6,FALSE)*C75,"") ->  | D123: 0 | E123: =IF('Dec voer'!H18>0,VLOOKUP('Dec voer'!G18,[1]Voedermiddelen!$A$4:$K$75,6,FALSE)*E75,"") -> 
B124: 0 | C124: =IF('Dec voer'!C20>0,VLOOKUP('Dec voer'!B20,Voedermiddelen!$A$4:$K$75,6,FALSE)*C76,"") ->  | D124: 0
B125: 0 | C125: =IF('Dec voer'!C21>0,VLOOKUP('Dec voer'!B21,Voedermiddelen!$A$4:$K$75,6,FALSE)*C77,"") ->  | D125: 0
B126: 0 | C126: =IF('Dec voer'!C22>0,VLOOKUP('Dec voer'!B22,Voedermiddelen!$A$4:$K$75,6,FALSE)*C78,"") ->  | D126: 0
A128: Totaal | C128: =SUM(C114:C125) -> 0 | E128: =SUM(E114:E126) -> 0
A130: RE | B130: =B114 -> 0 | C130: =IF('Dec voer'!C9>0,VLOOKUP('Dec voer'!B9,Voedermiddelen!$A$4:$K$75,7,FALSE)*C66,"") ->  | D130: =D114 -> 0 | E130: =IF('Dec voer'!H9>0,VLOOKUP('Dec voer'!G9,Voedermiddelen!$A$4:$K$75,7,FALSE)*E66,"") -> 
B131: =B115 -> 0 | C131: =IF('Dec voer'!C10>0,VLOOKUP('Dec voer'!B10,Voedermiddelen!$A$4:$K$75,7,FALSE)*C67,"") ->  | D131: 0 | E131: =IF('Dec voer'!H10>0,VLOOKUP('Dec voer'!G10,Voedermiddelen!$A$4:$K$75,7,FALSE)*E67,"") -> 
B132: 0 | C132: =IF('Dec voer'!C11>0,VLOOKUP('Dec voer'!B11,Voedermiddelen!$A$4:$K$75,7,FALSE)*C68,"") ->  | D132: 0 | E132: =IF('Dec voer'!H11>0,VLOOKUP('Dec voer'!G11,Voedermiddelen!$A$4:$K$75,7,FALSE)*E68,"") -> 
B133: 0 | C133: =IF('Dec voer'!C12>0,VLOOKUP('Dec voer'!B12,Voedermiddelen!$A$4:$K$75,7,FALSE)*C69,"") ->  | D133: 0 | E133: =IF('Dec voer'!H12>0,VLOOKUP('Dec voer'!G12,Voedermiddelen!$A$4:$K$75,7,FALSE)*E69,"") -> 
B134: 0 | C134: =IF('Dec voer'!C13>0,VLOOKUP('Dec voer'!B13,Voedermiddelen!$A$4:$K$75,7,FALSE)*C70,"") ->  | D134: 0 | E134: =IF('Dec voer'!H13>0,VLOOKUP('Dec voer'!G13,Voedermiddelen!$A$4:$K$75,7,FALSE)*E70,"") -> 
B135: 0 | C135: =IF('Dec voer'!C14>0,VLOOKUP('Dec voer'!B14,Voedermiddelen!$A$4:$K$75,7,FALSE)*C71,"") ->  | D135: 0 | E135: =IF('Dec voer'!H14>0,VLOOKUP('Dec voer'!G14,Voedermiddelen!$A$4:$K$75,7,FALSE)*E71,"") -> 
B136: 0 | C136: =IF('Dec voer'!C15>0,VLOOKUP('Dec voer'!B15,Voedermiddelen!$A$4:$K$75,7,FALSE)*C72,"") ->  | D136: 0 | E136: =IF('Dec voer'!H15>0,VLOOKUP('Dec voer'!G15,Voedermiddelen!$A$4:$K$75,7,FALSE)*E72,"") -> 
B137: 0 | C137: =IF('Dec voer'!C16>0,VLOOKUP('Dec voer'!B16,Voedermiddelen!$A$4:$K$75,7,FALSE)*C73,"") ->  | D137: 0 | E137: =IF('Dec voer'!H16>0,VLOOKUP('Dec voer'!G16,Voedermiddelen!$A$4:$K$75,7,FALSE)*E73,"") -> 
B138: 0 | C138: =IF('Dec voer'!C17>0,VLOOKUP('Dec voer'!B17,Voedermiddelen!$A$4:$K$75,7,FALSE)*C74,"") ->  | D138: 0 | E138: =IF('Dec voer'!H17>0,VLOOKUP('Dec voer'!G17,Voedermiddelen!$A$4:$K$75,7,FALSE)*E74,"") -> 
B139: 0 | C139: =IF('Dec voer'!C18>0,VLOOKUP('Dec voer'!B18,Voedermiddelen!$A$4:$K$75,7,FALSE)*C75,"") ->  | D139: 0 | E139: =IF('Dec voer'!H18>0,VLOOKUP('Dec voer'!G18,Voedermiddelen!$A$4:$K$75,7,FALSE)*E75,"") -> 
B140: 0 | C140: =IF('Dec voer'!C20>0,VLOOKUP('Dec voer'!B20,Voedermiddelen!$A$4:$K$75,7,FALSE)*C76,"") ->  | D140: 0
B141: 0 | C141: =IF('Dec voer'!C21>0,VLOOKUP('Dec voer'!B21,Voedermiddelen!$A$4:$K$75,7,FALSE)*C77,"") ->  | D141: 0
B142: =B126 -> 0 | C142: =IF('Dec voer'!C22>0,VLOOKUP('Dec voer'!B22,Voedermiddelen!$A$4:$K$75,7,FALSE)*C78,"") ->  | D142: 0
A144: Totaal | C144: =SUM(C130:C142) -> 0 | E144: =SUM(E130:E142) -> 0
A146: N opname | C146: =C144/6.25 -> 0 | E146: =E144/6.25 -> 0 | G146: =(E76/0.9*'Dec voer'!M6/6.25) -> 
A148: P | B148: =B130 -> 0 | C148: =IF('Dec voer'!C9>0,VLOOKUP('Dec voer'!B9,Voedermiddelen!$A$4:$K$75,10,FALSE)*C66,"") ->  | D148: =D130 -> 0 | E148: =IF('Dec voer'!H9>0,VLOOKUP('Dec voer'!G9,Voedermiddelen!$A$4:$K$75,10,FALSE)*E66,"") -> 
B149: =B131 -> 0 | C149: =IF('Dec voer'!C10>0,VLOOKUP('Dec voer'!B10,Voedermiddelen!$A$4:$K$75,10,FALSE)*C67,"") ->  | D149: 0 | E149: =IF('Dec voer'!H10>0,VLOOKUP('Dec voer'!G10,Voedermiddelen!$A$4:$K$75,10,FALSE)*E67,"") -> 
B150: 0 | C150: =IF('Dec voer'!C11>0,VLOOKUP('Dec voer'!B11,Voedermiddelen!$A$4:$K$75,10,FALSE)*C68,"") ->  | D150: 0 | E150: =IF('Dec voer'!H11>0,VLOOKUP('Dec voer'!G11,Voedermiddelen!$A$4:$K$75,10,FALSE)*E68,"") -> 
B151: 0 | C151: =IF('Dec voer'!C12>0,VLOOKUP('Dec voer'!B12,Voedermiddelen!$A$4:$K$75,10,FALSE)*C69,"") ->  | D151: 0 | E151: =IF('Dec voer'!H12>0,VLOOKUP('Dec voer'!G12,Voedermiddelen!$A$4:$K$75,10,FALSE)*E69,"") -> 
B152: 0 | C152: =IF('Dec voer'!C13>0,VLOOKUP('Dec voer'!B13,Voedermiddelen!$A$4:$K$75,10,FALSE)*C70,"") ->  | D152: 0 | E152: =IF('Dec voer'!H13>0,VLOOKUP('Dec voer'!G13,Voedermiddelen!$A$4:$K$75,10,FALSE)*E70,"") -> 
B153: 0 | C153: =IF('Dec voer'!C14>0,VLOOKUP('Dec voer'!B14,Voedermiddelen!$A$4:$K$75,10,FALSE)*C71,"") ->  | D153: 0 | E153: =IF('Dec voer'!H14>0,VLOOKUP('Dec voer'!G14,Voedermiddelen!$A$4:$K$75,10,FALSE)*E71,"") -> 
B154: 0 | C154: =IF('Dec voer'!C15>0,VLOOKUP('Dec voer'!B15,Voedermiddelen!$A$4:$K$75,10,FALSE)*C72,"") ->  | D154: 0 | E154: =IF('Dec voer'!H15>0,VLOOKUP('Dec voer'!G15,Voedermiddelen!$A$4:$K$75,10,FALSE)*E72,"") -> 
B155: 0 | C155: =IF('Dec voer'!C16>0,VLOOKUP('Dec voer'!B16,Voedermiddelen!$A$4:$K$75,10,FALSE)*C73,"") ->  | D155: 0 | E155: =IF('Dec voer'!H16>0,VLOOKUP('Dec voer'!G16,Voedermiddelen!$A$4:$K$75,10,FALSE)*E73,"") -> 
B156: 0 | C156: =IF('Dec voer'!C17>0,VLOOKUP('Dec voer'!B17,Voedermiddelen!$A$4:$K$75,10,FALSE)*C74,"") ->  | D156: 0 | E156: =IF('Dec voer'!H17>0,VLOOKUP('Dec voer'!G17,Voedermiddelen!$A$4:$K$75,10,FALSE)*E74,"") -> 
B157: 0 | C157: =IF('Dec voer'!C18>0,VLOOKUP('Dec voer'!B18,Voedermiddelen!$A$4:$K$75,10,FALSE)*C75,"") ->  | D157: 0 | E157: =IF('Dec voer'!H18>0,VLOOKUP('Dec voer'!G18,Voedermiddelen!$A$4:$K$75,10,FALSE)*E75,"") -> 
B158: =B140 -> 0 | C158: =IF('Dec voer'!C20>0,VLOOKUP('Dec voer'!B20,Voedermiddelen!$A$4:$K$75,10,FALSE)*C76,"") ->  | D158: 0
B159: =B141 -> 0 | C159: =IF('Dec voer'!C21>0,VLOOKUP('Dec voer'!B21,Voedermiddelen!$A$4:$K$75,10,FALSE)*C77,"") ->  | D159: 0
B160: =B142 -> 0 | C160: =IF('Dec voer'!C22>0,VLOOKUP('Dec voer'!B22,Voedermiddelen!$A$4:$K$75,10,FALSE)*C78,"") ->  | D160: 0
A162: Totaal | C162: =SUM(C148:C160) -> 0 | E162: =SUM(E148:E160) -> 0 | G162: =(E76/0.9*'Dec voer'!M7) -> 

Sheet Dec Excretie (hidden)
A1: Veestapel
C2: ='Dec vee+melk'!C6 -> December gerealiseerd | E2: ='Dec vee+melk'!E6 -> December prognose
A5: Excretie (kg/dier/dag)
C6: N | E6: N
A7: Opname | C7: ='Dec Voeropname'!C2*'Dec Voeropname'!C7*0.001 ->  | E7: ='Dec Voeropname'!E2*'Dec Voeropname'!E7*0.001+'Dec Voeropname'!G146*0.001/'Dec vee+melk'!E2 -> 
A8: Gem opname 7 dgn | C8: =AVERAGE(C7:F7) ->  | E8: =AVERAGE(E7) -> 
A9: Productie | C9: ='Dec vee+melk'!C22*'Dec vee+melk'!C10/6.38 ->  | E9: ='Dec vee+melk'!E22*'Dec vee+melk'!E10/6.38 -> 
A10: Vastlegging | C10: =1.4/365 -> 0.003835616438 | E10: =1.4/365 -> 0.003835616438
A11: Onder de staart | C11: =C7-C9-C10 ->  | E11: =E7-E9-E10 -> 
A12: Vervluchtiging | C12: =C11*0.1175 ->  | E12: =E11*0.1175 -> 
A13: Gemeten netto excretie | C13: =C11-C12 ->  | E13: =E11-E12 -> 
C15: P | E15: P
A16: Opname | C16: ='Dec Voeropname'!C2*'Dec Voeropname'!C8/1000 ->  | E16: ='Dec Voeropname'!E2*'Dec Voeropname'!E8/1000+'Dec Voeropname'!G162*0.001/'Dec vee+melk'!E2 -> 
A17: Gem opname 7 dgn | C17: =AVERAGE(C16:F16) ->  | E17: =AVERAGE(E16) -> 
A18: Productie | C18: ='Dec vee+melk'!C22*0.9/1000 ->  | E18: ='Dec vee+melk'!E22*0.9/1000 -> 
A19: Vastlegging | C19: =0.5/365 -> 0.001369863014 | E19: =0.5/365 -> 0.001369863014
A20: Onder de staart | C20: =C16-C18-C19 ->  | E20: =E16-E18-E19 -> 
A21: Vervluchtiging
A22: Gemeten netto excretie | C22: =C20 ->  | E22: =E20 -> 
A24: N excretie per ton meetmelk (kg) | C24: =C13/'Dec vee+melk'!C21*1000 ->  | E24: =E13/'Dec vee+melk'!E21*1000 -> 
A25: P excretie per ton meetmelk (kg) | C25: =C22/'Dec vee+melk'!C21*1000 ->  | E25: =E22/'Dec vee+melk'!E21*1000 -> 

Sheet Dec kengetallen (hidden)
A1: Rantsoen
A2: Datum | C2: ='Dec voer'!B3 -> December gerealiseerd | E2: ='Dec voer'!G3 -> December prognose
A4: ='Dec Voeropname'!A2 -> DS opname/koe | C4: ='Dec Voeropname'!C2 ->  | E4: ='Dec Voeropname'!E2 -> 
A5: ='Dec Voeropname'!A3 -> VEM | C5: ='Dec Voeropname'!C3 ->  | E5: ='Dec Voeropname'!E3 -> 
A6: ='Dec Voeropname'!A4 -> DVE | C6: ='Dec Voeropname'!C4 ->  | E6: ='Dec Voeropname'!E4 -> 
A7: ='Dec Voeropname'!A5 -> OEB | C7: ='Dec Voeropname'!C5 ->  | E7: ='Dec Voeropname'!E5 -> 
A8: ='Dec Voeropname'!A6 -> RE | C8: ='Dec Voeropname'!C6 ->  | E8: ='Dec Voeropname'!E6 -> 
A9: ='Dec Voeropname'!A7 -> N | C9: ='Dec Voeropname'!C7 ->  | E9: ='Dec Voeropname'!E7 -> 
A10: ='Dec Voeropname'!A8 -> P | C10: ='Dec Voeropname'!C8 ->  | E10: ='Dec Voeropname'!E8 -> 
A12: Streefwaarde RE | C12: ='Dec voer'!H20 -> 160
A13: Streefwaarde P | C13: ='Dec voer'!H21 -> 3.6
A16: ='Dec Excretie'!A24 -> N excretie per ton meetmelk (kg) | C16: ='Dec Excretie'!C24 ->  | E16: ='Dec Excretie'!E24 -> 
A17: ='Dec Excretie'!A25 -> P excretie per ton meetmelk (kg) | C17: ='Dec Excretie'!C25 ->  | E17: ='Dec Excretie'!E25 -> 
A20: VEM dekking | C20: ='Dec Voeropname'!C35/'Dec vee+melk'!C27 ->  | E20: ='Dec Voeropname'!E35/'Dec vee+melk'!E27 -> 
A21: DVE dekking | C21: ='Dec Voeropname'!C36/'Dec vee+melk'!C28 ->  | E21: ='Dec Voeropname'!E36/'Dec vee+melk'!E28 -> 
A24: Voerefficientie kg meetmelk/kg voer (ds) | C24: ='Dec vee+melk'!C21/'Dec Voeropname'!C2 ->  | E24: ='Dec vee+melk'!E21/'Dec Voeropname'!E2 -> 
A25: kg krachtvoer per 100 kg (excl bijprod) | C25: =SUM('Dec Voeropname'!C76:C77)/('Dec vee+melk'!C21*'Dec vee+melk'!C2)*100/0.9 ->  | E25: =SUM('Dec Voeropname'!E76:E78)/('Dec vee+melk'!E21*'Dec vee+melk'!E2)*100 -> 
A28: =A12 -> Streefwaarde RE | C28: =$C$12 -> 160 | E28: =$C$12 -> 160
A29: =A13 -> Streefwaarde P | C29: =$C$13 -> 3.6 | E29: =$C$13 -> 3.6
A34: =A2 -> Datum | C34: =C2 -> December gerealiseerd | D34: =E2 -> December prognose | E34: =#REF! ->  | F34: =#REF! -> 
A35: 00:00:00
A36: DS opname/koe | C36: =C4 ->  | D36: =E4 ->  | E36: =#REF! ->  | F36: =#REF! -> 
A37: VEM | E37: =#REF! ->  | F37: =#REF! -> 
A38: DVE | E38: =#REF! ->  | F38: =#REF! -> 
A39: OEB | E39: =#REF! ->  | F39: =#REF! -> 
A40: RE | E40: =#REF! ->  | F40: =#REF! -> 
A41: N | E41: =#REF! ->  | F41: =#REF! -> 
A42: P | E42: =#REF! ->  | F42: =#REF! -> 
A43: =A15 -> 00:00:00
A44: N excretie per ton meetmelk (kg) | C44: =C16 ->  | D44: =E16 ->  | E44: =#REF! ->  | F44: =#REF! -> 
A45: P excretie per ton meetmelk (kg) | D45: =E17 ->  | E45: =#REF! ->  | F45: =#REF! -> 
A46: 00:00:00 | C46: =1000/C45/2.29 ->  | D46: =1000/D45/2.29 ->  | E46: =1000/E45/2.29 ->  | F46: =1000/F45/2.29 -> 
A49: Rantsoen
A51: Kuilgras | C51: =IF('Dec Voeropname'!$A66='Dec kengetallen'!$A51,'Dec Voeropname'!C66,"") ->  | E51: =IF('Dec Voeropname'!$A66='Dec kengetallen'!$A51,'Dec Voeropname'!E66,"") -> 
A52: Kuilgras | C52: =IF('Dec Voeropname'!$A67='Dec kengetallen'!$A52,'Dec Voeropname'!C67,"") ->  | E52: =IF('Dec Voeropname'!$A67='Dec kengetallen'!$A52,'Dec Voeropname'!E67,"") -> 
A53: Kuilgras | C53: =IF('Dec Voeropname'!$A68='Dec kengetallen'!$A53,'Dec Voeropname'!C68,"") ->  | E53: =IF('Dec Voeropname'!$A68='Dec kengetallen'!$A53,'Dec Voeropname'!E68,"") -> 
A54: Kuilgras | C54: =IF('Dec Voeropname'!$A69='Dec kengetallen'!$A54,'Dec Voeropname'!C69,"") ->  | E54: =IF('Dec Voeropname'!$A69='Dec kengetallen'!$A54,'Dec Voeropname'!E69,"") -> 
A55: Kuilgras | C55: =IF('Dec Voeropname'!$A70='Dec kengetallen'!$A55,'Dec Voeropname'!C70,"") ->  | E55: =IF('Dec Voeropname'!$A70='Dec kengetallen'!$A55,'Dec Voeropname'!E70,"") -> 
A56: Kuilgras | C56: =IF('Dec Voeropname'!$A71='Dec kengetallen'!$A56,'Dec Voeropname'!C71,"") ->  | E56: =IF('Dec Voeropname'!$A71='Dec kengetallen'!$A56,'Dec Voeropname'!E71,"") -> 
A57: Kuilgras | C57: =IF('Dec Voeropname'!$A72='Dec kengetallen'!$A57,'Dec Voeropname'!C72,"") ->  | E57: =IF('Dec Voeropname'!$A72='Dec kengetallen'!$A57,'Dec Voeropname'!E72,"") -> 
A58: Kuilgras | C58: =IF('Dec Voeropname'!$A73='Dec kengetallen'!$A58,'Dec Voeropname'!C73,"") ->  | E58: =IF('Dec Voeropname'!$A73='Dec kengetallen'!$A58,'Dec Voeropname'!E73,"") -> 
A59: Kuilgras | C59: =IF('Dec Voeropname'!$A74='Dec kengetallen'!$A59,'Dec Voeropname'!C74,"") ->  | E59: =IF('Dec Voeropname'!$A74='Dec kengetallen'!$A59,'Dec Voeropname'!E74,"") -> 
A60: Totaal kuilgras | C60: =SUM(C51:C59) -> 0 | E60: =SUM(E51:E59) -> 0
A62: Snijmais | C62: =IF('Dec Voeropname'!$A66='Dec kengetallen'!$A62,'Dec Voeropname'!C66,"") ->  | E62: =IF('Dec Voeropname'!$A66='Dec kengetallen'!$A62,'Dec Voeropname'!E66,"") -> 
A63: Snijmais | C63: =IF('Dec Voeropname'!$A67='Dec kengetallen'!$A63,'Dec Voeropname'!C67,"") ->  | E63: =IF('Dec Voeropname'!$A67='Dec kengetallen'!$A63,'Dec Voeropname'!E67,"") -> 
A64: Snijmais | C64: =IF('Dec Voeropname'!$A68='Dec kengetallen'!$A64,'Dec Voeropname'!C68,"") ->  | E64: =IF('Dec Voeropname'!$A68='Dec kengetallen'!$A64,'Dec Voeropname'!E68,"") -> 
A65: Snijmais | C65: =IF('Dec Voeropname'!$A69='Dec kengetallen'!$A65,'Dec Voeropname'!C69,"") ->  | E65: =IF('Dec Voeropname'!$A69='Dec kengetallen'!$A65,'Dec Voeropname'!E69,"") -> 
A66: Snijmais | C66: =IF('Dec Voeropname'!$A70='Dec kengetallen'!$A66,'Dec Voeropname'!C70,"") ->  | E66: =IF('Dec Voeropname'!$A70='Dec kengetallen'!$A66,'Dec Voeropname'!E70,"") -> 
A67: Snijmais | C67: =IF('Dec Voeropname'!$A71='Dec kengetallen'!$A67,'Dec Voeropname'!C71,"") ->  | E67: =IF('Dec Voeropname'!$A71='Dec kengetallen'!$A67,'Dec Voeropname'!E71,"") -> 
A68: Snijmais | C68: =IF('Dec Voeropname'!$A72='Dec kengetallen'!$A68,'Dec Voeropname'!C72,"") ->  | E68: =IF('Dec Voeropname'!$A72='Dec kengetallen'!$A68,'Dec Voeropname'!E72,"") -> 
A69: Snijmais | C69: =IF('Dec Voeropname'!$A73='Dec kengetallen'!$A69,'Dec Voeropname'!C73,"") ->  | E69: =IF('Dec Voeropname'!$A73='Dec kengetallen'!$A69,'Dec Voeropname'!E73,"") -> 
A70: Snijmais | C70: =IF('Dec Voeropname'!$A74='Dec kengetallen'!$A70,'Dec Voeropname'!C74,"") ->  | E70: =IF('Dec Voeropname'!$A74='Dec kengetallen'!$A70,'Dec Voeropname'!E74,"") -> 
A71: Totaal snijmais | C71: =SUM(C62:C70) -> 0 | E71: =SUM(E62:E70) -> 0
A73: OverigRuwvoer | C73: =IF('Dec Voeropname'!$A66='Dec kengetallen'!$A73,'Dec Voeropname'!C66,"") ->  | E73: =IF('Dec Voeropname'!$A66='Dec kengetallen'!$A73,'Dec Voeropname'!E66,"") -> 
A74: OverigRuwvoer | C74: =IF('Dec Voeropname'!$A67='Dec kengetallen'!$A74,'Dec Voeropname'!C67,"") ->  | E74: =IF('Dec Voeropname'!$A67='Dec kengetallen'!$A74,'Dec Voeropname'!E67,"") -> 
A75: OverigRuwvoer | C75: =IF('Dec Voeropname'!$A68='Dec kengetallen'!$A75,'Dec Voeropname'!C68,"") ->  | E75: =IF('Dec Voeropname'!$A68='Dec kengetallen'!$A75,'Dec Voeropname'!E68,"") -> 
A76: OverigRuwvoer | C76: =IF('Dec Voeropname'!$A69='Dec kengetallen'!$A76,'Dec Voeropname'!C69,"") ->  | E76: =IF('Dec Voeropname'!$A69='Dec kengetallen'!$A76,'Dec Voeropname'!E69,"") -> 
A77: OverigRuwvoer | C77: =IF('Dec Voeropname'!$A70='Dec kengetallen'!$A77,'Dec Voeropname'!C70,"") ->  | E77: =IF('Dec Voeropname'!$A70='Dec kengetallen'!$A77,'Dec Voeropname'!E70,"") -> 
A78: OverigRuwvoer | C78: =IF('Dec Voeropname'!$A71='Dec kengetallen'!$A78,'Dec Voeropname'!C71,"") ->  | E78: =IF('Dec Voeropname'!$A71='Dec kengetallen'!$A78,'Dec Voeropname'!E71,"") -> 
A79: OverigRuwvoer | C79: =IF('Dec Voeropname'!$A72='Dec kengetallen'!$A79,'Dec Voeropname'!C72,"") ->  | E79: =IF('Dec Voeropname'!$A72='Dec kengetallen'!$A79,'Dec Voeropname'!E72,"") -> 
A80: OverigRuwvoer | C80: =IF('Dec Voeropname'!$A73='Dec kengetallen'!$A80,'Dec Voeropname'!C73,"") ->  | E80: =IF('Dec Voeropname'!$A73='Dec kengetallen'!$A80,'Dec Voeropname'!E73,"") -> 
A81: OverigRuwvoer | C81: =IF('Dec Voeropname'!$A74='Dec kengetallen'!$A81,'Dec Voeropname'!C74,"") ->  | E81: =IF('Dec Voeropname'!$A74='Dec kengetallen'!$A81,'Dec Voeropname'!E74,"") -> 
A82: Totaal overig Ruwvoer | C82: =SUM(C73:C81) -> 0 | E82: =SUM(E73:E81) -> 0
A84: Bijproducten | C84: =IF('Dec Voeropname'!$A66='Dec kengetallen'!$A84,'Dec Voeropname'!C66,"") ->  | E84: =IF('Dec Voeropname'!$A66='Dec kengetallen'!$A84,'Dec Voeropname'!E66,"") -> 
A85: Bijproducten | C85: =IF('Dec Voeropname'!$A67='Dec kengetallen'!$A85,'Dec Voeropname'!C67,"") ->  | E85: =IF('Dec Voeropname'!$A67='Dec kengetallen'!$A85,'Dec Voeropname'!E67,"") -> 
A86: Bijproducten | C86: =IF('Dec Voeropname'!$A68='Dec kengetallen'!$A86,'Dec Voeropname'!C68,"") ->  | E86: =IF('Dec Voeropname'!$A68='Dec kengetallen'!$A86,'Dec Voeropname'!E68,"") -> 
A87: Bijproducten | C87: =IF('Dec Voeropname'!$A69='Dec kengetallen'!$A87,'Dec Voeropname'!C69,"") ->  | E87: =IF('Dec Voeropname'!$A69='Dec kengetallen'!$A87,'Dec Voeropname'!E69,"") -> 
A88: Bijproducten | C88: =IF('Dec Voeropname'!$A70='Dec kengetallen'!$A88,'Dec Voeropname'!C70,"") ->  | E88: =IF('Dec Voeropname'!$A70='Dec kengetallen'!$A88,'Dec Voeropname'!E70,"") -> 
A89: Bijproducten | C89: =IF('Dec Voeropname'!$A71='Dec kengetallen'!$A89,'Dec Voeropname'!C71,"") ->  | E89: =IF('Dec Voeropname'!$A71='Dec kengetallen'!$A89,'Dec Voeropname'!E71,"") -> 
A90: Bijproducten | C90: =IF('Dec Voeropname'!$A72='Dec kengetallen'!$A90,'Dec Voeropname'!C72,"") ->  | E90: =IF('Dec Voeropname'!$A72='Dec kengetallen'!$A90,'Dec Voeropname'!E72,"") -> 
A91: Bijproducten | C91: =IF('Dec Voeropname'!$A73='Dec kengetallen'!$A91,'Dec Voeropname'!C73,"") ->  | E91: =IF('Dec Voeropname'!$A73='Dec kengetallen'!$A91,'Dec Voeropname'!E73,"") -> 
A92: Bijproducten | C92: =IF('Dec Voeropname'!$A74='Dec kengetallen'!$A92,'Dec Voeropname'!C74,"") ->  | E92: =IF('Dec Voeropname'!$A74='Dec kengetallen'!$A92,'Dec Voeropname'!E74,"") -> 
A93: Totaal Bijproducten | C93: =SUM(C84:C92) -> 0 | E93: =SUM(E84:E92) -> 0
A95: Krachtvoer | C95: =SUM('Dec Voeropname'!C76:C77) -> 0 | E95: =SUM('Dec Voeropname'!E76:E78) -> 
A97: Vers gras | C97: ='Dec Voeropname'!C31*('Dec vee+melk'!C2+'Dec vee+melk'!C3) -> 0 | E97: ='Dec Voeropname'!E31*('Dec vee+melk'!E2+'Dec vee+melk'!E3) -> 0
A99: Totaal | C99: =C95+C93+C82+C71+C60+C97 -> 0 | E99: =E95+E93+E82+E71+E60+E97 -> 
A101: Vers gras | C101: =C97/C99 ->  | E101: =E97/E99 -> 
A102: Aandeel kuilgras | C102: =C60/C$99 ->  | E102: =E60/E$99 -> 
A103: Aandeel snijmais | C103: =C71/C$99 ->  | E103: =E71/E$99 -> 
A104: Aandeel overig ruwvoer | C104: =C82/C$99 ->  | E104: =E82/E$99 -> 
A105: Aandeel bijproducten | C105: =C93/C$99 ->  | E105: =E93/E$99 -> 
A106: Aandeel krachtvoer | C106: =C95/C$99 ->  | E106: =E95/E$99 -> 

Sheet Nov Voeropname (hidden)
A1: Gem rantsoen gehaltes (d dgn) | C1: ='Nov voer'!B3 -> November gerealiseerd | E1: ='Nov voer'!G3 -> November prognose
A2: DS opname/koe | C2: =C34 ->  | E2: =E34 -> 
A3: VEM | C3: =C12 ->  | E3: =AVERAGE(E12:E12) -> 
A4: DVE | C4: =AVERAGE(C13) ->  | M4: 1 | R4: Voedermiddelen
A5: OEB | C5: =AVERAGE(C14) ->  | M5: 2 | R5: Kuilgras
A6: RE | C6: =AVERAGE(C15) ->  | R6: Snijmais
A7: N | C7: =AVERAGE(C16) ->  | M7: Vem toeslag weidegang | O7: 1.03 | R7: OverigRuwvoer
A8: P | R8: Bijproducten
R9: Krachtvoer
A11: Rantsoen gehaltes (incl. weidegras)
A12: VEM | C12: =C35/C34 ->  | E12: =E35/E34 ->  | R12: Let op bij beperkt weiden is deze opname niet realistisch!
A13: DVE | C13: =C36/C34 ->  | E13: =E36/E34 ->  | R13: Let op VEM dekking te laag!
A14: OEB | C14: =C37 ->  | E14: =E37 -> 
A15: RE | C15: =C38/C34 ->  | E15: =E38/E34 -> 
A16: N | C16: =C39/C34 ->  | E16: =E39/E34 -> 
A17: P | C17: =C40/C34 ->  | E17: =E40/E34 -> 
A22: kg ds | C22: =C55/SUM('Nov vee+melk'!C2:C3) ->  | E22: =E55/SUM('Nov vee+melk'!E2:E3) -> 
A23: Vemopname ex weidegras | C23: =C22*C45 ->  | E23: =E22*E45 -> 
A27: VEM behoefte | C27: =IF('Nov voer'!B4=1,'Nov vee+melk'!C27*'Nov Voeropname'!O7,'Nov vee+melk'!C27) ->  | E27: =IF('Nov voer'!G4=1,'Nov vee+melk'!E27*'Nov Voeropname'!O7,'Nov vee+melk'!E27) -> 
A28: Behoefte-opname | C28: =C27-'Nov Voeropname'!C23 ->  | E28: =E27-'Nov Voeropname'!E23 -> 
C29: =C28/VLOOKUP('Nov voer'!B5,Weidegras!$A$5:$J$119,4,FALSE) ->  | E29: =E28/VLOOKUP('Nov voer'!G5,Weidegras!$A$5:$J$119,4,FALSE) -> 
C30: =IF(C29>0,C29,0) ->  | E30: =IF(E29>0,E29,0) -> 
A31: Weidegrasopname/koe | C31: =IF('Nov voer'!B4=1,C30,0) -> 0 | E31: =IF('Nov voer'!G4=1,E30,0) -> 0
A33: Rantsoenopname incl weidegras
A34: droge stof | C34: =C22+C31 ->  | E34: =E22+E31 -> 
A35: VEM | C35: =C45*C22+C31*VLOOKUP('Nov voer'!B5,Weidegras!$A$6:$J$180,4,FALSE) ->  | E35: =E45*E22+E31*VLOOKUP('Nov voer'!G5,Weidegras!$A$6:$J$180,4,FALSE) -> 
A36: DVE | C36: =C46*C22+$C$31*VLOOKUP('Nov voer'!B5,Weidegras!$A$5:$J$150,5,FALSE) ->  | E36: =E46*E22+$C$31*VLOOKUP('Nov voer'!G5,Weidegras!$A$5:$J$150,5,FALSE) -> 
A37: OEB | C37: =C47*C22+$C$31*VLOOKUP('Nov voer'!B5,Weidegras!$A$5:$J$150,6,FALSE) ->  | E37: =E22*E47+$C$31*VLOOKUP('Nov voer'!G5,Weidegras!$A$6:$J$151,6,FALSE) -> 
A38: RE | C38: =C48*C22+$C$31*VLOOKUP('Nov voer'!B5,Weidegras!$A$5:$J$150,7,FALSE) ->  | E38: =E48*E22+E31*VLOOKUP('Nov voer'!$B$5,Weidegras!$A$6:$J$181,7,FALSE) -> 
A39: N | C39: =C38/6.25 ->  | E39: =E38/6.25 -> 
A40: P | C40: =C50*C22+C31*VLOOKUP('Nov voer'!$B$5,Weidegras!$A$6:$J$183,10,FALSE) ->  | E40: =E50*E22+E31*VLOOKUP('Nov voer'!$B$5,Weidegras!$A$6:$J$183,10,FALSE) -> 
A43: Stalrantsoen gehaltes
A44: droge stof
A45: VEM | C45: =C56/C$55 ->  | E45: =E56/E$55 -> 
A46: DVE | C46: =C57/C$55*1000 ->  | E46: =E57/E$55*1000 -> 
A47: OEB | C47: =C58/C$55 ->  | E47: =E58/E$55 -> 
A48: RE | C48: =C59/C$55 -> 
A49: N | C49: =C60/C$55 -> 
A50: P | C50: =C61/C$55 -> 
A54: Stalrantsoen opname
A55: droge stof (kg) | C55: =C80 -> 0
A56: VEM | C56: =C96 -> 0
A57: DVE | C57: =C112 -> 0 | E57: =E112 -> 0
A58: OEB | C58: =C128 -> 0 | E58: =E128 -> 0
A59: RE | C59: =C144 -> 0 | E59: =E144 -> 0
A60: N | C60: =C146 -> 0 | E60: =E146 -> 0
A61: P | C61: =C162 -> 0 | E61: =E162 -> 0
A65: Drogestof opname
A66: ='Nov voer'!A9 -> 0 | B66: ='Nov voer'!B9 -> 0 | C66: =IF('Nov voer'!C9>0,VLOOKUP('Nov voer'!B9,Voedermiddelen!$A$4:$K$75,3,FALSE)*'Nov voer'!C9*(1-'Nov voer'!$B$6),"") ->  | D66: ='Nov voer'!G9 -> 0 | E66: =IF('Nov voer'!H9>0,VLOOKUP('Nov voer'!G9,Voedermiddelen!$A$4:$K$75,3,FALSE)*'Nov voer'!H9*(1-'Nov voer'!$G$6),"") -> 
A67: ='Nov voer'!A10 -> 0 | B67: ='Nov voer'!B10 -> 0 | C67: =IF('Nov voer'!C10>0,VLOOKUP('Nov voer'!B10,Voedermiddelen!$A$4:$K$75,3,FALSE)*'Nov voer'!C10*(1-'Nov voer'!$B$6),"") ->  | D67: ='Nov voer'!G10 -> 0 | E67: =IF('Nov voer'!H10>0,VLOOKUP('Nov voer'!G10,Voedermiddelen!$A$4:$K$75,3,FALSE)*'Nov voer'!H10*(1-'Nov voer'!$G$6),"") -> 
A68: ='Nov voer'!A11 -> 0 | B68: ='Nov voer'!B11 -> 0 | C68: =IF('Nov voer'!C11>0,VLOOKUP('Nov voer'!B11,Voedermiddelen!$A$4:$K$75,3,FALSE)*'Nov voer'!C11*(1-'Nov voer'!$B$6),"") ->  | D68: ='Nov voer'!G11 -> 0 | E68: =IF('Nov voer'!H11>0,VLOOKUP('Nov voer'!G11,Voedermiddelen!$A$4:$K$75,3,FALSE)*'Nov voer'!H11*(1-'Nov voer'!$G$6),"") -> 
A69: ='Nov voer'!A12 -> 0 | B69: ='Nov voer'!B12 -> 0 | C69: =IF('Nov voer'!C12>0,VLOOKUP('Nov voer'!B12,Voedermiddelen!$A$4:$K$75,3,FALSE)*'Nov voer'!C12*(1-'Nov voer'!$B$6),"") ->  | D69: ='Nov voer'!G12 -> 0 | E69: =IF('Nov voer'!H12>0,VLOOKUP('Nov voer'!G12,Voedermiddelen!$A$4:$K$75,3,FALSE)*'Nov voer'!H12*(1-'Nov voer'!$G$6),"") -> 
A70: ='Nov voer'!A13 -> 0 | B70: ='Nov voer'!B13 -> 0 | C70: =IF('Nov voer'!C13>0,VLOOKUP('Nov voer'!B13,Voedermiddelen!$A$4:$K$75,3,FALSE)*'Nov voer'!C13*(1-'Nov voer'!$B$6),"") ->  | D70: ='Nov voer'!G13 -> 0 | E70: =IF('Nov voer'!H13>0,VLOOKUP('Nov voer'!G13,Voedermiddelen!$A$4:$K$75,3,FALSE)*'Nov voer'!H13*(1-'Nov voer'!$G$6),"") -> 
A71: ='Nov voer'!A14 -> 0 | B71: ='Nov voer'!B14 -> 0 | C71: =IF('Nov voer'!C14>0,VLOOKUP('Nov voer'!B14,Voedermiddelen!$A$4:$K$75,3,FALSE)*'Nov voer'!C14*(1-'Nov voer'!$B$6),"") ->  | D71: ='Nov voer'!G14 -> 0 | E71: =IF('Nov voer'!H14>0,VLOOKUP('Nov voer'!G14,Voedermiddelen!$A$4:$K$75,3,FALSE)*'Nov voer'!H14*(1-'Nov voer'!$G$6),"") -> 
A72: ='Nov voer'!A15 -> 0 | B72: ='Nov voer'!B15 -> 0 | C72: =IF('Nov voer'!C15>0,VLOOKUP('Nov voer'!B15,Voedermiddelen!$A$4:$K$75,3,FALSE)*'Nov voer'!C15*(1-'Nov voer'!$B$6),"") ->  | D72: ='Nov voer'!G15 -> 0 | E72: =IF('Nov voer'!H15>0,VLOOKUP('Nov voer'!G15,Voedermiddelen!$A$4:$K$75,3,FALSE)*'Nov voer'!H15*(1-'Nov voer'!$G$6),"") -> 
A73: ='Nov voer'!A16 -> 0 | B73: ='Nov voer'!B16 -> 0 | C73: =IF('Nov voer'!C16>0,VLOOKUP('Nov voer'!B16,Voedermiddelen!$A$4:$K$75,3,FALSE)*'Nov voer'!C16*(1-'Nov voer'!$B$6),"") ->  | D73: ='Nov voer'!G16 -> 0 | E73: =IF('Nov voer'!H16>0,VLOOKUP('Nov voer'!G16,Voedermiddelen!$A$4:$K$75,3,FALSE)*'Nov voer'!H16*(1-'Nov voer'!$G$6),"") -> 
A74: ='Nov voer'!A17 -> 0 | B74: ='Nov voer'!B17 -> 0 | C74: =IF('Nov voer'!C17>0,VLOOKUP('Nov voer'!B17,Voedermiddelen!$A$4:$K$75,3,FALSE)*'Nov voer'!C17*(1-'Nov voer'!$B$6),"") ->  | D74: ='Nov voer'!G17 -> 0 | E74: =IF('Nov voer'!H17>0,VLOOKUP('Nov voer'!G17,Voedermiddelen!$A$4:$K$75,3,FALSE)*'Nov voer'!H17*(1-'Nov voer'!$G$6),"") -> 
B75: ='Nov voer'!B18 -> 0 | C75: =IF('Nov voer'!C18>0,VLOOKUP('Nov voer'!B18,Voedermiddelen!$A$4:$K$75,3,FALSE)*'Nov voer'!C18*(1-'Nov voer'!$B$6),"") ->  | D75: ='Nov voer'!G18 -> 0 | E75: =IF('Nov voer'!H18>0,VLOOKUP('Nov voer'!G18,Voedermiddelen!$A$4:$K$75,3,FALSE)*'Nov voer'!H18*(1-'Nov voer'!$G$6),"") -> 
B76: ='Nov voer'!B20 -> 0 | C76: =IF('Nov voer'!C20>0,VLOOKUP('Nov voer'!B20,Voedermiddelen!$A$4:$K$75,3,FALSE)*'Nov voer'!C20*(1-'Nov voer'!$B$6),"") ->  | E76: ='Nov voer'!H22*'Nov vee+melk'!E15/100*0.9 -> 
B77: ='Nov voer'!B21 -> 0 | C77: =IF('Nov voer'!C21>0,VLOOKUP('Nov voer'!B21,Voedermiddelen!$A$4:$K$75,3,FALSE)*'Nov voer'!C21*(1-'Nov voer'!$B$6),"") -> 
B78: ='Nov voer'!B22 -> 0 | C78: =IF('Nov voer'!C22>0,VLOOKUP('Nov voer'!B22,Voedermiddelen!$A$4:$K$75,3,FALSE)*'Nov voer'!C22*(1-'Nov voer'!$B$6),"") -> 
A80: Totaal | C80: =SUM(C66:C77) -> 0 | E80: =SUM(E66:E78) -> 
A82: VEM | B82: =B66 -> 0 | C82: =IF('Nov voer'!C9>0,VLOOKUP('Nov voer'!B9,Voedermiddelen!$A$4:$K$75,4,FALSE)*C66,"") ->  | D82: =D66 -> 0 | E82: =IF('Nov voer'!H9>0,VLOOKUP('Nov voer'!G9,Voedermiddelen!$A$4:$K$75,4,FALSE)*E66,"") -> 
B83: =B67 -> 0 | C83: =IF('Nov voer'!C10>0,VLOOKUP('Nov voer'!B10,Voedermiddelen!$A$4:$K$75,4,FALSE)*C67,"") ->  | D83: 0 | E83: =IF('Nov voer'!H10>0,VLOOKUP('Nov voer'!G10,Voedermiddelen!$A$4:$K$75,4,FALSE)*E67,"") -> 
B84: 0 | C84: =IF('Nov voer'!C11>0,VLOOKUP('Nov voer'!B11,Voedermiddelen!$A$4:$K$75,4,FALSE)*C68,"") ->  | D84: 0 | E84: =IF('Nov voer'!H11>0,VLOOKUP('Nov voer'!G11,Voedermiddelen!$A$4:$K$75,4,FALSE)*E68,"") -> 
B85: 0 | C85: =IF('Nov voer'!C12>0,VLOOKUP('Nov voer'!B12,Voedermiddelen!$A$4:$K$75,4,FALSE)*C69,"") ->  | D85: 0 | E85: =IF('Nov voer'!H12>0,VLOOKUP('Nov voer'!G12,Voedermiddelen!$A$4:$K$75,4,FALSE)*E69,"") -> 
B86: 0 | C86: =IF('Nov voer'!C13>0,VLOOKUP('Nov voer'!B13,Voedermiddelen!$A$4:$K$75,4,FALSE)*C70,"") ->  | D86: 0 | E86: =IF('Nov voer'!H13>0,VLOOKUP('Nov voer'!G13,Voedermiddelen!$A$4:$K$75,4,FALSE)*E70,"") -> 
B87: 0 | C87: =IF('Nov voer'!C14>0,VLOOKUP('Nov voer'!B14,Voedermiddelen!$A$4:$K$75,4,FALSE)*C71,"") ->  | D87: 0 | E87: =IF('Nov voer'!H14>0,VLOOKUP('Nov voer'!G14,Voedermiddelen!$A$4:$K$75,4,FALSE)*E71,"") -> 
B88: 0 | C88: =IF('Nov voer'!C15>0,VLOOKUP('Nov voer'!B15,Voedermiddelen!$A$4:$K$75,4,FALSE)*C72,"") ->  | D88: 0 | E88: =IF('Nov voer'!H15>0,VLOOKUP('Nov voer'!G15,Voedermiddelen!$A$4:$K$75,4,FALSE)*E72,"") -> 
B89: 0 | C89: =IF('Nov voer'!C16>0,VLOOKUP('Nov voer'!B16,Voedermiddelen!$A$4:$K$75,4,FALSE)*C73,"") ->  | D89: 0 | E89: =IF('Nov voer'!H16>0,VLOOKUP('Nov voer'!G16,Voedermiddelen!$A$4:$K$75,4,FALSE)*E73,"") -> 
B90: 0 | C90: =IF('Nov voer'!C17>0,VLOOKUP('Nov voer'!B17,Voedermiddelen!$A$4:$K$75,4,FALSE)*C74,"") ->  | D90: 0 | E90: =IF('Nov voer'!H17>0,VLOOKUP('Nov voer'!G17,Voedermiddelen!$A$4:$K$75,4,FALSE)*E74,"") -> 
B91: 0 | C91: =IF('Nov voer'!C18>0,VLOOKUP('Nov voer'!B18,Voedermiddelen!$A$4:$K$75,4,FALSE)*C75,"") ->  | D91: 0 | E91: =IF('Nov voer'!H18>0,VLOOKUP('Nov voer'!G18,Voedermiddelen!$A$4:$K$75,4,FALSE)*E75,"") -> 
B92: 0 | C92: =IF('Nov voer'!C20>0,VLOOKUP('Nov voer'!B20,Voedermiddelen!$A$4:$K$75,4,FALSE)*C76,"") ->  | D92: 0 | E92: =E76*1000 -> 
B93: 0 | C93: =IF('Nov voer'!C21>0,VLOOKUP('Nov voer'!B21,Voedermiddelen!$A$4:$K$75,4,FALSE)*C77,"") ->  | D93: 0
B94: 0 | C94: =IF('Nov voer'!C22>0,VLOOKUP('Nov voer'!B22,Voedermiddelen!$A$4:$K$75,4,FALSE)*C78,"") ->  | D94: 0
A96: Totaal | C96: =SUM(C82:C93) -> 0 | E96: =SUM(E82:E94) -> 
A98: DVE | B98: =B82 -> 0 | C98: =IF('Nov voer'!C9>0,VLOOKUP('Nov voer'!B9,Voedermiddelen!$A$4:$K$75,5,FALSE)*C66,"") ->  | D98: =D82 -> 0 | E98: =IF('Nov voer'!H9>0,VLOOKUP('Nov voer'!G9,[1]Voedermiddelen!$A$4:$K$75,5,FALSE)*E66,"") -> 
B99: =B83 -> 0 | C99: =IF('Nov voer'!C10>0,VLOOKUP('Nov voer'!B10,Voedermiddelen!$A$4:$K$75,5,FALSE)*C67,"") ->  | D99: 0 | E99: =IF('Nov voer'!H10>0,VLOOKUP('Nov voer'!G10,[1]Voedermiddelen!$A$4:$K$75,5,FALSE)*E67,"") -> 
B100: 0 | C100: =IF('Nov voer'!C11>0,VLOOKUP('Nov voer'!B11,Voedermiddelen!$A$4:$K$75,5,FALSE)*C68,"") ->  | D100: 0 | E100: =IF('Nov voer'!H11>0,VLOOKUP('Nov voer'!G11,[1]Voedermiddelen!$A$4:$K$75,5,FALSE)*E68,"") -> 
B101: 0 | C101: =IF('Nov voer'!C12>0,VLOOKUP('Nov voer'!B12,Voedermiddelen!$A$4:$K$75,5,FALSE)*C69,"") ->  | D101: 0 | E101: =IF('Nov voer'!H12>0,VLOOKUP('Nov voer'!G12,[1]Voedermiddelen!$A$4:$K$75,5,FALSE)*E69,"") -> 
B102: 0 | C102: =IF('Nov voer'!C13>0,VLOOKUP('Nov voer'!B13,Voedermiddelen!$A$4:$K$75,5,FALSE)*C70,"") ->  | D102: 0 | E102: =IF('Nov voer'!H13>0,VLOOKUP('Nov voer'!G13,[1]Voedermiddelen!$A$4:$K$75,5,FALSE)*E70,"") -> 
B103: 0 | C103: =IF('Nov voer'!C14>0,VLOOKUP('Nov voer'!B14,Voedermiddelen!$A$4:$K$75,5,FALSE)*C71,"") ->  | D103: 0 | E103: =IF('Nov voer'!H14>0,VLOOKUP('Nov voer'!G14,[1]Voedermiddelen!$A$4:$K$75,5,FALSE)*E71,"") -> 
B104: 0 | C104: =IF('Nov voer'!C15>0,VLOOKUP('Nov voer'!B15,Voedermiddelen!$A$4:$K$75,5,FALSE)*C72,"") ->  | D104: 0 | E104: =IF('Nov voer'!H15>0,VLOOKUP('Nov voer'!G15,[1]Voedermiddelen!$A$4:$K$75,5,FALSE)*E72,"") -> 
B105: 0 | C105: =IF('Nov voer'!C16>0,VLOOKUP('Nov voer'!B16,Voedermiddelen!$A$4:$K$75,5,FALSE)*C73,"") ->  | D105: 0 | E105: =IF('Nov voer'!H16>0,VLOOKUP('Nov voer'!G16,[1]Voedermiddelen!$A$4:$K$75,5,FALSE)*E73,"") -> 
B106: 0 | C106: =IF('Nov voer'!C17>0,VLOOKUP('Nov voer'!B17,Voedermiddelen!$A$4:$K$75,5,FALSE)*C74,"") ->  | D106: 0 | E106: =IF('Nov voer'!H17>0,VLOOKUP('Nov voer'!G17,[1]Voedermiddelen!$A$4:$K$75,5,FALSE)*E74,"") -> 
B107: 0 | C107: =IF('Nov voer'!C18>0,VLOOKUP('Nov voer'!B18,Voedermiddelen!$A$4:$K$75,5,FALSE)*C75,"") ->  | D107: 0 | E107: =IF('Nov voer'!H18>0,VLOOKUP('Nov voer'!G18,[1]Voedermiddelen!$A$4:$K$75,5,FALSE)*E75,"") -> 
B108: 0 | C108: =IF('Nov voer'!C20>0,VLOOKUP('Nov voer'!B20,Voedermiddelen!$A$4:$K$75,5,FALSE)*C76,"") ->  | D108: 0
B109: 0 | C109: =IF('Nov voer'!C21>0,VLOOKUP('Nov voer'!B21,Voedermiddelen!$A$4:$K$75,5,FALSE)*C77,"") ->  | D109: 0
B110: 0 | C110: =IF('Nov voer'!C22>0,VLOOKUP('Nov voer'!B22,Voedermiddelen!$A$4:$K$75,5,FALSE)*C78,"") ->  | D110: 0
A112: Totaal | C112: =SUM(C98:C110)/1000 -> 0 | E112: =SUM(E98:E110)/1000 -> 0
A114: OEB | B114: =B98 -> 0 | C114: =IF('Nov voer'!C9>0,VLOOKUP('Nov voer'!B9,Voedermiddelen!$A$4:$K$75,6,FALSE)*C66,"") ->  | D114: =D98 -> 0 | E114: =IF('Nov voer'!H9>0,VLOOKUP('Nov voer'!G9,[1]Voedermiddelen!$A$4:$K$75,6,FALSE)*E66,"") -> 
B115: =B99 -> 0 | C115: =IF('Nov voer'!C10>0,VLOOKUP('Nov voer'!B10,Voedermiddelen!$A$4:$K$75,6,FALSE)*C67,"") ->  | D115: 0 | E115: =IF('Nov voer'!H10>0,VLOOKUP('Nov voer'!G10,[1]Voedermiddelen!$A$4:$K$75,6,FALSE)*E67,"") -> 
B116: 0 | C116: =IF('Nov voer'!C11>0,VLOOKUP('Nov voer'!B11,Voedermiddelen!$A$4:$K$75,6,FALSE)*C68,"") ->  | D116: 0 | E116: =IF('Nov voer'!H11>0,VLOOKUP('Nov voer'!G11,[1]Voedermiddelen!$A$4:$K$75,6,FALSE)*E68,"") -> 
B117: 0 | C117: =IF('Nov voer'!C12>0,VLOOKUP('Nov voer'!B12,Voedermiddelen!$A$4:$K$75,6,FALSE)*C69,"") ->  | D117: 0 | E117: =IF('Nov voer'!H12>0,VLOOKUP('Nov voer'!G12,[1]Voedermiddelen!$A$4:$K$75,6,FALSE)*E69,"") -> 
B118: 0 | C118: =IF('Nov voer'!C13>0,VLOOKUP('Nov voer'!B13,Voedermiddelen!$A$4:$K$75,6,FALSE)*C70,"") ->  | D118: 0 | E118: =IF('Nov voer'!H13>0,VLOOKUP('Nov voer'!G13,[1]Voedermiddelen!$A$4:$K$75,6,FALSE)*E70,"") -> 
B119: 0 | C119: =IF('Nov voer'!C14>0,VLOOKUP('Nov voer'!B14,Voedermiddelen!$A$4:$K$75,6,FALSE)*C71,"") ->  | D119: 0 | E119: =IF('Nov voer'!H14>0,VLOOKUP('Nov voer'!G14,[1]Voedermiddelen!$A$4:$K$75,6,FALSE)*E71,"") -> 
B120: 0 | C120: =IF('Nov voer'!C15>0,VLOOKUP('Nov voer'!B15,Voedermiddelen!$A$4:$K$75,6,FALSE)*C72,"") ->  | D120: 0 | E120: =IF('Nov voer'!H15>0,VLOOKUP('Nov voer'!G15,[1]Voedermiddelen!$A$4:$K$75,6,FALSE)*E72,"") -> 
B121: 0 | C121: =IF('Nov voer'!C16>0,VLOOKUP('Nov voer'!B16,Voedermiddelen!$A$4:$K$75,6,FALSE)*C73,"") ->  | D121: 0 | E121: =IF('Nov voer'!H16>0,VLOOKUP('Nov voer'!G16,[1]Voedermiddelen!$A$4:$K$75,6,FALSE)*E73,"") -> 
B122: 0 | C122: =IF('Nov voer'!C17>0,VLOOKUP('Nov voer'!B17,Voedermiddelen!$A$4:$K$75,6,FALSE)*C74,"") ->  | D122: 0 | E122: =IF('Nov voer'!H17>0,VLOOKUP('Nov voer'!G17,[1]Voedermiddelen!$A$4:$K$75,6,FALSE)*E74,"") -> 
B123: 0 | C123: =IF('Nov voer'!C18>0,VLOOKUP('Nov voer'!B18,Voedermiddelen!$A$4:$K$75,6,FALSE)*C75,"") ->  | D123: 0 | E123: =IF('Nov voer'!H18>0,VLOOKUP('Nov voer'!G18,[1]Voedermiddelen!$A$4:$K$75,6,FALSE)*E75,"") -> 
B124: 0 | C124: =IF('Nov voer'!C20>0,VLOOKUP('Nov voer'!B20,Voedermiddelen!$A$4:$K$75,6,FALSE)*C76,"") ->  | D124: 0
B125: 0 | C125: =IF('Nov voer'!C21>0,VLOOKUP('Nov voer'!B21,Voedermiddelen!$A$4:$K$75,6,FALSE)*C77,"") ->  | D125: 0
B126: 0 | C126: =IF('Nov voer'!C22>0,VLOOKUP('Nov voer'!B22,Voedermiddelen!$A$4:$K$75,6,FALSE)*C78,"") ->  | D126: 0
A128: Totaal | C128: =SUM(C114:C126) -> 0 | E128: =SUM(E114:E126) -> 0
A130: RE | B130: =B114 -> 0 | C130: =IF('Nov voer'!C9>0,VLOOKUP('Nov voer'!B9,Voedermiddelen!$A$4:$K$75,7,FALSE)*C66,"") ->  | D130: =D114 -> 0 | E130: =IF('Nov voer'!H9>0,VLOOKUP('Nov voer'!G9,Voedermiddelen!$A$4:$K$75,7,FALSE)*E66,"") -> 
B131: =B115 -> 0 | C131: =IF('Nov voer'!C10>0,VLOOKUP('Nov voer'!B10,Voedermiddelen!$A$4:$K$75,7,FALSE)*C67,"") ->  | D131: 0 | E131: =IF('Nov voer'!H10>0,VLOOKUP('Nov voer'!G10,Voedermiddelen!$A$4:$K$75,7,FALSE)*E67,"") -> 
B132: 0 | C132: =IF('Nov voer'!C11>0,VLOOKUP('Nov voer'!B11,Voedermiddelen!$A$4:$K$75,7,FALSE)*C68,"") ->  | D132: 0 | E132: =IF('Nov voer'!H11>0,VLOOKUP('Nov voer'!G11,Voedermiddelen!$A$4:$K$75,7,FALSE)*E68,"") -> 
B133: 0 | C133: =IF('Nov voer'!C12>0,VLOOKUP('Nov voer'!B12,Voedermiddelen!$A$4:$K$75,7,FALSE)*C69,"") ->  | D133: 0 | E133: =IF('Nov voer'!H12>0,VLOOKUP('Nov voer'!G12,Voedermiddelen!$A$4:$K$75,7,FALSE)*E69,"") -> 
B134: 0 | C134: =IF('Nov voer'!C13>0,VLOOKUP('Nov voer'!B13,Voedermiddelen!$A$4:$K$75,7,FALSE)*C70,"") ->  | D134: 0 | E134: =IF('Nov voer'!H13>0,VLOOKUP('Nov voer'!G13,Voedermiddelen!$A$4:$K$75,7,FALSE)*E70,"") -> 
B135: 0 | C135: =IF('Nov voer'!C14>0,VLOOKUP('Nov voer'!B14,Voedermiddelen!$A$4:$K$75,7,FALSE)*C71,"") ->  | D135: 0 | E135: =IF('Nov voer'!H14>0,VLOOKUP('Nov voer'!G14,Voedermiddelen!$A$4:$K$75,7,FALSE)*E71,"") -> 
B136: 0 | C136: =IF('Nov voer'!C15>0,VLOOKUP('Nov voer'!B15,Voedermiddelen!$A$4:$K$75,7,FALSE)*C72,"") ->  | D136: 0 | E136: =IF('Nov voer'!H15>0,VLOOKUP('Nov voer'!G15,Voedermiddelen!$A$4:$K$75,7,FALSE)*E72,"") -> 
B137: 0 | C137: =IF('Nov voer'!C16>0,VLOOKUP('Nov voer'!B16,Voedermiddelen!$A$4:$K$75,7,FALSE)*C73,"") ->  | D137: 0 | E137: =IF('Nov voer'!H16>0,VLOOKUP('Nov voer'!G16,Voedermiddelen!$A$4:$K$75,7,FALSE)*E73,"") -> 
B138: 0 | C138: =IF('Nov voer'!C17>0,VLOOKUP('Nov voer'!B17,Voedermiddelen!$A$4:$K$75,7,FALSE)*C74,"") ->  | D138: 0 | E138: =IF('Nov voer'!H17>0,VLOOKUP('Nov voer'!G17,Voedermiddelen!$A$4:$K$75,7,FALSE)*E74,"") -> 
B139: 0 | C139: =IF('Nov voer'!C18>0,VLOOKUP('Nov voer'!B18,Voedermiddelen!$A$4:$K$75,7,FALSE)*C75,"") ->  | D139: 0 | E139: =IF('Nov voer'!H18>0,VLOOKUP('Nov voer'!G18,Voedermiddelen!$A$4:$K$75,7,FALSE)*E75,"") -> 
B140: 0 | C140: =IF('Nov voer'!C20>0,VLOOKUP('Nov voer'!B20,Voedermiddelen!$A$4:$K$75,7,FALSE)*C76,"") ->  | D140: 0
B141: 0 | C141: =IF('Nov voer'!C21>0,VLOOKUP('Nov voer'!B21,Voedermiddelen!$A$4:$K$75,7,FALSE)*C77,"") ->  | D141: 0
B142: =B126 -> 0 | C142: =IF('Nov voer'!C22>0,VLOOKUP('Nov voer'!B22,[1]Voedermiddelen!$A$4:$K$75,7,FALSE)*C77,"") ->  | D142: 0
A144: Totaal | C144: =SUM(C130:C142) -> 0 | E144: =SUM(E130:E142) -> 0
A146: N opname | C146: =C144/6.25 -> 0 | E146: =E144/6.25 -> 0 | G146: =(E76/0.9*'Nov voer'!M6/6.25) -> 
A148: P | B148: =B130 -> 0 | C148: =IF('Nov voer'!C9>0,VLOOKUP('Nov voer'!B9,Voedermiddelen!$A$4:$K$75,10,FALSE)*C66,"") ->  | D148: =D130 -> 0 | E148: =IF('Nov voer'!H9>0,VLOOKUP('Nov voer'!G9,Voedermiddelen!$A$4:$K$75,10,FALSE)*E66,"") -> 
B149: =B131 -> 0 | C149: =IF('Nov voer'!C10>0,VLOOKUP('Nov voer'!B10,Voedermiddelen!$A$4:$K$75,10,FALSE)*C67,"") ->  | D149: 0 | E149: =IF('Nov voer'!H10>0,VLOOKUP('Nov voer'!G10,Voedermiddelen!$A$4:$K$75,10,FALSE)*E67,"") -> 
B150: 0 | C150: =IF('Nov voer'!C11>0,VLOOKUP('Nov voer'!B11,Voedermiddelen!$A$4:$K$75,10,FALSE)*C68,"") ->  | D150: 0 | E150: =IF('Nov voer'!H11>0,VLOOKUP('Nov voer'!G11,Voedermiddelen!$A$4:$K$75,10,FALSE)*E68,"") -> 
B151: 0 | C151: =IF('Nov voer'!C12>0,VLOOKUP('Nov voer'!B12,Voedermiddelen!$A$4:$K$75,10,FALSE)*C69,"") ->  | D151: 0 | E151: =IF('Nov voer'!H12>0,VLOOKUP('Nov voer'!G12,Voedermiddelen!$A$4:$K$75,10,FALSE)*E69,"") -> 
B152: 0 | C152: =IF('Nov voer'!C13>0,VLOOKUP('Nov voer'!B13,Voedermiddelen!$A$4:$K$75,10,FALSE)*C70,"") ->  | D152: 0 | E152: =IF('Nov voer'!H13>0,VLOOKUP('Nov voer'!G13,Voedermiddelen!$A$4:$K$75,10,FALSE)*E70,"") -> 
B153: 0 | C153: =IF('Nov voer'!C14>0,VLOOKUP('Nov voer'!B14,Voedermiddelen!$A$4:$K$75,10,FALSE)*C71,"") ->  | D153: 0 | E153: =IF('Nov voer'!H14>0,VLOOKUP('Nov voer'!G14,Voedermiddelen!$A$4:$K$75,10,FALSE)*E71,"") -> 
B154: 0 | C154: =IF('Nov voer'!C15>0,VLOOKUP('Nov voer'!B15,Voedermiddelen!$A$4:$K$75,10,FALSE)*C72,"") ->  | D154: 0 | E154: =IF('Nov voer'!H15>0,VLOOKUP('Nov voer'!G15,Voedermiddelen!$A$4:$K$75,10,FALSE)*E72,"") -> 
B155: 0 | C155: =IF('Nov voer'!C16>0,VLOOKUP('Nov voer'!B16,Voedermiddelen!$A$4:$K$75,10,FALSE)*C73,"") ->  | D155: 0 | E155: =IF('Nov voer'!H16>0,VLOOKUP('Nov voer'!G16,Voedermiddelen!$A$4:$K$75,10,FALSE)*E73,"") -> 
B156: 0 | C156: =IF('Nov voer'!C17>0,VLOOKUP('Nov voer'!B17,Voedermiddelen!$A$4:$K$75,10,FALSE)*C74,"") ->  | D156: 0 | E156: =IF('Nov voer'!H17>0,VLOOKUP('Nov voer'!G17,Voedermiddelen!$A$4:$K$75,10,FALSE)*E74,"") -> 
B157: 0 | C157: =IF('Nov voer'!C18>0,VLOOKUP('Nov voer'!B18,Voedermiddelen!$A$4:$K$75,10,FALSE)*C75,"") ->  | D157: 0 | E157: =IF('Nov voer'!H18>0,VLOOKUP('Nov voer'!G18,Voedermiddelen!$A$4:$K$75,10,FALSE)*E75,"") -> 
B158: =B140 -> 0 | C158: =IF('Nov voer'!C20>0,VLOOKUP('Nov voer'!B20,Voedermiddelen!$A$4:$K$75,10,FALSE)*C76,"") ->  | D158: 0
B159: =B141 -> 0 | C159: =IF('Nov voer'!C21>0,VLOOKUP('Nov voer'!B21,Voedermiddelen!$A$4:$K$75,10,FALSE)*C77,"") ->  | D159: 0
B160: =B142 -> 0 | C160: =IF('Nov voer'!C22>0,VLOOKUP('Nov voer'!B22,Voedermiddelen!$A$4:$K$75,10,FALSE)*C78,"") ->  | D160: 0
A162: Totaal | C162: =SUM(C148:C160) -> 0 | E162: =SUM(E148:E160) -> 0 | G162: =(E76/0.9*'Nov voer'!M7) -> 

Sheet Nov Excretie (hidden)
A1: Veestapel
C2: ='Nov vee+melk'!C6 -> November gerealiseerd | E2: ='Nov vee+melk'!E6 -> November prognose
A5: Excretie (kg/dier/dag)
C6: N | E6: N
A7: Opname | C7: ='Nov Voeropname'!C2*'Nov Voeropname'!C7*0.001 ->  | E7: ='Nov Voeropname'!E2*'Nov Voeropname'!E7*0.001+'Nov Voeropname'!G146*0.001/'Nov vee+melk'!E2 -> 
A8: Gem opname 7 dgn | C8: =AVERAGE(C7:F7) ->  | E8: =AVERAGE(E7) -> 
A9: Productie | C9: ='Nov vee+melk'!C22*'Nov vee+melk'!C10/6.38 ->  | E9: ='Nov vee+melk'!E22*'Nov vee+melk'!E10/6.38 -> 
A10: Vastlegging | C10: =1.4/365 -> 0.003835616438 | E10: =1.4/365 -> 0.003835616438
A11: Onder de staart | C11: =C7-C9-C10 ->  | E11: =E7-E9-E10 -> 
A12: Vervluchtiging | C12: =C11*0.1175 ->  | E12: =E11*0.1175 -> 
A13: Gemeten netto excretie | C13: =C11-C12 ->  | E13: =E11-E12 -> 
C15: P | E15: P
A16: Opname | C16: ='Nov Voeropname'!C2*'Nov Voeropname'!C8/1000 ->  | E16: ='Nov Voeropname'!E2*'Nov Voeropname'!E8/1000+'Nov Voeropname'!G162*0.001/'Nov vee+melk'!E2 -> 
A17: Gem opname 7 dgn | C17: =AVERAGE(C16:F16) ->  | E17: =AVERAGE(E16) -> 
A18: Productie | C18: ='Nov vee+melk'!C22*0.9/1000 ->  | E18: ='Nov vee+melk'!E22*0.9/1000 -> 
A19: Vastlegging | C19: =0.5/365 -> 0.001369863014 | E19: =0.5/365 -> 0.001369863014
A20: Onder de staart | C20: =C16-C18-C19 ->  | E20: =E16-E18-E19 -> 
A21: Vervluchtiging
A22: Gemeten netto excretie | C22: =C20 ->  | E22: =E20 -> 
A24: N excretie per ton meetmelk (kg) | C24: =C13/'Nov vee+melk'!C21*1000 ->  | E24: =E13/'Nov vee+melk'!E21*1000 -> 
A25: P excretie per ton meetmelk (kg) | C25: =C22/'Nov vee+melk'!C21*1000 ->  | E25: =E22/'Nov vee+melk'!E21*1000 -> 

Sheet Nov kengetallen (hidden)
A1: Rantsoen
A2: Datum | C2: ='Nov voer'!B3 -> November gerealiseerd | E2: ='Nov voer'!G3 -> November prognose
A4: ='Nov Voeropname'!A2 -> DS opname/koe | C4: ='Nov Voeropname'!C2 ->  | E4: ='Nov Voeropname'!E2 -> 
A5: ='Nov Voeropname'!A3 -> VEM | C5: ='Nov Voeropname'!C3 ->  | E5: ='Nov Voeropname'!E3 -> 
A6: ='Nov Voeropname'!A4 -> DVE | C6: ='Nov Voeropname'!C4 ->  | E6: ='Nov Voeropname'!E4 -> 
A7: ='Nov Voeropname'!A5 -> OEB | C7: ='Nov Voeropname'!C5 ->  | E7: ='Nov Voeropname'!E5 -> 
A8: ='Nov Voeropname'!A6 -> RE | C8: ='Nov Voeropname'!C6 ->  | E8: ='Nov Voeropname'!E6 -> 
A9: ='Nov Voeropname'!A7 -> N | C9: ='Nov Voeropname'!C7 ->  | E9: ='Nov Voeropname'!E7 -> 
A10: ='Nov Voeropname'!A8 -> P | C10: ='Nov Voeropname'!C8 ->  | E10: ='Nov Voeropname'!E8 -> 
A12: Streefwaarde RE | C12: ='Nov voer'!H20 -> 160
A13: Streefwaarde P | C13: ='Nov voer'!H21 -> 3.6
A16: ='Nov Excretie'!A24 -> N excretie per ton meetmelk (kg) | C16: ='Nov Excretie'!C24 ->  | E16: ='Nov Excretie'!E24 -> 
A17: ='Nov Excretie'!A25 -> P excretie per ton meetmelk (kg) | C17: ='Nov Excretie'!C25 ->  | E17: ='Nov Excretie'!E25 -> 
A20: VEM dekking | C20: ='Nov Voeropname'!C35/'Nov vee+melk'!C27 ->  | E20: ='Nov Voeropname'!E35/'Nov vee+melk'!E27 -> 
A21: DVE dekking | C21: ='Nov Voeropname'!C36/'Nov vee+melk'!C28 ->  | E21: ='Nov Voeropname'!E36/'Nov vee+melk'!E28 -> 
A24: Voerefficientie kg meetmelk/kg voer (ds) | C24: ='Nov vee+melk'!C21/'Nov Voeropname'!C2 ->  | E24: ='Nov vee+melk'!E21/'Nov Voeropname'!E2 -> 
A25: kg krachtvoer per 100 kg (excl bijprod) | C25: =SUM('Nov Voeropname'!C76:C77)/('Nov vee+melk'!C21*'Nov vee+melk'!C2)*100/0.9 ->  | E25: =SUM('Nov Voeropname'!E76:E78)/('Nov vee+melk'!E21*'Nov vee+melk'!E2)*100 -> 
A28: =A12 -> Streefwaarde RE | C28: =$C$12 -> 160 | E28: =$C$12 -> 160
A29: =A13 -> Streefwaarde P | C29: =$C$13 -> 3.6 | E29: =$C$13 -> 3.6
A34: =A2 -> Datum | C34: =C2 -> November gerealiseerd | D34: =E2 -> November prognose | E34: =#REF! ->  | F34: =#REF! -> 
A35: 00:00:00
A36: DS opname/koe | C36: =C4 ->  | D36: =E4 ->  | E36: =#REF! ->  | F36: =#REF! -> 
A37: VEM | E37: =#REF! ->  | F37: =#REF! -> 
A38: DVE | E38: =#REF! ->  | F38: =#REF! -> 
A39: OEB | E39: =#REF! ->  | F39: =#REF! -> 
A40: RE | E40: =#REF! ->  | F40: =#REF! -> 
A41: N | E41: =#REF! ->  | F41: =#REF! -> 
A42: P | E42: =#REF! ->  | F42: =#REF! -> 
A43: =A15 -> 00:00:00
A44: N excretie per ton meetmelk (kg) | C44: =C16 ->  | D44: =E16 ->  | E44: =#REF! ->  | F44: =#REF! -> 
A45: P excretie per ton meetmelk (kg) | D45: =E17 ->  | E45: =#REF! ->  | F45: =#REF! -> 
A46: 00:00:00 | C46: =1000/C45/2.29 ->  | D46: =1000/D45/2.29 ->  | E46: =1000/E45/2.29 ->  | F46: =1000/F45/2.29 -> 
A49: Rantsoen
A51: Kuilgras | C51: =IF('Nov Voeropname'!$A66='Nov kengetallen'!$A51,'Nov Voeropname'!C66,"") ->  | E51: =IF('Nov Voeropname'!$A66='Nov kengetallen'!$A51,'Nov Voeropname'!E66,"") -> 
A52: Kuilgras | C52: =IF('Nov Voeropname'!$A67='Nov kengetallen'!$A52,'Nov Voeropname'!C67,"") ->  | E52: =IF('Nov Voeropname'!$A67='Nov kengetallen'!$A52,'Nov Voeropname'!E67,"") -> 
A53: Kuilgras | C53: =IF('Nov Voeropname'!$A68='Nov kengetallen'!$A53,'Nov Voeropname'!C68,"") ->  | E53: =IF('Nov Voeropname'!$A68='Nov kengetallen'!$A53,'Nov Voeropname'!E68,"") -> 
A54: Kuilgras | C54: =IF('Nov Voeropname'!$A69='Nov kengetallen'!$A54,'Nov Voeropname'!C69,"") ->  | E54: =IF('Nov Voeropname'!$A69='Nov kengetallen'!$A54,'Nov Voeropname'!E69,"") -> 
A55: Kuilgras | C55: =IF('Nov Voeropname'!$A70='Nov kengetallen'!$A55,'Nov Voeropname'!C70,"") ->  | E55: =IF('Nov Voeropname'!$A70='Nov kengetallen'!$A55,'Nov Voeropname'!E70,"") -> 
A56: Kuilgras | C56: =IF('Nov Voeropname'!$A71='Nov kengetallen'!$A56,'Nov Voeropname'!C71,"") ->  | E56: =IF('Nov Voeropname'!$A71='Nov kengetallen'!$A56,'Nov Voeropname'!E71,"") -> 
A57: Kuilgras | C57: =IF('Nov Voeropname'!$A72='Nov kengetallen'!$A57,'Nov Voeropname'!C72,"") ->  | E57: =IF('Nov Voeropname'!$A72='Nov kengetallen'!$A57,'Nov Voeropname'!E72,"") -> 
A58: Kuilgras | C58: =IF('Nov Voeropname'!$A73='Nov kengetallen'!$A58,'Nov Voeropname'!C73,"") ->  | E58: =IF('Nov Voeropname'!$A73='Nov kengetallen'!$A58,'Nov Voeropname'!E73,"") -> 
A59: Kuilgras | C59: =IF('Nov Voeropname'!$A74='Nov kengetallen'!$A59,'Nov Voeropname'!C74,"") ->  | E59: =IF('Nov Voeropname'!$A74='Nov kengetallen'!$A59,'Nov Voeropname'!E74,"") -> 
A60: Totaal kuilgras | C60: =SUM(C51:C59) -> 0 | E60: =SUM(E51:E59) -> 0
A62: Snijmais | C62: =IF('Nov Voeropname'!$A66='Nov kengetallen'!$A62,'Nov Voeropname'!C66,"") ->  | E62: =IF('Nov Voeropname'!$A66='Nov kengetallen'!$A62,'Nov Voeropname'!E66,"") -> 
A63: Snijmais | C63: =IF('Nov Voeropname'!$A67='Nov kengetallen'!$A63,'Nov Voeropname'!C67,"") ->  | E63: =IF('Nov Voeropname'!$A67='Nov kengetallen'!$A63,'Nov Voeropname'!E67,"") -> 
A64: Snijmais | C64: =IF('Nov Voeropname'!$A68='Nov kengetallen'!$A64,'Nov Voeropname'!C68,"") ->  | E64: =IF('Nov Voeropname'!$A68='Nov kengetallen'!$A64,'Nov Voeropname'!E68,"") -> 
A65: Snijmais | C65: =IF('Nov Voeropname'!$A69='Nov kengetallen'!$A65,'Nov Voeropname'!C69,"") ->  | E65: =IF('Nov Voeropname'!$A69='Nov kengetallen'!$A65,'Nov Voeropname'!E69,"") -> 
A66: Snijmais | C66: =IF('Nov Voeropname'!$A70='Nov kengetallen'!$A66,'Nov Voeropname'!C70,"") ->  | E66: =IF('Nov Voeropname'!$A70='Nov kengetallen'!$A66,'Nov Voeropname'!E70,"") -> 
A67: Snijmais | C67: =IF('Nov Voeropname'!$A71='Nov kengetallen'!$A67,'Nov Voeropname'!C71,"") ->  | E67: =IF('Nov Voeropname'!$A71='Nov kengetallen'!$A67,'Nov Voeropname'!E71,"") -> 
A68: Snijmais | C68: =IF('Nov Voeropname'!$A72='Nov kengetallen'!$A68,'Nov Voeropname'!C72,"") ->  | E68: =IF('Nov Voeropname'!$A72='Nov kengetallen'!$A68,'Nov Voeropname'!E72,"") -> 
A69: Snijmais | C69: =IF('Nov Voeropname'!$A73='Nov kengetallen'!$A69,'Nov Voeropname'!C73,"") ->  | E69: =IF('Nov Voeropname'!$A73='Nov kengetallen'!$A69,'Nov Voeropname'!E73,"") -> 
A70: Snijmais | C70: =IF('Nov Voeropname'!$A74='Nov kengetallen'!$A70,'Nov Voeropname'!C74,"") ->  | E70: =IF('Nov Voeropname'!$A74='Nov kengetallen'!$A70,'Nov Voeropname'!E74,"") -> 
A71: Totaal snijmais | C71: =SUM(C62:C70) -> 0 | E71: =SUM(E62:E70) -> 0
A73: OverigRuwvoer | C73: =IF('Nov Voeropname'!$A66='Nov kengetallen'!$A73,'Nov Voeropname'!C66,"") ->  | E73: =IF('Nov Voeropname'!$A66='Nov kengetallen'!$A73,'Nov Voeropname'!E66,"") -> 
A74: OverigRuwvoer | C74: =IF('Nov Voeropname'!$A67='Nov kengetallen'!$A74,'Nov Voeropname'!C67,"") ->  | E74: =IF('Nov Voeropname'!$A67='Nov kengetallen'!$A74,'Nov Voeropname'!E67,"") -> 
A75: OverigRuwvoer | C75: =IF('Nov Voeropname'!$A68='Nov kengetallen'!$A75,'Nov Voeropname'!C68,"") ->  | E75: =IF('Nov Voeropname'!$A68='Nov kengetallen'!$A75,'Nov Voeropname'!E68,"") -> 
A76: OverigRuwvoer | C76: =IF('Nov Voeropname'!$A69='Nov kengetallen'!$A76,'Nov Voeropname'!C69,"") ->  | E76: =IF('Nov Voeropname'!$A69='Nov kengetallen'!$A76,'Nov Voeropname'!E69,"") -> 
A77: OverigRuwvoer | C77: =IF('Nov Voeropname'!$A70='Nov kengetallen'!$A77,'Nov Voeropname'!C70,"") ->  | E77: =IF('Nov Voeropname'!$A70='Nov kengetallen'!$A77,'Nov Voeropname'!E70,"") -> 
A78: OverigRuwvoer | C78: =IF('Nov Voeropname'!$A71='Nov kengetallen'!$A78,'Nov Voeropname'!C71,"") ->  | E78: =IF('Nov Voeropname'!$A71='Nov kengetallen'!$A78,'Nov Voeropname'!E71,"") -> 
A79: OverigRuwvoer | C79: =IF('Nov Voeropname'!$A72='Nov kengetallen'!$A79,'Nov Voeropname'!C72,"") ->  | E79: =IF('Nov Voeropname'!$A72='Nov kengetallen'!$A79,'Nov Voeropname'!E72,"") -> 
A80: OverigRuwvoer | C80: =IF('Nov Voeropname'!$A73='Nov kengetallen'!$A80,'Nov Voeropname'!C73,"") ->  | E80: =IF('Nov Voeropname'!$A73='Nov kengetallen'!$A80,'Nov Voeropname'!E73,"") -> 
A81: OverigRuwvoer | C81: =IF('Nov Voeropname'!$A74='Nov kengetallen'!$A81,'Nov Voeropname'!C74,"") ->  | E81: =IF('Nov Voeropname'!$A74='Nov kengetallen'!$A81,'Nov Voeropname'!E74,"") -> 
A82: Totaal overig Ruwvoer | C82: =SUM(C73:C81) -> 0 | E82: =SUM(E73:E81) -> 0
A84: Bijproducten | C84: =IF('Nov Voeropname'!$A66='Nov kengetallen'!$A84,'Nov Voeropname'!C66,"") ->  | E84: =IF('Nov Voeropname'!$A66='Nov kengetallen'!$A84,'Nov Voeropname'!E66,"") -> 
A85: Bijproducten | C85: =IF('Nov Voeropname'!$A67='Nov kengetallen'!$A85,'Nov Voeropname'!C67,"") ->  | E85: =IF('Nov Voeropname'!$A67='Nov kengetallen'!$A85,'Nov Voeropname'!E67,"") -> 
A86: Bijproducten | C86: =IF('Nov Voeropname'!$A68='Nov kengetallen'!$A86,'Nov Voeropname'!C68,"") ->  | E86: =IF('Nov Voeropname'!$A68='Nov kengetallen'!$A86,'Nov Voeropname'!E68,"") -> 
A87: Bijproducten | C87: =IF('Nov Voeropname'!$A69='Nov kengetallen'!$A87,'Nov Voeropname'!C69,"") ->  | E87: =IF('Nov Voeropname'!$A69='Nov kengetallen'!$A87,'Nov Voeropname'!E69,"") -> 
A88: Bijproducten | C88: =IF('Nov Voeropname'!$A70='Nov kengetallen'!$A88,'Nov Voeropname'!C70,"") ->  | E88: =IF('Nov Voeropname'!$A70='Nov kengetallen'!$A88,'Nov Voeropname'!E70,"") -> 
A89: Bijproducten | C89: =IF('Nov Voeropname'!$A71='Nov kengetallen'!$A89,'Nov Voeropname'!C71,"") ->  | E89: =IF('Nov Voeropname'!$A71='Nov kengetallen'!$A89,'Nov Voeropname'!E71,"") -> 
A90: Bijproducten | C90: =IF('Nov Voeropname'!$A72='Nov kengetallen'!$A90,'Nov Voeropname'!C72,"") ->  | E90: =IF('Nov Voeropname'!$A72='Nov kengetallen'!$A90,'Nov Voeropname'!E72,"") -> 
A91: Bijproducten | C91: =IF('Nov Voeropname'!$A73='Nov kengetallen'!$A91,'Nov Voeropname'!C73,"") ->  | E91: =IF('Nov Voeropname'!$A73='Nov kengetallen'!$A91,'Nov Voeropname'!E73,"") -> 
A92: Bijproducten | C92: =IF('Nov Voeropname'!$A74='Nov kengetallen'!$A92,'Nov Voeropname'!C74,"") ->  | E92: =IF('Nov Voeropname'!$A74='Nov kengetallen'!$A92,'Nov Voeropname'!E74,"") -> 
A93: Totaal Bijproducten | C93: =SUM(C84:C92) -> 0 | E93: =SUM(E84:E92) -> 0
A95: Krachtvoer | C95: =SUM('Nov Voeropname'!C76:C77) -> 0 | E95: =SUM('Nov Voeropname'!E76:E78) -> 
A97: Vers gras | C97: ='Nov Voeropname'!C31*('Nov vee+melk'!C2+'Nov vee+melk'!C3) -> 0 | E97: ='Nov Voeropname'!E31*('Nov vee+melk'!E2+'Nov vee+melk'!E3) -> 0
A99: Totaal | C99: =C95+C93+C82+C71+C60+C97 -> 0 | E99: =E95+E93+E82+E71+E60+E97 -> 
A101: Vers gras | C101: =C97/C99 ->  | E101: =E97/E99 -> 
A102: Aandeel kuilgras | C102: =C60/C$99 ->  | E102: =E60/E$99 -> 
A103: Aandeel snijmais | C103: =C71/C$99 ->  | E103: =E71/E$99 -> 
A104: Aandeel overig ruwvoer | C104: =C82/C$99 ->  | E104: =E82/E$99 -> 
A105: Aandeel bijproducten | C105: =C93/C$99 ->  | E105: =E93/E$99 -> 
A106: Aandeel krachtvoer | C106: =C95/C$99 ->  | E106: =E95/E$99 -> 

Sheet Okt Voeropname (hidden)
A1: Gem rantsoen gehaltes (d dgn) | C1: ='Okt voer'!B3 -> Oktober gerealiseerd | E1: ='Okt voer'!G3 -> Oktober prognose
A2: DS opname/koe | C2: =C34 ->  | E2: =E34 -> 
A3: VEM | C3: =C12 ->  | E3: =AVERAGE(E12:E12) -> 
A4: DVE | C4: =AVERAGE(C13) ->  | M4: 1 | R4: Voedermiddelen
A5: OEB | C5: =AVERAGE(C14) ->  | M5: 2 | R5: Kuilgras
A6: RE | C6: =AVERAGE(C15) ->  | R6: Snijmais
A7: N | C7: =AVERAGE(C16) ->  | M7: Vem toeslag weidegang | O7: 1.03 | R7: OverigRuwvoer
A8: P | R8: Bijproducten
R9: Krachtvoer
A11: Rantsoen gehaltes (incl. weidegras)
A12: VEM | C12: =C35/C34 ->  | E12: =E35/E34 ->  | R12: Let op bij beperkt weiden is deze opname niet realistisch!
A13: DVE | C13: =C36/C34 ->  | E13: =E36/E34 ->  | R13: Let op VEM dekking te laag!
A14: OEB | C14: =C37 ->  | E14: =E37 -> 
A15: RE | C15: =C38/C34 ->  | E15: =E38/E34 -> 
A16: N | C16: =C39/C34 ->  | E16: =E39/E34 -> 
A17: P | C17: =C40/C34 ->  | E17: =E40/E34 -> 
A22: kg ds | C22: =C55/SUM('Okt vee+melk'!C2:C3) ->  | E22: =E55/SUM('Okt vee+melk'!E2:E3) -> 
A23: Vemopname ex weidegras | C23: =C22*C45 ->  | E23: =E22*E45 -> 
A27: VEM behoefte | C27: =IF('Okt voer'!B4=1,'Okt vee+melk'!C27*'Okt Voeropname'!O7,'Okt vee+melk'!C27) ->  | E27: =IF('Okt voer'!G4=1,'Okt vee+melk'!E27*'Okt Voeropname'!O7,'Okt vee+melk'!E27) -> 
A28: Behoefte-opname | C28: =C27-'Okt Voeropname'!C23 ->  | E28: =E27-'Okt Voeropname'!E23 -> 
C29: =C28/VLOOKUP('Okt voer'!B5,Weidegras!$A$5:$J$119,4,FALSE) ->  | E29: =E28/VLOOKUP('Okt voer'!G5,Weidegras!$A$5:$J$119,4,FALSE) -> 
C30: =IF(C29>0,C29,0) ->  | E30: =IF(E29>0,E29,0) -> 
A31: Weidegrasopname/koe | C31: =IF('Okt voer'!B4=1,C30,0) -> 0 | E31: =IF('Okt voer'!G4=1,E30,0) -> 0
A33: Rantsoenopname incl weidegras
A34: droge stof | C34: =C22+C31 ->  | E34: =E22+E31 -> 
A35: VEM | C35: =C45*C22+C31*VLOOKUP('Okt voer'!B5,Weidegras!$A$6:$J$180,4,FALSE) ->  | E35: =E45*E22+E31*VLOOKUP('Okt voer'!G5,Weidegras!$A$6:$J$180,4,FALSE) -> 
A36: DVE | C36: =C46*C22+$C$31*VLOOKUP('Okt voer'!B5,Weidegras!$A$5:$J$150,5,FALSE) ->  | E36: =E46*E22+$C$31*VLOOKUP('Okt voer'!G5,Weidegras!$A$5:$J$150,5,FALSE) -> 
A37: OEB | C37: =C22*C47+$C$31*VLOOKUP('Okt voer'!B5,Weidegras!$A$6:$J$151,6,FALSE) ->  | E37: =E22*E47+$C$31*VLOOKUP('Okt voer'!G5,Weidegras!$A$6:$J$151,6,FALSE) -> 
A38: RE | C38: =C48*C22+C31*VLOOKUP('Okt voer'!$B$5,Weidegras!$A$6:$J$181,7,FALSE) ->  | E38: =E48*E22+E31*VLOOKUP('Okt voer'!$B$5,Weidegras!$A$6:$J$181,7,FALSE) -> 
A39: N | C39: =C38/6.25 ->  | E39: =E38/6.25 -> 
A40: P | C40: =C50*C22+C31*VLOOKUP('Okt voer'!$B$5,Weidegras!$A$6:$J$183,10,FALSE) ->  | E40: =E50*E22+E31*VLOOKUP('Okt voer'!$B$5,Weidegras!$A$6:$J$183,10,FALSE) -> 
A43: Stalrantsoen gehaltes
A44: droge stof
A45: VEM | C45: =C56/C$55 ->  | E45: =E56/E$55 -> 
A46: DVE | C46: =C57/C$55*1000 ->  | E46: =E57/E$55*1000 -> 
A47: OEB | C47: =C58/C$55 ->  | E47: =E58/E$55 -> 
A48: RE | C48: =C59/C$55 -> 
A49: N | C49: =C60/C$55 -> 
A50: P | C50: =C61/C$55 -> 
A54: Stalrantsoen opname
A55: droge stof (kg) | C55: =C80 -> 0
A56: VEM | C56: =C96 -> 0
A57: DVE | C57: =C112 -> 0 | E57: =E112 -> 0
A58: OEB | C58: =C128 -> 0 | E58: =E128 -> 0
A59: RE | C59: =C144 -> 0 | E59: =E144 -> 0
A60: N | C60: =C146 -> 0 | E60: =E146 -> 0
A61: P | C61: =C162 -> 0 | E61: =E162 -> 0
A65: Drogestof opname
A66: ='Okt voer'!A9 -> 0 | B66: ='Okt voer'!B9 -> 0 | C66: =IF('Okt voer'!C9>0,VLOOKUP('Okt voer'!B9,Voedermiddelen!$A$4:$K$75,3,FALSE)*'Okt voer'!C9*(1-'Okt voer'!$B$6),"") ->  | D66: ='Okt voer'!G9 -> 0 | E66: =IF('Okt voer'!H9>0,VLOOKUP('Okt voer'!G9,Voedermiddelen!$A$4:$K$75,3,FALSE)*'Okt voer'!H9*(1-'Okt voer'!$G$6),"") -> 
A67: ='Okt voer'!A10 -> 0 | B67: ='Okt voer'!B10 -> 0 | C67: =IF('Okt voer'!C10>0,VLOOKUP('Okt voer'!B10,Voedermiddelen!$A$4:$K$75,3,FALSE)*'Okt voer'!C10*(1-'Okt voer'!$B$6),"") ->  | D67: ='Okt voer'!G10 -> 0 | E67: =IF('Okt voer'!H10>0,VLOOKUP('Okt voer'!G10,Voedermiddelen!$A$4:$K$75,3,FALSE)*'Okt voer'!H10*(1-'Okt voer'!$G$6),"") -> 
A68: ='Okt voer'!A11 -> 0 | B68: ='Okt voer'!B11 -> 0 | C68: =IF('Okt voer'!C11>0,VLOOKUP('Okt voer'!B11,Voedermiddelen!$A$4:$K$75,3,FALSE)*'Okt voer'!C11*(1-'Okt voer'!$B$6),"") ->  | D68: ='Okt voer'!G11 -> 0 | E68: =IF('Okt voer'!H11>0,VLOOKUP('Okt voer'!G11,Voedermiddelen!$A$4:$K$75,3,FALSE)*'Okt voer'!H11*(1-'Okt voer'!$G$6),"") -> 
A69: ='Okt voer'!A12 -> 0 | B69: ='Okt voer'!B12 -> 0 | C69: =IF('Okt voer'!C12>0,VLOOKUP('Okt voer'!B12,Voedermiddelen!$A$4:$K$75,3,FALSE)*'Okt voer'!C12*(1-'Okt voer'!$B$6),"") ->  | D69: ='Okt voer'!G12 -> 0 | E69: =IF('Okt voer'!H12>0,VLOOKUP('Okt voer'!G12,Voedermiddelen!$A$4:$K$75,3,FALSE)*'Okt voer'!H12*(1-'Okt voer'!$G$6),"") -> 
A70: ='Okt voer'!A13 -> 0 | B70: ='Okt voer'!B13 -> 0 | C70: =IF('Okt voer'!C13>0,VLOOKUP('Okt voer'!B13,Voedermiddelen!$A$4:$K$75,3,FALSE)*'Okt voer'!C13*(1-'Okt voer'!$B$6),"") ->  | D70: ='Okt voer'!G13 -> 0 | E70: =IF('Okt voer'!H13>0,VLOOKUP('Okt voer'!G13,Voedermiddelen!$A$4:$K$75,3,FALSE)*'Okt voer'!H13*(1-'Okt voer'!$G$6),"") -> 
A71: ='Okt voer'!A14 -> 0 | B71: ='Okt voer'!B14 -> 0 | C71: =IF('Okt voer'!C14>0,VLOOKUP('Okt voer'!B14,Voedermiddelen!$A$4:$K$75,3,FALSE)*'Okt voer'!C14*(1-'Okt voer'!$B$6),"") ->  | D71: ='Okt voer'!G14 -> 0 | E71: =IF('Okt voer'!H14>0,VLOOKUP('Okt voer'!G14,Voedermiddelen!$A$4:$K$75,3,FALSE)*'Okt voer'!H14*(1-'Okt voer'!$G$6),"") -> 
A72: ='Okt voer'!A15 -> 0 | B72: ='Okt voer'!B15 -> 0 | C72: =IF('Okt voer'!C15>0,VLOOKUP('Okt voer'!B15,Voedermiddelen!$A$4:$K$75,3,FALSE)*'Okt voer'!C15*(1-'Okt voer'!$B$6),"") ->  | D72: ='Okt voer'!G15 -> 0 | E72: =IF('Okt voer'!H15>0,VLOOKUP('Okt voer'!G15,Voedermiddelen!$A$4:$K$75,3,FALSE)*'Okt voer'!H15*(1-'Okt voer'!$G$6),"") -> 
A73: ='Okt voer'!A16 -> 0 | B73: ='Okt voer'!B16 -> 0 | C73: =IF('Okt voer'!C16>0,VLOOKUP('Okt voer'!B16,Voedermiddelen!$A$4:$K$75,3,FALSE)*'Okt voer'!C16*(1-'Okt voer'!$B$6),"") ->  | D73: ='Okt voer'!G16 -> 0 | E73: =IF('Okt voer'!H16>0,VLOOKUP('Okt voer'!G16,Voedermiddelen!$A$4:$K$75,3,FALSE)*'Okt voer'!H16*(1-'Okt voer'!$G$6),"") -> 
A74: ='Okt voer'!A17 -> 0 | B74: ='Okt voer'!B17 -> 0 | C74: =IF('Okt voer'!C17>0,VLOOKUP('Okt voer'!B17,Voedermiddelen!$A$4:$K$75,3,FALSE)*'Okt voer'!C17*(1-'Okt voer'!$B$6),"") ->  | D74: ='Okt voer'!G17 -> 0 | E74: =IF('Okt voer'!H17>0,VLOOKUP('Okt voer'!G17,Voedermiddelen!$A$4:$K$75,3,FALSE)*'Okt voer'!H17*(1-'Okt voer'!$G$6),"") -> 
B75: ='Okt voer'!B18 -> 0 | C75: =IF('Okt voer'!C18>0,VLOOKUP('Okt voer'!B18,Voedermiddelen!$A$4:$K$75,3,FALSE)*'Okt voer'!C18*(1-'Okt voer'!$B$6),"") ->  | D75: ='Okt voer'!G18 -> 0 | E75: =IF('Okt voer'!H18>0,VLOOKUP('Okt voer'!G18,Voedermiddelen!$A$4:$K$75,3,FALSE)*'Okt voer'!H18*(1-'Okt voer'!$G$6),"") -> 
B76: ='Okt voer'!B20 -> 0 | C76: =IF('Okt voer'!C20>0,VLOOKUP('Okt voer'!B20,Voedermiddelen!$A$4:$K$75,3,FALSE)*'Okt voer'!C20,"") ->  | E76: ='Okt voer'!H22*'Okt vee+melk'!E15/100*0.9 -> 
B77: ='Okt voer'!B21 -> 0 | C77: =IF('Okt voer'!C21>0,VLOOKUP('Okt voer'!B21,Voedermiddelen!$A$4:$K$75,3,FALSE)*'Okt voer'!C21,"") -> 
B78: ='Okt voer'!B22 -> 0 | C78: =IF('Okt voer'!C22>0,VLOOKUP('Okt voer'!B22,Voedermiddelen!$A$4:$K$75,3,FALSE)*'Okt voer'!C22,"") -> 
A80: Totaal | C80: =SUM(C66:C78) -> 0 | E80: =SUM(E66:E78) -> 
A82: VEM | B82: =B66 -> 0 | C82: =IF('Okt voer'!C9>0,VLOOKUP('Okt voer'!B9,Voedermiddelen!$A$4:$K$75,4,FALSE)*C66,"") ->  | D82: =D66 -> 0 | E82: =IF('Okt voer'!H9>0,VLOOKUP('Okt voer'!G9,Voedermiddelen!$A$4:$K$75,4,FALSE)*E66,"") -> 
B83: =B67 -> 0 | C83: =IF('Okt voer'!C10>0,VLOOKUP('Okt voer'!B10,Voedermiddelen!$A$4:$K$75,4,FALSE)*C67,"") ->  | D83: 0 | E83: =IF('Okt voer'!H10>0,VLOOKUP('Okt voer'!G10,Voedermiddelen!$A$4:$K$75,4,FALSE)*E67,"") -> 
B84: 0 | C84: =IF('Okt voer'!C11>0,VLOOKUP('Okt voer'!B11,Voedermiddelen!$A$4:$K$75,4,FALSE)*C68,"") ->  | D84: 0 | E84: =IF('Okt voer'!H11>0,VLOOKUP('Okt voer'!G11,Voedermiddelen!$A$4:$K$75,4,FALSE)*E68,"") -> 
B85: 0 | C85: =IF('Okt voer'!C12>0,VLOOKUP('Okt voer'!B12,Voedermiddelen!$A$4:$K$75,4,FALSE)*C69,"") ->  | D85: 0 | E85: =IF('Okt voer'!H12>0,VLOOKUP('Okt voer'!G12,Voedermiddelen!$A$4:$K$75,4,FALSE)*E69,"") -> 
B86: 0 | C86: =IF('Okt voer'!C13>0,VLOOKUP('Okt voer'!B13,Voedermiddelen!$A$4:$K$75,4,FALSE)*C70,"") ->  | D86: 0 | E86: =IF('Okt voer'!H13>0,VLOOKUP('Okt voer'!G13,Voedermiddelen!$A$4:$K$75,4,FALSE)*E70,"") -> 
B87: 0 | C87: =IF('Okt voer'!C14>0,VLOOKUP('Okt voer'!B14,Voedermiddelen!$A$4:$K$75,4,FALSE)*C71,"") ->  | D87: 0 | E87: =IF('Okt voer'!H14>0,VLOOKUP('Okt voer'!G14,Voedermiddelen!$A$4:$K$75,4,FALSE)*E71,"") -> 
B88: 0 | C88: =IF('Okt voer'!C15>0,VLOOKUP('Okt voer'!B15,Voedermiddelen!$A$4:$K$75,4,FALSE)*C72,"") ->  | D88: 0 | E88: =IF('Okt voer'!H15>0,VLOOKUP('Okt voer'!G15,Voedermiddelen!$A$4:$K$75,4,FALSE)*E72,"") -> 
B89: 0 | C89: =IF('Okt voer'!C16>0,VLOOKUP('Okt voer'!B16,Voedermiddelen!$A$4:$K$75,4,FALSE)*C73,"") ->  | D89: 0 | E89: =IF('Okt voer'!H16>0,VLOOKUP('Okt voer'!G16,Voedermiddelen!$A$4:$K$75,4,FALSE)*E73,"") -> 
B90: 0 | C90: =IF('Okt voer'!C17>0,VLOOKUP('Okt voer'!B17,Voedermiddelen!$A$4:$K$75,4,FALSE)*C74,"") ->  | D90: 0 | E90: =IF('Okt voer'!H17>0,VLOOKUP('Okt voer'!G17,Voedermiddelen!$A$4:$K$75,4,FALSE)*E74,"") -> 
B91: 0 | C91: =IF('Okt voer'!C18>0,VLOOKUP('Okt voer'!B18,Voedermiddelen!$A$4:$K$75,4,FALSE)*C75,"") ->  | D91: 0 | E91: =IF('Okt voer'!H18>0,VLOOKUP('Okt voer'!G18,Voedermiddelen!$A$4:$K$75,4,FALSE)*E75,"") -> 
B92: 0 | C92: =IF('Okt voer'!C20>0,VLOOKUP('Okt voer'!B20,Voedermiddelen!$A$4:$K$75,4,FALSE)*C76,"") ->  | D92: 0 | E92: =E76*1000 -> 
B93: 0 | C93: =IF('Okt voer'!C21>0,VLOOKUP('Okt voer'!B21,Voedermiddelen!$A$4:$K$75,4,FALSE)*C77,"") ->  | D93: 0
B94: 0 | C94: =IF('Okt voer'!C22>0,VLOOKUP('Okt voer'!B22,Voedermiddelen!$A$4:$K$75,4,FALSE)*C78,"") ->  | D94: 0
A96: Totaal | C96: =SUM(C82:C94) -> 0 | E96: =SUM(E82:E94) -> 
A98: DVE | B98: =B82 -> 0 | C98: =IF('Okt voer'!C9>0,VLOOKUP('Okt voer'!B9,[1]Voedermiddelen!$A$4:$K$75,5,FALSE)*C66,"") ->  | D98: =D82 -> 0 | E98: =IF('Okt voer'!H9>0,VLOOKUP('Okt voer'!G9,[1]Voedermiddelen!$A$4:$K$75,5,FALSE)*E66,"") -> 
B99: =B83 -> 0 | C99: =IF('Okt voer'!C10>0,VLOOKUP('Okt voer'!B10,[1]Voedermiddelen!$A$4:$K$75,5,FALSE)*C67,"") ->  | D99: 0 | E99: =IF('Okt voer'!H10>0,VLOOKUP('Okt voer'!G10,[1]Voedermiddelen!$A$4:$K$75,5,FALSE)*E67,"") -> 
B100: 0 | C100: =IF('Okt voer'!C11>0,VLOOKUP('Okt voer'!B11,[1]Voedermiddelen!$A$4:$K$75,5,FALSE)*C68,"") ->  | D100: 0 | E100: =IF('Okt voer'!H11>0,VLOOKUP('Okt voer'!G11,[1]Voedermiddelen!$A$4:$K$75,5,FALSE)*E68,"") -> 
B101: 0 | C101: =IF('Okt voer'!C12>0,VLOOKUP('Okt voer'!B12,[1]Voedermiddelen!$A$4:$K$75,5,FALSE)*C69,"") ->  | D101: 0 | E101: =IF('Okt voer'!H12>0,VLOOKUP('Okt voer'!G12,[1]Voedermiddelen!$A$4:$K$75,5,FALSE)*E69,"") -> 
B102: 0 | C102: =IF('Okt voer'!C13>0,VLOOKUP('Okt voer'!B13,[1]Voedermiddelen!$A$4:$K$75,5,FALSE)*C70,"") ->  | D102: 0 | E102: =IF('Okt voer'!H13>0,VLOOKUP('Okt voer'!G13,[1]Voedermiddelen!$A$4:$K$75,5,FALSE)*E70,"") -> 
B103: 0 | C103: =IF('Okt voer'!C14>0,VLOOKUP('Okt voer'!B14,[1]Voedermiddelen!$A$4:$K$75,5,FALSE)*C71,"") ->  | D103: 0 | E103: =IF('Okt voer'!H14>0,VLOOKUP('Okt voer'!G14,[1]Voedermiddelen!$A$4:$K$75,5,FALSE)*E71,"") -> 
B104: 0 | C104: =IF('Okt voer'!C15>0,VLOOKUP('Okt voer'!B15,[1]Voedermiddelen!$A$4:$K$75,5,FALSE)*C72,"") ->  | D104: 0 | E104: =IF('Okt voer'!H15>0,VLOOKUP('Okt voer'!G15,[1]Voedermiddelen!$A$4:$K$75,5,FALSE)*E72,"") -> 
B105: 0 | C105: =IF('Okt voer'!C16>0,VLOOKUP('Okt voer'!B16,[1]Voedermiddelen!$A$4:$K$75,5,FALSE)*C73,"") ->  | D105: 0 | E105: =IF('Okt voer'!H16>0,VLOOKUP('Okt voer'!G16,[1]Voedermiddelen!$A$4:$K$75,5,FALSE)*E73,"") -> 
B106: 0 | C106: =IF('Okt voer'!C17>0,VLOOKUP('Okt voer'!B17,[1]Voedermiddelen!$A$4:$K$75,5,FALSE)*C74,"") ->  | D106: 0 | E106: =IF('Okt voer'!H17>0,VLOOKUP('Okt voer'!G17,[1]Voedermiddelen!$A$4:$K$75,5,FALSE)*E74,"") -> 
B107: 0 | C107: =IF('Okt voer'!C18>0,VLOOKUP('Okt voer'!B18,[1]Voedermiddelen!$A$4:$K$75,5,FALSE)*C75,"") ->  | D107: 0 | E107: =IF('Okt voer'!H18>0,VLOOKUP('Okt voer'!G18,[1]Voedermiddelen!$A$4:$K$75,5,FALSE)*E75,"") -> 
B108: 0 | C108: =IF('Okt voer'!C20>0,VLOOKUP('Okt voer'!B20,[1]Voedermiddelen!$A$4:$K$75,5,FALSE)*C76,"") ->  | D108: 0
B109: 0 | C109: =IF('Okt voer'!C21>0,VLOOKUP('Okt voer'!B21,[1]Voedermiddelen!$A$4:$K$75,5,FALSE)*C77,"") ->  | D109: 0
B110: 0 | C110: =IF('Okt voer'!C22>0,VLOOKUP('Okt voer'!B22,[1]Voedermiddelen!$A$4:$K$75,5,FALSE)*C78,"") ->  | D110: 0
A112: Totaal | C112: =SUM(C98:C110)/1000 -> 0 | E112: =SUM(E98:E110)/1000 -> 0
A114: OEB | B114: =B98 -> 0 | C114: =IF('Okt voer'!C9>0,VLOOKUP('Okt voer'!B9,[1]Voedermiddelen!$A$4:$K$75,6,FALSE)*C66,"") ->  | D114: =D98 -> 0 | E114: =IF('Okt voer'!H9>0,VLOOKUP('Okt voer'!G9,[1]Voedermiddelen!$A$4:$K$75,6,FALSE)*E66,"") -> 
B115: =B99 -> 0 | C115: =IF('Okt voer'!C10>0,VLOOKUP('Okt voer'!B10,[1]Voedermiddelen!$A$4:$K$75,6,FALSE)*C67,"") ->  | D115: 0 | E115: =IF('Okt voer'!H10>0,VLOOKUP('Okt voer'!G10,[1]Voedermiddelen!$A$4:$K$75,6,FALSE)*E67,"") -> 
B116: 0 | C116: =IF('Okt voer'!C11>0,VLOOKUP('Okt voer'!B11,[1]Voedermiddelen!$A$4:$K$75,6,FALSE)*C68,"") ->  | D116: 0 | E116: =IF('Okt voer'!H11>0,VLOOKUP('Okt voer'!G11,[1]Voedermiddelen!$A$4:$K$75,6,FALSE)*E68,"") -> 
B117: 0 | C117: =IF('Okt voer'!C12>0,VLOOKUP('Okt voer'!B12,[1]Voedermiddelen!$A$4:$K$75,6,FALSE)*C69,"") ->  | D117: 0 | E117: =IF('Okt voer'!H12>0,VLOOKUP('Okt voer'!G12,[1]Voedermiddelen!$A$4:$K$75,6,FALSE)*E69,"") -> 
B118: 0 | C118: =IF('Okt voer'!C13>0,VLOOKUP('Okt voer'!B13,[1]Voedermiddelen!$A$4:$K$75,6,FALSE)*C70,"") ->  | D118: 0 | E118: =IF('Okt voer'!H13>0,VLOOKUP('Okt voer'!G13,[1]Voedermiddelen!$A$4:$K$75,6,FALSE)*E70,"") -> 
B119: 0 | C119: =IF('Okt voer'!C14>0,VLOOKUP('Okt voer'!B14,[1]Voedermiddelen!$A$4:$K$75,6,FALSE)*C71,"") ->  | D119: 0 | E119: =IF('Okt voer'!H14>0,VLOOKUP('Okt voer'!G14,[1]Voedermiddelen!$A$4:$K$75,6,FALSE)*E71,"") -> 
B120: 0 | C120: =IF('Okt voer'!C15>0,VLOOKUP('Okt voer'!B15,[1]Voedermiddelen!$A$4:$K$75,6,FALSE)*C72,"") ->  | D120: 0 | E120: =IF('Okt voer'!H15>0,VLOOKUP('Okt voer'!G15,[1]Voedermiddelen!$A$4:$K$75,6,FALSE)*E72,"") -> 
B121: 0 | C121: =IF('Okt voer'!C16>0,VLOOKUP('Okt voer'!B16,[1]Voedermiddelen!$A$4:$K$75,6,FALSE)*C73,"") ->  | D121: 0 | E121: =IF('Okt voer'!H16>0,VLOOKUP('Okt voer'!G16,[1]Voedermiddelen!$A$4:$K$75,6,FALSE)*E73,"") -> 
B122: 0 | C122: =IF('Okt voer'!C17>0,VLOOKUP('Okt voer'!B17,[1]Voedermiddelen!$A$4:$K$75,6,FALSE)*C74,"") ->  | D122: 0 | E122: =IF('Okt voer'!H17>0,VLOOKUP('Okt voer'!G17,[1]Voedermiddelen!$A$4:$K$75,6,FALSE)*E74,"") -> 
B123: 0 | C123: =IF('Okt voer'!C18>0,VLOOKUP('Okt voer'!B18,[1]Voedermiddelen!$A$4:$K$75,6,FALSE)*C75,"") ->  | D123: 0 | E123: =IF('Okt voer'!H18>0,VLOOKUP('Okt voer'!G18,[1]Voedermiddelen!$A$4:$K$75,6,FALSE)*E75,"") -> 
B124: 0 | C124: =IF('Okt voer'!C20>0,VLOOKUP('Okt voer'!B20,[1]Voedermiddelen!$A$4:$K$75,6,FALSE)*C76,"") ->  | D124: 0
B125: 0 | C125: =IF('Okt voer'!C21>0,VLOOKUP('Okt voer'!B21,[1]Voedermiddelen!$A$4:$K$75,6,FALSE)*C77,"") ->  | D125: 0
B126: 0 | C126: =IF('Okt voer'!C22>0,VLOOKUP('Okt voer'!B22,[1]Voedermiddelen!$A$4:$K$75,6,FALSE)*C78,"") ->  | D126: 0
A128: Totaal | C128: =SUM(C114:C126) -> 0 | E128: =SUM(E114:E126) -> 0
A130: RE | B130: =B114 -> 0 | C130: =IF('Okt voer'!C9>0,VLOOKUP('Okt voer'!B9,Voedermiddelen!$A$4:$K$75,7,FALSE)*C66,"") ->  | D130: =D114 -> 0 | E130: =IF('Okt voer'!H9>0,VLOOKUP('Okt voer'!G9,Voedermiddelen!$A$4:$K$75,7,FALSE)*E66,"") -> 
B131: =B115 -> 0 | C131: =IF('Okt voer'!C10>0,VLOOKUP('Okt voer'!B10,Voedermiddelen!$A$4:$K$75,7,FALSE)*C67,"") ->  | D131: 0 | E131: =IF('Okt voer'!H10>0,VLOOKUP('Okt voer'!G10,Voedermiddelen!$A$4:$K$75,7,FALSE)*E67,"") -> 
B132: 0 | C132: =IF('Okt voer'!C11>0,VLOOKUP('Okt voer'!B11,Voedermiddelen!$A$4:$K$75,7,FALSE)*C68,"") ->  | D132: 0 | E132: =IF('Okt voer'!H11>0,VLOOKUP('Okt voer'!G11,Voedermiddelen!$A$4:$K$75,7,FALSE)*E68,"") -> 
B133: 0 | C133: =IF('Okt voer'!C12>0,VLOOKUP('Okt voer'!B12,Voedermiddelen!$A$4:$K$75,7,FALSE)*C69,"") ->  | D133: 0 | E133: =IF('Okt voer'!H12>0,VLOOKUP('Okt voer'!G12,Voedermiddelen!$A$4:$K$75,7,FALSE)*E69,"") -> 
B134: 0 | C134: =IF('Okt voer'!C13>0,VLOOKUP('Okt voer'!B13,Voedermiddelen!$A$4:$K$75,7,FALSE)*C70,"") ->  | D134: 0 | E134: =IF('Okt voer'!H13>0,VLOOKUP('Okt voer'!G13,Voedermiddelen!$A$4:$K$75,7,FALSE)*E70,"") -> 
B135: 0 | C135: =IF('Okt voer'!C14>0,VLOOKUP('Okt voer'!B14,Voedermiddelen!$A$4:$K$75,7,FALSE)*C71,"") ->  | D135: 0 | E135: =IF('Okt voer'!H14>0,VLOOKUP('Okt voer'!G14,Voedermiddelen!$A$4:$K$75,7,FALSE)*E71,"") -> 
B136: 0 | C136: =IF('Okt voer'!C15>0,VLOOKUP('Okt voer'!B15,Voedermiddelen!$A$4:$K$75,7,FALSE)*C72,"") ->  | D136: 0 | E136: =IF('Okt voer'!H15>0,VLOOKUP('Okt voer'!G15,Voedermiddelen!$A$4:$K$75,7,FALSE)*E72,"") -> 
B137: 0 | C137: =IF('Okt voer'!C16>0,VLOOKUP('Okt voer'!B16,Voedermiddelen!$A$4:$K$75,7,FALSE)*C73,"") ->  | D137: 0 | E137: =IF('Okt voer'!H16>0,VLOOKUP('Okt voer'!G16,Voedermiddelen!$A$4:$K$75,7,FALSE)*E73,"") -> 
B138: 0 | C138: =IF('Okt voer'!C17>0,VLOOKUP('Okt voer'!B17,Voedermiddelen!$A$4:$K$75,7,FALSE)*C74,"") ->  | D138: 0 | E138: =IF('Okt voer'!H17>0,VLOOKUP('Okt voer'!G17,Voedermiddelen!$A$4:$K$75,7,FALSE)*E74,"") -> 
B139: 0 | C139: =IF('Okt voer'!C18>0,VLOOKUP('Okt voer'!B18,Voedermiddelen!$A$4:$K$75,7,FALSE)*C75,"") ->  | D139: 0 | E139: =IF('Okt voer'!H18>0,VLOOKUP('Okt voer'!G18,Voedermiddelen!$A$4:$K$75,7,FALSE)*E75,"") -> 
B140: 0 | C140: =IF('Okt voer'!C20>0,VLOOKUP('Okt voer'!B20,Voedermiddelen!$A$4:$K$75,7,FALSE)*C76,"") ->  | D140: 0
B141: 0 | C141: =IF('Okt voer'!C21>0,VLOOKUP('Okt voer'!B21,Voedermiddelen!$A$4:$K$75,7,FALSE)*C77,"") ->  | D141: 0
B142: =B126 -> 0 | C142: =IF('Okt voer'!C22>0,VLOOKUP('Okt voer'!B22,Voedermiddelen!$A$4:$K$75,7,FALSE)*C78,"") ->  | D142: 0
A144: Totaal | C144: =SUM(C130:C142) -> 0 | E144: =SUM(E130:E142) -> 0
A146: N opname | C146: =C144/6.25 -> 0 | E146: =E144/6.25 -> 0 | G146: =(E76/0.9*'Okt voer'!M6/6.25) -> 
A148: P | B148: =B130 -> 0 | C148: =IF('Okt voer'!C9>0,VLOOKUP('Okt voer'!B9,Voedermiddelen!$A$4:$K$75,10,FALSE)*C66,"") ->  | D148: =D130 -> 0 | E148: =IF('Okt voer'!H9>0,VLOOKUP('Okt voer'!G9,Voedermiddelen!$A$4:$K$75,10,FALSE)*E66,"") -> 
B149: =B131 -> 0 | C149: =IF('Okt voer'!C10>0,VLOOKUP('Okt voer'!B10,Voedermiddelen!$A$4:$K$75,10,FALSE)*C67,"") ->  | D149: 0 | E149: =IF('Okt voer'!H10>0,VLOOKUP('Okt voer'!G10,Voedermiddelen!$A$4:$K$75,10,FALSE)*E67,"") -> 
B150: 0 | C150: =IF('Okt voer'!C11>0,VLOOKUP('Okt voer'!B11,Voedermiddelen!$A$4:$K$75,10,FALSE)*C68,"") ->  | D150: 0 | E150: =IF('Okt voer'!H11>0,VLOOKUP('Okt voer'!G11,Voedermiddelen!$A$4:$K$75,10,FALSE)*E68,"") -> 
B151: 0 | C151: =IF('Okt voer'!C12>0,VLOOKUP('Okt voer'!B12,Voedermiddelen!$A$4:$K$75,10,FALSE)*C69,"") ->  | D151: 0 | E151: =IF('Okt voer'!H12>0,VLOOKUP('Okt voer'!G12,Voedermiddelen!$A$4:$K$75,10,FALSE)*E69,"") -> 
B152: 0 | C152: =IF('Okt voer'!C13>0,VLOOKUP('Okt voer'!B13,Voedermiddelen!$A$4:$K$75,10,FALSE)*C70,"") ->  | D152: 0 | E152: =IF('Okt voer'!H13>0,VLOOKUP('Okt voer'!G13,Voedermiddelen!$A$4:$K$75,10,FALSE)*E70,"") -> 
B153: 0 | C153: =IF('Okt voer'!C14>0,VLOOKUP('Okt voer'!B14,Voedermiddelen!$A$4:$K$75,10,FALSE)*C71,"") ->  | D153: 0 | E153: =IF('Okt voer'!H14>0,VLOOKUP('Okt voer'!G14,Voedermiddelen!$A$4:$K$75,10,FALSE)*E71,"") -> 
B154: 0 | C154: =IF('Okt voer'!C15>0,VLOOKUP('Okt voer'!B15,Voedermiddelen!$A$4:$K$75,10,FALSE)*C72,"") ->  | D154: 0 | E154: =IF('Okt voer'!H15>0,VLOOKUP('Okt voer'!G15,Voedermiddelen!$A$4:$K$75,10,FALSE)*E72,"") -> 
B155: 0 | C155: =IF('Okt voer'!C16>0,VLOOKUP('Okt voer'!B16,Voedermiddelen!$A$4:$K$75,10,FALSE)*C73,"") ->  | D155: 0 | E155: =IF('Okt voer'!H16>0,VLOOKUP('Okt voer'!G16,Voedermiddelen!$A$4:$K$75,10,FALSE)*E73,"") -> 
B156: 0 | C156: =IF('Okt voer'!C17>0,VLOOKUP('Okt voer'!B17,Voedermiddelen!$A$4:$K$75,10,FALSE)*C74,"") ->  | D156: 0 | E156: =IF('Okt voer'!H17>0,VLOOKUP('Okt voer'!G17,Voedermiddelen!$A$4:$K$75,10,FALSE)*E74,"") -> 
B157: 0 | C157: =IF('Okt voer'!C18>0,VLOOKUP('Okt voer'!B18,Voedermiddelen!$A$4:$K$75,10,FALSE)*C75,"") ->  | D157: 0 | E157: =IF('Okt voer'!H18>0,VLOOKUP('Okt voer'!G18,Voedermiddelen!$A$4:$K$75,10,FALSE)*E75,"") -> 
B158: =B140 -> 0 | C158: =IF('Okt voer'!C20>0,VLOOKUP('Okt voer'!B20,Voedermiddelen!$A$4:$K$75,10,FALSE)*C76,"") ->  | D158: 0
B159: =B141 -> 0 | C159: =IF('Okt voer'!C21>0,VLOOKUP('Okt voer'!B21,Voedermiddelen!$A$4:$K$75,10,FALSE)*C77,"") ->  | D159: 0
B160: =B142 -> 0 | C160: =IF('Okt voer'!C22>0,VLOOKUP('Okt voer'!B22,Voedermiddelen!$A$4:$K$75,10,FALSE)*C78,"") ->  | D160: 0
A162: Totaal | C162: =SUM(C148:C160) -> 0 | E162: =SUM(E148:E160) -> 0 | G162: =(E76/0.9*'Okt voer'!M7) -> 

Sheet Okt Excretie (hidden)
A1: Veestapel
C2: ='Okt vee+melk'!C6 -> Oktober gerealiseerd | E2: ='Okt vee+melk'!E6 -> Oktober prognose
A5: Excretie (kg/dier/dag)
C6: N | E6: N
A7: Opname | C7: ='Okt Voeropname'!C2*'Okt Voeropname'!C7*0.001 ->  | E7: ='Okt Voeropname'!E2*'Okt Voeropname'!E7*0.001+'Okt Voeropname'!G146*0.001/'Okt vee+melk'!E2 -> 
A8: Gem opname 7 dgn | C8: =AVERAGE(C7:F7) ->  | E8: =AVERAGE(E7) -> 
A9: Productie | C9: ='Okt vee+melk'!C22*'Okt vee+melk'!C10/6.38 ->  | E9: ='Okt vee+melk'!E22*'Okt vee+melk'!E10/6.38 -> 
A10: Vastlegging | C10: =1.4/365 -> 0.003835616438 | E10: =1.4/365 -> 0.003835616438
A11: Onder de staart | C11: =C7-C9-C10 ->  | E11: =E7-E9-E10 -> 
A12: Vervluchtiging | C12: =C11*0.1175 ->  | E12: =E11*0.1175 -> 
A13: Gemeten netto excretie | C13: =C11-C12 ->  | E13: =E11-E12 -> 
C15: P | E15: P
A16: Opname | C16: ='Okt Voeropname'!C2*'Okt Voeropname'!C8/1000 ->  | E16: ='Okt Voeropname'!E2*'Okt Voeropname'!E8/1000+'Okt Voeropname'!G162*0.001/'Okt vee+melk'!E2 -> 
A17: Gem opname 7 dgn | C17: =AVERAGE(C16:F16) ->  | E17: =AVERAGE(E16) -> 
A18: Productie | C18: ='Okt vee+melk'!C22*0.9/1000 ->  | E18: ='Okt vee+melk'!E22*0.9/1000 -> 
A19: Vastlegging | C19: =0.5/365 -> 0.001369863014 | E19: =0.5/365 -> 0.001369863014
A20: Onder de staart | C20: =C16-C18-C19 ->  | E20: =E16-E18-E19 -> 
A21: Vervluchtiging
A22: Gemeten netto excretie | C22: =C20 ->  | E22: =E20 -> 
A24: N excretie per ton meetmelk (kg) | C24: =C13/'Okt vee+melk'!C21*1000 ->  | E24: =E13/'Okt vee+melk'!E21*1000 -> 
A25: P excretie per ton meetmelk (kg) | C25: =C22/'Okt vee+melk'!C21*1000 ->  | E25: =E22/'Okt vee+melk'!E21*1000 -> 

Sheet Okt kengetallen (hidden)
A1: Rantsoen
A2: Datum | C2: ='Okt voer'!B3 -> Oktober gerealiseerd | E2: ='Okt voer'!G3 -> Oktober prognose
A4: ='Okt Voeropname'!A2 -> DS opname/koe | C4: ='Okt Voeropname'!C2 ->  | E4: ='Okt Voeropname'!E2 -> 
A5: ='Okt Voeropname'!A3 -> VEM | C5: ='Okt Voeropname'!C3 ->  | E5: ='Okt Voeropname'!E3 -> 
A6: ='Okt Voeropname'!A4 -> DVE | C6: ='Okt Voeropname'!C4 ->  | E6: ='Okt Voeropname'!E4 -> 
A7: ='Okt Voeropname'!A5 -> OEB | C7: ='Okt Voeropname'!C5 ->  | E7: ='Okt Voeropname'!E5 -> 
A8: ='Okt Voeropname'!A6 -> RE | C8: ='Okt Voeropname'!C6 ->  | E8: ='Okt Voeropname'!E6 -> 
A9: ='Okt Voeropname'!A7 -> N | C9: ='Okt Voeropname'!C7 ->  | E9: ='Okt Voeropname'!E7 -> 
A10: ='Okt Voeropname'!A8 -> P | C10: ='Okt Voeropname'!C8 ->  | E10: ='Okt Voeropname'!E8 -> 
A12: Streefwaarde RE | C12: ='Okt voer'!H20 -> 160
A13: Streefwaarde P | C13: ='Okt voer'!H21 -> 3.6
A16: ='Okt Excretie'!A24 -> N excretie per ton meetmelk (kg) | C16: ='Okt Excretie'!C24 ->  | E16: ='Okt Excretie'!E24 -> 
A17: ='Okt Excretie'!A25 -> P excretie per ton meetmelk (kg) | C17: ='Okt Excretie'!C25 ->  | E17: ='Okt Excretie'!E25 -> 
A20: VEM dekking | C20: ='Okt Voeropname'!C35/'Okt vee+melk'!C27 ->  | E20: ='Okt Voeropname'!E35/'Okt vee+melk'!E27 -> 
A21: DVE dekking | C21: ='Okt Voeropname'!C36/'Okt vee+melk'!C28 ->  | E21: ='Okt Voeropname'!E36/'Okt vee+melk'!E28 -> 
A24: Voerefficientie kg meetmelk/kg voer (ds) | C24: ='Okt vee+melk'!C21/'Okt Voeropname'!C2 ->  | E24: ='Okt vee+melk'!E21/'Okt Voeropname'!E2 -> 
A25: kg krachtvoer per 100 kg (excl bijprod) | C25: =SUM('Okt Voeropname'!C76:C78)/('Okt vee+melk'!C21*'Okt vee+melk'!C2)*100/0.9 ->  | E25: =SUM('Okt Voeropname'!E76:E78)/('Okt vee+melk'!E21*'Okt vee+melk'!E2)*100 -> 
A28: =A12 -> Streefwaarde RE | C28: =$C$12 -> 160 | E28: =$C$12 -> 160
A29: =A13 -> Streefwaarde P | C29: =$C$13 -> 3.6 | E29: =$C$13 -> 3.6
A34: =A2 -> Datum | C34: =C2 -> Oktober gerealiseerd | D34: =E2 -> Oktober prognose | E34: =#REF! ->  | F34: =#REF! -> 
A35: 00:00:00
A36: DS opname/koe | C36: =C4 ->  | D36: =E4 ->  | E36: =#REF! ->  | F36: =#REF! -> 
A37: VEM | E37: =#REF! ->  | F37: =#REF! -> 
A38: DVE | E38: =#REF! ->  | F38: =#REF! -> 
A39: OEB | E39: =#REF! ->  | F39: =#REF! -> 
A40: RE | E40: =#REF! ->  | F40: =#REF! -> 
A41: N | E41: =#REF! ->  | F41: =#REF! -> 
A42: P | E42: =#REF! ->  | F42: =#REF! -> 
A43: =A15 -> 00:00:00
A44: N excretie per ton meetmelk (kg) | C44: =C16 ->  | D44: =E16 ->  | E44: =#REF! ->  | F44: =#REF! -> 
A45: P excretie per ton meetmelk (kg) | D45: =E17 ->  | E45: =#REF! ->  | F45: =#REF! -> 
A46: 00:00:00 | C46: =1000/C45/2.29 ->  | D46: =1000/D45/2.29 ->  | E46: =1000/E45/2.29 ->  | F46: =1000/F45/2.29 -> 
A49: Rantsoen
A51: Kuilgras | C51: =IF('Okt Voeropname'!$A66='Okt kengetallen'!$A51,'Okt Voeropname'!C66,"") ->  | E51: =IF('Okt Voeropname'!$A66='Okt kengetallen'!$A51,'Okt Voeropname'!E66,"") -> 
A52: Kuilgras | C52: =IF('Okt Voeropname'!$A67='Okt kengetallen'!$A52,'Okt Voeropname'!C67,"") ->  | E52: =IF('Okt Voeropname'!$A67='Okt kengetallen'!$A52,'Okt Voeropname'!E67,"") -> 
A53: Kuilgras | C53: =IF('Okt Voeropname'!$A68='Okt kengetallen'!$A53,'Okt Voeropname'!C68,"") ->  | E53: =IF('Okt Voeropname'!$A68='Okt kengetallen'!$A53,'Okt Voeropname'!E68,"") -> 
A54: Kuilgras | C54: =IF('Okt Voeropname'!$A69='Okt kengetallen'!$A54,'Okt Voeropname'!C69,"") ->  | E54: =IF('Okt Voeropname'!$A69='Okt kengetallen'!$A54,'Okt Voeropname'!E69,"") -> 
A55: Kuilgras | C55: =IF('Okt Voeropname'!$A70='Okt kengetallen'!$A55,'Okt Voeropname'!C70,"") ->  | E55: =IF('Okt Voeropname'!$A70='Okt kengetallen'!$A55,'Okt Voeropname'!E70,"") -> 
A56: Kuilgras | C56: =IF('Okt Voeropname'!$A71='Okt kengetallen'!$A56,'Okt Voeropname'!C71,"") ->  | E56: =IF('Okt Voeropname'!$A71='Okt kengetallen'!$A56,'Okt Voeropname'!E71,"") -> 
A57: Kuilgras | C57: =IF('Okt Voeropname'!$A72='Okt kengetallen'!$A57,'Okt Voeropname'!C72,"") ->  | E57: =IF('Okt Voeropname'!$A72='Okt kengetallen'!$A57,'Okt Voeropname'!E72,"") -> 
A58: Kuilgras | C58: =IF('Okt Voeropname'!$A73='Okt kengetallen'!$A58,'Okt Voeropname'!C73,"") ->  | E58: =IF('Okt Voeropname'!$A73='Okt kengetallen'!$A58,'Okt Voeropname'!E73,"") -> 
A59: Kuilgras | C59: =IF('Okt Voeropname'!$A74='Okt kengetallen'!$A59,'Okt Voeropname'!C74,"") ->  | E59: =IF('Okt Voeropname'!$A74='Okt kengetallen'!$A59,'Okt Voeropname'!E74,"") -> 
A60: Totaal kuilgras | C60: =SUM(C51:C59) -> 0 | E60: =SUM(E51:E59) -> 0
A62: Snijmais | C62: =IF('Okt Voeropname'!$A66='Okt kengetallen'!$A62,'Okt Voeropname'!C66,"") ->  | E62: =IF('Okt Voeropname'!$A66='Okt kengetallen'!$A62,'Okt Voeropname'!E66,"") -> 
A63: Snijmais | C63: =IF('Okt Voeropname'!$A67='Okt kengetallen'!$A63,'Okt Voeropname'!C67,"") ->  | E63: =IF('Okt Voeropname'!$A67='Okt kengetallen'!$A63,'Okt Voeropname'!E67,"") -> 
A64: Snijmais | C64: =IF('Okt Voeropname'!$A68='Okt kengetallen'!$A64,'Okt Voeropname'!C68,"") ->  | E64: =IF('Okt Voeropname'!$A68='Okt kengetallen'!$A64,'Okt Voeropname'!E68,"") -> 
A65: Snijmais | C65: =IF('Okt Voeropname'!$A69='Okt kengetallen'!$A65,'Okt Voeropname'!C69,"") ->  | E65: =IF('Okt Voeropname'!$A69='Okt kengetallen'!$A65,'Okt Voeropname'!E69,"") -> 
A66: Snijmais | C66: =IF('Okt Voeropname'!$A70='Okt kengetallen'!$A66,'Okt Voeropname'!C70,"") ->  | E66: =IF('Okt Voeropname'!$A70='Okt kengetallen'!$A66,'Okt Voeropname'!E70,"") -> 
A67: Snijmais | C67: =IF('Okt Voeropname'!$A71='Okt kengetallen'!$A67,'Okt Voeropname'!C71,"") ->  | E67: =IF('Okt Voeropname'!$A71='Okt kengetallen'!$A67,'Okt Voeropname'!E71,"") -> 
A68: Snijmais | C68: =IF('Okt Voeropname'!$A72='Okt kengetallen'!$A68,'Okt Voeropname'!C72,"") ->  | E68: =IF('Okt Voeropname'!$A72='Okt kengetallen'!$A68,'Okt Voeropname'!E72,"") -> 
A69: Snijmais | C69: =IF('Okt Voeropname'!$A73='Okt kengetallen'!$A69,'Okt Voeropname'!C73,"") ->  | E69: =IF('Okt Voeropname'!$A73='Okt kengetallen'!$A69,'Okt Voeropname'!E73,"") -> 
A70: Snijmais | C70: =IF('Okt Voeropname'!$A74='Okt kengetallen'!$A70,'Okt Voeropname'!C74,"") ->  | E70: =IF('Okt Voeropname'!$A74='Okt kengetallen'!$A70,'Okt Voeropname'!E74,"") -> 
A71: Totaal snijmais | C71: =SUM(C62:C70) -> 0 | E71: =SUM(E62:E70) -> 0
A73: OverigRuwvoer | C73: =IF('Okt Voeropname'!$A66='Okt kengetallen'!$A73,'Okt Voeropname'!C66,"") ->  | E73: =IF('Okt Voeropname'!$A66='Okt kengetallen'!$A73,'Okt Voeropname'!E66,"") -> 
A74: OverigRuwvoer | C74: =IF('Okt Voeropname'!$A67='Okt kengetallen'!$A74,'Okt Voeropname'!C67,"") ->  | E74: =IF('Okt Voeropname'!$A67='Okt kengetallen'!$A74,'Okt Voeropname'!E67,"") -> 
A75: OverigRuwvoer | C75: =IF('Okt Voeropname'!$A68='Okt kengetallen'!$A75,'Okt Voeropname'!C68,"") ->  | E75: =IF('Okt Voeropname'!$A68='Okt kengetallen'!$A75,'Okt Voeropname'!E68,"") -> 
A76: OverigRuwvoer | C76: =IF('Okt Voeropname'!$A69='Okt kengetallen'!$A76,'Okt Voeropname'!C69,"") ->  | E76: =IF('Okt Voeropname'!$A69='Okt kengetallen'!$A76,'Okt Voeropname'!E69,"") -> 
A77: OverigRuwvoer | C77: =IF('Okt Voeropname'!$A70='Okt kengetallen'!$A77,'Okt Voeropname'!C70,"") ->  | E77: =IF('Okt Voeropname'!$A70='Okt kengetallen'!$A77,'Okt Voeropname'!E70,"") -> 
A78: OverigRuwvoer | C78: =IF('Okt Voeropname'!$A71='Okt kengetallen'!$A78,'Okt Voeropname'!C71,"") ->  | E78: =IF('Okt Voeropname'!$A71='Okt kengetallen'!$A78,'Okt Voeropname'!E71,"") -> 
A79: OverigRuwvoer | C79: =IF('Okt Voeropname'!$A72='Okt kengetallen'!$A79,'Okt Voeropname'!C72,"") ->  | E79: =IF('Okt Voeropname'!$A72='Okt kengetallen'!$A79,'Okt Voeropname'!E72,"") -> 
A80: OverigRuwvoer | C80: =IF('Okt Voeropname'!$A73='Okt kengetallen'!$A80,'Okt Voeropname'!C73,"") ->  | E80: =IF('Okt Voeropname'!$A73='Okt kengetallen'!$A80,'Okt Voeropname'!E73,"") -> 
A81: OverigRuwvoer | C81: =IF('Okt Voeropname'!$A74='Okt kengetallen'!$A81,'Okt Voeropname'!C74,"") ->  | E81: =IF('Okt Voeropname'!$A74='Okt kengetallen'!$A81,'Okt Voeropname'!E74,"") -> 
A82: Totaal overig Ruwvoer | C82: =SUM(C73:C81) -> 0 | E82: =SUM(E73:E81) -> 0
A84: Bijproducten | C84: =IF('Okt Voeropname'!$A66='Okt kengetallen'!$A84,'Okt Voeropname'!C66,"") ->  | E84: =IF('Okt Voeropname'!$A66='Okt kengetallen'!$A84,'Okt Voeropname'!E66,"") -> 
A85: Bijproducten | C85: =IF('Okt Voeropname'!$A67='Okt kengetallen'!$A85,'Okt Voeropname'!C67,"") ->  | E85: =IF('Okt Voeropname'!$A67='Okt kengetallen'!$A85,'Okt Voeropname'!E67,"") -> 
A86: Bijproducten | C86: =IF('Okt Voeropname'!$A68='Okt kengetallen'!$A86,'Okt Voeropname'!C68,"") ->  | E86: =IF('Okt Voeropname'!$A68='Okt kengetallen'!$A86,'Okt Voeropname'!E68,"") -> 
A87: Bijproducten | C87: =IF('Okt Voeropname'!$A69='Okt kengetallen'!$A87,'Okt Voeropname'!C69,"") ->  | E87: =IF('Okt Voeropname'!$A69='Okt kengetallen'!$A87,'Okt Voeropname'!E69,"") -> 
A88: Bijproducten | C88: =IF('Okt Voeropname'!$A70='Okt kengetallen'!$A88,'Okt Voeropname'!C70,"") ->  | E88: =IF('Okt Voeropname'!$A70='Okt kengetallen'!$A88,'Okt Voeropname'!E70,"") -> 
A89: Bijproducten | C89: =IF('Okt Voeropname'!$A71='Okt kengetallen'!$A89,'Okt Voeropname'!C71,"") ->  | E89: =IF('Okt Voeropname'!$A71='Okt kengetallen'!$A89,'Okt Voeropname'!E71,"") -> 
A90: Bijproducten | C90: =IF('Okt Voeropname'!$A72='Okt kengetallen'!$A90,'Okt Voeropname'!C72,"") ->  | E90: =IF('Okt Voeropname'!$A72='Okt kengetallen'!$A90,'Okt Voeropname'!E72,"") -> 
A91: Bijproducten | C91: =IF('Okt Voeropname'!$A73='Okt kengetallen'!$A91,'Okt Voeropname'!C73,"") ->  | E91: =IF('Okt Voeropname'!$A73='Okt kengetallen'!$A91,'Okt Voeropname'!E73,"") -> 
A92: Bijproducten | C92: =IF('Okt Voeropname'!$A74='Okt kengetallen'!$A92,'Okt Voeropname'!C74,"") ->  | E92: =IF('Okt Voeropname'!$A74='Okt kengetallen'!$A92,'Okt Voeropname'!E74,"") -> 
A93: Totaal Bijproducten | C93: =SUM(C84:C92) -> 0 | E93: =SUM(E84:E92) -> 0
A95: Krachtvoer | C95: =SUM('Okt Voeropname'!C76:C78) -> 0 | E95: =SUM('Okt Voeropname'!E76:E78) -> 
A97: Vers gras | C97: ='Okt Voeropname'!C31*('Okt vee+melk'!C2+'Okt vee+melk'!C3) -> 0 | E97: ='Okt Voeropname'!E31*('Okt vee+melk'!E2+'Okt vee+melk'!E3) -> 0
A99: Totaal | C99: =C95+C93+C82+C71+C60+C97 -> 0 | E99: =E95+E93+E82+E71+E60+E97 -> 
A101: Vers gras | C101: =C97/C99 ->  | E101: =E97/E99 -> 
A102: Aandeel kuilgras | C102: =C60/C$99 ->  | E102: =E60/E$99 -> 
A103: Aandeel snijmais | C103: =C71/C$99 ->  | E103: =E71/E$99 -> 
A104: Aandeel overig ruwvoer | C104: =C82/C$99 ->  | E104: =E82/E$99 -> 
A105: Aandeel bijproducten | C105: =C93/C$99 ->  | E105: =E93/E$99 -> 
A106: Aandeel krachtvoer | C106: =C95/C$99 ->  | E106: =E95/E$99 -> 

Sheet Sep Voeropname (hidden)
A1: Gem rantsoen gehaltes (d dgn) | C1: ='Sep voer'!B3 -> September gerealiseerd | E1: ='Sep voer'!G3 -> September prognose
A2: DS opname/koe | C2: =C34 ->  | E2: =E34 -> 
A3: VEM | C3: =C12 ->  | E3: =AVERAGE(E12:E12) -> 
A4: DVE | C4: =AVERAGE(C13) ->  | M4: 1 | R4: Voedermiddelen
A5: OEB | C5: =AVERAGE(C14) ->  | M5: 2 | R5: Kuilgras
A6: RE | C6: =AVERAGE(C15) ->  | R6: Snijmais
A7: N | C7: =AVERAGE(C16) ->  | M7: Vem toeslag weidegang | O7: 1.03 | R7: OverigRuwvoer
A8: P | R8: Bijproducten
R9: Krachtvoer
A11: Rantsoen gehaltes (incl. weidegras)
A12: VEM | C12: =C35/C34 ->  | E12: =E35/E34 ->  | R12: Let op bij beperkt weiden is deze opname niet realistisch!
A13: DVE | C13: =C36/C34 ->  | E13: =E36/E34 ->  | R13: Let op VEM dekking te laag!
A14: OEB | C14: =C37 ->  | E14: =E37 -> 
A15: RE | C15: =C38/C34 ->  | E15: =E38/E34 -> 
A16: N | C16: =C39/C34 ->  | E16: =E39/E34 -> 
A17: P | C17: =C40/C34 ->  | E17: =E40/E34 -> 
A22: kg ds | C22: =C55/SUM('Sep vee+melk'!C2:C3) ->  | E22: =E55/SUM('Sep vee+melk'!E2:E3) -> 
A23: Vemopname ex weidegras | C23: =C22*C45 ->  | E23: =E22*E45 -> 
A27: VEM behoefte | C27: =IF('Sep voer'!B4=1,'Sep vee+melk'!C27*'Sep Voeropname'!O7,'Sep vee+melk'!C27) ->  | E27: =IF('Sep voer'!G4=1,'Sep vee+melk'!E27*'Sep Voeropname'!O7,'Sep vee+melk'!E27) -> 
A28: Behoefte-opname | C28: =C27-'Sep Voeropname'!C23 ->  | E28: =E27-'Sep Voeropname'!E23 -> 
C29: =C28/VLOOKUP('Sep voer'!B5,Weidegras!$A$5:$J$119,4,FALSE) ->  | E29: =E28/VLOOKUP('Sep voer'!G5,Weidegras!$A$5:$J$119,4,FALSE) -> 
C30: =IF(C29>0,C29,0) ->  | E30: =IF(E29>0,E29,0) -> 
A31: Weidegrasopname/koe | C31: =IF('Sep voer'!B4=1,C30,0) -> 0 | E31: =IF('Sep voer'!G4=1,E30,0) -> 0
A33: Rantsoenopname incl weidegras
A34: droge stof | C34: =C22+C31 ->  | E34: =E22+E31 -> 
A35: VEM | C35: =C45*C22+C31*VLOOKUP('Sep voer'!B5,Weidegras!$A$6:$J$180,4,FALSE) ->  | E35: =E45*E22+E31*VLOOKUP('Sep voer'!G5,Weidegras!$A$6:$J$180,4,FALSE) -> 
A36: DVE | C36: =C46*C22+$C$31*VLOOKUP('Sep voer'!B5,Weidegras!$A$5:$J$150,5,FALSE) ->  | E36: =E46*E22+$C$31*VLOOKUP('Sep voer'!G5,Weidegras!$A$5:$J$150,5,FALSE) -> 
A37: OEB | C37: =C22*C47+$C$31*VLOOKUP('Sep voer'!B5,Weidegras!$A$6:$J$151,6,FALSE) ->  | E37: =E22*E47+$C$31*VLOOKUP('Sep voer'!G5,Weidegras!$A$6:$J$151,6,FALSE) -> 
A38: RE | C38: =C48*C22+C31*VLOOKUP('Sep voer'!$B$5,Weidegras!$A$6:$J$181,7,FALSE) ->  | E38: =E48*E22+E31*VLOOKUP('Sep voer'!$B$5,Weidegras!$A$6:$J$181,7,FALSE) -> 
A39: N | C39: =C38/6.25 ->  | E39: =E38/6.25 -> 
A40: P | C40: =C50*C22+C31*VLOOKUP('Sep voer'!$B$5,Weidegras!$A$6:$J$183,10,FALSE) ->  | E40: =E50*E22+E31*VLOOKUP('Sep voer'!$B$5,Weidegras!$A$6:$J$183,10,FALSE) -> 
A43: Stalrantsoen gehaltes
A44: droge stof
A45: VEM | C45: =C56/C$55 ->  | E45: =E56/E$55 -> 
A46: DVE | C46: =C57/C$55*1000 ->  | E46: =E57/E$55*1000 -> 
A47: OEB | C47: =C58/C$55 ->  | E47: =E58/E$55 -> 
A48: RE | C48: =C59/C$55 -> 
A49: N | C49: =C60/C$55 -> 
A50: P | C50: =C61/C$55 -> 
A54: Stalrantsoen opname
A55: droge stof (kg) | C55: =C80 -> 0
A56: VEM | C56: =C96 -> 0
A57: DVE | C57: =C112 -> 0 | E57: =E112 -> 0
A58: OEB | C58: =C128 -> 0 | E58: =E128 -> 0
A59: RE | C59: =C144 -> 0 | E59: =E144 -> 0
A60: N | C60: =C146 -> 0 | E60: =E146 -> 0
A61: P | C61: =C162 -> 0 | E61: =E162 -> 0
A65: Drogestof opname
A66: ='Sep voer'!A9 -> 0 | B66: ='Sep voer'!B9 -> 0 | C66: =IF('Sep voer'!C9>0,VLOOKUP('Sep voer'!B9,Voedermiddelen!$A$4:$K$75,3,FALSE)*'Sep voer'!C9*(1-'Sep voer'!$B$6),"") ->  | D66: ='Sep voer'!G9 -> 0 | E66: =IF('Sep voer'!H9>0,VLOOKUP('Sep voer'!G9,Voedermiddelen!$A$4:$K$75,3,FALSE)*'Sep voer'!H9*(1-'Sep voer'!$G$6),"") -> 
A67: ='Sep voer'!A10 -> 0 | B67: ='Sep voer'!B10 -> 0 | C67: =IF('Sep voer'!C10>0,VLOOKUP('Sep voer'!B10,Voedermiddelen!$A$4:$K$75,3,FALSE)*'Sep voer'!C10*(1-'Sep voer'!$B$6),"") ->  | D67: ='Sep voer'!G10 -> 0 | E67: =IF('Sep voer'!H10>0,VLOOKUP('Sep voer'!G10,Voedermiddelen!$A$4:$K$75,3,FALSE)*'Sep voer'!H10*(1-'Sep voer'!$G$6),"") -> 
A68: ='Sep voer'!A11 -> 0 | B68: ='Sep voer'!B11 -> 0 | C68: =IF('Sep voer'!C11>0,VLOOKUP('Sep voer'!B11,Voedermiddelen!$A$4:$K$75,3,FALSE)*'Sep voer'!C11*(1-'Sep voer'!$B$6),"") ->  | D68: ='Sep voer'!G11 -> 0 | E68: =IF('Sep voer'!H11>0,VLOOKUP('Sep voer'!G11,Voedermiddelen!$A$4:$K$75,3,FALSE)*'Sep voer'!H11*(1-'Sep voer'!$G$6),"") -> 
A69: ='Sep voer'!A12 -> 0 | B69: ='Sep voer'!B12 -> 0 | C69: =IF('Sep voer'!C12>0,VLOOKUP('Sep voer'!B12,Voedermiddelen!$A$4:$K$75,3,FALSE)*'Sep voer'!C12*(1-'Sep voer'!$B$6),"") ->  | D69: ='Sep voer'!G12 -> 0 | E69: =IF('Sep voer'!H12>0,VLOOKUP('Sep voer'!G12,Voedermiddelen!$A$4:$K$75,3,FALSE)*'Sep voer'!H12*(1-'Sep voer'!$G$6),"") -> 
A70: ='Sep voer'!A13 -> 0 | B70: ='Sep voer'!B13 -> 0 | C70: =IF('Sep voer'!C13>0,VLOOKUP('Sep voer'!B13,Voedermiddelen!$A$4:$K$75,3,FALSE)*'Sep voer'!C13*(1-'Sep voer'!$B$6),"") ->  | D70: ='Sep voer'!G13 -> 0 | E70: =IF('Sep voer'!H13>0,VLOOKUP('Sep voer'!G13,Voedermiddelen!$A$4:$K$75,3,FALSE)*'Sep voer'!H13*(1-'Sep voer'!$G$6),"") -> 
A71: ='Sep voer'!A14 -> 0 | B71: ='Sep voer'!B14 -> 0 | C71: =IF('Sep voer'!C14>0,VLOOKUP('Sep voer'!B14,Voedermiddelen!$A$4:$K$75,3,FALSE)*'Sep voer'!C14*(1-'Sep voer'!$B$6),"") ->  | D71: ='Sep voer'!G14 -> 0 | E71: =IF('Sep voer'!H14>0,VLOOKUP('Sep voer'!G14,Voedermiddelen!$A$4:$K$75,3,FALSE)*'Sep voer'!H14*(1-'Sep voer'!$G$6),"") -> 
A72: ='Sep voer'!A15 -> 0 | B72: ='Sep voer'!B15 -> 0 | C72: =IF('Sep voer'!C15>0,VLOOKUP('Sep voer'!B15,Voedermiddelen!$A$4:$K$75,3,FALSE)*'Sep voer'!C15*(1-'Sep voer'!$B$6),"") ->  | D72: ='Sep voer'!G15 -> 0 | E72: =IF('Sep voer'!H15>0,VLOOKUP('Sep voer'!G15,Voedermiddelen!$A$4:$K$75,3,FALSE)*'Sep voer'!H15*(1-'Sep voer'!$G$6),"") -> 
A73: ='Sep voer'!A16 -> 0 | B73: ='Sep voer'!B16 -> 0 | C73: =IF('Sep voer'!C16>0,VLOOKUP('Sep voer'!B16,Voedermiddelen!$A$4:$K$75,3,FALSE)*'Sep voer'!C16*(1-'Sep voer'!$B$6),"") ->  | D73: ='Sep voer'!G16 -> 0 | E73: =IF('Sep voer'!H16>0,VLOOKUP('Sep voer'!G16,Voedermiddelen!$A$4:$K$75,3,FALSE)*'Sep voer'!H16*(1-'Sep voer'!$G$6),"") -> 
A74: ='Sep voer'!A17 -> 0 | B74: ='Sep voer'!B17 -> 0 | C74: =IF('Sep voer'!C17>0,VLOOKUP('Sep voer'!B17,Voedermiddelen!$A$4:$K$75,3,FALSE)*'Sep voer'!C17*(1-'Sep voer'!$B$6),"") ->  | D74: ='Sep voer'!G17 -> 0 | E74: =IF('Sep voer'!H17>0,VLOOKUP('Sep voer'!G17,Voedermiddelen!$A$4:$K$75,3,FALSE)*'Sep voer'!H17*(1-'Sep voer'!$G$6),"") -> 
B75: ='Sep voer'!B18 -> 0 | C75: =IF('Sep voer'!C18>0,VLOOKUP('Sep voer'!B18,Voedermiddelen!$A$4:$K$75,3,FALSE)*'Sep voer'!C18*(1-'Sep voer'!$B$6),"") ->  | D75: ='Sep voer'!G18 -> 0 | E75: =IF('Sep voer'!H18>0,VLOOKUP('Sep voer'!G18,Voedermiddelen!$A$4:$K$75,3,FALSE)*'Sep voer'!H18*(1-'Sep voer'!$G$6),"") -> 
B76: ='Sep voer'!B20 -> 0 | C76: =IF('Sep voer'!C20>0,VLOOKUP('Sep voer'!B20,Voedermiddelen!$A$4:$K$75,3,FALSE)*'Sep voer'!C20,"") ->  | E76: ='Sep voer'!H22*'Sep vee+melk'!E15/100*0.9 -> 
B77: ='Sep voer'!B21 -> 0 | C77: =IF('Sep voer'!C21>0,VLOOKUP('Sep voer'!B21,Voedermiddelen!$A$4:$K$75,3,FALSE)*'Sep voer'!C21,"") -> 
B78: ='Sep voer'!B22 -> 0 | C78: =IF('Sep voer'!C22>0,VLOOKUP('Sep voer'!B22,Voedermiddelen!$A$4:$K$75,3,FALSE)*'Sep voer'!C22,"") -> 
A80: Totaal | C80: =SUM(C66:C78) -> 0 | E80: =SUM(E66:E78) -> 
A82: VEM | B82: =B66 -> 0 | C82: =IF('Sep voer'!C9>0,VLOOKUP('Sep voer'!B9,Voedermiddelen!$A$4:$K$75,4,FALSE)*C66,"") ->  | D82: =D66 -> 0 | E82: =IF('Sep voer'!H9>0,VLOOKUP('Sep voer'!G9,Voedermiddelen!$A$4:$K$75,4,FALSE)*E66,"") -> 
B83: =B67 -> 0 | C83: =IF('Sep voer'!C10>0,VLOOKUP('Sep voer'!B10,Voedermiddelen!$A$4:$K$75,4,FALSE)*C67,"") ->  | D83: 0 | E83: =IF('Sep voer'!H10>0,VLOOKUP('Sep voer'!G10,Voedermiddelen!$A$4:$K$75,4,FALSE)*E67,"") -> 
B84: 0 | C84: =IF('Sep voer'!C11>0,VLOOKUP('Sep voer'!B11,Voedermiddelen!$A$4:$K$75,4,FALSE)*C68,"") ->  | D84: 0 | E84: =IF('Sep voer'!H11>0,VLOOKUP('Sep voer'!G11,Voedermiddelen!$A$4:$K$75,4,FALSE)*E68,"") -> 
B85: 0 | C85: =IF('Sep voer'!C12>0,VLOOKUP('Sep voer'!B12,Voedermiddelen!$A$4:$K$75,4,FALSE)*C69,"") ->  | D85: 0 | E85: =IF('Sep voer'!H12>0,VLOOKUP('Sep voer'!G12,Voedermiddelen!$A$4:$K$75,4,FALSE)*E69,"") -> 
B86: 0 | C86: =IF('Sep voer'!C13>0,VLOOKUP('Sep voer'!B13,Voedermiddelen!$A$4:$K$75,4,FALSE)*C70,"") ->  | D86: 0 | E86: =IF('Sep voer'!H13>0,VLOOKUP('Sep voer'!G13,Voedermiddelen!$A$4:$K$75,4,FALSE)*E70,"") -> 
B87: 0 | C87: =IF('Sep voer'!C14>0,VLOOKUP('Sep voer'!B14,Voedermiddelen!$A$4:$K$75,4,FALSE)*C71,"") ->  | D87: 0 | E87: =IF('Sep voer'!H14>0,VLOOKUP('Sep voer'!G14,Voedermiddelen!$A$4:$K$75,4,FALSE)*E71,"") -> 
B88: 0 | C88: =IF('Sep voer'!C15>0,VLOOKUP('Sep voer'!B15,Voedermiddelen!$A$4:$K$75,4,FALSE)*C72,"") ->  | D88: 0 | E88: =IF('Sep voer'!H15>0,VLOOKUP('Sep voer'!G15,Voedermiddelen!$A$4:$K$75,4,FALSE)*E72,"") -> 
B89: 0 | C89: =IF('Sep voer'!C16>0,VLOOKUP('Sep voer'!B16,Voedermiddelen!$A$4:$K$75,4,FALSE)*C73,"") ->  | D89: 0 | E89: =IF('Sep voer'!H16>0,VLOOKUP('Sep voer'!G16,Voedermiddelen!$A$4:$K$75,4,FALSE)*E73,"") -> 
B90: 0 | C90: =IF('Sep voer'!C17>0,VLOOKUP('Sep voer'!B17,Voedermiddelen!$A$4:$K$75,4,FALSE)*C74,"") ->  | D90: 0 | E90: =IF('Sep voer'!H17>0,VLOOKUP('Sep voer'!G17,Voedermiddelen!$A$4:$K$75,4,FALSE)*E74,"") -> 
B91: 0 | C91: =IF('Sep voer'!C18>0,VLOOKUP('Sep voer'!B18,Voedermiddelen!$A$4:$K$75,4,FALSE)*C75,"") ->  | D91: 0 | E91: =IF('Sep voer'!H18>0,VLOOKUP('Sep voer'!G18,Voedermiddelen!$A$4:$K$75,4,FALSE)*E75,"") -> 
B92: 0 | C92: =IF('Sep voer'!C20>0,VLOOKUP('Sep voer'!B20,Voedermiddelen!$A$4:$K$75,4,FALSE)*C76,"") ->  | D92: 0 | E92: =E76*1000 -> 
B93: 0 | C93: =IF('Sep voer'!C21>0,VLOOKUP('Sep voer'!B21,Voedermiddelen!$A$4:$K$75,4,FALSE)*C77,"") ->  | D93: 0
B94: 0 | C94: =IF('Sep voer'!C22>0,VLOOKUP('Sep voer'!B22,Voedermiddelen!$A$4:$K$75,4,FALSE)*C78,"") ->  | D94: 0
A96: Totaal | C96: =SUM(C82:C94) -> 0 | E96: =SUM(E82:E94) -> 
A98: DVE | B98: =B82 -> 0 | C98: =IF('Sep voer'!C9>0,VLOOKUP('Sep voer'!B9,[1]Voedermiddelen!$A$4:$K$75,5,FALSE)*C66,"") ->  | D98: =D82 -> 0 | E98: =IF('Sep voer'!H9>0,VLOOKUP('Sep voer'!G9,Voedermiddelen!$A$4:$K$75,5,FALSE)*E66,"") -> 
B99: =B83 -> 0 | C99: =IF('Sep voer'!C10>0,VLOOKUP('Sep voer'!B10,[1]Voedermiddelen!$A$4:$K$75,5,FALSE)*C67,"") ->  | D99: 0 | E99: =IF('Sep voer'!H10>0,VLOOKUP('Sep voer'!G10,[1]Voedermiddelen!$A$4:$K$75,5,FALSE)*E67,"") -> 
B100: 0 | C100: =IF('Sep voer'!C11>0,VLOOKUP('Sep voer'!B11,[1]Voedermiddelen!$A$4:$K$75,5,FALSE)*C68,"") ->  | D100: 0 | E100: =IF('Sep voer'!H11>0,VLOOKUP('Sep voer'!G11,[1]Voedermiddelen!$A$4:$K$75,5,FALSE)*E68,"") -> 
B101: 0 | C101: =IF('Sep voer'!C12>0,VLOOKUP('Sep voer'!B12,[1]Voedermiddelen!$A$4:$K$75,5,FALSE)*C69,"") ->  | D101: 0 | E101: =IF('Sep voer'!H12>0,VLOOKUP('Sep voer'!G12,[1]Voedermiddelen!$A$4:$K$75,5,FALSE)*E69,"") -> 
B102: 0 | C102: =IF('Sep voer'!C13>0,VLOOKUP('Sep voer'!B13,[1]Voedermiddelen!$A$4:$K$75,5,FALSE)*C70,"") ->  | D102: 0 | E102: =IF('Sep voer'!H13>0,VLOOKUP('Sep voer'!G13,[1]Voedermiddelen!$A$4:$K$75,5,FALSE)*E70,"") -> 
B103: 0 | C103: =IF('Sep voer'!C14>0,VLOOKUP('Sep voer'!B14,[1]Voedermiddelen!$A$4:$K$75,5,FALSE)*C71,"") ->  | D103: 0 | E103: =IF('Sep voer'!H14>0,VLOOKUP('Sep voer'!G14,[1]Voedermiddelen!$A$4:$K$75,5,FALSE)*E71,"") -> 
B104: 0 | C104: =IF('Sep voer'!C15>0,VLOOKUP('Sep voer'!B15,[1]Voedermiddelen!$A$4:$K$75,5,FALSE)*C72,"") ->  | D104: 0 | E104: =IF('Sep voer'!H15>0,VLOOKUP('Sep voer'!G15,[1]Voedermiddelen!$A$4:$K$75,5,FALSE)*E72,"") -> 
B105: 0 | C105: =IF('Sep voer'!C16>0,VLOOKUP('Sep voer'!B16,[1]Voedermiddelen!$A$4:$K$75,5,FALSE)*C73,"") ->  | D105: 0 | E105: =IF('Sep voer'!H16>0,VLOOKUP('Sep voer'!G16,[1]Voedermiddelen!$A$4:$K$75,5,FALSE)*E73,"") -> 
B106: 0 | C106: =IF('Sep voer'!C17>0,VLOOKUP('Sep voer'!B17,[1]Voedermiddelen!$A$4:$K$75,5,FALSE)*C74,"") ->  | D106: 0 | E106: =IF('Sep voer'!H17>0,VLOOKUP('Sep voer'!G17,[1]Voedermiddelen!$A$4:$K$75,5,FALSE)*E74,"") -> 
B107: 0 | C107: =IF('Sep voer'!C18>0,VLOOKUP('Sep voer'!B18,[1]Voedermiddelen!$A$4:$K$75,5,FALSE)*C75,"") ->  | D107: 0 | E107: =IF('Sep voer'!H18>0,VLOOKUP('Sep voer'!G18,[1]Voedermiddelen!$A$4:$K$75,5,FALSE)*E75,"") -> 
B108: 0 | C108: =IF('Sep voer'!C20>0,VLOOKUP('Sep voer'!B20,[1]Voedermiddelen!$A$4:$K$75,5,FALSE)*C76,"") ->  | D108: 0
B109: 0 | C109: =IF('Sep voer'!C21>0,VLOOKUP('Sep voer'!B21,[1]Voedermiddelen!$A$4:$K$75,5,FALSE)*C77,"") ->  | D109: 0
B110: 0 | C110: =IF('Sep voer'!C22>0,VLOOKUP('Sep voer'!B22,[1]Voedermiddelen!$A$4:$K$75,5,FALSE)*C78,"") ->  | D110: 0
A112: Totaal | C112: =SUM(C98:C110)/1000 -> 0 | E112: =SUM(E98:E110)/1000 -> 0
A114: OEB | B114: =B98 -> 0 | C114: =IF('Sep voer'!C9>0,VLOOKUP('Sep voer'!B9,[1]Voedermiddelen!$A$4:$K$75,6,FALSE)*C66,"") ->  | D114: =D98 -> 0 | E114: =IF('Sep voer'!H9>0,VLOOKUP('Sep voer'!G9,[1]Voedermiddelen!$A$4:$K$75,6,FALSE)*E66,"") -> 
B115: =B99 -> 0 | C115: =IF('Sep voer'!C10>0,VLOOKUP('Sep voer'!B10,[1]Voedermiddelen!$A$4:$K$75,6,FALSE)*C67,"") ->  | D115: 0 | E115: =IF('Sep voer'!H10>0,VLOOKUP('Sep voer'!G10,[1]Voedermiddelen!$A$4:$K$75,6,FALSE)*E67,"") -> 
B116: 0 | C116: =IF('Sep voer'!C11>0,VLOOKUP('Sep voer'!B11,[1]Voedermiddelen!$A$4:$K$75,6,FALSE)*C68,"") ->  | D116: 0 | E116: =IF('Sep voer'!H11>0,VLOOKUP('Sep voer'!G11,[1]Voedermiddelen!$A$4:$K$75,6,FALSE)*E68,"") -> 
B117: 0 | C117: =IF('Sep voer'!C12>0,VLOOKUP('Sep voer'!B12,[1]Voedermiddelen!$A$4:$K$75,6,FALSE)*C69,"") ->  | D117: 0 | E117: =IF('Sep voer'!H12>0,VLOOKUP('Sep voer'!G12,[1]Voedermiddelen!$A$4:$K$75,6,FALSE)*E69,"") -> 
B118: 0 | C118: =IF('Sep voer'!C13>0,VLOOKUP('Sep voer'!B13,[1]Voedermiddelen!$A$4:$K$75,6,FALSE)*C70,"") ->  | D118: 0 | E118: =IF('Sep voer'!H13>0,VLOOKUP('Sep voer'!G13,[1]Voedermiddelen!$A$4:$K$75,6,FALSE)*E70,"") -> 
B119: 0 | C119: =IF('Sep voer'!C14>0,VLOOKUP('Sep voer'!B14,[1]Voedermiddelen!$A$4:$K$75,6,FALSE)*C71,"") ->  | D119: 0 | E119: =IF('Sep voer'!H14>0,VLOOKUP('Sep voer'!G14,[1]Voedermiddelen!$A$4:$K$75,6,FALSE)*E71,"") -> 
B120: 0 | C120: =IF('Sep voer'!C15>0,VLOOKUP('Sep voer'!B15,[1]Voedermiddelen!$A$4:$K$75,6,FALSE)*C72,"") ->  | D120: 0 | E120: =IF('Sep voer'!H15>0,VLOOKUP('Sep voer'!G15,[1]Voedermiddelen!$A$4:$K$75,6,FALSE)*E72,"") -> 
B121: 0 | C121: =IF('Sep voer'!C16>0,VLOOKUP('Sep voer'!B16,[1]Voedermiddelen!$A$4:$K$75,6,FALSE)*C73,"") ->  | D121: 0 | E121: =IF('Sep voer'!H16>0,VLOOKUP('Sep voer'!G16,[1]Voedermiddelen!$A$4:$K$75,6,FALSE)*E73,"") -> 
B122: 0 | C122: =IF('Sep voer'!C17>0,VLOOKUP('Sep voer'!B17,[1]Voedermiddelen!$A$4:$K$75,6,FALSE)*C74,"") ->  | D122: 0 | E122: =IF('Sep voer'!H17>0,VLOOKUP('Sep voer'!G17,[1]Voedermiddelen!$A$4:$K$75,6,FALSE)*E74,"") -> 
B123: 0 | C123: =IF('Sep voer'!C18>0,VLOOKUP('Sep voer'!B18,[1]Voedermiddelen!$A$4:$K$75,6,FALSE)*C75,"") ->  | D123: 0 | E123: =IF('Sep voer'!H18>0,VLOOKUP('Sep voer'!G18,[1]Voedermiddelen!$A$4:$K$75,6,FALSE)*E75,"") -> 
B124: 0 | C124: =IF('Sep voer'!C20>0,VLOOKUP('Sep voer'!B20,[1]Voedermiddelen!$A$4:$K$75,6,FALSE)*C76,"") ->  | D124: 0
B125: 0 | C125: =IF('Sep voer'!C21>0,VLOOKUP('Sep voer'!B21,[1]Voedermiddelen!$A$4:$K$75,6,FALSE)*C77,"") ->  | D125: 0
B126: 0 | C126: =IF('Sep voer'!C22>0,VLOOKUP('Sep voer'!B22,[1]Voedermiddelen!$A$4:$K$75,6,FALSE)*C78,"") ->  | D126: 0
A128: Totaal | C128: =SUM(C114:C126) -> 0 | E128: =SUM(E114:E126) -> 0
A130: RE | B130: =B114 -> 0 | C130: =IF('Sep voer'!C9>0,VLOOKUP('Sep voer'!B9,Voedermiddelen!$A$4:$K$75,7,FALSE)*C66,"") ->  | D130: =D114 -> 0 | E130: =IF('Sep voer'!H9>0,VLOOKUP('Sep voer'!G9,Voedermiddelen!$A$4:$K$75,7,FALSE)*E66,"") -> 
B131: =B115 -> 0 | C131: =IF('Sep voer'!C10>0,VLOOKUP('Sep voer'!B10,Voedermiddelen!$A$4:$K$75,7,FALSE)*C67,"") ->  | D131: 0 | E131: =IF('Sep voer'!H10>0,VLOOKUP('Sep voer'!G10,Voedermiddelen!$A$4:$K$75,7,FALSE)*E67,"") -> 
B132: 0 | C132: =IF('Sep voer'!C11>0,VLOOKUP('Sep voer'!B11,Voedermiddelen!$A$4:$K$75,7,FALSE)*C68,"") ->  | D132: 0 | E132: =IF('Sep voer'!H11>0,VLOOKUP('Sep voer'!G11,Voedermiddelen!$A$4:$K$75,7,FALSE)*E68,"") -> 
B133: 0 | C133: =IF('Sep voer'!C12>0,VLOOKUP('Sep voer'!B12,Voedermiddelen!$A$4:$K$75,7,FALSE)*C69,"") ->  | D133: 0 | E133: =IF('Sep voer'!H12>0,VLOOKUP('Sep voer'!G12,Voedermiddelen!$A$4:$K$75,7,FALSE)*E69,"") -> 
B134: 0 | C134: =IF('Sep voer'!C13>0,VLOOKUP('Sep voer'!B13,Voedermiddelen!$A$4:$K$75,7,FALSE)*C70,"") ->  | D134: 0 | E134: =IF('Sep voer'!H13>0,VLOOKUP('Sep voer'!G13,Voedermiddelen!$A$4:$K$75,7,FALSE)*E70,"") -> 
B135: 0 | C135: =IF('Sep voer'!C14>0,VLOOKUP('Sep voer'!B14,Voedermiddelen!$A$4:$K$75,7,FALSE)*C71,"") ->  | D135: 0 | E135: =IF('Sep voer'!H14>0,VLOOKUP('Sep voer'!G14,Voedermiddelen!$A$4:$K$75,7,FALSE)*E71,"") -> 
B136: 0 | C136: =IF('Sep voer'!C15>0,VLOOKUP('Sep voer'!B15,Voedermiddelen!$A$4:$K$75,7,FALSE)*C72,"") ->  | D136: 0 | E136: =IF('Sep voer'!H15>0,VLOOKUP('Sep voer'!G15,Voedermiddelen!$A$4:$K$75,7,FALSE)*E72,"") -> 
B137: 0 | C137: =IF('Sep voer'!C16>0,VLOOKUP('Sep voer'!B16,Voedermiddelen!$A$4:$K$75,7,FALSE)*C73,"") ->  | D137: 0 | E137: =IF('Sep voer'!H16>0,VLOOKUP('Sep voer'!G16,Voedermiddelen!$A$4:$K$75,7,FALSE)*E73,"") -> 
B138: 0 | C138: =IF('Sep voer'!C17>0,VLOOKUP('Sep voer'!B17,Voedermiddelen!$A$4:$K$75,7,FALSE)*C74,"") ->  | D138: 0 | E138: =IF('Sep voer'!H17>0,VLOOKUP('Sep voer'!G17,Voedermiddelen!$A$4:$K$75,7,FALSE)*E74,"") -> 
B139: 0 | C139: =IF('Sep voer'!C18>0,VLOOKUP('Sep voer'!B18,Voedermiddelen!$A$4:$K$75,7,FALSE)*C75,"") ->  | D139: 0 | E139: =IF('Sep voer'!H18>0,VLOOKUP('Sep voer'!G18,Voedermiddelen!$A$4:$K$75,7,FALSE)*E75,"") -> 
B140: 0 | C140: =IF('Sep voer'!C20>0,VLOOKUP('Sep voer'!B20,Voedermiddelen!$A$4:$K$75,7,FALSE)*C76,"") ->  | D140: 0
B141: 0 | C141: =IF('Sep voer'!C21>0,VLOOKUP('Sep voer'!B21,Voedermiddelen!$A$4:$K$75,7,FALSE)*C77,"") ->  | D141: 0
B142: =B126 -> 0 | C142: =IF('Sep voer'!C22>0,VLOOKUP('Sep voer'!B22,Voedermiddelen!$A$4:$K$75,7,FALSE)*C78,"") ->  | D142: 0
A144: Totaal | C144: =SUM(C130:C142) -> 0 | E144: =SUM(E130:E142) -> 0
A146: N opname | C146: =C144/6.25 -> 0 | E146: =E144/6.25 -> 0 | G146: =(E76/0.9*'Sep voer'!M6/6.25) -> 
A148: P | B148: =B130 -> 0 | C148: =IF('Sep voer'!C9>0,VLOOKUP('Sep voer'!B9,Voedermiddelen!$A$4:$K$75,10,FALSE)*C66,"") ->  | D148: =D130 -> 0 | E148: =IF('Sep voer'!H9>0,VLOOKUP('Sep voer'!G9,Voedermiddelen!$A$4:$K$75,10,FALSE)*E66,"") -> 
B149: =B131 -> 0 | C149: =IF('Sep voer'!C10>0,VLOOKUP('Sep voer'!B10,Voedermiddelen!$A$4:$K$75,10,FALSE)*C67,"") ->  | D149: 0 | E149: =IF('Sep voer'!H10>0,VLOOKUP('Sep voer'!G10,Voedermiddelen!$A$4:$K$75,10,FALSE)*E67,"") -> 
B150: 0 | C150: =IF('Sep voer'!C11>0,VLOOKUP('Sep voer'!B11,Voedermiddelen!$A$4:$K$75,10,FALSE)*C68,"") ->  | D150: 0 | E150: =IF('Sep voer'!H11>0,VLOOKUP('Sep voer'!G11,Voedermiddelen!$A$4:$K$75,10,FALSE)*E68,"") -> 
B151: 0 | C151: =IF('Sep voer'!C12>0,VLOOKUP('Sep voer'!B12,Voedermiddelen!$A$4:$K$75,10,FALSE)*C69,"") ->  | D151: 0 | E151: =IF('Sep voer'!H12>0,VLOOKUP('Sep voer'!G12,Voedermiddelen!$A$4:$K$75,10,FALSE)*E69,"") -> 
B152: 0 | C152: =IF('Sep voer'!C13>0,VLOOKUP('Sep voer'!B13,Voedermiddelen!$A$4:$K$75,10,FALSE)*C70,"") ->  | D152: 0 | E152: =IF('Sep voer'!H13>0,VLOOKUP('Sep voer'!G13,Voedermiddelen!$A$4:$K$75,10,FALSE)*E70,"") -> 
B153: 0 | C153: =IF('Sep voer'!C14>0,VLOOKUP('Sep voer'!B14,Voedermiddelen!$A$4:$K$75,10,FALSE)*C71,"") ->  | D153: 0 | E153: =IF('Sep voer'!H14>0,VLOOKUP('Sep voer'!G14,Voedermiddelen!$A$4:$K$75,10,FALSE)*E71,"") -> 
B154: 0 | C154: =IF('Sep voer'!C15>0,VLOOKUP('Sep voer'!B15,Voedermiddelen!$A$4:$K$75,10,FALSE)*C72,"") ->  | D154: 0 | E154: =IF('Sep voer'!H15>0,VLOOKUP('Sep voer'!G15,Voedermiddelen!$A$4:$K$75,10,FALSE)*E72,"") -> 
B155: 0 | C155: =IF('Sep voer'!C16>0,VLOOKUP('Sep voer'!B16,Voedermiddelen!$A$4:$K$75,10,FALSE)*C73,"") ->  | D155: 0 | E155: =IF('Sep voer'!H16>0,VLOOKUP('Sep voer'!G16,Voedermiddelen!$A$4:$K$75,10,FALSE)*E73,"") -> 
B156: 0 | C156: =IF('Sep voer'!C17>0,VLOOKUP('Sep voer'!B17,Voedermiddelen!$A$4:$K$75,10,FALSE)*C74,"") ->  | D156: 0 | E156: =IF('Sep voer'!H17>0,VLOOKUP('Sep voer'!G17,Voedermiddelen!$A$4:$K$75,10,FALSE)*E74,"") -> 
B157: 0 | C157: =IF('Sep voer'!C18>0,VLOOKUP('Sep voer'!B18,Voedermiddelen!$A$4:$K$75,10,FALSE)*C75,"") ->  | D157: 0 | E157: =IF('Sep voer'!H18>0,VLOOKUP('Sep voer'!G18,Voedermiddelen!$A$4:$K$75,10,FALSE)*E75,"") -> 
B158: =B140 -> 0 | C158: =IF('Sep voer'!C20>0,VLOOKUP('Sep voer'!B20,Voedermiddelen!$A$4:$K$75,10,FALSE)*C76,"") ->  | D158: 0
B159: =B141 -> 0 | C159: =IF('Sep voer'!C21>0,VLOOKUP('Sep voer'!B21,Voedermiddelen!$A$4:$K$75,10,FALSE)*C77,"") ->  | D159: 0
B160: =B142 -> 0 | C160: =IF('Sep voer'!C22>0,VLOOKUP('Sep voer'!B22,Voedermiddelen!$A$4:$K$75,10,FALSE)*C78,"") ->  | D160: 0
A162: Totaal | C162: =SUM(C148:C160) -> 0 | E162: =SUM(E148:E160) -> 0 | G162: =(E76/0.9*'Sep voer'!M7) -> 

Sheet Sep Excretie (hidden)
A1: Veestapel
C2: ='Sep vee+melk'!C6 -> September gerealiseerd | E2: ='Sep vee+melk'!E6 -> September prognose
A5: Excretie (kg/dier/dag)
C6: N | E6: N
A7: Opname | C7: ='Sep Voeropname'!C2*'Sep Voeropname'!C7*0.001 ->  | E7: ='Sep Voeropname'!E2*'Sep Voeropname'!E7*0.001+'Sep Voeropname'!G146*0.001/'Sep vee+melk'!E2 -> 
A8: Gem opname 7 dgn | C8: =AVERAGE(C7:F7) ->  | E8: =AVERAGE(E7) -> 
A9: Productie | C9: ='Sep vee+melk'!C22*'Sep vee+melk'!C10/6.38 ->  | E9: ='Sep vee+melk'!E22*'Sep vee+melk'!E10/6.38 -> 
A10: Vastlegging | C10: =1.4/365 -> 0.003835616438 | E10: =1.4/365 -> 0.003835616438
A11: Onder de staart | C11: =C7-C9-C10 ->  | E11: =E7-E9-E10 -> 
A12: Vervluchtiging | C12: =C11*0.1175 ->  | E12: =E11*0.1175 -> 
A13: Gemeten netto excretie | C13: =C11-C12 ->  | E13: =E11-E12 -> 
C15: P | E15: P
A16: Opname | C16: ='Sep Voeropname'!C2*'Sep Voeropname'!C8/1000 ->  | E16: ='Sep Voeropname'!E2*'Sep Voeropname'!E8/1000+'Sep Voeropname'!G162*0.001/'Sep vee+melk'!E2 -> 
A17: Gem opname 7 dgn | C17: =AVERAGE(C16:F16) ->  | E17: =AVERAGE(E16) -> 
A18: Productie | C18: ='Sep vee+melk'!C22*0.9/1000 ->  | E18: ='Sep vee+melk'!E22*0.9/1000 -> 
A19: Vastlegging | C19: =0.5/365 -> 0.001369863014 | E19: =0.5/365 -> 0.001369863014
A20: Onder de staart | C20: =C16-C18-C19 ->  | E20: =E16-E18-E19 -> 
A21: Vervluchtiging
A22: Gemeten netto excretie | C22: =C20 ->  | E22: =E20 -> 
A24: N excretie per ton meetmelk (kg) | C24: =C13/'Sep vee+melk'!C21*1000 ->  | E24: =E13/'Sep vee+melk'!E21*1000 -> 
A25: P excretie per ton meetmelk (kg) | C25: =C22/'Sep vee+melk'!C21*1000 ->  | E25: =E22/'Sep vee+melk'!E21*1000 -> 

Sheet Sep kengetallen (hidden)
A1: Rantsoen
A2: Datum | C2: ='Sep voer'!B3 -> September gerealiseerd | E2: ='Sep voer'!G3 -> September prognose
A4: ='Sep Voeropname'!A2 -> DS opname/koe | C4: ='Sep Voeropname'!C2 ->  | E4: ='Sep Voeropname'!E2 -> 
A5: ='Sep Voeropname'!A3 -> VEM | C5: ='Sep Voeropname'!C3 ->  | E5: ='Sep Voeropname'!E3 -> 
A6: ='Sep Voeropname'!A4 -> DVE | C6: ='Sep Voeropname'!C4 ->  | E6: ='Sep Voeropname'!E4 -> 
A7: ='Sep Voeropname'!A5 -> OEB | C7: ='Sep Voeropname'!C5 ->  | E7: ='Sep Voeropname'!E5 -> 
A8: ='Sep Voeropname'!A6 -> RE | C8: ='Sep Voeropname'!C6 ->  | E8: ='Sep Voeropname'!E6 -> 
A9: ='Sep Voeropname'!A7 -> N | C9: ='Sep Voeropname'!C7 ->  | E9: ='Sep Voeropname'!E7 -> 
A10: ='Sep Voeropname'!A8 -> P | C10: ='Sep Voeropname'!C8 ->  | E10: ='Sep Voeropname'!E8 -> 
A12: Streefwaarde RE | C12: ='Sep voer'!H20 -> 160
A13: Streefwaarde P | C13: ='Sep voer'!H21 -> 3.6
A16: ='Sep Excretie'!A24 -> N excretie per ton meetmelk (kg) | C16: ='Sep Excretie'!C24 ->  | E16: ='Sep Excretie'!E24 -> 
A17: ='Sep Excretie'!A25 -> P excretie per ton meetmelk (kg) | C17: ='Sep Excretie'!C25 ->  | E17: ='Sep Excretie'!E25 -> 
A20: VEM dekking | C20: ='Sep Voeropname'!C35/'Sep vee+melk'!C27 ->  | E20: ='Sep Voeropname'!E35/'Sep vee+melk'!E27 -> 
A21: DVE dekking | C21: ='Sep Voeropname'!C36/'Sep vee+melk'!C28 ->  | E21: ='Sep Voeropname'!E36/'Sep vee+melk'!E28 -> 
A24: Voerefficientie kg meetmelk/kg voer (ds) | C24: ='Sep vee+melk'!C21/'Sep Voeropname'!C2 ->  | E24: ='Sep vee+melk'!E21/'Sep Voeropname'!E2 -> 
A25: kg krachtvoer per 100 kg (excl bijprod) | C25: =SUM('Sep Voeropname'!C76:C78)/('Sep vee+melk'!C21*'Sep vee+melk'!C2)*100/0.9 ->  | E25: =SUM('Sep Voeropname'!E76:E78)/('Sep vee+melk'!E21*'Sep vee+melk'!E2)*100 -> 
A28: =A12 -> Streefwaarde RE | C28: =$C$12 -> 160 | E28: =$C$12 -> 160
A29: =A13 -> Streefwaarde P | C29: =$C$13 -> 3.6 | E29: =$C$13 -> 3.6
A34: =A2 -> Datum | C34: =C2 -> September gerealiseerd | D34: =E2 -> September prognose | E34: =#REF! ->  | F34: =#REF! -> 
A35: 00:00:00
A36: DS opname/koe | C36: =C4 ->  | D36: =E4 ->  | E36: =#REF! ->  | F36: =#REF! -> 
A37: VEM | E37: =#REF! ->  | F37: =#REF! -> 
A38: DVE | E38: =#REF! ->  | F38: =#REF! -> 
A39: OEB | E39: =#REF! ->  | F39: =#REF! -> 
A40: RE | E40: =#REF! ->  | F40: =#REF! -> 
A41: N | E41: =#REF! ->  | F41: =#REF! -> 
A42: P | E42: =#REF! ->  | F42: =#REF! -> 
A43: =A15 -> 00:00:00
A44: N excretie per ton meetmelk (kg) | C44: =C16 ->  | D44: =E16 ->  | E44: =#REF! ->  | F44: =#REF! -> 
A45: P excretie per ton meetmelk (kg) | D45: =E17 ->  | E45: =#REF! ->  | F45: =#REF! -> 
A46: 00:00:00 | C46: =1000/C45/2.29 ->  | D46: =1000/D45/2.29 ->  | E46: =1000/E45/2.29 ->  | F46: =1000/F45/2.29 -> 
A49: Rantsoen
A51: Kuilgras | C51: =IF('Sep Voeropname'!$A66='Sep kengetallen'!$A51,'Sep Voeropname'!C66,"") ->  | E51: =IF('Sep Voeropname'!$A66='Sep kengetallen'!$A51,'Sep Voeropname'!E66,"") -> 
A52: Kuilgras | C52: =IF('Sep Voeropname'!$A67='Sep kengetallen'!$A52,'Sep Voeropname'!C67,"") ->  | E52: =IF('Sep Voeropname'!$A67='Sep kengetallen'!$A52,'Sep Voeropname'!E67,"") -> 
A53: Kuilgras | C53: =IF('Sep Voeropname'!$A68='Sep kengetallen'!$A53,'Sep Voeropname'!C68,"") ->  | E53: =IF('Sep Voeropname'!$A68='Sep kengetallen'!$A53,'Sep Voeropname'!E68,"") -> 
A54: Kuilgras | C54: =IF('Sep Voeropname'!$A69='Sep kengetallen'!$A54,'Sep Voeropname'!C69,"") ->  | E54: =IF('Sep Voeropname'!$A69='Sep kengetallen'!$A54,'Sep Voeropname'!E69,"") -> 
A55: Kuilgras | C55: =IF('Sep Voeropname'!$A70='Sep kengetallen'!$A55,'Sep Voeropname'!C70,"") ->  | E55: =IF('Sep Voeropname'!$A70='Sep kengetallen'!$A55,'Sep Voeropname'!E70,"") -> 
A56: Kuilgras | C56: =IF('Sep Voeropname'!$A71='Sep kengetallen'!$A56,'Sep Voeropname'!C71,"") ->  | E56: =IF('Sep Voeropname'!$A71='Sep kengetallen'!$A56,'Sep Voeropname'!E71,"") -> 
A57: Kuilgras | C57: =IF('Sep Voeropname'!$A72='Sep kengetallen'!$A57,'Sep Voeropname'!C72,"") ->  | E57: =IF('Sep Voeropname'!$A72='Sep kengetallen'!$A57,'Sep Voeropname'!E72,"") -> 
A58: Kuilgras | C58: =IF('Sep Voeropname'!$A73='Sep kengetallen'!$A58,'Sep Voeropname'!C73,"") ->  | E58: =IF('Sep Voeropname'!$A73='Sep kengetallen'!$A58,'Sep Voeropname'!E73,"") -> 
A59: Kuilgras | C59: =IF('Sep Voeropname'!$A74='Sep kengetallen'!$A59,'Sep Voeropname'!C74,"") ->  | E59: =IF('Sep Voeropname'!$A74='Sep kengetallen'!$A59,'Sep Voeropname'!E74,"") -> 
A60: Totaal kuilgras | C60: =SUM(C51:C59) -> 0 | E60: =SUM(E51:E59) -> 0
A62: Snijmais | C62: =IF('Sep Voeropname'!$A66='Sep kengetallen'!$A62,'Sep Voeropname'!C66,"") ->  | E62: =IF('Sep Voeropname'!$A66='Sep kengetallen'!$A62,'Sep Voeropname'!E66,"") -> 
A63: Snijmais | C63: =IF('Sep Voeropname'!$A67='Sep kengetallen'!$A63,'Sep Voeropname'!C67,"") ->  | E63: =IF('Sep Voeropname'!$A67='Sep kengetallen'!$A63,'Sep Voeropname'!E67,"") -> 
A64: Snijmais | C64: =IF('Sep Voeropname'!$A68='Sep kengetallen'!$A64,'Sep Voeropname'!C68,"") ->  | E64: =IF('Sep Voeropname'!$A68='Sep kengetallen'!$A64,'Sep Voeropname'!E68,"") -> 
A65: Snijmais | C65: =IF('Sep Voeropname'!$A69='Sep kengetallen'!$A65,'Sep Voeropname'!C69,"") ->  | E65: =IF('Sep Voeropname'!$A69='Sep kengetallen'!$A65,'Sep Voeropname'!E69,"") -> 
A66: Snijmais | C66: =IF('Sep Voeropname'!$A70='Sep kengetallen'!$A66,'Sep Voeropname'!C70,"") ->  | E66: =IF('Sep Voeropname'!$A70='Sep kengetallen'!$A66,'Sep Voeropname'!E70,"") -> 
A67: Snijmais | C67: =IF('Sep Voeropname'!$A71='Sep kengetallen'!$A67,'Sep Voeropname'!C71,"") ->  | E67: =IF('Sep Voeropname'!$A71='Sep kengetallen'!$A67,'Sep Voeropname'!E71,"") -> 
A68: Snijmais | C68: =IF('Sep Voeropname'!$A72='Sep kengetallen'!$A68,'Sep Voeropname'!C72,"") ->  | E68: =IF('Sep Voeropname'!$A72='Sep kengetallen'!$A68,'Sep Voeropname'!E72,"") -> 
A69: Snijmais | C69: =IF('Sep Voeropname'!$A73='Sep kengetallen'!$A69,'Sep Voeropname'!C73,"") ->  | E69: =IF('Sep Voeropname'!$A73='Sep kengetallen'!$A69,'Sep Voeropname'!E73,"") -> 
A70: Snijmais | C70: =IF('Sep Voeropname'!$A74='Sep kengetallen'!$A70,'Sep Voeropname'!C74,"") ->  | E70: =IF('Sep Voeropname'!$A74='Sep kengetallen'!$A70,'Sep Voeropname'!E74,"") -> 
A71: Totaal snijmais | C71: =SUM(C62:C70) -> 0 | E71: =SUM(E62:E70) -> 0
A73: OverigRuwvoer | C73: =IF('Sep Voeropname'!$A66='Sep kengetallen'!$A73,'Sep Voeropname'!C66,"") ->  | E73: =IF('Sep Voeropname'!$A66='Sep kengetallen'!$A73,'Sep Voeropname'!E66,"") -> 
A74: OverigRuwvoer | C74: =IF('Sep Voeropname'!$A67='Sep kengetallen'!$A74,'Sep Voeropname'!C67,"") ->  | E74: =IF('Sep Voeropname'!$A67='Sep kengetallen'!$A74,'Sep Voeropname'!E67,"") -> 
A75: OverigRuwvoer | C75: =IF('Sep Voeropname'!$A68='Sep kengetallen'!$A75,'Sep Voeropname'!C68,"") ->  | E75: =IF('Sep Voeropname'!$A68='Sep kengetallen'!$A75,'Sep Voeropname'!E68,"") -> 
A76: OverigRuwvoer | C76: =IF('Sep Voeropname'!$A69='Sep kengetallen'!$A76,'Sep Voeropname'!C69,"") ->  | E76: =IF('Sep Voeropname'!$A69='Sep kengetallen'!$A76,'Sep Voeropname'!E69,"") -> 
A77: OverigRuwvoer | C77: =IF('Sep Voeropname'!$A70='Sep kengetallen'!$A77,'Sep Voeropname'!C70,"") ->  | E77: =IF('Sep Voeropname'!$A70='Sep kengetallen'!$A77,'Sep Voeropname'!E70,"") -> 
A78: OverigRuwvoer | C78: =IF('Sep Voeropname'!$A71='Sep kengetallen'!$A78,'Sep Voeropname'!C71,"") ->  | E78: =IF('Sep Voeropname'!$A71='Sep kengetallen'!$A78,'Sep Voeropname'!E71,"") -> 
A79: OverigRuwvoer | C79: =IF('Sep Voeropname'!$A72='Sep kengetallen'!$A79,'Sep Voeropname'!C72,"") ->  | E79: =IF('Sep Voeropname'!$A72='Sep kengetallen'!$A79,'Sep Voeropname'!E72,"") -> 
A80: OverigRuwvoer | C80: =IF('Sep Voeropname'!$A73='Sep kengetallen'!$A80,'Sep Voeropname'!C73,"") ->  | E80: =IF('Sep Voeropname'!$A73='Sep kengetallen'!$A80,'Sep Voeropname'!E73,"") -> 
A81: OverigRuwvoer | C81: =IF('Sep Voeropname'!$A74='Sep kengetallen'!$A81,'Sep Voeropname'!C74,"") ->  | E81: =IF('Sep Voeropname'!$A74='Sep kengetallen'!$A81,'Sep Voeropname'!E74,"") -> 
A82: Totaal overig Ruwvoer | C82: =SUM(C73:C81) -> 0 | E82: =SUM(E73:E81) -> 0
A84: Bijproducten | C84: =IF('Sep Voeropname'!$A66='Sep kengetallen'!$A84,'Sep Voeropname'!C66,"") ->  | E84: =IF('Sep Voeropname'!$A66='Sep kengetallen'!$A84,'Sep Voeropname'!E66,"") -> 
A85: Bijproducten | C85: =IF('Sep Voeropname'!$A67='Sep kengetallen'!$A85,'Sep Voeropname'!C67,"") ->  | E85: =IF('Sep Voeropname'!$A67='Sep kengetallen'!$A85,'Sep Voeropname'!E67,"") -> 
A86: Bijproducten | C86: =IF('Sep Voeropname'!$A68='Sep kengetallen'!$A86,'Sep Voeropname'!C68,"") ->  | E86: =IF('Sep Voeropname'!$A68='Sep kengetallen'!$A86,'Sep Voeropname'!E68,"") -> 
A87: Bijproducten | C87: =IF('Sep Voeropname'!$A69='Sep kengetallen'!$A87,'Sep Voeropname'!C69,"") ->  | E87: =IF('Sep Voeropname'!$A69='Sep kengetallen'!$A87,'Sep Voeropname'!E69,"") -> 
A88: Bijproducten | C88: =IF('Sep Voeropname'!$A70='Sep kengetallen'!$A88,'Sep Voeropname'!C70,"") ->  | E88: =IF('Sep Voeropname'!$A70='Sep kengetallen'!$A88,'Sep Voeropname'!E70,"") -> 
A89: Bijproducten | C89: =IF('Sep Voeropname'!$A71='Sep kengetallen'!$A89,'Sep Voeropname'!C71,"") ->  | E89: =IF('Sep Voeropname'!$A71='Sep kengetallen'!$A89,'Sep Voeropname'!E71,"") -> 
A90: Bijproducten | C90: =IF('Sep Voeropname'!$A72='Sep kengetallen'!$A90,'Sep Voeropname'!C72,"") ->  | E90: =IF('Sep Voeropname'!$A72='Sep kengetallen'!$A90,'Sep Voeropname'!E72,"") -> 
A91: Bijproducten | C91: =IF('Sep Voeropname'!$A73='Sep kengetallen'!$A91,'Sep Voeropname'!C73,"") ->  | E91: =IF('Sep Voeropname'!$A73='Sep kengetallen'!$A91,'Sep Voeropname'!E73,"") -> 
A92: Bijproducten | C92: =IF('Sep Voeropname'!$A74='Sep kengetallen'!$A92,'Sep Voeropname'!C74,"") ->  | E92: =IF('Sep Voeropname'!$A74='Sep kengetallen'!$A92,'Sep Voeropname'!E74,"") -> 
A93: Totaal Bijproducten | C93: =SUM(C84:C92) -> 0 | E93: =SUM(E84:E92) -> 0
A95: Krachtvoer | C95: =SUM('Sep Voeropname'!C76:C78) -> 0 | E95: =SUM('Sep Voeropname'!E76:E78) -> 
A97: Vers gras | C97: ='Sep Voeropname'!C31*('Sep vee+melk'!C2+'Sep vee+melk'!C3) -> 0 | E97: ='Sep Voeropname'!E31*('Sep vee+melk'!E2+'Sep vee+melk'!E3) -> 0
A99: Totaal | C99: =C95+C93+C82+C71+C60+C97 -> 0 | E99: =E95+E93+E82+E71+E60+E97 -> 
A101: Vers gras | C101: =C97/C99 ->  | E101: =E97/E99 -> 
A102: Aandeel kuilgras | C102: =C60/C$99 ->  | E102: =E60/E$99 -> 
A103: Aandeel snijmais | C103: =C71/C$99 ->  | E103: =E71/E$99 -> 
A104: Aandeel overig ruwvoer | C104: =C82/C$99 ->  | E104: =E82/E$99 -> 
A105: Aandeel bijproducten | C105: =C93/C$99 ->  | E105: =E93/E$99 -> 
A106: Aandeel krachtvoer | C106: =C95/C$99 ->  | E106: =E95/E$99 -> 

Sheet Aug Voeropname (hidden)
A1: Gem rantsoen gehaltes (d dgn) | C1: ='Aug voer'!B3 -> Augustus gerealiseerd | E1: ='Aug voer'!G3 -> Augustus prognose
A2: DS opname/koe | C2: =C34 ->  | E2: =E34 -> 
A3: VEM | C3: =C12 ->  | E3: =AVERAGE(E12:E12) -> 
A4: DVE | C4: =AVERAGE(C13) ->  | M4: 1 | R4: Voedermiddelen
A5: OEB | C5: =AVERAGE(C14) ->  | M5: 2 | R5: Kuilgras
A6: RE | C6: =AVERAGE(C15) ->  | R6: Snijmais
A7: N | C7: =AVERAGE(C16) ->  | M7: Vem toeslag weidegang | O7: 1.03 | R7: OverigRuwvoer
A8: P | R8: Bijproducten
R9: Krachtvoer
A11: Rantsoen gehaltes (incl. weidegras)
A12: VEM | C12: =C35/C34 ->  | E12: =E35/E34 ->  | R12: Let op bij beperkt weiden is deze opname niet realistisch!
A13: DVE | C13: =C36/C34 ->  | E13: =E36/E34 ->  | R13: Let op VEM dekking te laag!
A14: OEB | C14: =C37 ->  | E14: =E37 -> 
A15: RE | C15: =C38/C34 ->  | E15: =E38/E34 -> 
A16: N | C16: =C39/C34 ->  | E16: =E39/E34 -> 
A17: P | C17: =C40/C34 ->  | E17: =E40/E34 -> 
A22: kg ds | C22: =C55/SUM('Aug vee+melk'!C2:C3) ->  | E22: =E55/SUM('Aug vee+melk'!E2:E3) -> 
A23: Vemopname ex weidegras | C23: =C22*C45 ->  | E23: =E22*E45 -> 
A27: VEM behoefte | C27: =IF('Aug voer'!B4=1,'Aug vee+melk'!C27*'Aug Voeropname'!O7,'Aug vee+melk'!C27) ->  | E27: =IF('Aug voer'!G4=1,'Aug vee+melk'!E27*'Aug Voeropname'!O7,'Aug vee+melk'!E27) -> 
A28: Behoefte-opname | C28: =C27-'Aug Voeropname'!C23 ->  | E28: =E27-'Aug Voeropname'!E23 -> 
C29: =C28/VLOOKUP('Aug voer'!B5,Weidegras!$A$5:$J$119,4,FALSE) ->  | E29: =E28/VLOOKUP('Aug voer'!G5,Weidegras!$A$5:$J$119,4,FALSE) -> 
C30: =IF(C29>0,C29,0) ->  | E30: =IF(E29>0,E29,0) -> 
A31: Weidegrasopname/koe | C31: =IF('Aug voer'!B4=1,C30,0) -> 0 | E31: =IF('Aug voer'!G4=1,E30,0) -> 0
A33: Rantsoenopname incl weidegras
A34: droge stof | C34: =C22+C31 ->  | E34: =E22+E31 -> 
A35: VEM | C35: =C45*C22+C31*VLOOKUP('Aug voer'!B5,Weidegras!$A$6:$J$180,4,FALSE) ->  | E35: =E45*E22+E31*VLOOKUP('Aug voer'!G5,Weidegras!$A$6:$J$180,4,FALSE) -> 
A36: DVE | C36: =C46*C22+$C$31*VLOOKUP('Aug voer'!B5,Weidegras!$A$5:$J$150,5,FALSE) ->  | E36: =E46*E22+$C$31*VLOOKUP('Aug voer'!G5,Weidegras!$A$5:$J$150,5,FALSE) -> 
A37: OEB | C37: =C22*C47+$C$31*VLOOKUP('Aug voer'!B5,Weidegras!$A$6:$J$151,6,FALSE) ->  | E37: =E22*E47+$C$31*VLOOKUP('Aug voer'!G5,Weidegras!$A$6:$J$151,6,FALSE) -> 
A38: RE | C38: =C48*C22+C31*VLOOKUP('Aug voer'!$B$5,Weidegras!$A$6:$J$181,7,FALSE) ->  | E38: =E48*E22+E31*VLOOKUP('Aug voer'!$B$5,Weidegras!$A$6:$J$181,7,FALSE) -> 
A39: N | C39: =C38/6.25 ->  | E39: =E38/6.25 -> 
A40: P | C40: =C50*C22+C31*VLOOKUP('Aug voer'!$B$5,Weidegras!$A$6:$J$183,10,FALSE) ->  | E40: =E50*E22+E31*VLOOKUP('Aug voer'!$B$5,Weidegras!$A$6:$J$183,10,FALSE) -> 
A43: Stalrantsoen gehaltes
A44: droge stof
A45: VEM | C45: =C56/C$55 ->  | E45: =E56/E$55 -> 
A46: DVE | C46: =C57/C$55*1000 ->  | E46: =E57/E$55*1000 -> 
A47: OEB | C47: =C58/C$55 ->  | E47: =E58/E$55 -> 
A48: RE | C48: =C59/C$55 -> 
A49: N | C49: =C60/C$55 -> 
A50: P | C50: =C61/C$55 -> 
A54: Stalrantsoen opname
A55: droge stof (kg) | C55: =C80 -> 0
A56: VEM | C56: =C96 -> 0
A57: DVE | C57: =C112 -> 0 | E57: =E112 -> 0
A58: OEB | C58: =C128 -> 0 | E58: =E128 -> 0
A59: RE | C59: =C144 -> 0 | E59: =E144 -> 0
A60: N | C60: =C146 -> 0 | E60: =E146 -> 0
A61: P | C61: =C162 -> 0 | E61: =E162 -> 0
A65: Drogestof opname
A66: ='Aug voer'!A9 -> 0 | B66: ='Aug voer'!B9 -> 0 | C66: =IF('Aug voer'!C9>0,VLOOKUP('Aug voer'!B9,Voedermiddelen!$A$4:$K$75,3,FALSE)*'Aug voer'!C9*(1-'Aug voer'!$B$6),"") ->  | D66: ='Aug voer'!G9 -> 0 | E66: =IF('Aug voer'!H9>0,VLOOKUP('Aug voer'!G9,Voedermiddelen!$A$4:$K$75,3,FALSE)*'Aug voer'!H9*(1-'Aug voer'!$G$6),"") -> 
A67: ='Aug voer'!A10 -> 0 | B67: ='Aug voer'!B10 -> 0 | C67: =IF('Aug voer'!C10>0,VLOOKUP('Aug voer'!B10,Voedermiddelen!$A$4:$K$75,3,FALSE)*'Aug voer'!C10*(1-'Aug voer'!$B$6),"") ->  | D67: ='Aug voer'!G10 -> 0 | E67: =IF('Aug voer'!H10>0,VLOOKUP('Aug voer'!G10,Voedermiddelen!$A$4:$K$75,3,FALSE)*'Aug voer'!H10*(1-'Aug voer'!$G$6),"") -> 
A68: ='Aug voer'!A11 -> 0 | B68: ='Aug voer'!B11 -> 0 | C68: =IF('Aug voer'!C11>0,VLOOKUP('Aug voer'!B11,Voedermiddelen!$A$4:$K$75,3,FALSE)*'Aug voer'!C11*(1-'Aug voer'!$B$6),"") ->  | D68: ='Aug voer'!G11 -> 0 | E68: =IF('Aug voer'!H11>0,VLOOKUP('Aug voer'!G11,Voedermiddelen!$A$4:$K$75,3,FALSE)*'Aug voer'!H11*(1-'Aug voer'!$G$6),"") -> 
A69: ='Aug voer'!A12 -> 0 | B69: ='Aug voer'!B12 -> 0 | C69: =IF('Aug voer'!C12>0,VLOOKUP('Aug voer'!B12,Voedermiddelen!$A$4:$K$75,3,FALSE)*'Aug voer'!C12*(1-'Aug voer'!$B$6),"") ->  | D69: ='Aug voer'!G12 -> 0 | E69: =IF('Aug voer'!H12>0,VLOOKUP('Aug voer'!G12,Voedermiddelen!$A$4:$K$75,3,FALSE)*'Aug voer'!H12*(1-'Aug voer'!$G$6),"") -> 
A70: ='Aug voer'!A13 -> 0 | B70: ='Aug voer'!B13 -> 0 | C70: =IF('Aug voer'!C13>0,VLOOKUP('Aug voer'!B13,Voedermiddelen!$A$4:$K$75,3,FALSE)*'Aug voer'!C13*(1-'Aug voer'!$B$6),"") ->  | D70: ='Aug voer'!G13 -> 0 | E70: =IF('Aug voer'!H13>0,VLOOKUP('Aug voer'!G13,Voedermiddelen!$A$4:$K$75,3,FALSE)*'Aug voer'!H13*(1-'Aug voer'!$G$6),"") -> 
A71: ='Aug voer'!A14 -> 0 | B71: ='Aug voer'!B14 -> 0 | C71: =IF('Aug voer'!C14>0,VLOOKUP('Aug voer'!B14,Voedermiddelen!$A$4:$K$75,3,FALSE)*'Aug voer'!C14*(1-'Aug voer'!$B$6),"") ->  | D71: ='Aug voer'!G14 -> 0 | E71: =IF('Aug voer'!H14>0,VLOOKUP('Aug voer'!G14,Voedermiddelen!$A$4:$K$75,3,FALSE)*'Aug voer'!H14*(1-'Aug voer'!$G$6),"") -> 
A72: ='Aug voer'!A15 -> 0 | B72: ='Aug voer'!B15 -> 0 | C72: =IF('Aug voer'!C15>0,VLOOKUP('Aug voer'!B15,Voedermiddelen!$A$4:$K$75,3,FALSE)*'Aug voer'!C15*(1-'Aug voer'!$B$6),"") ->  | D72: ='Aug voer'!G15 -> 0 | E72: =IF('Aug voer'!H15>0,VLOOKUP('Aug voer'!G15,Voedermiddelen!$A$4:$K$75,3,FALSE)*'Aug voer'!H15*(1-'Aug voer'!$G$6),"") -> 
A73: ='Aug voer'!A16 -> 0 | B73: ='Aug voer'!B16 -> 0 | C73: =IF('Aug voer'!C16>0,VLOOKUP('Aug voer'!B16,Voedermiddelen!$A$4:$K$75,3,FALSE)*'Aug voer'!C16*(1-'Aug voer'!$B$6),"") ->  | D73: ='Aug voer'!G16 -> 0 | E73: =IF('Aug voer'!H16>0,VLOOKUP('Aug voer'!G16,Voedermiddelen!$A$4:$K$75,3,FALSE)*'Aug voer'!H16*(1-'Aug voer'!$G$6),"") -> 
A74: ='Aug voer'!A17 -> 0 | B74: ='Aug voer'!B17 -> 0 | C74: =IF('Aug voer'!C17>0,VLOOKUP('Aug voer'!B17,Voedermiddelen!$A$4:$K$75,3,FALSE)*'Aug voer'!C17*(1-'Aug voer'!$B$6),"") ->  | D74: ='Aug voer'!G17 -> 0 | E74: =IF('Aug voer'!H17>0,VLOOKUP('Aug voer'!G17,Voedermiddelen!$A$4:$K$75,3,FALSE)*'Aug voer'!H17*(1-'Aug voer'!$G$6),"") -> 
B75: ='Aug voer'!B18 -> 0 | C75: =IF('Aug voer'!C18>0,VLOOKUP('Aug voer'!B18,Voedermiddelen!$A$4:$K$75,3,FALSE)*'Aug voer'!C18*(1-'Aug voer'!$B$6),"") ->  | D75: ='Aug voer'!G18 -> 0 | E75: =IF('Aug voer'!H18>0,VLOOKUP('Aug voer'!G18,Voedermiddelen!$A$4:$K$75,3,FALSE)*'Aug voer'!H18*(1-'Aug voer'!$G$6),"") -> 
B76: ='Aug voer'!B20 -> 0 | C76: =IF('Aug voer'!C20>0,VLOOKUP('Aug voer'!B20,Voedermiddelen!$A$4:$K$75,3,FALSE)*'Aug voer'!C20,"") ->  | E76: ='Aug voer'!H22*'Aug vee+melk'!E15/100*0.9 -> 
B77: ='Aug voer'!B21 -> 0 | C77: =IF('Aug voer'!C21>0,VLOOKUP('Aug voer'!B21,Voedermiddelen!$A$4:$K$75,3,FALSE)*'Aug voer'!C21,"") -> 
B78: ='Aug voer'!B22 -> 0 | C78: =IF('Aug voer'!C22>0,VLOOKUP('Aug voer'!B22,Voedermiddelen!$A$4:$K$75,3,FALSE)*'Aug voer'!C22,"") -> 
A80: Totaal | C80: =SUM(C66:C78) -> 0 | E80: =SUM(E66:E78) -> 
A82: VEM | B82: =B66 -> 0 | C82: =IF('Aug voer'!C9>0,VLOOKUP('Aug voer'!B9,Voedermiddelen!$A$4:$K$75,4,FALSE)*C66,"") ->  | D82: =D66 -> 0 | E82: =IF('Aug voer'!H9>0,VLOOKUP('Aug voer'!G9,Voedermiddelen!$A$4:$K$75,4,FALSE)*E66,"") -> 
B83: =B67 -> 0 | C83: =IF('Aug voer'!C10>0,VLOOKUP('Aug voer'!B10,Voedermiddelen!$A$4:$K$75,4,FALSE)*C67,"") ->  | D83: 0 | E83: =IF('Aug voer'!H10>0,VLOOKUP('Aug voer'!G10,Voedermiddelen!$A$4:$K$75,4,FALSE)*E67,"") -> 
B84: 0 | C84: =IF('Aug voer'!C11>0,VLOOKUP('Aug voer'!B11,Voedermiddelen!$A$4:$K$75,4,FALSE)*C68,"") ->  | D84: 0 | E84: =IF('Aug voer'!H11>0,VLOOKUP('Aug voer'!G11,Voedermiddelen!$A$4:$K$75,4,FALSE)*E68,"") -> 
B85: 0 | C85: =IF('Aug voer'!C12>0,VLOOKUP('Aug voer'!B12,Voedermiddelen!$A$4:$K$75,4,FALSE)*C69,"") ->  | D85: 0 | E85: =IF('Aug voer'!H12>0,VLOOKUP('Aug voer'!G12,Voedermiddelen!$A$4:$K$75,4,FALSE)*E69,"") -> 
B86: 0 | C86: =IF('Aug voer'!C13>0,VLOOKUP('Aug voer'!B13,Voedermiddelen!$A$4:$K$75,4,FALSE)*C70,"") ->  | D86: 0 | E86: =IF('Aug voer'!H13>0,VLOOKUP('Aug voer'!G13,Voedermiddelen!$A$4:$K$75,4,FALSE)*E70,"") -> 
B87: 0 | C87: =IF('Aug voer'!C14>0,VLOOKUP('Aug voer'!B14,Voedermiddelen!$A$4:$K$75,4,FALSE)*C71,"") ->  | D87: 0 | E87: =IF('Aug voer'!H14>0,VLOOKUP('Aug voer'!G14,Voedermiddelen!$A$4:$K$75,4,FALSE)*E71,"") -> 
B88: 0 | C88: =IF('Aug voer'!C15>0,VLOOKUP('Aug voer'!B15,Voedermiddelen!$A$4:$K$75,4,FALSE)*C72,"") ->  | D88: 0 | E88: =IF('Aug voer'!H15>0,VLOOKUP('Aug voer'!G15,Voedermiddelen!$A$4:$K$75,4,FALSE)*E72,"") -> 
B89: 0 | C89: =IF('Aug voer'!C16>0,VLOOKUP('Aug voer'!B16,Voedermiddelen!$A$4:$K$75,4,FALSE)*C73,"") ->  | D89: 0 | E89: =IF('Aug voer'!H16>0,VLOOKUP('Aug voer'!G16,Voedermiddelen!$A$4:$K$75,4,FALSE)*E73,"") -> 
B90: 0 | C90: =IF('Aug voer'!C17>0,VLOOKUP('Aug voer'!B17,Voedermiddelen!$A$4:$K$75,4,FALSE)*C74,"") ->  | D90: 0 | E90: =IF('Aug voer'!H17>0,VLOOKUP('Aug voer'!G17,Voedermiddelen!$A$4:$K$75,4,FALSE)*E74,"") -> 
B91: 0 | C91: =IF('Aug voer'!C18>0,VLOOKUP('Aug voer'!B18,Voedermiddelen!$A$4:$K$75,4,FALSE)*C75,"") ->  | D91: 0 | E91: =IF('Aug voer'!H18>0,VLOOKUP('Aug voer'!G18,Voedermiddelen!$A$4:$K$75,4,FALSE)*E75,"") -> 
B92: 0 | C92: =IF('Aug voer'!C20>0,VLOOKUP('Aug voer'!B20,Voedermiddelen!$A$4:$K$75,4,FALSE)*C76,"") ->  | D92: 0 | E92: =E76*1000 -> 
B93: 0 | C93: =IF('Aug voer'!C21>0,VLOOKUP('Aug voer'!B21,Voedermiddelen!$A$4:$K$75,4,FALSE)*C77,"") ->  | D93: 0
B94: 0 | C94: =IF('Aug voer'!C22>0,VLOOKUP('Aug voer'!B22,Voedermiddelen!$A$4:$K$75,4,FALSE)*C78,"") ->  | D94: 0
A96: Totaal | C96: =SUM(C82:C94) -> 0 | E96: =SUM(E82:E94) -> 
A98: DVE | B98: =B82 -> 0 | C98: =IF('Aug voer'!C9>0,VLOOKUP('Aug voer'!B9,[1]Voedermiddelen!$A$4:$K$75,5,FALSE)*C66,"") ->  | D98: =D82 -> 0 | E98: =IF('Aug voer'!H9>0,VLOOKUP('Aug voer'!G9,[1]Voedermiddelen!$A$4:$K$75,5,FALSE)*E66,"") -> 
B99: =B83 -> 0 | C99: =IF('Aug voer'!C10>0,VLOOKUP('Aug voer'!B10,[1]Voedermiddelen!$A$4:$K$75,5,FALSE)*C67,"") ->  | D99: 0 | E99: =IF('Aug voer'!H10>0,VLOOKUP('Aug voer'!G10,[1]Voedermiddelen!$A$4:$K$75,5,FALSE)*E67,"") -> 
B100: 0 | C100: =IF('Aug voer'!C11>0,VLOOKUP('Aug voer'!B11,[1]Voedermiddelen!$A$4:$K$75,5,FALSE)*C68,"") ->  | D100: 0 | E100: =IF('Aug voer'!H11>0,VLOOKUP('Aug voer'!G11,[1]Voedermiddelen!$A$4:$K$75,5,FALSE)*E68,"") -> 
B101: 0 | C101: =IF('Aug voer'!C12>0,VLOOKUP('Aug voer'!B12,[1]Voedermiddelen!$A$4:$K$75,5,FALSE)*C69,"") ->  | D101: 0 | E101: =IF('Aug voer'!H12>0,VLOOKUP('Aug voer'!G12,[1]Voedermiddelen!$A$4:$K$75,5,FALSE)*E69,"") -> 
B102: 0 | C102: =IF('Aug voer'!C13>0,VLOOKUP('Aug voer'!B13,[1]Voedermiddelen!$A$4:$K$75,5,FALSE)*C70,"") ->  | D102: 0 | E102: =IF('Aug voer'!H13>0,VLOOKUP('Aug voer'!G13,[1]Voedermiddelen!$A$4:$K$75,5,FALSE)*E70,"") -> 
B103: 0 | C103: =IF('Aug voer'!C14>0,VLOOKUP('Aug voer'!B14,[1]Voedermiddelen!$A$4:$K$75,5,FALSE)*C71,"") ->  | D103: 0 | E103: =IF('Aug voer'!H14>0,VLOOKUP('Aug voer'!G14,[1]Voedermiddelen!$A$4:$K$75,5,FALSE)*E71,"") -> 
B104: 0 | C104: =IF('Aug voer'!C15>0,VLOOKUP('Aug voer'!B15,[1]Voedermiddelen!$A$4:$K$75,5,FALSE)*C72,"") ->  | D104: 0 | E104: =IF('Aug voer'!H15>0,VLOOKUP('Aug voer'!G15,[1]Voedermiddelen!$A$4:$K$75,5,FALSE)*E72,"") -> 
B105: 0 | C105: =IF('Aug voer'!C16>0,VLOOKUP('Aug voer'!B16,[1]Voedermiddelen!$A$4:$K$75,5,FALSE)*C73,"") ->  | D105: 0 | E105: =IF('Aug voer'!H16>0,VLOOKUP('Aug voer'!G16,[1]Voedermiddelen!$A$4:$K$75,5,FALSE)*E73,"") -> 
B106: 0 | C106: =IF('Aug voer'!C17>0,VLOOKUP('Aug voer'!B17,[1]Voedermiddelen!$A$4:$K$75,5,FALSE)*C74,"") ->  | D106: 0 | E106: =IF('Aug voer'!H17>0,VLOOKUP('Aug voer'!G17,[1]Voedermiddelen!$A$4:$K$75,5,FALSE)*E74,"") -> 
B107: 0 | C107: =IF('Aug voer'!C18>0,VLOOKUP('Aug voer'!B18,[1]Voedermiddelen!$A$4:$K$75,5,FALSE)*C75,"") ->  | D107: 0 | E107: =IF('Aug voer'!H18>0,VLOOKUP('Aug voer'!G18,[1]Voedermiddelen!$A$4:$K$75,5,FALSE)*E75,"") -> 
B108: 0 | C108: =IF('Aug voer'!C20>0,VLOOKUP('Aug voer'!B20,[1]Voedermiddelen!$A$4:$K$75,5,FALSE)*C76,"") ->  | D108: 0
B109: 0 | C109: =IF('Aug voer'!C21>0,VLOOKUP('Aug voer'!B21,[1]Voedermiddelen!$A$4:$K$75,5,FALSE)*C77,"") ->  | D109: 0
B110: 0 | C110: =IF('Aug voer'!C22>0,VLOOKUP('Aug voer'!B22,[1]Voedermiddelen!$A$4:$K$75,5,FALSE)*C78,"") ->  | D110: 0
A112: Totaal | C112: =SUM(C98:C110)/1000 -> 0 | E112: =SUM(E98:E110)/1000 -> 0
A114: OEB | B114: =B98 -> 0 | C114: =IF('Aug voer'!C9>0,VLOOKUP('Aug voer'!B9,[1]Voedermiddelen!$A$4:$K$75,6,FALSE)*C66,"") ->  | D114: =D98 -> 0 | E114: =IF('Aug voer'!H9>0,VLOOKUP('Aug voer'!G9,[1]Voedermiddelen!$A$4:$K$75,6,FALSE)*E66,"") -> 
B115: =B99 -> 0 | C115: =IF('Aug voer'!C10>0,VLOOKUP('Aug voer'!B10,[1]Voedermiddelen!$A$4:$K$75,6,FALSE)*C67,"") ->  | D115: 0 | E115: =IF('Aug voer'!H10>0,VLOOKUP('Aug voer'!G10,[1]Voedermiddelen!$A$4:$K$75,6,FALSE)*E67,"") -> 
B116: 0 | C116: =IF('Aug voer'!C11>0,VLOOKUP('Aug voer'!B11,[1]Voedermiddelen!$A$4:$K$75,6,FALSE)*C68,"") ->  | D116: 0 | E116: =IF('Aug voer'!H11>0,VLOOKUP('Aug voer'!G11,[1]Voedermiddelen!$A$4:$K$75,6,FALSE)*E68,"") -> 
B117: 0 | C117: =IF('Aug voer'!C12>0,VLOOKUP('Aug voer'!B12,[1]Voedermiddelen!$A$4:$K$75,6,FALSE)*C69,"") ->  | D117: 0 | E117: =IF('Aug voer'!H12>0,VLOOKUP('Aug voer'!G12,[1]Voedermiddelen!$A$4:$K$75,6,FALSE)*E69,"") -> 
B118: 0 | C118: =IF('Aug voer'!C13>0,VLOOKUP('Aug voer'!B13,[1]Voedermiddelen!$A$4:$K$75,6,FALSE)*C70,"") ->  | D118: 0 | E118: =IF('Aug voer'!H13>0,VLOOKUP('Aug voer'!G13,[1]Voedermiddelen!$A$4:$K$75,6,FALSE)*E70,"") -> 
B119: 0 | C119: =IF('Aug voer'!C14>0,VLOOKUP('Aug voer'!B14,[1]Voedermiddelen!$A$4:$K$75,6,FALSE)*C71,"") ->  | D119: 0 | E119: =IF('Aug voer'!H14>0,VLOOKUP('Aug voer'!G14,[1]Voedermiddelen!$A$4:$K$75,6,FALSE)*E71,"") -> 
B120: 0 | C120: =IF('Aug voer'!C15>0,VLOOKUP('Aug voer'!B15,[1]Voedermiddelen!$A$4:$K$75,6,FALSE)*C72,"") ->  | D120: 0 | E120: =IF('Aug voer'!H15>0,VLOOKUP('Aug voer'!G15,[1]Voedermiddelen!$A$4:$K$75,6,FALSE)*E72,"") -> 
B121: 0 | C121: =IF('Aug voer'!C16>0,VLOOKUP('Aug voer'!B16,[1]Voedermiddelen!$A$4:$K$75,6,FALSE)*C73,"") ->  | D121: 0 | E121: =IF('Aug voer'!H16>0,VLOOKUP('Aug voer'!G16,[1]Voedermiddelen!$A$4:$K$75,6,FALSE)*E73,"") -> 
B122: 0 | C122: =IF('Aug voer'!C17>0,VLOOKUP('Aug voer'!B17,[1]Voedermiddelen!$A$4:$K$75,6,FALSE)*C74,"") ->  | D122: 0 | E122: =IF('Aug voer'!H17>0,VLOOKUP('Aug voer'!G17,[1]Voedermiddelen!$A$4:$K$75,6,FALSE)*E74,"") -> 
B123: 0 | C123: =IF('Aug voer'!C18>0,VLOOKUP('Aug voer'!B18,[1]Voedermiddelen!$A$4:$K$75,6,FALSE)*C75,"") ->  | D123: 0 | E123: =IF('Aug voer'!H18>0,VLOOKUP('Aug voer'!G18,[1]Voedermiddelen!$A$4:$K$75,6,FALSE)*E75,"") -> 
B124: 0 | C124: =IF('Aug voer'!C20>0,VLOOKUP('Aug voer'!B20,[1]Voedermiddelen!$A$4:$K$75,6,FALSE)*C76,"") ->  | D124: 0
B125: 0 | C125: =IF('Aug voer'!C21>0,VLOOKUP('Aug voer'!B21,[1]Voedermiddelen!$A$4:$K$75,6,FALSE)*C77,"") ->  | D125: 0
B126: 0 | C126: =IF('Aug voer'!C22>0,VLOOKUP('Aug voer'!B22,[1]Voedermiddelen!$A$4:$K$75,6,FALSE)*C78,"") ->  | D126: 0
A128: Totaal | C128: =SUM(C114:C126) -> 0 | E128: =SUM(E114:E126) -> 0
A130: RE | B130: =B114 -> 0 | C130: =IF('Aug voer'!C9>0,VLOOKUP('Aug voer'!B9,Voedermiddelen!$A$4:$K$75,7,FALSE)*C66,"") ->  | D130: =D114 -> 0 | E130: =IF('Aug voer'!H9>0,VLOOKUP('Aug voer'!G9,Voedermiddelen!$A$4:$K$75,7,FALSE)*E66,"") -> 
B131: =B115 -> 0 | C131: =IF('Aug voer'!C10>0,VLOOKUP('Aug voer'!B10,Voedermiddelen!$A$4:$K$75,7,FALSE)*C67,"") ->  | D131: 0 | E131: =IF('Aug voer'!H10>0,VLOOKUP('Aug voer'!G10,Voedermiddelen!$A$4:$K$75,7,FALSE)*E67,"") -> 
B132: 0 | C132: =IF('Aug voer'!C11>0,VLOOKUP('Aug voer'!B11,Voedermiddelen!$A$4:$K$75,7,FALSE)*C68,"") ->  | D132: 0 | E132: =IF('Aug voer'!H11>0,VLOOKUP('Aug voer'!G11,Voedermiddelen!$A$4:$K$75,7,FALSE)*E68,"") -> 
B133: 0 | C133: =IF('Aug voer'!C12>0,VLOOKUP('Aug voer'!B12,Voedermiddelen!$A$4:$K$75,7,FALSE)*C69,"") ->  | D133: 0 | E133: =IF('Aug voer'!H12>0,VLOOKUP('Aug voer'!G12,Voedermiddelen!$A$4:$K$75,7,FALSE)*E69,"") -> 
B134: 0 | C134: =IF('Aug voer'!C13>0,VLOOKUP('Aug voer'!B13,Voedermiddelen!$A$4:$K$75,7,FALSE)*C70,"") ->  | D134: 0 | E134: =IF('Aug voer'!H13>0,VLOOKUP('Aug voer'!G13,Voedermiddelen!$A$4:$K$75,7,FALSE)*E70,"") -> 
B135: 0 | C135: =IF('Aug voer'!C14>0,VLOOKUP('Aug voer'!B14,Voedermiddelen!$A$4:$K$75,7,FALSE)*C71,"") ->  | D135: 0 | E135: =IF('Aug voer'!H14>0,VLOOKUP('Aug voer'!G14,Voedermiddelen!$A$4:$K$75,7,FALSE)*E71,"") -> 
B136: 0 | C136: =IF('Aug voer'!C15>0,VLOOKUP('Aug voer'!B15,Voedermiddelen!$A$4:$K$75,7,FALSE)*C72,"") ->  | D136: 0 | E136: =IF('Aug voer'!H15>0,VLOOKUP('Aug voer'!G15,Voedermiddelen!$A$4:$K$75,7,FALSE)*E72,"") -> 
B137: 0 | C137: =IF('Aug voer'!C16>0,VLOOKUP('Aug voer'!B16,Voedermiddelen!$A$4:$K$75,7,FALSE)*C73,"") ->  | D137: 0 | E137: =IF('Aug voer'!H16>0,VLOOKUP('Aug voer'!G16,Voedermiddelen!$A$4:$K$75,7,FALSE)*E73,"") -> 
B138: 0 | C138: =IF('Aug voer'!C17>0,VLOOKUP('Aug voer'!B17,Voedermiddelen!$A$4:$K$75,7,FALSE)*C74,"") ->  | D138: 0 | E138: =IF('Aug voer'!H17>0,VLOOKUP('Aug voer'!G17,Voedermiddelen!$A$4:$K$75,7,FALSE)*E74,"") -> 
B139: 0 | C139: =IF('Aug voer'!C18>0,VLOOKUP('Aug voer'!B18,Voedermiddelen!$A$4:$K$75,7,FALSE)*C75,"") ->  | D139: 0 | E139: =IF('Aug voer'!H18>0,VLOOKUP('Aug voer'!G18,Voedermiddelen!$A$4:$K$75,7,FALSE)*E75,"") -> 
B140: 0 | C140: =IF('Aug voer'!C20>0,VLOOKUP('Aug voer'!B20,Voedermiddelen!$A$4:$K$75,7,FALSE)*C76,"") ->  | D140: 0
B141: 0 | C141: =IF('Aug voer'!C21>0,VLOOKUP('Aug voer'!B21,Voedermiddelen!$A$4:$K$75,7,FALSE)*C77,"") ->  | D141: 0
B142: =B126 -> 0 | C142: =IF('Aug voer'!C22>0,VLOOKUP('Aug voer'!B22,Voedermiddelen!$A$4:$K$75,7,FALSE)*C78,"") ->  | D142: 0
A144: Totaal | C144: =SUM(C130:C142) -> 0 | E144: =SUM(E130:E142) -> 0
A146: N opname | C146: =C144/6.25 -> 0 | E146: =E144/6.25 -> 0 | G146: =(E76/0.9*'Aug voer'!M6/6.25) -> 
A148: P | B148: =B130 -> 0 | C148: =IF('Aug voer'!C9>0,VLOOKUP('Aug voer'!B9,Voedermiddelen!$A$4:$K$75,10,FALSE)*C66,"") ->  | D148: =D130 -> 0 | E148: =IF('Aug voer'!H9>0,VLOOKUP('Aug voer'!G9,Voedermiddelen!$A$4:$K$75,10,FALSE)*E66,"") -> 
B149: =B131 -> 0 | C149: =IF('Aug voer'!C10>0,VLOOKUP('Aug voer'!B10,Voedermiddelen!$A$4:$K$75,10,FALSE)*C67,"") ->  | D149: 0 | E149: =IF('Aug voer'!H10>0,VLOOKUP('Aug voer'!G10,Voedermiddelen!$A$4:$K$75,10,FALSE)*E67,"") -> 
B150: 0 | C150: =IF('Aug voer'!C11>0,VLOOKUP('Aug voer'!B11,Voedermiddelen!$A$4:$K$75,10,FALSE)*C68,"") ->  | D150: 0 | E150: =IF('Aug voer'!H11>0,VLOOKUP('Aug voer'!G11,Voedermiddelen!$A$4:$K$75,10,FALSE)*E68,"") -> 
B151: 0 | C151: =IF('Aug voer'!C12>0,VLOOKUP('Aug voer'!B12,Voedermiddelen!$A$4:$K$75,10,FALSE)*C69,"") ->  | D151: 0 | E151: =IF('Aug voer'!H12>0,VLOOKUP('Aug voer'!G12,Voedermiddelen!$A$4:$K$75,10,FALSE)*E69,"") -> 
B152: 0 | C152: =IF('Aug voer'!C13>0,VLOOKUP('Aug voer'!B13,Voedermiddelen!$A$4:$K$75,10,FALSE)*C70,"") ->  | D152: 0 | E152: =IF('Aug voer'!H13>0,VLOOKUP('Aug voer'!G13,Voedermiddelen!$A$4:$K$75,10,FALSE)*E70,"") -> 
B153: 0 | C153: =IF('Aug voer'!C14>0,VLOOKUP('Aug voer'!B14,Voedermiddelen!$A$4:$K$75,10,FALSE)*C71,"") ->  | D153: 0 | E153: =IF('Aug voer'!H14>0,VLOOKUP('Aug voer'!G14,Voedermiddelen!$A$4:$K$75,10,FALSE)*E71,"") -> 
B154: 0 | C154: =IF('Aug voer'!C15>0,VLOOKUP('Aug voer'!B15,Voedermiddelen!$A$4:$K$75,10,FALSE)*C72,"") ->  | D154: 0 | E154: =IF('Aug voer'!H15>0,VLOOKUP('Aug voer'!G15,Voedermiddelen!$A$4:$K$75,10,FALSE)*E72,"") -> 
B155: 0 | C155: =IF('Aug voer'!C16>0,VLOOKUP('Aug voer'!B16,Voedermiddelen!$A$4:$K$75,10,FALSE)*C73,"") ->  | D155: 0 | E155: =IF('Aug voer'!H16>0,VLOOKUP('Aug voer'!G16,Voedermiddelen!$A$4:$K$75,10,FALSE)*E73,"") -> 
B156: 0 | C156: =IF('Aug voer'!C17>0,VLOOKUP('Aug voer'!B17,Voedermiddelen!$A$4:$K$75,10,FALSE)*C74,"") ->  | D156: 0 | E156: =IF('Aug voer'!H17>0,VLOOKUP('Aug voer'!G17,Voedermiddelen!$A$4:$K$75,10,FALSE)*E74,"") -> 
B157: 0 | C157: =IF('Aug voer'!C18>0,VLOOKUP('Aug voer'!B18,Voedermiddelen!$A$4:$K$75,10,FALSE)*C75,"") ->  | D157: 0 | E157: =IF('Aug voer'!H18>0,VLOOKUP('Aug voer'!G18,Voedermiddelen!$A$4:$K$75,10,FALSE)*E75,"") -> 
B158: =B140 -> 0 | C158: =IF('Aug voer'!C20>0,VLOOKUP('Aug voer'!B20,Voedermiddelen!$A$4:$K$75,10,FALSE)*C76,"") ->  | D158: 0
B159: =B141 -> 0 | C159: =IF('Aug voer'!C21>0,VLOOKUP('Aug voer'!B21,Voedermiddelen!$A$4:$K$75,10,FALSE)*C77,"") ->  | D159: 0
B160: =B142 -> 0 | C160: =IF('Aug voer'!C22>0,VLOOKUP('Aug voer'!B22,Voedermiddelen!$A$4:$K$75,10,FALSE)*C78,"") ->  | D160: 0
A162: Totaal | C162: =SUM(C148:C160) -> 0 | E162: =SUM(E148:E160) -> 0 | G162: =(E76/0.9*'Aug voer'!M7) -> 

Sheet Aug Excretie (hidden)
A1: Veestapel
C2: ='Aug vee+melk'!C6 -> Augustus gerealiseerd | E2: ='Aug vee+melk'!E6 -> Augustus prognose
A5: Excretie (kg/dier/dag)
C6: N | E6: N
A7: Opname | C7: ='Aug Voeropname'!C2*'Aug Voeropname'!C7*0.001 ->  | E7: ='Aug Voeropname'!E2*'Aug Voeropname'!E7*0.001+'Aug Voeropname'!G146*0.001/'Aug vee+melk'!E2 -> 
A8: Gem opname 7 dgn | C8: =AVERAGE(C7:F7) ->  | E8: =AVERAGE(E7) -> 
A9: Productie | C9: ='Aug vee+melk'!C22*'Aug vee+melk'!C10/6.38 ->  | E9: ='Aug vee+melk'!E22*'Aug vee+melk'!E10/6.38 -> 
A10: Vastlegging | C10: =1.4/365 -> 0.003835616438 | E10: =1.4/365 -> 0.003835616438
A11: Onder de staart | C11: =C7-C9-C10 ->  | E11: =E7-E9-E10 -> 
A12: Vervluchtiging | C12: =C11*0.1175 ->  | E12: =E11*0.1175 -> 
A13: Gemeten netto excretie | C13: =C11-C12 ->  | E13: =E11-E12 -> 
C15: P | E15: P
A16: Opname | C16: ='Aug Voeropname'!C2*'Aug Voeropname'!C8/1000 ->  | E16: ='Aug Voeropname'!E2*'Aug Voeropname'!E8/1000+'Aug Voeropname'!G162*0.001/'Aug vee+melk'!E2 -> 
A17: Gem opname 7 dgn | C17: =AVERAGE(C16:F16) ->  | E17: =AVERAGE(E16) -> 
A18: Productie | C18: ='Aug vee+melk'!C22*0.9/1000 ->  | E18: ='Aug vee+melk'!E22*0.9/1000 -> 
A19: Vastlegging | C19: =0.5/365 -> 0.001369863014 | E19: =0.5/365 -> 0.001369863014
A20: Onder de staart | C20: =C16-C18-C19 ->  | E20: =E16-E18-E19 -> 
A21: Vervluchtiging
A22: Gemeten netto excretie | C22: =C20 ->  | E22: =E20 -> 
A24: N excretie per ton meetmelk (kg) | C24: =C13/'Aug vee+melk'!C21*1000 ->  | E24: =E13/'Aug vee+melk'!E21*1000 -> 
A25: P excretie per ton meetmelk (kg) | C25: =C22/'Aug vee+melk'!C21*1000 ->  | E25: =E22/'Aug vee+melk'!E21*1000 -> 

Sheet Aug kengetallen (hidden)
A1: Rantsoen
A2: Datum | C2: ='Aug voer'!B3 -> Augustus gerealiseerd | E2: ='Aug voer'!G3 -> Augustus prognose
A4: ='Aug Voeropname'!A2 -> DS opname/koe | C4: ='Aug Voeropname'!C2 ->  | E4: ='Aug Voeropname'!E2 -> 
A5: ='Aug Voeropname'!A3 -> VEM | C5: ='Aug Voeropname'!C3 ->  | E5: ='Aug Voeropname'!E3 -> 
A6: ='Aug Voeropname'!A4 -> DVE | C6: ='Aug Voeropname'!C4 ->  | E6: ='Aug Voeropname'!E4 -> 
A7: ='Aug Voeropname'!A5 -> OEB | C7: ='Aug Voeropname'!C5 ->  | E7: ='Aug Voeropname'!E5 -> 
A8: ='Aug Voeropname'!A6 -> RE | C8: ='Aug Voeropname'!C6 ->  | E8: ='Aug Voeropname'!E6 -> 
A9: ='Aug Voeropname'!A7 -> N | C9: ='Aug Voeropname'!C7 ->  | E9: ='Aug Voeropname'!E7 -> 
A10: ='Aug Voeropname'!A8 -> P | C10: ='Aug Voeropname'!C8 ->  | E10: ='Aug Voeropname'!E8 -> 
A12: Streefwaarde RE | C12: ='Aug voer'!H20 -> 160
A13: Streefwaarde P | C13: ='Aug voer'!H21 -> 3.6
A16: ='Aug Excretie'!A24 -> N excretie per ton meetmelk (kg) | C16: ='Aug Excretie'!C24 ->  | E16: ='Aug Excretie'!E24 -> 
A17: ='Aug Excretie'!A25 -> P excretie per ton meetmelk (kg) | C17: ='Aug Excretie'!C25 ->  | E17: ='Aug Excretie'!E25 -> 
A20: VEM dekking | C20: ='Aug Voeropname'!C35/'Aug vee+melk'!C27 ->  | E20: ='Aug Voeropname'!E35/'Aug vee+melk'!E27 -> 
A21: DVE dekking | C21: ='Aug Voeropname'!C36/'Aug vee+melk'!C28 ->  | E21: ='Aug Voeropname'!E36/'Aug vee+melk'!E28 -> 
A24: Voerefficientie kg meetmelk/kg voer (ds) | C24: ='Aug vee+melk'!C21/'Aug Voeropname'!C2 ->  | E24: ='Aug vee+melk'!E21/'Aug Voeropname'!E2 -> 
A25: kg krachtvoer per 100 kg (excl bijprod) | C25: =SUM('Aug Voeropname'!C76:C78)/('Aug vee+melk'!C21*'Aug vee+melk'!C2)*100/0.9 ->  | E25: =SUM('Aug Voeropname'!E76:E78)/('Aug vee+melk'!E21*'Aug vee+melk'!E2)*100 -> 
A28: =A12 -> Streefwaarde RE | C28: =$C$12 -> 160 | E28: =$C$12 -> 160
A29: =A13 -> Streefwaarde P | C29: =$C$13 -> 3.6 | E29: =$C$13 -> 3.6
A34: =A2 -> Datum | C34: =C2 -> Augustus gerealiseerd | D34: =E2 -> Augustus prognose | E34: =#REF! ->  | F34: =#REF! -> 
A35: 00:00:00
A36: DS opname/koe | C36: =C4 ->  | D36: =E4 ->  | E36: =#REF! ->  | F36: =#REF! -> 
A37: VEM | E37: =#REF! ->  | F37: =#REF! -> 
A38: DVE | E38: =#REF! ->  | F38: =#REF! -> 
A39: OEB | E39: =#REF! ->  | F39: =#REF! -> 
A40: RE | E40: =#REF! ->  | F40: =#REF! -> 
A41: N | E41: =#REF! ->  | F41: =#REF! -> 
A42: P | E42: =#REF! ->  | F42: =#REF! -> 
A43: =A15 -> 00:00:00
A44: N excretie per ton meetmelk (kg) | C44: =C16 ->  | D44: =E16 ->  | E44: =#REF! ->  | F44: =#REF! -> 
A45: P excretie per ton meetmelk (kg) | D45: =E17 ->  | E45: =#REF! ->  | F45: =#REF! -> 
A46: 00:00:00 | C46: =1000/C45/2.29 ->  | D46: =1000/D45/2.29 ->  | E46: =1000/E45/2.29 ->  | F46: =1000/F45/2.29 -> 
A49: Rantsoen
A51: Kuilgras | C51: =IF('Aug Voeropname'!$A66='Aug kengetallen'!$A51,'Aug Voeropname'!C66,"") ->  | E51: =IF('Aug Voeropname'!$A66='Aug kengetallen'!$A51,'Aug Voeropname'!E66,"") -> 
A52: Kuilgras | C52: =IF('Aug Voeropname'!$A67='Aug kengetallen'!$A52,'Aug Voeropname'!C67,"") ->  | E52: =IF('Aug Voeropname'!$A67='Aug kengetallen'!$A52,'Aug Voeropname'!E67,"") -> 
A53: Kuilgras | C53: =IF('Aug Voeropname'!$A68='Aug kengetallen'!$A53,'Aug Voeropname'!C68,"") ->  | E53: =IF('Aug Voeropname'!$A68='Aug kengetallen'!$A53,'Aug Voeropname'!E68,"") -> 
A54: Kuilgras | C54: =IF('Aug Voeropname'!$A69='Aug kengetallen'!$A54,'Aug Voeropname'!C69,"") ->  | E54: =IF('Aug Voeropname'!$A69='Aug kengetallen'!$A54,'Aug Voeropname'!E69,"") -> 
A55: Kuilgras | C55: =IF('Aug Voeropname'!$A70='Aug kengetallen'!$A55,'Aug Voeropname'!C70,"") ->  | E55: =IF('Aug Voeropname'!$A70='Aug kengetallen'!$A55,'Aug Voeropname'!E70,"") -> 
A56: Kuilgras | C56: =IF('Aug Voeropname'!$A71='Aug kengetallen'!$A56,'Aug Voeropname'!C71,"") ->  | E56: =IF('Aug Voeropname'!$A71='Aug kengetallen'!$A56,'Aug Voeropname'!E71,"") -> 
A57: Kuilgras | C57: =IF('Aug Voeropname'!$A72='Aug kengetallen'!$A57,'Aug Voeropname'!C72,"") ->  | E57: =IF('Aug Voeropname'!$A72='Aug kengetallen'!$A57,'Aug Voeropname'!E72,"") -> 
A58: Kuilgras | C58: =IF('Aug Voeropname'!$A73='Aug kengetallen'!$A58,'Aug Voeropname'!C73,"") ->  | E58: =IF('Aug Voeropname'!$A73='Aug kengetallen'!$A58,'Aug Voeropname'!E73,"") -> 
A59: Kuilgras | C59: =IF('Aug Voeropname'!$A74='Aug kengetallen'!$A59,'Aug Voeropname'!C74,"") ->  | E59: =IF('Aug Voeropname'!$A74='Aug kengetallen'!$A59,'Aug Voeropname'!E74,"") -> 
A60: Totaal kuilgras | C60: =SUM(C51:C59) -> 0 | E60: =SUM(E51:E59) -> 0
A62: Snijmais | C62: =IF('Aug Voeropname'!$A66='Aug kengetallen'!$A62,'Aug Voeropname'!C66,"") ->  | E62: =IF('Aug Voeropname'!$A66='Aug kengetallen'!$A62,'Aug Voeropname'!E66,"") -> 
A63: Snijmais | C63: =IF('Aug Voeropname'!$A67='Aug kengetallen'!$A63,'Aug Voeropname'!C67,"") ->  | E63: =IF('Aug Voeropname'!$A67='Aug kengetallen'!$A63,'Aug Voeropname'!E67,"") -> 
A64: Snijmais | C64: =IF('Aug Voeropname'!$A68='Aug kengetallen'!$A64,'Aug Voeropname'!C68,"") ->  | E64: =IF('Aug Voeropname'!$A68='Aug kengetallen'!$A64,'Aug Voeropname'!E68,"") -> 
A65: Snijmais | C65: =IF('Aug Voeropname'!$A69='Aug kengetallen'!$A65,'Aug Voeropname'!C69,"") ->  | E65: =IF('Aug Voeropname'!$A69='Aug kengetallen'!$A65,'Aug Voeropname'!E69,"") -> 
A66: Snijmais | C66: =IF('Aug Voeropname'!$A70='Aug kengetallen'!$A66,'Aug Voeropname'!C70,"") ->  | E66: =IF('Aug Voeropname'!$A70='Aug kengetallen'!$A66,'Aug Voeropname'!E70,"") -> 
A67: Snijmais | C67: =IF('Aug Voeropname'!$A71='Aug kengetallen'!$A67,'Aug Voeropname'!C71,"") ->  | E67: =IF('Aug Voeropname'!$A71='Aug kengetallen'!$A67,'Aug Voeropname'!E71,"") -> 
A68: Snijmais | C68: =IF('Aug Voeropname'!$A72='Aug kengetallen'!$A68,'Aug Voeropname'!C72,"") ->  | E68: =IF('Aug Voeropname'!$A72='Aug kengetallen'!$A68,'Aug Voeropname'!E72,"") -> 
A69: Snijmais | C69: =IF('Aug Voeropname'!$A73='Aug kengetallen'!$A69,'Aug Voeropname'!C73,"") ->  | E69: =IF('Aug Voeropname'!$A73='Aug kengetallen'!$A69,'Aug Voeropname'!E73,"") -> 
A70: Snijmais | C70: =IF('Aug Voeropname'!$A74='Aug kengetallen'!$A70,'Aug Voeropname'!C74,"") ->  | E70: =IF('Aug Voeropname'!$A74='Aug kengetallen'!$A70,'Aug Voeropname'!E74,"") -> 
A71: Totaal snijmais | C71: =SUM(C62:C70) -> 0 | E71: =SUM(E62:E70) -> 0
A73: OverigRuwvoer | C73: =IF('Aug Voeropname'!$A66='Aug kengetallen'!$A73,'Aug Voeropname'!C66,"") ->  | E73: =IF('Aug Voeropname'!$A66='Aug kengetallen'!$A73,'Aug Voeropname'!E66,"") -> 
A74: OverigRuwvoer | C74: =IF('Aug Voeropname'!$A67='Aug kengetallen'!$A74,'Aug Voeropname'!C67,"") ->  | E74: =IF('Aug Voeropname'!$A67='Aug kengetallen'!$A74,'Aug Voeropname'!E67,"") -> 
A75: OverigRuwvoer | C75: =IF('Aug Voeropname'!$A68='Aug kengetallen'!$A75,'Aug Voeropname'!C68,"") ->  | E75: =IF('Aug Voeropname'!$A68='Aug kengetallen'!$A75,'Aug Voeropname'!E68,"") -> 
A76: OverigRuwvoer | C76: =IF('Aug Voeropname'!$A69='Aug kengetallen'!$A76,'Aug Voeropname'!C69,"") ->  | E76: =IF('Aug Voeropname'!$A69='Aug kengetallen'!$A76,'Aug Voeropname'!E69,"") -> 
A77: OverigRuwvoer | C77: =IF('Aug Voeropname'!$A70='Aug kengetallen'!$A77,'Aug Voeropname'!C70,"") ->  | E77: =IF('Aug Voeropname'!$A70='Aug kengetallen'!$A77,'Aug Voeropname'!E70,"") -> 
A78: OverigRuwvoer | C78: =IF('Aug Voeropname'!$A71='Aug kengetallen'!$A78,'Aug Voeropname'!C71,"") ->  | E78: =IF('Aug Voeropname'!$A71='Aug kengetallen'!$A78,'Aug Voeropname'!E71,"") -> 
A79: OverigRuwvoer | C79: =IF('Aug Voeropname'!$A72='Aug kengetallen'!$A79,'Aug Voeropname'!C72,"") ->  | E79: =IF('Aug Voeropname'!$A72='Aug kengetallen'!$A79,'Aug Voeropname'!E72,"") -> 
A80: OverigRuwvoer | C80: =IF('Aug Voeropname'!$A73='Aug kengetallen'!$A80,'Aug Voeropname'!C73,"") ->  | E80: =IF('Aug Voeropname'!$A73='Aug kengetallen'!$A80,'Aug Voeropname'!E73,"") -> 
A81: OverigRuwvoer | C81: =IF('Aug Voeropname'!$A74='Aug kengetallen'!$A81,'Aug Voeropname'!C74,"") ->  | E81: =IF('Aug Voeropname'!$A74='Aug kengetallen'!$A81,'Aug Voeropname'!E74,"") -> 
A82: Totaal overig Ruwvoer | C82: =SUM(C73:C81) -> 0 | E82: =SUM(E73:E81) -> 0
A84: Bijproducten | C84: =IF('Aug Voeropname'!$A66='Aug kengetallen'!$A84,'Aug Voeropname'!C66,"") ->  | E84: =IF('Aug Voeropname'!$A66='Aug kengetallen'!$A84,'Aug Voeropname'!E66,"") -> 
A85: Bijproducten | C85: =IF('Aug Voeropname'!$A67='Aug kengetallen'!$A85,'Aug Voeropname'!C67,"") ->  | E85: =IF('Aug Voeropname'!$A67='Aug kengetallen'!$A85,'Aug Voeropname'!E67,"") -> 
A86: Bijproducten | C86: =IF('Aug Voeropname'!$A68='Aug kengetallen'!$A86,'Aug Voeropname'!C68,"") ->  | E86: =IF('Aug Voeropname'!$A68='Aug kengetallen'!$A86,'Aug Voeropname'!E68,"") -> 
A87: Bijproducten | C87: =IF('Aug Voeropname'!$A69='Aug kengetallen'!$A87,'Aug Voeropname'!C69,"") ->  | E87: =IF('Aug Voeropname'!$A69='Aug kengetallen'!$A87,'Aug Voeropname'!E69,"") -> 
A88: Bijproducten | C88: =IF('Aug Voeropname'!$A70='Aug kengetallen'!$A88,'Aug Voeropname'!C70,"") ->  | E88: =IF('Aug Voeropname'!$A70='Aug kengetallen'!$A88,'Aug Voeropname'!E70,"") -> 
A89: Bijproducten | C89: =IF('Aug Voeropname'!$A71='Aug kengetallen'!$A89,'Aug Voeropname'!C71,"") ->  | E89: =IF('Aug Voeropname'!$A71='Aug kengetallen'!$A89,'Aug Voeropname'!E71,"") -> 
A90: Bijproducten | C90: =IF('Aug Voeropname'!$A72='Aug kengetallen'!$A90,'Aug Voeropname'!C72,"") ->  | E90: =IF('Aug Voeropname'!$A72='Aug kengetallen'!$A90,'Aug Voeropname'!E72,"") -> 
A91: Bijproducten | C91: =IF('Aug Voeropname'!$A73='Aug kengetallen'!$A91,'Aug Voeropname'!C73,"") ->  | E91: =IF('Aug Voeropname'!$A73='Aug kengetallen'!$A91,'Aug Voeropname'!E73,"") -> 
A92: Bijproducten | C92: =IF('Aug Voeropname'!$A74='Aug kengetallen'!$A92,'Aug Voeropname'!C74,"") ->  | E92: =IF('Aug Voeropname'!$A74='Aug kengetallen'!$A92,'Aug Voeropname'!E74,"") -> 
A93: Totaal Bijproducten | C93: =SUM(C84:C92) -> 0 | E93: =SUM(E84:E92) -> 0
A95: Krachtvoer | C95: =SUM('Aug Voeropname'!C76:C78) -> 0 | E95: =SUM('Aug Voeropname'!E76:E78) -> 
A97: Vers gras | C97: ='Aug Voeropname'!C31*('Aug vee+melk'!C2+'Aug vee+melk'!C3) -> 0 | E97: ='Aug Voeropname'!E31*('Aug vee+melk'!E2+'Aug vee+melk'!E3) -> 0
A99: Totaal | C99: =C95+C93+C82+C71+C60+C97 -> 0 | E99: =E95+E93+E82+E71+E60+E97 -> 
A101: Vers gras | C101: =C97/C99 ->  | E101: =E97/E99 -> 
A102: Aandeel kuilgras | C102: =C60/C$99 ->  | E102: =E60/E$99 -> 
A103: Aandeel snijmais | C103: =C71/C$99 ->  | E103: =E71/E$99 -> 
A104: Aandeel overig ruwvoer | C104: =C82/C$99 ->  | E104: =E82/E$99 -> 
A105: Aandeel bijproducten | C105: =C93/C$99 ->  | E105: =E93/E$99 -> 
A106: Aandeel krachtvoer | C106: =C95/C$99 ->  | E106: =E95/E$99 -> 

Sheet Juli Voeropname (hidden)
A1: Gem rantsoen gehaltes (d dgn) | C1: ='Juli voer'!B3 -> Juli gerealiseerd | E1: ='Juli voer'!G3 -> Juli prognose
A2: DS opname/koe | C2: =C34 ->  | E2: =E34 -> 
A3: VEM | C3: =C12 ->  | E3: =AVERAGE(E12:E12) -> 
A4: DVE | C4: =AVERAGE(C13) ->  | M4: 1 | R4: Voedermiddelen
A5: OEB | C5: =AVERAGE(C14) ->  | M5: 2 | R5: Kuilgras
A6: RE | C6: =AVERAGE(C15) ->  | R6: Snijmais
A7: N | C7: =AVERAGE(C16) ->  | M7: Vem toeslag weidegang | O7: 1.03 | R7: OverigRuwvoer
A8: P | R8: Bijproducten
R9: Krachtvoer
A11: Rantsoen gehaltes (incl. weidegras)
A12: VEM | C12: =C35/C34 ->  | E12: =E35/E34 ->  | R12: Let op bij beperkt weiden is deze opname niet realistisch!
A13: DVE | C13: =C36/C34 ->  | E13: =E36/E34 ->  | R13: Let op VEM dekking te laag!
A14: OEB | C14: =C37 ->  | E14: =E37 -> 
A15: RE | C15: =C38/C34 ->  | E15: =E38/E34 -> 
A16: N | C16: =C39/C34 ->  | E16: =E39/E34 -> 
A17: P | C17: =C40/C34 ->  | E17: =E40/E34 -> 
A22: kg ds | C22: =C55/SUM('Juli vee+melk'!C2:C3) ->  | E22: =E55/SUM('Juli vee+melk'!E2:E3) -> 
A23: Vemopname ex weidegras | C23: =C22*C45 ->  | E23: =E22*E45 -> 
A27: VEM behoefte | C27: =IF('Juli voer'!B4=1,'Juli vee+melk'!C27*'Juli Voeropname'!O7,'Juli vee+melk'!C27) ->  | E27: =IF('Juli voer'!G4=1,'Juli vee+melk'!E27*'Juli Voeropname'!O7,'Juli vee+melk'!E27) -> 
A28: Behoefte-opname | C28: =C27-'Juli Voeropname'!C23 ->  | E28: =E27-'Juli Voeropname'!E23 -> 
C29: =C28/VLOOKUP('Juli voer'!B5,Weidegras!$A$5:$J$119,4,FALSE) ->  | E29: =E28/VLOOKUP('Juli voer'!G5,Weidegras!$A$5:$J$119,4,FALSE) -> 
C30: =IF(C29>0,C29,0) ->  | E30: =IF(E29>0,E29,0) -> 
A31: Weidegrasopname/koe | C31: =IF('Juli voer'!B4=1,C30,0) -> 0 | E31: =IF('Juli voer'!G4=1,E30,0) -> 0
A33: Rantsoenopname incl weidegras
A34: droge stof | C34: =C22+C31 ->  | E34: =E22+E31 -> 
A35: VEM | C35: =C45*C22+C31*VLOOKUP('Juli voer'!B5,Weidegras!$A$6:$J$180,4,FALSE) ->  | E35: =E45*E22+E31*VLOOKUP('Juli voer'!G5,Weidegras!$A$6:$J$180,4,FALSE) -> 
A36: DVE | C36: =C46*C22+$C$31*VLOOKUP('Juli voer'!B5,Weidegras!$A$5:$J$150,5,FALSE) ->  | E36: =E46*E22+$C$31*VLOOKUP('Juli voer'!G5,Weidegras!$A$5:$J$150,5,FALSE) -> 
A37: OEB | C37: =C22*C47+$C$31*VLOOKUP('Juli voer'!B5,Weidegras!$A$6:$J$151,6,FALSE) ->  | E37: =E22*E47+$C$31*VLOOKUP('Juli voer'!G5,Weidegras!$A$6:$J$151,6,FALSE) -> 
A38: RE | C38: =C48*C22+C31*VLOOKUP('Juli voer'!$B$5,Weidegras!$A$6:$J$181,7,FALSE) ->  | E38: =E48*E22+E31*VLOOKUP('Juli voer'!$B$5,Weidegras!$A$6:$J$181,7,FALSE) -> 
A39: N | C39: =C38/6.25 ->  | E39: =E38/6.25 -> 
A40: P | C40: =C50*C22+C31*VLOOKUP('Juli voer'!$B$5,Weidegras!$A$6:$J$183,10,FALSE) ->  | E40: =E50*E22+E31*VLOOKUP('Juli voer'!$B$5,Weidegras!$A$6:$J$183,10,FALSE) -> 
A43: Stalrantsoen gehaltes
A44: droge stof
A45: VEM | C45: =C56/C$55 ->  | E45: =E56/E$55 -> 
A46: DVE | C46: =C57/C$55*1000 ->  | E46: =E57/E$55*1000 -> 
A47: OEB | C47: =C58/C$55 ->  | E47: =E58/E$55 -> 
A48: RE | C48: =C59/C$55 -> 
A49: N | C49: =C60/C$55 -> 
A50: P | C50: =C61/C$55 -> 
A54: Stalrantsoen opname
A55: droge stof (kg) | C55: =C80 -> 0
A56: VEM | C56: =C96 -> 0
A57: DVE | C57: =C112 -> 0 | E57: =E112 -> 0
A58: OEB | C58: =C128 -> 0 | E58: =E128 -> 0
A59: RE | C59: =C144 -> 0 | E59: =E144 -> 0
A60: N | C60: =C146 -> 0 | E60: =E146 -> 0
A61: P | C61: =C162 -> 0 | E61: =E162 -> 0
A65: Drogestof opname
A66: ='Juli voer'!A9 -> 0 | B66: ='Juli voer'!B9 -> 0 | C66: =IF('Juli voer'!C9>0,VLOOKUP('Juli voer'!B9,Voedermiddelen!$A$4:$K$75,3,FALSE)*'Juli voer'!C9*(1-'Juli voer'!$B$6),"") ->  | D66: ='Juli voer'!G9 -> 0 | E66: =IF('Juli voer'!H9>0,VLOOKUP('Juli voer'!G9,Voedermiddelen!$A$4:$K$75,3,FALSE)*'Juli voer'!H9*(1-'Juli voer'!$G$6),"") -> 
A67: ='Juli voer'!A10 -> 0 | B67: ='Juli voer'!B10 -> 0 | C67: =IF('Juli voer'!C10>0,VLOOKUP('Juli voer'!B10,Voedermiddelen!$A$4:$K$75,3,FALSE)*'Juli voer'!C10*(1-'Juli voer'!$B$6),"") ->  | D67: ='Juli voer'!G10 -> 0 | E67: =IF('Juli voer'!H10>0,VLOOKUP('Juli voer'!G10,Voedermiddelen!$A$4:$K$75,3,FALSE)*'Juli voer'!H10*(1-'Juli voer'!$G$6),"") -> 
A68: ='Juli voer'!A11 -> 0 | B68: ='Juli voer'!B11 -> 0 | C68: =IF('Juli voer'!C11>0,VLOOKUP('Juli voer'!B11,Voedermiddelen!$A$4:$K$75,3,FALSE)*'Juli voer'!C11*(1-'Juli voer'!$B$6),"") ->  | D68: ='Juli voer'!G11 -> 0 | E68: =IF('Juli voer'!H11>0,VLOOKUP('Juli voer'!G11,Voedermiddelen!$A$4:$K$75,3,FALSE)*'Juli voer'!H11*(1-'Juli voer'!$G$6),"") -> 
A69: ='Juli voer'!A12 -> 0 | B69: ='Juli voer'!B12 -> 0 | C69: =IF('Juli voer'!C12>0,VLOOKUP('Juli voer'!B12,Voedermiddelen!$A$4:$K$75,3,FALSE)*'Juli voer'!C12*(1-'Juli voer'!$B$6),"") ->  | D69: ='Juli voer'!G12 -> 0 | E69: =IF('Juli voer'!H12>0,VLOOKUP('Juli voer'!G12,Voedermiddelen!$A$4:$K$75,3,FALSE)*'Juli voer'!H12*(1-'Juli voer'!$G$6),"") -> 
A70: ='Juli voer'!A13 -> 0 | B70: ='Juli voer'!B13 -> 0 | C70: =IF('Juli voer'!C13>0,VLOOKUP('Juli voer'!B13,Voedermiddelen!$A$4:$K$75,3,FALSE)*'Juli voer'!C13*(1-'Juli voer'!$B$6),"") ->  | D70: ='Juli voer'!G13 -> 0 | E70: =IF('Juli voer'!H13>0,VLOOKUP('Juli voer'!G13,Voedermiddelen!$A$4:$K$75,3,FALSE)*'Juli voer'!H13*(1-'Juli voer'!$G$6),"") -> 
A71: ='Juli voer'!A14 -> 0 | B71: ='Juli voer'!B14 -> 0 | C71: =IF('Juli voer'!C14>0,VLOOKUP('Juli voer'!B14,Voedermiddelen!$A$4:$K$75,3,FALSE)*'Juli voer'!C14*(1-'Juli voer'!$B$6),"") ->  | D71: ='Juli voer'!G14 -> 0 | E71: =IF('Juli voer'!H14>0,VLOOKUP('Juli voer'!G14,Voedermiddelen!$A$4:$K$75,3,FALSE)*'Juli voer'!H14*(1-'Juli voer'!$G$6),"") -> 
A72: ='Juli voer'!A15 -> 0 | B72: ='Juli voer'!B15 -> 0 | C72: =IF('Juli voer'!C15>0,VLOOKUP('Juli voer'!B15,Voedermiddelen!$A$4:$K$75,3,FALSE)*'Juli voer'!C15*(1-'Juli voer'!$B$6),"") ->  | D72: ='Juli voer'!G15 -> 0 | E72: =IF('Juli voer'!H15>0,VLOOKUP('Juli voer'!G15,Voedermiddelen!$A$4:$K$75,3,FALSE)*'Juli voer'!H15*(1-'Juli voer'!$G$6),"") -> 
A73: ='Juli voer'!A16 -> 0 | B73: ='Juli voer'!B16 -> 0 | C73: =IF('Juli voer'!C16>0,VLOOKUP('Juli voer'!B16,Voedermiddelen!$A$4:$K$75,3,FALSE)*'Juli voer'!C16*(1-'Juli voer'!$B$6),"") ->  | D73: ='Juli voer'!G16 -> 0 | E73: =IF('Juli voer'!H16>0,VLOOKUP('Juli voer'!G16,Voedermiddelen!$A$4:$K$75,3,FALSE)*'Juli voer'!H16*(1-'Juli voer'!$G$6),"") -> 
A74: ='Juli voer'!A17 -> 0 | B74: ='Juli voer'!B17 -> 0 | C74: =IF('Juli voer'!C17>0,VLOOKUP('Juli voer'!B17,Voedermiddelen!$A$4:$K$75,3,FALSE)*'Juli voer'!C17*(1-'Juli voer'!$B$6),"") ->  | D74: ='Juli voer'!G17 -> 0 | E74: =IF('Juli voer'!H17>0,VLOOKUP('Juli voer'!G17,Voedermiddelen!$A$4:$K$75,3,FALSE)*'Juli voer'!H17*(1-'Juli voer'!$G$6),"") -> 
B75: ='Juli voer'!B18 -> 0 | C75: =IF('Juli voer'!C18>0,VLOOKUP('Juli voer'!B18,Voedermiddelen!$A$4:$K$75,3,FALSE)*'Juli voer'!C18*(1-'Juli voer'!$B$6),"") ->  | D75: ='Juli voer'!G18 -> 0 | E75: =IF('Juli voer'!H18>0,VLOOKUP('Juli voer'!G18,Voedermiddelen!$A$4:$K$75,3,FALSE)*'Juli voer'!H18*(1-'Juli voer'!$G$6),"") -> 
B76: ='Juli voer'!B20 -> 0 | C76: =IF('Juli voer'!C20>0,VLOOKUP('Juli voer'!B20,Voedermiddelen!$A$4:$K$75,3,FALSE)*'Juli voer'!C20,"") ->  | E76: ='Juli voer'!H22*'Juli vee+melk'!E15/100*0.9 -> 
B77: ='Juli voer'!B21 -> 0 | C77: =IF('Juli voer'!C21>0,VLOOKUP('Juli voer'!B21,Voedermiddelen!$A$4:$K$75,3,FALSE)*'Juli voer'!C21,"") -> 
B78: ='Juli voer'!B22 -> 0 | C78: =IF('Juli voer'!C22>0,VLOOKUP('Juli voer'!B22,Voedermiddelen!$A$4:$K$75,3,FALSE)*'Juli voer'!C22,"") -> 
A80: Totaal | C80: =SUM(C66:C78) -> 0 | E80: =SUM(E66:E78) -> 
A82: VEM | B82: =B66 -> 0 | C82: =IF('Juli voer'!C9>0,VLOOKUP('Juli voer'!B9,Voedermiddelen!$A$4:$K$75,4,FALSE)*C66,"") ->  | D82: =D66 -> 0 | E82: =IF('Juli voer'!H9>0,VLOOKUP('Juli voer'!G9,Voedermiddelen!$A$4:$K$75,4,FALSE)*E66,"") -> 
B83: =B67 -> 0 | C83: =IF('Juli voer'!C10>0,VLOOKUP('Juli voer'!B10,Voedermiddelen!$A$4:$K$75,4,FALSE)*C67,"") ->  | D83: 0 | E83: =IF('Juli voer'!H10>0,VLOOKUP('Juli voer'!G10,Voedermiddelen!$A$4:$K$75,4,FALSE)*E67,"") -> 
B84: 0 | C84: =IF('Juli voer'!C11>0,VLOOKUP('Juli voer'!B11,Voedermiddelen!$A$4:$K$75,4,FALSE)*C68,"") ->  | D84: 0 | E84: =IF('Juli voer'!H11>0,VLOOKUP('Juli voer'!G11,Voedermiddelen!$A$4:$K$75,4,FALSE)*E68,"") -> 
B85: 0 | C85: =IF('Juli voer'!C12>0,VLOOKUP('Juli voer'!B12,Voedermiddelen!$A$4:$K$75,4,FALSE)*C69,"") ->  | D85: 0 | E85: =IF('Juli voer'!H12>0,VLOOKUP('Juli voer'!G12,Voedermiddelen!$A$4:$K$75,4,FALSE)*E69,"") -> 
B86: 0 | C86: =IF('Juli voer'!C13>0,VLOOKUP('Juli voer'!B13,Voedermiddelen!$A$4:$K$75,4,FALSE)*C70,"") ->  | D86: 0 | E86: =IF('Juli voer'!H13>0,VLOOKUP('Juli voer'!G13,Voedermiddelen!$A$4:$K$75,4,FALSE)*E70,"") -> 
B87: 0 | C87: =IF('Juli voer'!C14>0,VLOOKUP('Juli voer'!B14,Voedermiddelen!$A$4:$K$75,4,FALSE)*C71,"") ->  | D87: 0 | E87: =IF('Juli voer'!H14>0,VLOOKUP('Juli voer'!G14,Voedermiddelen!$A$4:$K$75,4,FALSE)*E71,"") -> 
B88: 0 | C88: =IF('Juli voer'!C15>0,VLOOKUP('Juli voer'!B15,Voedermiddelen!$A$4:$K$75,4,FALSE)*C72,"") ->  | D88: 0 | E88: =IF('Juli voer'!H15>0,VLOOKUP('Juli voer'!G15,Voedermiddelen!$A$4:$K$75,4,FALSE)*E72,"") -> 
B89: 0 | C89: =IF('Juli voer'!C16>0,VLOOKUP('Juli voer'!B16,Voedermiddelen!$A$4:$K$75,4,FALSE)*C73,"") ->  | D89: 0 | E89: =IF('Juli voer'!H16>0,VLOOKUP('Juli voer'!G16,Voedermiddelen!$A$4:$K$75,4,FALSE)*E73,"") -> 
B90: 0 | C90: =IF('Juli voer'!C17>0,VLOOKUP('Juli voer'!B17,Voedermiddelen!$A$4:$K$75,4,FALSE)*C74,"") ->  | D90: 0 | E90: =IF('Juli voer'!H17>0,VLOOKUP('Juli voer'!G17,Voedermiddelen!$A$4:$K$75,4,FALSE)*E74,"") -> 
B91: 0 | C91: =IF('Juli voer'!C18>0,VLOOKUP('Juli voer'!B18,Voedermiddelen!$A$4:$K$75,4,FALSE)*C75,"") ->  | D91: 0 | E91: =IF('Juli voer'!H18>0,VLOOKUP('Juli voer'!G18,Voedermiddelen!$A$4:$K$75,4,FALSE)*E75,"") -> 
B92: 0 | C92: =IF('Juli voer'!C20>0,VLOOKUP('Juli voer'!B20,Voedermiddelen!$A$4:$K$75,4,FALSE)*C76,"") ->  | D92: 0 | E92: =E76*1000 -> 
B93: 0 | C93: =IF('Juli voer'!C21>0,VLOOKUP('Juli voer'!B21,Voedermiddelen!$A$4:$K$75,4,FALSE)*C77,"") ->  | D93: 0
B94: 0 | C94: =IF('Juli voer'!C22>0,VLOOKUP('Juli voer'!B22,Voedermiddelen!$A$4:$K$75,4,FALSE)*C78,"") ->  | D94: 0
A96: Totaal | C96: =SUM(C82:C94) -> 0 | E96: =SUM(E82:E94) -> 
A98: DVE | B98: =B82 -> 0 | C98: =IF('Juli voer'!C9>0,VLOOKUP('Juli voer'!B9,Voedermiddelen!$A$4:$K$75,5,FALSE)*C66,"") ->  | D98: =D82 -> 0 | E98: =IF('Juli voer'!H9>0,VLOOKUP('Juli voer'!G9,[1]Voedermiddelen!$A$4:$K$75,5,FALSE)*E66,"") -> 
B99: =B83 -> 0 | C99: =IF('Juli voer'!C10>0,VLOOKUP('Juli voer'!B10,Voedermiddelen!$A$4:$K$75,5,FALSE)*C67,"") ->  | D99: 0 | E99: =IF('Juli voer'!H10>0,VLOOKUP('Juli voer'!G10,[1]Voedermiddelen!$A$4:$K$75,5,FALSE)*E67,"") -> 
B100: 0 | C100: =IF('Juli voer'!C11>0,VLOOKUP('Juli voer'!B11,Voedermiddelen!$A$4:$K$75,5,FALSE)*C68,"") ->  | D100: 0 | E100: =IF('Juli voer'!H11>0,VLOOKUP('Juli voer'!G11,[1]Voedermiddelen!$A$4:$K$75,5,FALSE)*E68,"") -> 
B101: 0 | C101: =IF('Juli voer'!C12>0,VLOOKUP('Juli voer'!B12,Voedermiddelen!$A$4:$K$75,5,FALSE)*C69,"") ->  | D101: 0 | E101: =IF('Juli voer'!H12>0,VLOOKUP('Juli voer'!G12,[1]Voedermiddelen!$A$4:$K$75,5,FALSE)*E69,"") -> 
B102: 0 | C102: =IF('Juli voer'!C13>0,VLOOKUP('Juli voer'!B13,Voedermiddelen!$A$4:$K$75,5,FALSE)*C70,"") ->  | D102: 0 | E102: =IF('Juli voer'!H13>0,VLOOKUP('Juli voer'!G13,[1]Voedermiddelen!$A$4:$K$75,5,FALSE)*E70,"") -> 
B103: 0 | C103: =IF('Juli voer'!C14>0,VLOOKUP('Juli voer'!B14,Voedermiddelen!$A$4:$K$75,5,FALSE)*C71,"") ->  | D103: 0 | E103: =IF('Juli voer'!H14>0,VLOOKUP('Juli voer'!G14,[1]Voedermiddelen!$A$4:$K$75,5,FALSE)*E71,"") -> 
B104: 0 | C104: =IF('Juli voer'!C15>0,VLOOKUP('Juli voer'!B15,Voedermiddelen!$A$4:$K$75,5,FALSE)*C72,"") ->  | D104: 0 | E104: =IF('Juli voer'!H15>0,VLOOKUP('Juli voer'!G15,[1]Voedermiddelen!$A$4:$K$75,5,FALSE)*E72,"") -> 
B105: 0 | C105: =IF('Juli voer'!C16>0,VLOOKUP('Juli voer'!B16,Voedermiddelen!$A$4:$K$75,5,FALSE)*C73,"") ->  | D105: 0 | E105: =IF('Juli voer'!H16>0,VLOOKUP('Juli voer'!G16,[1]Voedermiddelen!$A$4:$K$75,5,FALSE)*E73,"") -> 
B106: 0 | C106: =IF('Juli voer'!C17>0,VLOOKUP('Juli voer'!B17,Voedermiddelen!$A$4:$K$75,5,FALSE)*C74,"") ->  | D106: 0 | E106: =IF('Juli voer'!H17>0,VLOOKUP('Juli voer'!G17,[1]Voedermiddelen!$A$4:$K$75,5,FALSE)*E74,"") -> 
B107: 0 | C107: =IF('Juli voer'!C18>0,VLOOKUP('Juli voer'!B18,Voedermiddelen!$A$4:$K$75,5,FALSE)*C75,"") ->  | D107: 0 | E107: =IF('Juli voer'!H18>0,VLOOKUP('Juli voer'!G18,[1]Voedermiddelen!$A$4:$K$75,5,FALSE)*E75,"") -> 
B108: 0 | C108: =IF('Juli voer'!C20>0,VLOOKUP('Juli voer'!B20,Voedermiddelen!$A$4:$K$75,5,FALSE)*C76,"") ->  | D108: 0
B109: 0 | C109: =IF('Juli voer'!C21>0,VLOOKUP('Juli voer'!B21,Voedermiddelen!$A$4:$K$75,5,FALSE)*C77,"") ->  | D109: 0
B110: 0 | C110: =IF('Juli voer'!C22>0,VLOOKUP('Juli voer'!B22,Voedermiddelen!$A$4:$K$75,5,FALSE)*C78,"") ->  | D110: 0
A112: Totaal | C112: =SUM(C98:C110)/1000 -> 0 | E112: =SUM(E98:E110)/1000 -> 0
A114: OEB | B114: =B98 -> 0 | C114: =IF('Juli voer'!C9>0,VLOOKUP('Juli voer'!B9,[1]Voedermiddelen!$A$4:$K$75,6,FALSE)*C66,"") ->  | D114: =D98 -> 0 | E114: =IF('Juli voer'!H9>0,VLOOKUP('Juli voer'!G9,[1]Voedermiddelen!$A$4:$K$75,6,FALSE)*E66,"") -> 
B115: =B99 -> 0 | C115: =IF('Juli voer'!C10>0,VLOOKUP('Juli voer'!B10,[1]Voedermiddelen!$A$4:$K$75,6,FALSE)*C67,"") ->  | D115: 0 | E115: =IF('Juli voer'!H10>0,VLOOKUP('Juli voer'!G10,[1]Voedermiddelen!$A$4:$K$75,6,FALSE)*E67,"") -> 
B116: 0 | C116: =IF('Juli voer'!C11>0,VLOOKUP('Juli voer'!B11,[1]Voedermiddelen!$A$4:$K$75,6,FALSE)*C68,"") ->  | D116: 0 | E116: =IF('Juli voer'!H11>0,VLOOKUP('Juli voer'!G11,[1]Voedermiddelen!$A$4:$K$75,6,FALSE)*E68,"") -> 
B117: 0 | C117: =IF('Juli voer'!C12>0,VLOOKUP('Juli voer'!B12,[1]Voedermiddelen!$A$4:$K$75,6,FALSE)*C69,"") ->  | D117: 0 | E117: =IF('Juli voer'!H12>0,VLOOKUP('Juli voer'!G12,[1]Voedermiddelen!$A$4:$K$75,6,FALSE)*E69,"") -> 
B118: 0 | C118: =IF('Juli voer'!C13>0,VLOOKUP('Juli voer'!B13,[1]Voedermiddelen!$A$4:$K$75,6,FALSE)*C70,"") ->  | D118: 0 | E118: =IF('Juli voer'!H13>0,VLOOKUP('Juli voer'!G13,[1]Voedermiddelen!$A$4:$K$75,6,FALSE)*E70,"") -> 
B119: 0 | C119: =IF('Juli voer'!C14>0,VLOOKUP('Juli voer'!B14,[1]Voedermiddelen!$A$4:$K$75,6,FALSE)*C71,"") ->  | D119: 0 | E119: =IF('Juli voer'!H14>0,VLOOKUP('Juli voer'!G14,[1]Voedermiddelen!$A$4:$K$75,6,FALSE)*E71,"") -> 
B120: 0 | C120: =IF('Juli voer'!C15>0,VLOOKUP('Juli voer'!B15,[1]Voedermiddelen!$A$4:$K$75,6,FALSE)*C72,"") ->  | D120: 0 | E120: =IF('Juli voer'!H15>0,VLOOKUP('Juli voer'!G15,[1]Voedermiddelen!$A$4:$K$75,6,FALSE)*E72,"") -> 
B121: 0 | C121: =IF('Juli voer'!C16>0,VLOOKUP('Juli voer'!B16,[1]Voedermiddelen!$A$4:$K$75,6,FALSE)*C73,"") ->  | D121: 0 | E121: =IF('Juli voer'!H16>0,VLOOKUP('Juli voer'!G16,[1]Voedermiddelen!$A$4:$K$75,6,FALSE)*E73,"") -> 
B122: 0 | C122: =IF('Juli voer'!C17>0,VLOOKUP('Juli voer'!B17,[1]Voedermiddelen!$A$4:$K$75,6,FALSE)*C74,"") ->  | D122: 0 | E122: =IF('Juli voer'!H17>0,VLOOKUP('Juli voer'!G17,[1]Voedermiddelen!$A$4:$K$75,6,FALSE)*E74,"") -> 
B123: 0 | C123: =IF('Juli voer'!C18>0,VLOOKUP('Juli voer'!B18,[1]Voedermiddelen!$A$4:$K$75,6,FALSE)*C75,"") ->  | D123: 0 | E123: =IF('Juli voer'!H18>0,VLOOKUP('Juli voer'!G18,[1]Voedermiddelen!$A$4:$K$75,6,FALSE)*E75,"") -> 
B124: 0 | C124: =IF('Juli voer'!C20>0,VLOOKUP('Juli voer'!B20,[1]Voedermiddelen!$A$4:$K$75,6,FALSE)*C76,"") ->  | D124: 0
B125: 0 | C125: =IF('Juli voer'!C21>0,VLOOKUP('Juli voer'!B21,[1]Voedermiddelen!$A$4:$K$75,6,FALSE)*C77,"") ->  | D125: 0
B126: 0 | C126: =IF('Juli voer'!C22>0,VLOOKUP('Juli voer'!B22,[1]Voedermiddelen!$A$4:$K$75,6,FALSE)*C78,"") ->  | D126: 0
A128: Totaal | C128: =SUM(C114:C126) -> 0 | E128: =SUM(E114:E126) -> 0
A130: RE | B130: =B114 -> 0 | C130: =IF('Juli voer'!C9>0,VLOOKUP('Juli voer'!B9,Voedermiddelen!$A$4:$K$75,7,FALSE)*C66,"") ->  | D130: =D114 -> 0 | E130: =IF('Juli voer'!H9>0,VLOOKUP('Juli voer'!G9,Voedermiddelen!$A$4:$K$75,7,FALSE)*E66,"") -> 
B131: =B115 -> 0 | C131: =IF('Juli voer'!C10>0,VLOOKUP('Juli voer'!B10,Voedermiddelen!$A$4:$K$75,7,FALSE)*C67,"") ->  | D131: 0 | E131: =IF('Juli voer'!H10>0,VLOOKUP('Juli voer'!G10,Voedermiddelen!$A$4:$K$75,7,FALSE)*E67,"") -> 
B132: 0 | C132: =IF('Juli voer'!C11>0,VLOOKUP('Juli voer'!B11,Voedermiddelen!$A$4:$K$75,7,FALSE)*C68,"") ->  | D132: 0 | E132: =IF('Juli voer'!H11>0,VLOOKUP('Juli voer'!G11,Voedermiddelen!$A$4:$K$75,7,FALSE)*E68,"") -> 
B133: 0 | C133: =IF('Juli voer'!C12>0,VLOOKUP('Juli voer'!B12,Voedermiddelen!$A$4:$K$75,7,FALSE)*C69,"") ->  | D133: 0 | E133: =IF('Juli voer'!H12>0,VLOOKUP('Juli voer'!G12,Voedermiddelen!$A$4:$K$75,7,FALSE)*E69,"") -> 
B134: 0 | C134: =IF('Juli voer'!C13>0,VLOOKUP('Juli voer'!B13,Voedermiddelen!$A$4:$K$75,7,FALSE)*C70,"") ->  | D134: 0 | E134: =IF('Juli voer'!H13>0,VLOOKUP('Juli voer'!G13,Voedermiddelen!$A$4:$K$75,7,FALSE)*E70,"") -> 
B135: 0 | C135: =IF('Juli voer'!C14>0,VLOOKUP('Juli voer'!B14,Voedermiddelen!$A$4:$K$75,7,FALSE)*C71,"") ->  | D135: 0 | E135: =IF('Juli voer'!H14>0,VLOOKUP('Juli voer'!G14,Voedermiddelen!$A$4:$K$75,7,FALSE)*E71,"") -> 
B136: 0 | C136: =IF('Juli voer'!C15>0,VLOOKUP('Juli voer'!B15,Voedermiddelen!$A$4:$K$75,7,FALSE)*C72,"") ->  | D136: 0 | E136: =IF('Juli voer'!H15>0,VLOOKUP('Juli voer'!G15,Voedermiddelen!$A$4:$K$75,7,FALSE)*E72,"") -> 
B137: 0 | C137: =IF('Juli voer'!C16>0,VLOOKUP('Juli voer'!B16,Voedermiddelen!$A$4:$K$75,7,FALSE)*C73,"") ->  | D137: 0 | E137: =IF('Juli voer'!H16>0,VLOOKUP('Juli voer'!G16,Voedermiddelen!$A$4:$K$75,7,FALSE)*E73,"") -> 
B138: 0 | C138: =IF('Juli voer'!C17>0,VLOOKUP('Juli voer'!B17,Voedermiddelen!$A$4:$K$75,7,FALSE)*C74,"") ->  | D138: 0 | E138: =IF('Juli voer'!H17>0,VLOOKUP('Juli voer'!G17,Voedermiddelen!$A$4:$K$75,7,FALSE)*E74,"") -> 
B139: 0 | C139: =IF('Juli voer'!C18>0,VLOOKUP('Juli voer'!B18,Voedermiddelen!$A$4:$K$75,7,FALSE)*C75,"") ->  | D139: 0 | E139: =IF('Juli voer'!H18>0,VLOOKUP('Juli voer'!G18,Voedermiddelen!$A$4:$K$75,7,FALSE)*E75,"") -> 
B140: 0 | C140: =IF('Juli voer'!C20>0,VLOOKUP('Juli voer'!B20,Voedermiddelen!$A$4:$K$75,7,FALSE)*C76,"") ->  | D140: 0
B141: 0 | C141: =IF('Juli voer'!C21>0,VLOOKUP('Juli voer'!B21,Voedermiddelen!$A$4:$K$75,7,FALSE)*C77,"") ->  | D141: 0
B142: =B126 -> 0 | C142: =IF('Juli voer'!C22>0,VLOOKUP('Juli voer'!B22,Voedermiddelen!$A$4:$K$75,7,FALSE)*C78,"") ->  | D142: 0
A144: Totaal | C144: =SUM(C130:C142) -> 0 | E144: =SUM(E130:E142) -> 0
A146: N opname | C146: =C144/6.25 -> 0 | E146: =E144/6.25 -> 0 | G146: =(E76/0.9*'Juli voer'!M6/6.25) -> 
A148: P | B148: =B130 -> 0 | C148: =IF('Juli voer'!C9>0,VLOOKUP('Juli voer'!B9,Voedermiddelen!$A$4:$K$75,10,FALSE)*C66,"") ->  | D148: =D130 -> 0 | E148: =IF('Juli voer'!H9>0,VLOOKUP('Juli voer'!G9,Voedermiddelen!$A$4:$K$75,10,FALSE)*E66,"") -> 
B149: =B131 -> 0 | C149: =IF('Juli voer'!C10>0,VLOOKUP('Juli voer'!B10,Voedermiddelen!$A$4:$K$75,10,FALSE)*C67,"") ->  | D149: 0 | E149: =IF('Juli voer'!H10>0,VLOOKUP('Juli voer'!G10,Voedermiddelen!$A$4:$K$75,10,FALSE)*E67,"") -> 
B150: 0 | C150: =IF('Juli voer'!C11>0,VLOOKUP('Juli voer'!B11,Voedermiddelen!$A$4:$K$75,10,FALSE)*C68,"") ->  | D150: 0 | E150: =IF('Juli voer'!H11>0,VLOOKUP('Juli voer'!G11,Voedermiddelen!$A$4:$K$75,10,FALSE)*E68,"") -> 
B151: 0 | C151: =IF('Juli voer'!C12>0,VLOOKUP('Juli voer'!B12,Voedermiddelen!$A$4:$K$75,10,FALSE)*C69,"") ->  | D151: 0 | E151: =IF('Juli voer'!H12>0,VLOOKUP('Juli voer'!G12,Voedermiddelen!$A$4:$K$75,10,FALSE)*E69,"") -> 
B152: 0 | C152: =IF('Juli voer'!C13>0,VLOOKUP('Juli voer'!B13,Voedermiddelen!$A$4:$K$75,10,FALSE)*C70,"") ->  | D152: 0 | E152: =IF('Juli voer'!H13>0,VLOOKUP('Juli voer'!G13,Voedermiddelen!$A$4:$K$75,10,FALSE)*E70,"") -> 
B153: 0 | C153: =IF('Juli voer'!C14>0,VLOOKUP('Juli voer'!B14,Voedermiddelen!$A$4:$K$75,10,FALSE)*C71,"") ->  | D153: 0 | E153: =IF('Juli voer'!H14>0,VLOOKUP('Juli voer'!G14,Voedermiddelen!$A$4:$K$75,10,FALSE)*E71,"") -> 
B154: 0 | C154: =IF('Juli voer'!C15>0,VLOOKUP('Juli voer'!B15,Voedermiddelen!$A$4:$K$75,10,FALSE)*C72,"") ->  | D154: 0 | E154: =IF('Juli voer'!H15>0,VLOOKUP('Juli voer'!G15,Voedermiddelen!$A$4:$K$75,10,FALSE)*E72,"") -> 
B155: 0 | C155: =IF('Juli voer'!C16>0,VLOOKUP('Juli voer'!B16,Voedermiddelen!$A$4:$K$75,10,FALSE)*C73,"") ->  | D155: 0 | E155: =IF('Juli voer'!H16>0,VLOOKUP('Juli voer'!G16,Voedermiddelen!$A$4:$K$75,10,FALSE)*E73,"") -> 
B156: 0 | C156: =IF('Juli voer'!C17>0,VLOOKUP('Juli voer'!B17,Voedermiddelen!$A$4:$K$75,10,FALSE)*C74,"") ->  | D156: 0 | E156: =IF('Juli voer'!H17>0,VLOOKUP('Juli voer'!G17,Voedermiddelen!$A$4:$K$75,10,FALSE)*E74,"") -> 
B157: 0 | C157: =IF('Juli voer'!C18>0,VLOOKUP('Juli voer'!B18,Voedermiddelen!$A$4:$K$75,10,FALSE)*C75,"") ->  | D157: 0 | E157: =IF('Juli voer'!H18>0,VLOOKUP('Juli voer'!G18,Voedermiddelen!$A$4:$K$75,10,FALSE)*E75,"") -> 
B158: =B140 -> 0 | C158: =IF('Juli voer'!C20>0,VLOOKUP('Juli voer'!B20,Voedermiddelen!$A$4:$K$75,10,FALSE)*C76,"") ->  | D158: 0
B159: =B141 -> 0 | C159: =IF('Juli voer'!C21>0,VLOOKUP('Juli voer'!B21,Voedermiddelen!$A$4:$K$75,10,FALSE)*C77,"") ->  | D159: 0
B160: =B142 -> 0 | C160: =IF('Juli voer'!C22>0,VLOOKUP('Juli voer'!B22,Voedermiddelen!$A$4:$K$75,10,FALSE)*C78,"") ->  | D160: 0
A162: Totaal | C162: =SUM(C148:C160) -> 0 | E162: =SUM(E148:E160) -> 0 | G162: =(E76/0.9*'Juli voer'!M7) -> 

Sheet Juli Excretie (hidden)
A1: Veestapel
C2: ='Juli vee+melk'!C6 -> Juli gerealiseerd | E2: ='Juli vee+melk'!E6 -> Juli prognose
A5: Excretie (kg/dier/dag)
C6: N | E6: N
A7: Opname | C7: ='Juli Voeropname'!C2*'Juli Voeropname'!C7*0.001 ->  | E7: ='Juli Voeropname'!E2*'Juli Voeropname'!E7*0.001+'Juli Voeropname'!G146*0.001/'Juli vee+melk'!E2 -> 
A8: Gem opname 7 dgn | C8: =AVERAGE(C7:F7) ->  | E8: =AVERAGE(E7) -> 
A9: Productie | C9: ='Juli vee+melk'!C22*'Juli vee+melk'!C10/6.38 ->  | E9: ='Juli vee+melk'!E22*'Juli vee+melk'!E10/6.38 -> 
A10: Vastlegging | C10: =1.4/365 -> 0.003835616438 | E10: =1.4/365 -> 0.003835616438
A11: Onder de staart | C11: =C7-C9-C10 ->  | E11: =E7-E9-E10 -> 
A12: Vervluchtiging | C12: =C11*0.1175 ->  | E12: =E11*0.1175 -> 
A13: Gemeten netto excretie | C13: =C11-C12 ->  | E13: =E11-E12 -> 
C15: P | E15: P
A16: Opname | C16: ='Juli Voeropname'!C2*'Juli Voeropname'!C8/1000 ->  | E16: ='Juli Voeropname'!E2*'Juli Voeropname'!E8/1000+'Juli Voeropname'!G162*0.001/'Juli vee+melk'!E2 -> 
A17: Gem opname 7 dgn | C17: =AVERAGE(C16:F16) ->  | E17: =AVERAGE(E16) -> 
A18: Productie | C18: ='Juli vee+melk'!C22*0.9/1000 ->  | E18: ='Juli vee+melk'!E22*0.9/1000 -> 
A19: Vastlegging | C19: =0.5/365 -> 0.001369863014 | E19: =0.5/365 -> 0.001369863014
A20: Onder de staart | C20: =C16-C18-C19 ->  | E20: =E16-E18-E19 -> 
A21: Vervluchtiging
A22: Gemeten netto excretie | C22: =C20 ->  | E22: =E20 -> 
A24: N excretie per ton meetmelk (kg) | C24: =C13/'Juli vee+melk'!C21*1000 ->  | E24: =E13/'Juli vee+melk'!E21*1000 -> 
A25: P excretie per ton meetmelk (kg) | C25: =C22/'Juli vee+melk'!C21*1000 ->  | E25: =E22/'Juli vee+melk'!E21*1000 -> 

Sheet Juli kengetallen (hidden)
A1: Rantsoen
A2: Datum | C2: ='Juli voer'!B3 -> Juli gerealiseerd | E2: ='Juli voer'!G3 -> Juli prognose
A4: ='Juli Voeropname'!A2 -> DS opname/koe | C4: ='Juli Voeropname'!C2 ->  | E4: ='Juli Voeropname'!E2 -> 
A5: ='Juli Voeropname'!A3 -> VEM | C5: ='Juli Voeropname'!C3 ->  | E5: ='Juli Voeropname'!E3 -> 
A6: ='Juli Voeropname'!A4 -> DVE | C6: ='Juli Voeropname'!C4 ->  | E6: ='Juli Voeropname'!E4 -> 
A7: ='Juli Voeropname'!A5 -> OEB | C7: ='Juli Voeropname'!C5 ->  | E7: ='Juli Voeropname'!E5 -> 
A8: ='Juli Voeropname'!A6 -> RE | C8: ='Juli Voeropname'!C6 ->  | E8: ='Juli Voeropname'!E6 -> 
A9: ='Juli Voeropname'!A7 -> N | C9: ='Juli Voeropname'!C7 ->  | E9: ='Juli Voeropname'!E7 -> 
A10: ='Juli Voeropname'!A8 -> P | C10: ='Juli Voeropname'!C8 ->  | E10: ='Juli Voeropname'!E8 -> 
A12: Streefwaarde RE | C12: ='Juli voer'!H20 -> 160
A13: Streefwaarde P | C13: ='Juli voer'!H21 -> 3.6
A16: ='Juli Excretie'!A24 -> N excretie per ton meetmelk (kg) | C16: ='Juli Excretie'!C24 ->  | E16: ='Juli Excretie'!E24 -> 
A17: ='Juli Excretie'!A25 -> P excretie per ton meetmelk (kg) | C17: ='Juli Excretie'!C25 ->  | E17: ='Juli Excretie'!E25 -> 
A20: VEM dekking | C20: ='Juli Voeropname'!C35/'Juli vee+melk'!C27 ->  | E20: ='Juli Voeropname'!E35/'Juli vee+melk'!E27 -> 
A21: DVE dekking | C21: ='Juli Voeropname'!C36/'Juli vee+melk'!C28 ->  | E21: ='Juli Voeropname'!E36/'Juli vee+melk'!E28 -> 
A24: Voerefficientie kg meetmelk/kg voer (ds) | C24: ='Juli vee+melk'!C21/'Juli Voeropname'!C2 ->  | E24: ='Juli vee+melk'!E21/'Juli Voeropname'!E2 -> 
A25: kg krachtvoer per 100 kg (excl bijprod) | C25: =SUM('Juli Voeropname'!C76:C78)/('Juli vee+melk'!C21*'Juli vee+melk'!C2)*100/0.9 ->  | E25: =SUM('Juli Voeropname'!E76:E78)/('Juli vee+melk'!E21*'Juli vee+melk'!E2)*100 -> 
A28: =A12 -> Streefwaarde RE | C28: =$C$12 -> 160 | E28: =$C$12 -> 160
A29: =A13 -> Streefwaarde P | C29: =$C$13 -> 3.6 | E29: =$C$13 -> 3.6
A34: =A2 -> Datum | C34: =C2 -> Juli gerealiseerd | D34: =E2 -> Juli prognose | E34: =#REF! ->  | F34: =#REF! -> 
A35: 00:00:00
A36: DS opname/koe | C36: =C4 ->  | D36: =E4 ->  | E36: =#REF! ->  | F36: =#REF! -> 
A37: VEM | E37: =#REF! ->  | F37: =#REF! -> 
A38: DVE | E38: =#REF! ->  | F38: =#REF! -> 
A39: OEB | E39: =#REF! ->  | F39: =#REF! -> 
A40: RE | E40: =#REF! ->  | F40: =#REF! -> 
A41: N | E41: =#REF! ->  | F41: =#REF! -> 
A42: P | E42: =#REF! ->  | F42: =#REF! -> 
A43: =A15 -> 00:00:00
A44: N excretie per ton meetmelk (kg) | C44: =C16 ->  | D44: =E16 ->  | E44: =#REF! ->  | F44: =#REF! -> 
A45: P excretie per ton meetmelk (kg) | D45: =E17 ->  | E45: =#REF! ->  | F45: =#REF! -> 
A46: 00:00:00 | C46: =1000/C45/2.29 ->  | D46: =1000/D45/2.29 ->  | E46: =1000/E45/2.29 ->  | F46: =1000/F45/2.29 -> 
A49: Rantsoen
A51: Kuilgras | C51: =IF('Juli Voeropname'!$A66='Juli kengetallen'!$A51,'Juli Voeropname'!C66,"") ->  | E51: =IF('Juli Voeropname'!$A66='Juli kengetallen'!$A51,'Juli Voeropname'!E66,"") -> 
A52: Kuilgras | C52: =IF('Juli Voeropname'!$A67='Juli kengetallen'!$A52,'Juli Voeropname'!C67,"") ->  | E52: =IF('Juli Voeropname'!$A67='Juli kengetallen'!$A52,'Juli Voeropname'!E67,"") -> 
A53: Kuilgras | C53: =IF('Juli Voeropname'!$A68='Juli kengetallen'!$A53,'Juli Voeropname'!C68,"") ->  | E53: =IF('Juli Voeropname'!$A68='Juli kengetallen'!$A53,'Juli Voeropname'!E68,"") -> 
A54: Kuilgras | C54: =IF('Juli Voeropname'!$A69='Juli kengetallen'!$A54,'Juli Voeropname'!C69,"") ->  | E54: =IF('Juli Voeropname'!$A69='Juli kengetallen'!$A54,'Juli Voeropname'!E69,"") -> 
A55: Kuilgras | C55: =IF('Juli Voeropname'!$A70='Juli kengetallen'!$A55,'Juli Voeropname'!C70,"") ->  | E55: =IF('Juli Voeropname'!$A70='Juli kengetallen'!$A55,'Juli Voeropname'!E70,"") -> 
A56: Kuilgras | C56: =IF('Juli Voeropname'!$A71='Juli kengetallen'!$A56,'Juli Voeropname'!C71,"") ->  | E56: =IF('Juli Voeropname'!$A71='Juli kengetallen'!$A56,'Juli Voeropname'!E71,"") -> 
A57: Kuilgras | C57: =IF('Juli Voeropname'!$A72='Juli kengetallen'!$A57,'Juli Voeropname'!C72,"") ->  | E57: =IF('Juli Voeropname'!$A72='Juli kengetallen'!$A57,'Juli Voeropname'!E72,"") -> 
A58: Kuilgras | C58: =IF('Juli Voeropname'!$A73='Juli kengetallen'!$A58,'Juli Voeropname'!C73,"") ->  | E58: =IF('Juli Voeropname'!$A73='Juli kengetallen'!$A58,'Juli Voeropname'!E73,"") -> 
A59: Kuilgras | C59: =IF('Juli Voeropname'!$A74='Juli kengetallen'!$A59,'Juli Voeropname'!C74,"") ->  | E59: =IF('Juli Voeropname'!$A74='Juli kengetallen'!$A59,'Juli Voeropname'!E74,"") -> 
A60: Totaal kuilgras | C60: =SUM(C51:C59) -> 0 | E60: =SUM(E51:E59) -> 0
A62: Snijmais | C62: =IF('Juli Voeropname'!$A66='Juli kengetallen'!$A62,'Juli Voeropname'!C66,"") ->  | E62: =IF('Juli Voeropname'!$A66='Juli kengetallen'!$A62,'Juli Voeropname'!E66,"") -> 
A63: Snijmais | C63: =IF('Juli Voeropname'!$A67='Juli kengetallen'!$A63,'Juli Voeropname'!C67,"") ->  | E63: =IF('Juli Voeropname'!$A67='Juli kengetallen'!$A63,'Juli Voeropname'!E67,"") -> 
A64: Snijmais | C64: =IF('Juli Voeropname'!$A68='Juli kengetallen'!$A64,'Juli Voeropname'!C68,"") ->  | E64: =IF('Juli Voeropname'!$A68='Juli kengetallen'!$A64,'Juli Voeropname'!E68,"") -> 
A65: Snijmais | C65: =IF('Juli Voeropname'!$A69='Juli kengetallen'!$A65,'Juli Voeropname'!C69,"") ->  | E65: =IF('Juli Voeropname'!$A69='Juli kengetallen'!$A65,'Juli Voeropname'!E69,"") -> 
A66: Snijmais | C66: =IF('Juli Voeropname'!$A70='Juli kengetallen'!$A66,'Juli Voeropname'!C70,"") ->  | E66: =IF('Juli Voeropname'!$A70='Juli kengetallen'!$A66,'Juli Voeropname'!E70,"") -> 
A67: Snijmais | C67: =IF('Juli Voeropname'!$A71='Juli kengetallen'!$A67,'Juli Voeropname'!C71,"") ->  | E67: =IF('Juli Voeropname'!$A71='Juli kengetallen'!$A67,'Juli Voeropname'!E71,"") -> 
A68: Snijmais | C68: =IF('Juli Voeropname'!$A72='Juli kengetallen'!$A68,'Juli Voeropname'!C72,"") ->  | E68: =IF('Juli Voeropname'!$A72='Juli kengetallen'!$A68,'Juli Voeropname'!E72,"") -> 
A69: Snijmais | C69: =IF('Juli Voeropname'!$A73='Juli kengetallen'!$A69,'Juli Voeropname'!C73,"") ->  | E69: =IF('Juli Voeropname'!$A73='Juli kengetallen'!$A69,'Juli Voeropname'!E73,"") -> 
A70: Snijmais | C70: =IF('Juli Voeropname'!$A74='Juli kengetallen'!$A70,'Juli Voeropname'!C74,"") ->  | E70: =IF('Juli Voeropname'!$A74='Juli kengetallen'!$A70,'Juli Voeropname'!E74,"") -> 
A71: Totaal snijmais | C71: =SUM(C62:C70) -> 0 | E71: =SUM(E62:E70) -> 0
A73: OverigRuwvoer | C73: =IF('Juli Voeropname'!$A66='Juli kengetallen'!$A73,'Juli Voeropname'!C66,"") ->  | E73: =IF('Juli Voeropname'!$A66='Juli kengetallen'!$A73,'Juli Voeropname'!E66,"") -> 
A74: OverigRuwvoer | C74: =IF('Juli Voeropname'!$A67='Juli kengetallen'!$A74,'Juli Voeropname'!C67,"") ->  | E74: =IF('Juli Voeropname'!$A67='Juli kengetallen'!$A74,'Juli Voeropname'!E67,"") -> 
A75: OverigRuwvoer | C75: =IF('Juli Voeropname'!$A68='Juli kengetallen'!$A75,'Juli Voeropname'!C68,"") ->  | E75: =IF('Juli Voeropname'!$A68='Juli kengetallen'!$A75,'Juli Voeropname'!E68,"") -> 
A76: OverigRuwvoer | C76: =IF('Juli Voeropname'!$A69='Juli kengetallen'!$A76,'Juli Voeropname'!C69,"") ->  | E76: =IF('Juli Voeropname'!$A69='Juli kengetallen'!$A76,'Juli Voeropname'!E69,"") -> 
A77: OverigRuwvoer | C77: =IF('Juli Voeropname'!$A70='Juli kengetallen'!$A77,'Juli Voeropname'!C70,"") ->  | E77: =IF('Juli Voeropname'!$A70='Juli kengetallen'!$A77,'Juli Voeropname'!E70,"") -> 
A78: OverigRuwvoer | C78: =IF('Juli Voeropname'!$A71='Juli kengetallen'!$A78,'Juli Voeropname'!C71,"") ->  | E78: =IF('Juli Voeropname'!$A71='Juli kengetallen'!$A78,'Juli Voeropname'!E71,"") -> 
A79: OverigRuwvoer | C79: =IF('Juli Voeropname'!$A72='Juli kengetallen'!$A79,'Juli Voeropname'!C72,"") ->  | E79: =IF('Juli Voeropname'!$A72='Juli kengetallen'!$A79,'Juli Voeropname'!E72,"") -> 
A80: OverigRuwvoer | C80: =IF('Juli Voeropname'!$A73='Juli kengetallen'!$A80,'Juli Voeropname'!C73,"") ->  | E80: =IF('Juli Voeropname'!$A73='Juli kengetallen'!$A80,'Juli Voeropname'!E73,"") -> 
A81: OverigRuwvoer | C81: =IF('Juli Voeropname'!$A74='Juli kengetallen'!$A81,'Juli Voeropname'!C74,"") ->  | E81: =IF('Juli Voeropname'!$A74='Juli kengetallen'!$A81,'Juli Voeropname'!E74,"") -> 
A82: Totaal overig Ruwvoer | C82: =SUM(C73:C81) -> 0 | E82: =SUM(E73:E81) -> 0
A84: Bijproducten | C84: =IF('Juli Voeropname'!$A66='Juli kengetallen'!$A84,'Juli Voeropname'!C66,"") ->  | E84: =IF('Juli Voeropname'!$A66='Juli kengetallen'!$A84,'Juli Voeropname'!E66,"") -> 
A85: Bijproducten | C85: =IF('Juli Voeropname'!$A67='Juli kengetallen'!$A85,'Juli Voeropname'!C67,"") ->  | E85: =IF('Juli Voeropname'!$A67='Juli kengetallen'!$A85,'Juli Voeropname'!E67,"") -> 
A86: Bijproducten | C86: =IF('Juli Voeropname'!$A68='Juli kengetallen'!$A86,'Juli Voeropname'!C68,"") ->  | E86: =IF('Juli Voeropname'!$A68='Juli kengetallen'!$A86,'Juli Voeropname'!E68,"") -> 
A87: Bijproducten | C87: =IF('Juli Voeropname'!$A69='Juli kengetallen'!$A87,'Juli Voeropname'!C69,"") ->  | E87: =IF('Juli Voeropname'!$A69='Juli kengetallen'!$A87,'Juli Voeropname'!E69,"") -> 
A88: Bijproducten | C88: =IF('Juli Voeropname'!$A70='Juli kengetallen'!$A88,'Juli Voeropname'!C70,"") ->  | E88: =IF('Juli Voeropname'!$A70='Juli kengetallen'!$A88,'Juli Voeropname'!E70,"") -> 
A89: Bijproducten | C89: =IF('Juli Voeropname'!$A71='Juli kengetallen'!$A89,'Juli Voeropname'!C71,"") ->  | E89: =IF('Juli Voeropname'!$A71='Juli kengetallen'!$A89,'Juli Voeropname'!E71,"") -> 
A90: Bijproducten | C90: =IF('Juli Voeropname'!$A72='Juli kengetallen'!$A90,'Juli Voeropname'!C72,"") ->  | E90: =IF('Juli Voeropname'!$A72='Juli kengetallen'!$A90,'Juli Voeropname'!E72,"") -> 
A91: Bijproducten | C91: =IF('Juli Voeropname'!$A73='Juli kengetallen'!$A91,'Juli Voeropname'!C73,"") ->  | E91: =IF('Juli Voeropname'!$A73='Juli kengetallen'!$A91,'Juli Voeropname'!E73,"") -> 
A92: Bijproducten | C92: =IF('Juli Voeropname'!$A74='Juli kengetallen'!$A92,'Juli Voeropname'!C74,"") ->  | E92: =IF('Juli Voeropname'!$A74='Juli kengetallen'!$A92,'Juli Voeropname'!E74,"") -> 
A93: Totaal Bijproducten | C93: =SUM(C84:C92) -> 0 | E93: =SUM(E84:E92) -> 0
A95: Krachtvoer | C95: =SUM('Juli Voeropname'!C76:C78) -> 0 | E95: =SUM('Juli Voeropname'!E76:E78) -> 
A97: Vers gras | C97: ='Juli Voeropname'!C31*('Juli vee+melk'!C2+'Juli vee+melk'!C3) -> 0 | E97: ='Juli Voeropname'!E31*('Juli vee+melk'!E2+'Juli vee+melk'!E3) -> 0
A99: Totaal | C99: =C95+C93+C82+C71+C60+C97 -> 0 | E99: =E95+E93+E82+E71+E60+E97 -> 
A101: Vers gras | C101: =C97/C99 ->  | E101: =E97/E99 -> 
A102: Aandeel kuilgras | C102: =C60/C$99 ->  | E102: =E60/E$99 -> 
A103: Aandeel snijmais | C103: =C71/C$99 ->  | E103: =E71/E$99 -> 
A104: Aandeel overig ruwvoer | C104: =C82/C$99 ->  | E104: =E82/E$99 -> 
A105: Aandeel bijproducten | C105: =C93/C$99 ->  | E105: =E93/E$99 -> 
A106: Aandeel krachtvoer | C106: =C95/C$99 ->  | E106: =E95/E$99 -> 

Sheet Juni Voeropname (hidden)
A1: Gem rantsoen gehaltes (d dgn) | C1: ='Juni voer'!B3 -> Juni gerealiseerd | E1: ='Juni voer'!G3 -> Juni prognose
A2: DS opname/koe | C2: =C34 ->  | E2: =E34 -> 
A3: VEM | C3: =C12 ->  | E3: =AVERAGE(E12:E12) -> 
A4: DVE | C4: =AVERAGE(C13) ->  | M4: 1 | R4: Voedermiddelen
A5: OEB | C5: =AVERAGE(C14) ->  | M5: 2 | R5: Kuilgras
A6: RE | C6: =AVERAGE(C15) ->  | R6: Snijmais
A7: N | C7: =AVERAGE(C16) ->  | M7: Vem toeslag weidegang | O7: 1.03 | R7: OverigRuwvoer
A8: P | R8: Bijproducten
R9: Krachtvoer
A11: Rantsoen gehaltes (incl. weidegras)
A12: VEM | C12: =C35/C34 ->  | E12: =E35/E34 ->  | R12: Let op bij beperkt weiden is deze opname niet realistisch!
A13: DVE | C13: =C36/C34 ->  | E13: =E36/E34 ->  | R13: Let op VEM dekking te laag!
A14: OEB | C14: =C37 ->  | E14: =E37 -> 
A15: RE | C15: =C38/C34 ->  | E15: =E38/E34 -> 
A16: N | C16: =C39/C34 ->  | E16: =E39/E34 -> 
A17: P | C17: =C40/C34 ->  | E17: =E40/E34 -> 
A22: kg ds | C22: =C55/SUM('Juni vee+melk'!C2:C3) ->  | E22: =E55/SUM('Juni vee+melk'!E2:E3) -> 
A23: Vemopname ex weidegras | C23: =C22*C45 ->  | E23: =E22*E45 -> 
A27: VEM behoefte | C27: =IF('Juni voer'!B4=1,'Juni vee+melk'!C27*'Juni Voeropname'!O7,'Juni vee+melk'!C27) ->  | E27: =IF('Juni voer'!G4=1,'Juni vee+melk'!E27*'Juni Voeropname'!O7,'Juni vee+melk'!E27) -> 
A28: Behoefte-opname | C28: =C27-'Juni Voeropname'!C23 ->  | E28: =E27-'Juni Voeropname'!E23 -> 
C29: =C28/VLOOKUP('Juni voer'!B5,Weidegras!$A$5:$J$119,4,FALSE) ->  | E29: =E28/VLOOKUP('Juni voer'!G5,Weidegras!$A$5:$J$119,4,FALSE) -> 
C30: =IF(C29>0,C29,0) ->  | E30: =IF(E29>0,E29,0) -> 
A31: Weidegrasopname/koe | C31: =IF('Juni voer'!B4=1,C30,0) -> 0 | E31: =IF('Juni voer'!G4=1,E30,0) -> 0
A33: Rantsoenopname incl weidegras
A34: droge stof | C34: =C22+C31 ->  | E34: =E22+E31 -> 
A35: VEM | C35: =C45*C22+C31*VLOOKUP('Juni voer'!B5,Weidegras!$A$6:$J$180,4,FALSE) ->  | E35: =E45*E22+E31*VLOOKUP('Juni voer'!G5,Weidegras!$A$6:$J$180,4,FALSE) -> 
A36: DVE | C36: =C46*C22+$C$31*VLOOKUP('Juni voer'!B5,Weidegras!$A$5:$J$150,5,FALSE) ->  | E36: =E46*E22+$C$31*VLOOKUP('Juni voer'!G5,Weidegras!$A$5:$J$150,5,FALSE) -> 
A37: OEB | C37: =C22*C47+$C$31*VLOOKUP('Juni voer'!B5,Weidegras!$A$6:$J$151,6,FALSE) ->  | E37: =E22*E47+$C$31*VLOOKUP('Juni voer'!G5,Weidegras!$A$6:$J$151,6,FALSE) -> 
A38: RE | C38: =C48*C22+C31*VLOOKUP('Juni voer'!$B$5,Weidegras!$A$6:$J$181,7,FALSE) ->  | E38: =E48*E22+E31*VLOOKUP('Juni voer'!$B$5,Weidegras!$A$6:$J$181,7,FALSE) -> 
A39: N | C39: =C38/6.25 ->  | E39: =E38/6.25 -> 
A40: P | C40: =C50*C22+C31*VLOOKUP('Juni voer'!$B$5,Weidegras!$A$6:$J$183,10,FALSE) ->  | E40: =E50*E22+E31*VLOOKUP('Juni voer'!$B$5,Weidegras!$A$6:$J$183,10,FALSE) -> 
A43: Stalrantsoen gehaltes
A44: droge stof
A45: VEM | C45: =C56/C$55 ->  | E45: =E56/E$55 -> 
A46: DVE | C46: =C57/C$55*1000 ->  | E46: =E57/E$55*1000 -> 
A47: OEB | C47: =C58/C$55 ->  | E47: =E58/E$55 -> 
A48: RE | C48: =C59/C$55 -> 
A49: N | C49: =C60/C$55 -> 
A50: P | C50: =C61/C$55 -> 
A54: Stalrantsoen opname
A55: droge stof (kg) | C55: =C80 -> 0
A56: VEM | C56: =C96 -> 0
A57: DVE | C57: =C112 -> 0 | E57: =E112 -> 0
A58: OEB | C58: =C128 -> 0 | E58: =E128 -> 0
A59: RE | C59: =C144 -> 0 | E59: =E144 -> 0
A60: N | C60: =C146 -> 0 | E60: =E146 -> 0
A61: P | C61: =C162 -> 0 | E61: =E162 -> 0
A65: Drogestof opname
A66: ='Juni voer'!A9 -> 0 | B66: ='Juni voer'!B9 -> 0 | C66: =IF('Juni voer'!C9>0,VLOOKUP('Juni voer'!B9,Voedermiddelen!$A$4:$K$75,3,FALSE)*'Juni voer'!C9*(1-'Juni voer'!$B$6),"") ->  | D66: ='Juni voer'!G9 -> 0 | E66: =IF('Juni voer'!H9>0,VLOOKUP('Juni voer'!G9,Voedermiddelen!$A$4:$K$75,3,FALSE)*'Juni voer'!H9*(1-'Juni voer'!$G$6),"") -> 
A67: ='Juni voer'!A10 -> 0 | B67: ='Juni voer'!B10 -> 0 | C67: =IF('Juni voer'!C10>0,VLOOKUP('Juni voer'!B10,Voedermiddelen!$A$4:$K$75,3,FALSE)*'Juni voer'!C10*(1-'Juni voer'!$B$6),"") ->  | D67: ='Juni voer'!G10 -> 0 | E67: =IF('Juni voer'!H10>0,VLOOKUP('Juni voer'!G10,Voedermiddelen!$A$4:$K$75,3,FALSE)*'Juni voer'!H10*(1-'Juni voer'!$G$6),"") -> 
A68: ='Juni voer'!A11 -> 0 | B68: ='Juni voer'!B11 -> 0 | C68: =IF('Juni voer'!C11>0,VLOOKUP('Juni voer'!B11,Voedermiddelen!$A$4:$K$75,3,FALSE)*'Juni voer'!C11*(1-'Juni voer'!$B$6),"") ->  | D68: ='Juni voer'!G11 -> 0 | E68: =IF('Juni voer'!H11>0,VLOOKUP('Juni voer'!G11,Voedermiddelen!$A$4:$K$75,3,FALSE)*'Juni voer'!H11*(1-'Juni voer'!$G$6),"") -> 
A69: ='Juni voer'!A12 -> 0 | B69: ='Juni voer'!B12 -> 0 | C69: =IF('Juni voer'!C12>0,VLOOKUP('Juni voer'!B12,Voedermiddelen!$A$4:$K$75,3,FALSE)*'Juni voer'!C12*(1-'Juni voer'!$B$6),"") ->  | D69: ='Juni voer'!G12 -> 0 | E69: =IF('Juni voer'!H12>0,VLOOKUP('Juni voer'!G12,Voedermiddelen!$A$4:$K$75,3,FALSE)*'Juni voer'!H12*(1-'Juni voer'!$G$6),"") -> 
A70: ='Juni voer'!A13 -> 0 | B70: ='Juni voer'!B13 -> 0 | C70: =IF('Juni voer'!C13>0,VLOOKUP('Juni voer'!B13,Voedermiddelen!$A$4:$K$75,3,FALSE)*'Juni voer'!C13*(1-'Juni voer'!$B$6),"") ->  | D70: ='Juni voer'!G13 -> 0 | E70: =IF('Juni voer'!H13>0,VLOOKUP('Juni voer'!G13,Voedermiddelen!$A$4:$K$75,3,FALSE)*'Juni voer'!H13*(1-'Juni voer'!$G$6),"") -> 
A71: ='Juni voer'!A14 -> 0 | B71: ='Juni voer'!B14 -> 0 | C71: =IF('Juni voer'!C14>0,VLOOKUP('Juni voer'!B14,Voedermiddelen!$A$4:$K$75,3,FALSE)*'Juni voer'!C14*(1-'Juni voer'!$B$6),"") ->  | D71: ='Juni voer'!G14 -> 0 | E71: =IF('Juni voer'!H14>0,VLOOKUP('Juni voer'!G14,Voedermiddelen!$A$4:$K$75,3,FALSE)*'Juni voer'!H14*(1-'Juni voer'!$G$6),"") -> 
A72: ='Juni voer'!A15 -> 0 | B72: ='Juni voer'!B15 -> 0 | C72: =IF('Juni voer'!C15>0,VLOOKUP('Juni voer'!B15,Voedermiddelen!$A$4:$K$75,3,FALSE)*'Juni voer'!C15*(1-'Juni voer'!$B$6),"") ->  | D72: ='Juni voer'!G15 -> 0 | E72: =IF('Juni voer'!H15>0,VLOOKUP('Juni voer'!G15,Voedermiddelen!$A$4:$K$75,3,FALSE)*'Juni voer'!H15*(1-'Juni voer'!$G$6),"") -> 
A73: ='Juni voer'!A16 -> 0 | B73: ='Juni voer'!B16 -> 0 | C73: =IF('Juni voer'!C16>0,VLOOKUP('Juni voer'!B16,Voedermiddelen!$A$4:$K$75,3,FALSE)*'Juni voer'!C16*(1-'Juni voer'!$B$6),"") ->  | D73: ='Juni voer'!G16 -> 0 | E73: =IF('Juni voer'!H16>0,VLOOKUP('Juni voer'!G16,Voedermiddelen!$A$4:$K$75,3,FALSE)*'Juni voer'!H16*(1-'Juni voer'!$G$6),"") -> 
A74: ='Juni voer'!A17 -> 0 | B74: ='Juni voer'!B17 -> 0 | C74: =IF('Juni voer'!C17>0,VLOOKUP('Juni voer'!B17,Voedermiddelen!$A$4:$K$75,3,FALSE)*'Juni voer'!C17*(1-'Juni voer'!$B$6),"") ->  | D74: ='Juni voer'!G17 -> 0 | E74: =IF('Juni voer'!H17>0,VLOOKUP('Juni voer'!G17,Voedermiddelen!$A$4:$K$75,3,FALSE)*'Juni voer'!H17*(1-'Juni voer'!$G$6),"") -> 
B75: ='Juni voer'!B18 -> 0 | C75: =IF('Juni voer'!C18>0,VLOOKUP('Juni voer'!B18,Voedermiddelen!$A$4:$K$75,3,FALSE)*'Juni voer'!C18*(1-'Juni voer'!$B$6),"") ->  | D75: ='Juni voer'!G18 -> 0 | E75: =IF('Juni voer'!H18>0,VLOOKUP('Juni voer'!G18,Voedermiddelen!$A$4:$K$75,3,FALSE)*'Juni voer'!H18*(1-'Juni voer'!$G$6),"") -> 
B76: ='Juni voer'!B20 -> 0 | C76: =IF('Juni voer'!C20>0,VLOOKUP('Juni voer'!B20,Voedermiddelen!$A$4:$K$75,3,FALSE)*'Juni voer'!C20,"") ->  | E76: ='Juni voer'!H22*'Juni vee+melk'!E15/100*0.9 -> 
B77: ='Juni voer'!B21 -> 0 | C77: =IF('Juni voer'!C21>0,VLOOKUP('Juni voer'!B21,Voedermiddelen!$A$4:$K$75,3,FALSE)*'Juni voer'!C21,"") -> 
B78: ='Juni voer'!B22 -> 0 | C78: =IF('Juni voer'!C22>0,VLOOKUP('Juni voer'!B22,Voedermiddelen!$A$4:$K$75,3,FALSE)*'Juni voer'!C22,"") -> 
A80: Totaal | C80: =SUM(C66:C78) -> 0 | E80: =SUM(E66:E78) -> 
A82: VEM | B82: =B66 -> 0 | C82: =IF('Juni voer'!C9>0,VLOOKUP('Juni voer'!B9,Voedermiddelen!$A$4:$K$75,4,FALSE)*C66,"") ->  | D82: =D66 -> 0 | E82: =IF('Juni voer'!H9>0,VLOOKUP('Juni voer'!G9,Voedermiddelen!$A$4:$K$75,4,FALSE)*E66,"") -> 
B83: =B67 -> 0 | C83: =IF('Juni voer'!C10>0,VLOOKUP('Juni voer'!B10,Voedermiddelen!$A$4:$K$75,4,FALSE)*C67,"") ->  | D83: 0 | E83: =IF('Juni voer'!H10>0,VLOOKUP('Juni voer'!G10,Voedermiddelen!$A$4:$K$75,4,FALSE)*E67,"") -> 
B84: 0 | C84: =IF('Juni voer'!C11>0,VLOOKUP('Juni voer'!B11,Voedermiddelen!$A$4:$K$75,4,FALSE)*C68,"") ->  | D84: 0 | E84: =IF('Juni voer'!H11>0,VLOOKUP('Juni voer'!G11,Voedermiddelen!$A$4:$K$75,4,FALSE)*E68,"") -> 
B85: 0 | C85: =IF('Juni voer'!C12>0,VLOOKUP('Juni voer'!B12,Voedermiddelen!$A$4:$K$75,4,FALSE)*C69,"") ->  | D85: 0 | E85: =IF('Juni voer'!H12>0,VLOOKUP('Juni voer'!G12,Voedermiddelen!$A$4:$K$75,4,FALSE)*E69,"") -> 
B86: 0 | C86: =IF('Juni voer'!C13>0,VLOOKUP('Juni voer'!B13,Voedermiddelen!$A$4:$K$75,4,FALSE)*C70,"") ->  | D86: 0 | E86: =IF('Juni voer'!H13>0,VLOOKUP('Juni voer'!G13,Voedermiddelen!$A$4:$K$75,4,FALSE)*E70,"") -> 
B87: 0 | C87: =IF('Juni voer'!C14>0,VLOOKUP('Juni voer'!B14,Voedermiddelen!$A$4:$K$75,4,FALSE)*C71,"") ->  | D87: 0 | E87: =IF('Juni voer'!H14>0,VLOOKUP('Juni voer'!G14,Voedermiddelen!$A$4:$K$75,4,FALSE)*E71,"") -> 
B88: 0 | C88: =IF('Juni voer'!C15>0,VLOOKUP('Juni voer'!B15,Voedermiddelen!$A$4:$K$75,4,FALSE)*C72,"") ->  | D88: 0 | E88: =IF('Juni voer'!H15>0,VLOOKUP('Juni voer'!G15,Voedermiddelen!$A$4:$K$75,4,FALSE)*E72,"") -> 
B89: 0 | C89: =IF('Juni voer'!C16>0,VLOOKUP('Juni voer'!B16,Voedermiddelen!$A$4:$K$75,4,FALSE)*C73,"") ->  | D89: 0 | E89: =IF('Juni voer'!H16>0,VLOOKUP('Juni voer'!G16,Voedermiddelen!$A$4:$K$75,4,FALSE)*E73,"") -> 
B90: 0 | C90: =IF('Juni voer'!C17>0,VLOOKUP('Juni voer'!B17,Voedermiddelen!$A$4:$K$75,4,FALSE)*C74,"") ->  | D90: 0 | E90: =IF('Juni voer'!H17>0,VLOOKUP('Juni voer'!G17,Voedermiddelen!$A$4:$K$75,4,FALSE)*E74,"") -> 
B91: 0 | C91: =IF('Juni voer'!C18>0,VLOOKUP('Juni voer'!B18,Voedermiddelen!$A$4:$K$75,4,FALSE)*C75,"") ->  | D91: 0 | E91: =IF('Juni voer'!H18>0,VLOOKUP('Juni voer'!G18,Voedermiddelen!$A$4:$K$75,4,FALSE)*E75,"") -> 
B92: 0 | C92: =IF('Juni voer'!C20>0,VLOOKUP('Juni voer'!B20,Voedermiddelen!$A$4:$K$75,4,FALSE)*C76,"") ->  | D92: 0 | E92: =E76*1000 -> 
B93: 0 | C93: =IF('Juni voer'!C21>0,VLOOKUP('Juni voer'!B21,Voedermiddelen!$A$4:$K$75,4,FALSE)*C77,"") ->  | D93: 0
B94: 0 | C94: =IF('Juni voer'!C22>0,VLOOKUP('Juni voer'!B22,Voedermiddelen!$A$4:$K$75,4,FALSE)*C78,"") ->  | D94: 0
A96: Totaal | C96: =SUM(C82:C94) -> 0 | E96: =SUM(E82:E94) -> 
A98: DVE | B98: =B82 -> 0 | C98: =IF('Juni voer'!C9>0,VLOOKUP('Juni voer'!B9,[1]Voedermiddelen!$A$4:$K$75,5,FALSE)*C66,"") ->  | D98: =D82 -> 0 | E98: =IF('Juni voer'!H9>0,VLOOKUP('Juni voer'!G9,[1]Voedermiddelen!$A$4:$K$75,5,FALSE)*E66,"") -> 
B99: =B83 -> 0 | C99: =IF('Juni voer'!C10>0,VLOOKUP('Juni voer'!B10,[1]Voedermiddelen!$A$4:$K$75,5,FALSE)*C67,"") ->  | D99: 0 | E99: =IF('Juni voer'!H10>0,VLOOKUP('Juni voer'!G10,[1]Voedermiddelen!$A$4:$K$75,5,FALSE)*E67,"") -> 
B100: 0 | C100: =IF('Juni voer'!C11>0,VLOOKUP('Juni voer'!B11,[1]Voedermiddelen!$A$4:$K$75,5,FALSE)*C68,"") ->  | D100: 0 | E100: =IF('Juni voer'!H11>0,VLOOKUP('Juni voer'!G11,[1]Voedermiddelen!$A$4:$K$75,5,FALSE)*E68,"") -> 
B101: 0 | C101: =IF('Juni voer'!C12>0,VLOOKUP('Juni voer'!B12,[1]Voedermiddelen!$A$4:$K$75,5,FALSE)*C69,"") ->  | D101: 0 | E101: =IF('Juni voer'!H12>0,VLOOKUP('Juni voer'!G12,[1]Voedermiddelen!$A$4:$K$75,5,FALSE)*E69,"") -> 
